{"text_format":"3","workbook":"xlsx","n_sheets":2,"sheets":["Sheet1","第一页"],"not_rendered":{"defined_names":4},"read":"whole","date_system":"1900"}

{"sheet":"Sheet1","index":0,"n_rows":261,"n_cols":4,"rows_kept":261,"merged":[[0,0,0,2],[1,0,1,3]]}
["附件3"]
["2021年提升规模和新建投产工业企业名单"]
["序号","组织机构代码","企业名称","属地）"]
[1,{"$f":"VLOOKUP(C4,第一页!A:B,2,FALSE)","v":"MA32JJ4M5"},"福建浩氧环保有限公司","鼓楼区"]
[2,{"$f":"VLOOKUP(C5,第一页!A:B,2,FALSE)","v":"705102146"},"福建华电电力工程有限公司","鼓楼区"]
[3,{"$f":"VLOOKUP(C6,第一页!A:B,2,FALSE)","v":"569295739"},"福建金木年华家具有限公司","鼓楼区"]
[4,{"$f":"VLOOKUP(C7,第一页!A:B,2,FALSE)","v":"MA8RH4G95"},"福州莱科光电子制造有限公司","鼓楼区"]
[5,{"$f":"VLOOKUP(C8,第一页!A:B,2,FALSE)","v":"064104976"},"福州锐景达光电科技有限公司","鼓楼区"]
[6,{"$f":"VLOOKUP(C9,第一页!A:B,2,FALSE)","v":"660386105"},"福州赛瑞特新材料技术开发有限公司","鼓楼区"]
[7,{"$f":"VLOOKUP(C10,第一页!A:B,2,FALSE)","v":"MA33Q7RWX"},"福建憨球食品有限公司","仓山区"]
[8,{"$f":"VLOOKUP(C11,第一页!A:B,2,FALSE)","v":"MA3463R92"},"福建吉事达新能源科技有限公司","仓山区"]
[9,{"$f":"VLOOKUP(C12,第一页!A:B,2,FALSE)","v":"775384329"},"福建洁博利厨卫科技有限公司","仓山区"]
[10,{"$f":"VLOOKUP(C13,第一页!A:B,2,FALSE)","v":"MA3545PR2"},"福建美克莱铝业有限公司","仓山区"]
[11,{"$f":"VLOOKUP(C14,第一页!A:B,2,FALSE)","v":"060357036"},"福建天成保德环保科技有限公司","仓山区"]
[12,{"$f":"VLOOKUP(C15,第一页!A:B,2,FALSE)","v":"MA33DYB17"},"福建天成时代新能源科技有限公司","仓山区"]
[13,{"$f":"VLOOKUP(C16,第一页!A:B,2,FALSE)","v":"MA2YN5QP0"},"福建友鸿实业有限公司","仓山区"]
[14,{"$f":"VLOOKUP(C17,第一页!A:B,2,FALSE)","v":"MA33WXG1X"},"福建玉玲通线缆有限公司","仓山区"]
[15,{"$f":"VLOOKUP(C18,第一页!A:B,2,FALSE)","v":"569288694"},"福州百晶光电有限公司","仓山区"]
[16,{"$f":"VLOOKUP(C19,第一页!A:B,2,FALSE)","v":"759354760"},"福州博峰智能电器有限公司","仓山区"]
[17,{"$f":"VLOOKUP(C20,第一页!A:B,2,FALSE)","v":"MA32XF179"},"福州成宇电力设备有限公司","仓山区"]
[18,{"$f":"VLOOKUP(C21,第一页!A:B,2,FALSE)","v":"57928083X"},"福州登龙鞋业有限公司","仓山区"]
[19,{"$f":"VLOOKUP(C22,第一页!A:B,2,FALSE)","v":"574721165"},"福州福水源水务设备有限公司","仓山区"]
[20,{"$f":"VLOOKUP(C23,第一页!A:B,2,FALSE)","v":"569257249"},"福州高特光电科技有限公司","仓山区"]
[21,{"$f":"VLOOKUP(C24,第一页!A:B,2,FALSE)","v":"MA3481CRX"},"福州弘耀光电技术有限公司","仓山区"]
[22,{"$f":"VLOOKUP(C25,第一页!A:B,2,FALSE)","v":"MA2YA33Q6"},"福州嘉山金属制品有限公司","仓山区"]
[23,{"$f":"VLOOKUP(C26,第一页!A:B,2,FALSE)","v":"MA32TE2F6"},"福州金威航信息科技有限公司","仓山区"]
[24,{"$f":"VLOOKUP(C27,第一页!A:B,2,FALSE)","v":"779610821"},"福州康派克光电科技有限公司","仓山区"]
[25,{"$f":"VLOOKUP(C28,第一页!A:B,2,FALSE)","v":"678480423"},"福州菱成电装有限公司","仓山区"]
[26,{"$f":"VLOOKUP(C29,第一页!A:B,2,FALSE)","v":"MA34FX6B6"},"福州仁合创鑫实业有限公司","仓山区"]
[27,{"$f":"VLOOKUP(C30,第一页!A:B,2,FALSE)","v":"MA1NW5MX8"},"福州锐迪优通讯科技有限公司","仓山区"]
[28,{"$f":"VLOOKUP(C31,第一页!A:B,2,FALSE)","v":"77962545X"},"福州锐洁源电子科技有限公司","仓山区"]
[29,{"$f":"VLOOKUP(C32,第一页!A:B,2,FALSE)","v":"MA2XN8YE9"},"福州威泰思光电科技有限公司","仓山区"]
[30,{"$f":"VLOOKUP(C33,第一页!A:B,2,FALSE)","v":"MA2YPM999"},"福州薇麦初秋食品有限公司","仓山区"]
[31,{"$f":"VLOOKUP(C34,第一页!A:B,2,FALSE)","v":"310790722"},"福州亿维格电子有限公司","仓山区"]
[32,{"$f":"VLOOKUP(C35,第一页!A:B,2,FALSE)","v":"572971259"},"福州智元仪器设备有限公司","仓山区"]
[33,{"$f":"VLOOKUP(C36,第一页!A:B,2,FALSE)","v":"MA32P7U19"},"恩耐斯（福建）科技有限公司","晋安区"]
[34,{"$f":"VLOOKUP(C37,第一页!A:B,2,FALSE)","v":"MA2Y4D084"},"福建海峡环保资源开发有限公司","晋安区"]
[35,{"$f":"VLOOKUP(C38,第一页!A:B,2,FALSE)","v":"MA34618N0"},"福建巨泉集团有限公司","晋安区"]
[36,{"$f":"VLOOKUP(C39,第一页!A:B,2,FALSE)","v":"553248970"},"福建联畅科技有限公司","晋安区"]
[37,{"$f":"VLOOKUP(C40,第一页!A:B,2,FALSE)","v":"MA2Y0YA24"},"福建闽仪自动化设备有限公司","晋安区"]
[38,{"$f":"VLOOKUP(C41,第一页!A:B,2,FALSE)","v":"MA2YEBDJ6"},"福建先德能源科技有限公司","晋安区"]
[39,{"$f":"VLOOKUP(C42,第一页!A:B,2,FALSE)","v":"MA33EA9KX"},"福建新华联合印务集团有限公司","晋安区"]
[40,{"$f":"VLOOKUP(C43,第一页!A:B,2,FALSE)","v":"754983875"},"福州辰达五金机械有限公司","晋安区"]
[41,{"$f":"VLOOKUP(C44,第一页!A:B,2,FALSE)","v":"678485945"},"福建福菱建材科技有限公司","晋安区"]
[42,{"$f":"VLOOKUP(C45,第一页!A:B,2,FALSE)","v":"MA3320JB7"},"福州麦典服装有限公司","晋安区"]
[43,{"$f":"VLOOKUP(C46,第一页!A:B,2,FALSE)","v":"784528400"},"福州鑫霖电子有限公司","晋安区"]
[44,{"$f":"VLOOKUP(C47,第一页!A:B,2,FALSE)","v":"775387458"},"福州玉龙建材有限公司","晋安区"]
[45,{"$f":"VLOOKUP(C48,第一页!A:B,2,FALSE)","v":"MA34PB619"},"福州源长胜服饰有限公司","晋安区"]
[46,{"$f":"VLOOKUP(C49,第一页!A:B,2,FALSE)","v":"583109197"},"福州中核三重阀门制造有限公司","晋安区"]
[47,{"$f":"VLOOKUP(C50,第一页!A:B,2,FALSE)","v":"070851492"},"福建胜诚发水产有限公司","马尾区"]
[48,{"$f":"VLOOKUP(C51,第一页!A:B,2,FALSE)","v":"315548847"},"福建鑫美臣食品有限公司","马尾区"]
[49,{"$f":"VLOOKUP(C52,第一页!A:B,2,FALSE)","v":"MA2YJ4YL4"},"福建中量智汇科技有限公司","马尾区"]
[50,{"$f":"VLOOKUP(C53,第一页!A:B,2,FALSE)","v":"077436478"},"福州冠泓新材料科技有限公司","马尾区"]
[51,{"$f":"VLOOKUP(C54,第一页!A:B,2,FALSE)","v":"310678538"},"福州宏鑫华鞋业有限公司","马尾区"]
[52,{"$f":"VLOOKUP(C55,第一页!A:B,2,FALSE)","v":"310623123"},"福州华晨纸品包装有限公司","马尾区"]
[53,{"$f":"VLOOKUP(C56,第一页!A:B,2,FALSE)","v":"735654814"},"福州开发区联盛运动器材有限公司","马尾区"]
[54,{"$f":"VLOOKUP(C57,第一页!A:B,2,FALSE)","v":"768587929"},"福州盛博电子有限公司","马尾区"]
[55,{"$f":"VLOOKUP(C58,第一页!A:B,2,FALSE)","v":"MA3515F95"},"福州市名睿体育用品有限公司","马尾区"]
[56,{"$f":"VLOOKUP(C59,第一页!A:B,2,FALSE)","v":"315305511"},"福州兴峰机械设备有限公司","马尾区"]
[57,{"$f":"VLOOKUP(C60,第一页!A:B,2,FALSE)","v":"MA33G7C08"},"福州一凡科技有限公司","马尾区"]
[58,{"$f":"VLOOKUP(C61,第一页!A:B,2,FALSE)","v":"MA33QHKK4"},"福建达华智显科技有限公司","长乐区"]
[59,{"$f":"VLOOKUP(C62,第一页!A:B,2,FALSE)","v":"MA33Q231X"},"福建华兴永盛实业有限公司","长乐区"]
[60,{"$f":"VLOOKUP(C63,第一页!A:B,2,FALSE)","v":"058417650"},"福建嘉禾源水产品有限责任公司","长乐区"]
[61,{"$f":"VLOOKUP(C64,第一页!A:B,2,FALSE)","v":"064128521"},"福建捷高纺织有限公司","长乐区"]
[62,{"$f":"VLOOKUP(C65,第一页!A:B,2,FALSE)","v":"MA2Y8RD44"},"福建捷纶纺织有限公司","长乐区"]
[63,{"$f":"VLOOKUP(C66,第一页!A:B,2,FALSE)","v":"MA8RHT2N9"},"福建聚创纺织有限公司","长乐区"]
[64,{"$f":"VLOOKUP(C67,第一页!A:B,2,FALSE)","v":"MA331T4W7"},"福建开物冶金设备有限公司","长乐区"]
[65,{"$f":"VLOOKUP(C68,第一页!A:B,2,FALSE)","v":"MA31LTXQX"},"福建康辉纺织科技有限公司","长乐区"]
[66,{"$f":"VLOOKUP(C69,第一页!A:B,2,FALSE)","v":"MA34L8UP8"},"福建楠源家居有限公司","长乐区"]
[67,{"$f":"VLOOKUP(C70,第一页!A:B,2,FALSE)","v":"MA33JBDG2"},"福建润升针织有限公司","长乐区"]
[68,{"$f":"VLOOKUP(C71,第一页!A:B,2,FALSE)","v":"MA32937B6"},"福建省盛凯恒业发展有限公司","长乐区"]
[69,{"$f":"VLOOKUP(C72,第一页!A:B,2,FALSE)","v":"MA33UEXA9"},"福建省信骉金属制品有限公司","长乐区"]
[70,{"$f":"VLOOKUP(C73,第一页!A:B,2,FALSE)","v":"MA32YD910"},"福建伊纺达工纺新材料科技有限公司","长乐区"]
[71,{"$f":"VLOOKUP(C74,第一页!A:B,2,FALSE)","v":"MA34H2Q69"},"福建元旺食品有限公司","长乐区"]
[72,{"$f":"VLOOKUP(C75,第一页!A:B,2,FALSE)","v":"077400491"},"福建源盛达科技有限公司","长乐区"]
[73,{"$f":"VLOOKUP(C76,第一页!A:B,2,FALSE)","v":"MA2XU6NX7"},"福州丰雨针织有限公司","长乐区"]
[74,{"$f":"VLOOKUP(C77,第一页!A:B,2,FALSE)","v":"MA3365976"},"福州精艺恒盛新材料科技有限公司","长乐区"]
[75,{"$f":"VLOOKUP(C78,第一页!A:B,2,FALSE)","v":"MA2YABY7X"},"福州玛克伯爵装饰材料有限公司","长乐区"]
[76,{"$f":"VLOOKUP(C79,第一页!A:B,2,FALSE)","v":"MA33H00X8"},"福州美通塑料制品有限公司","长乐区"]
[77,{"$f":"VLOOKUP(C80,第一页!A:B,2,FALSE)","v":"577022108"},"福州明升针纺织品有限公司","长乐区"]
[78,{"$f":"VLOOKUP(C81,第一页!A:B,2,FALSE)","v":"779630910"},"福州森辰鑫木业有限公司","长乐区"]
[79,{"$f":"VLOOKUP(C82,第一页!A:B,2,FALSE)","v":"766158688"},"福州森瑞家居用品有限公司","长乐区"]
[80,{"$f":"VLOOKUP(C83,第一页!A:B,2,FALSE)","v":"759351260"},"福州盛伟机械制造有限公司","长乐区"]
[81,{"$f":"VLOOKUP(C84,第一页!A:B,2,FALSE)","v":"589564166"},"福州市杰成针纺有限公司","长乐区"]
[82,{"$f":"VLOOKUP(C85,第一页!A:B,2,FALSE)","v":"MA33HPDJ4"},"福州市源顺发针纺有限公司","长乐区"]
[83,{"$f":"VLOOKUP(C86,第一页!A:B,2,FALSE)","v":"577027136"},"福州市长乐区盛邦纸制品有限公司","长乐区"]
[84,{"$f":"VLOOKUP(C87,第一页!A:B,2,FALSE)","v":"569272852"},"福州市长乐区裕锦针织有限公司","长乐区"]
[85,{"$f":"VLOOKUP(C88,第一页!A:B,2,FALSE)","v":"MA32TCD32"},"福州天利和纺织有限公司","长乐区"]
[86,{"$f":"VLOOKUP(C89,第一页!A:B,2,FALSE)","v":"MA2YKMEXX"},"福州竹智家居用品有限公司","长乐区"]
[87,{"$f":"VLOOKUP(C90,第一页!A:B,2,FALSE)","v":"MA3486UR8"},"福州市长乐区佳源纸业有限公司","长乐区"]
[88,{"$f":"VLOOKUP(C91,第一页!A:B,2,FALSE)","v":"050302883"},"福州天顺针织有限公司","长乐区"]
[89,{"$f":"VLOOKUP(C92,第一页!A:B,2,FALSE)","v":"315608010"},"福州翔杰纺织有限公司","长乐区"]
[90,{"$f":"VLOOKUP(C93,第一页!A:B,2,FALSE)","v":"MA31TDNX3"},"中节能（福州）环保能源有限公司","长乐区"]
[91,{"$f":"VLOOKUP(C94,第一页!A:B,2,FALSE)","v":"MA8T1AWX4"},"奥斯玛特智能装备（福建）有限公司","福清市"]
[92,{"$f":"VLOOKUP(C95,第一页!A:B,2,FALSE)","v":"665064201"},"百利（福建）建材有限公司","福清市"]
[93,{"$f":"VLOOKUP(C96,第一页!A:B,2,FALSE)","v":"754994267"},"福建宝利特新材料科技有限公司","福清市"]
[94,{"$f":"VLOOKUP(C97,第一页!A:B,2,FALSE)","v":"MA33J7R34"},"福建朝华食品有限公司","福清市"]
[95,{"$f":"VLOOKUP(C98,第一页!A:B,2,FALSE)","v":"MA2YEQ703"},"福建成和光电科技有限公司","福清市"]
[96,{"$f":"VLOOKUP(C99,第一页!A:B,2,FALSE)","v":"MA2YHA6T7"},"福建东方小飞光电科技有限公司","福清市"]
[97,{"$f":"VLOOKUP(C100,第一页!A:B,2,FALSE)","v":"MA33MNNF7"},"福建福藤新型环保建材有限公司","福清市"]
[98,{"$f":"VLOOKUP(C101,第一页!A:B,2,FALSE)","v":"091355121"},"福建晶丰玻璃有限公司","福清市"]
[99,{"$f":"VLOOKUP(C102,第一页!A:B,2,FALSE)","v":"MA31K42KX"},"福建卡乐丽新型建材科技有限公司","福清市"]
[100,{"$f":"VLOOKUP(C103,第一页!A:B,2,FALSE)","v":"MA2YCP4C9"},"福建康鸿生物科技有限公司","福清市"]
[101,{"$f":"VLOOKUP(C104,第一页!A:B,2,FALSE)","v":"570991491"},"福建科亿电力有限公司","福清市"]
[102,{"$f":"VLOOKUP(C105,第一页!A:B,2,FALSE)","v":"MA31WLMC3"},"福建乐泽科技有限公司","福清市"]
[103,{"$f":"VLOOKUP(C106,第一页!A:B,2,FALSE)","v":"MA321Q6W0"},"福建力普达高温材料有限公司","福清市"]
[104,{"$f":"VLOOKUP(C107,第一页!A:B,2,FALSE)","v":"MA32FLXY1"},"福建美盈森环保科技有限公司","福清市"]
[105,{"$f":"VLOOKUP(C108,第一页!A:B,2,FALSE)","v":"MA33BLGA6"},"福建青祥鞋业有限公司","福清市"]
[106,{"$f":"VLOOKUP(C109,第一页!A:B,2,FALSE)","v":"MA2Y19L21"},"福建瑞虹贾卡实业有限公司","福清市"]
[107,{"$f":"VLOOKUP(C110,第一页!A:B,2,FALSE)","v":"MA2YQX505"},"福建润强包装材料有限公司","福清市"]
[108,{"$f":"VLOOKUP(C111,第一页!A:B,2,FALSE)","v":"MA34EFGA7"},"福建森得瑞家居用品有限公司","福清市"]
[109,{"$f":"VLOOKUP(C112,第一页!A:B,2,FALSE)","v":"070886230"},"福建省创翔鞋业有限公司","福清市"]
[110,{"$f":"VLOOKUP(C113,第一页!A:B,2,FALSE)","v":"154922825"},"福建省福清市优盛建材有限公司","福清市"]
[111,{"$f":"VLOOKUP(C114,第一页!A:B,2,FALSE)","v":"MA32CA9G5"},"福建省嘉鑫科技实业有限公司","福清市"]
[112,{"$f":"VLOOKUP(C115,第一页!A:B,2,FALSE)","v":"315501395"},"福建省鑫德福农产品有限公司","福清市"]
[113,{"$f":"VLOOKUP(C116,第一页!A:B,2,FALSE)","v":"MA2YECL04"},"福建小飞科技有限公司","福清市"]
[114,{"$f":"VLOOKUP(C117,第一页!A:B,2,FALSE)","v":"587510500"},"福建欣星原电子有限公司","福清市"]
[115,{"$f":"VLOOKUP(C118,第一页!A:B,2,FALSE)","v":"MA33XR8E4"},"福建新福兴玻璃智能科技有限公司","福清市"]
[116,{"$f":"VLOOKUP(C119,第一页!A:B,2,FALSE)","v":"MA33KGQB3"},"福建新展自动化科技有限公司","福清市"]
[117,{"$f":"VLOOKUP(C120,第一页!A:B,2,FALSE)","v":"MA32LTM59"},"福建鑫兴食品有限公司","福清市"]
[118,{"$f":"VLOOKUP(C121,第一页!A:B,2,FALSE)","v":"MA34ULCC1"},"福建星智达电子有限公司","福清市"]
[119,{"$f":"VLOOKUP(C122,第一页!A:B,2,FALSE)","v":"572952752"},"福建志坤能源科技开发有限公司","福清市"]
[120,{"$f":"VLOOKUP(C123,第一页!A:B,2,FALSE)","v":"MA33C8ER2"},"福建遵通再生资源有限公司","福清市"]
[121,{"$f":"VLOOKUP(C124,第一页!A:B,2,FALSE)","v":"MA34742U3"},"福清宝信电子科技有限公司","福清市"]
[122,{"$f":"VLOOKUP(C125,第一页!A:B,2,FALSE)","v":"MA3334G55"},"福清创辉鞋业有限公司","福清市"]
[123,{"$f":"VLOOKUP(C126,第一页!A:B,2,FALSE)","v":"660361602"},"福清宏利发模具有限公司","福清市"]
[124,{"$f":"VLOOKUP(C127,第一页!A:B,2,FALSE)","v":"MA3417DH2"},"福清嘉鑫鞋业有限公司","福清市"]
[125,{"$f":"VLOOKUP(C128,第一页!A:B,2,FALSE)","v":"MA342Q1F7"},"福清杰翔鞋业有限公司","福清市"]
[126,{"$f":"VLOOKUP(C129,第一页!A:B,2,FALSE)","v":"MA31TWT46"},"福清茂鸿塑胶有限公司","福清市"]
[127,{"$f":"VLOOKUP(C130,第一页!A:B,2,FALSE)","v":"MA2YBTMT8"},"福清市富韵家居有限公司","福清市"]
[128,{"$f":"VLOOKUP(C131,第一页!A:B,2,FALSE)","v":"MA31UXX74"},"福清市宏华石业有限公司","福清市"]
[129,{"$f":"VLOOKUP(C132,第一页!A:B,2,FALSE)","v":"MA31DB311"},"福清市宏联电子有限公司","福清市"]
[130,{"$f":"VLOOKUP(C133,第一页!A:B,2,FALSE)","v":"315564417"},"福清市宏远包装材料有限公司","福清市"]
[131,"MA33P0F74","福州市世邦高分子材料有限公司","福清市"]
[132,{"$f":"VLOOKUP(C135,第一页!A:B,2,FALSE)","v":"751352971"},"福清市龙固铝业有限公司","福清市"]
[133,{"$f":"VLOOKUP(C136,第一页!A:B,2,FALSE)","v":"565395396"},"福清市新榕兴农林开发有限公司","福清市"]
[134,{"$f":"VLOOKUP(C137,第一页!A:B,2,FALSE)","v":"MA346KYN8"},"福清市新融能门窗科技有限公司","福清市"]
[135,{"$f":"VLOOKUP(C138,第一页!A:B,2,FALSE)","v":"MA31F7L24"},"福清市兴鸿鑫家具有限公司","福清市"]
[136,{"$f":"VLOOKUP(C139,第一页!A:B,2,FALSE)","v":"MA33F7A18"},"福清市永裕来机床有限公司","福清市"]
[137,{"$f":"VLOOKUP(C140,第一页!A:B,2,FALSE)","v":"678474250"},"福清市昱兴电子配件有限公司","福清市"]
[138,{"$f":"VLOOKUP(C141,第一页!A:B,2,FALSE)","v":"MA34DRWUX"},"福清信德鞋业有限公司","福清市"]
[139,{"$f":"VLOOKUP(C142,第一页!A:B,2,FALSE)","v":"MA31L76B5"},"福州丰豪塑胶有限公司","福清市"]
[140,{"$f":"VLOOKUP(C143,第一页!A:B,2,FALSE)","v":"683096469"},"福州恒吉鞋业有限公司","福清市"]
[141,{"$f":"VLOOKUP(C144,第一页!A:B,2,FALSE)","v":"335721846"},"福州捷东家具有限公司","福清市"]
[142,{"$f":"VLOOKUP(C145,第一页!A:B,2,FALSE)","v":"MA334M9D0"},"福州盛丰新材料科技有限公司","福清市"]
[143,{"$f":"VLOOKUP(C146,第一页!A:B,2,FALSE)","v":"782159787"},"福州同馨缘彩印包装有限公司","福清市"]
[144,{"$f":"VLOOKUP(C147,第一页!A:B,2,FALSE)","v":"MA31QNK99"},"福州欣富宇服饰有限公司","福清市"]
[145,{"$f":"VLOOKUP(C148,第一页!A:B,2,FALSE)","v":"MA331E6FX"},"福州忠陞塑胶有限公司","福清市"]
[146,{"$f":"VLOOKUP(C149,第一页!A:B,2,FALSE)","v":"570965007"},"福州众翔包装材料有限公司","福清市"]
[147,{"$f":"VLOOKUP(C150,第一页!A:B,2,FALSE)","v":"056111543"},"汉纱合纺（福州）新材料科技有限公司","福清市"]
[148,{"$f":"VLOOKUP(C151,第一页!A:B,2,FALSE)","v":"052327478"},"华电（福建）风电有限公司","福清市"]
[149,{"$f":"VLOOKUP(C152,第一页!A:B,2,FALSE)","v":"097976121"},"金谷食品（福州）有限公司","福清市"]
[150,{"$f":"VLOOKUP(C153,第一页!A:B,2,FALSE)","v":"MA31HED15"},"闽都家具制造（福建）有限公司","福清市"]
[151,{"$f":"VLOOKUP(C154,第一页!A:B,2,FALSE)","v":"793768000"},"伟懋（福清）机电有限公司","福清市"]
[152,{"$f":"VLOOKUP(C155,第一页!A:B,2,FALSE)","v":"MA32EX2J9"},"正太新材料科技有限责任公司","福清市"]
[153,{"$f":"VLOOKUP(C156,第一页!A:B,2,FALSE)","v":"MA31FF188"},"筑波电子（福建）有限公司","福清市"]
[154,{"$f":"VLOOKUP(C157,第一页!A:B,2,FALSE)","v":"MA334QLE6"},"敖顺（福州）实业有限公司","闽侯县"]
[155,{"$f":"VLOOKUP(C158,第一页!A:B,2,FALSE)","v":"MA346CUC0"},"福建春添粮油食品有限公司","闽侯县"]
[156,{"$f":"VLOOKUP(C159,第一页!A:B,2,FALSE)","v":"MA34RRLP5"},"福建丰进食品有限公司","闽侯县"]
[157,{"$f":"VLOOKUP(C160,第一页!A:B,2,FALSE)","v":"05233829X"},"福建福锦记食品有限公司","闽侯县"]
[158,{"$f":"VLOOKUP(C161,第一页!A:B,2,FALSE)","v":"MA31TYJ64"},"福建富鑫达模具科技有限公司","闽侯县"]
[159,{"$f":"VLOOKUP(C162,第一页!A:B,2,FALSE)","v":"563383199"},"福建华震家具制造有限公司","闽侯县"]
[160,{"$f":"VLOOKUP(C163,第一页!A:B,2,FALSE)","v":"MA325NM8X"},"福建每食造物食品有限公司","闽侯县"]
[161,{"$f":"VLOOKUP(C164,第一页!A:B,2,FALSE)","v":"MA33TCEM5"},"福建榕圣产业园发展有限公司","闽侯县"]
[162,{"$f":"VLOOKUP(C165,第一页!A:B,2,FALSE)","v":"MA33XFTB0"},"福建省供销云厨餐饮管理有限公司","闽侯县"]
[163,{"$f":"VLOOKUP(C166,第一页!A:B,2,FALSE)","v":"696609956"},"福建省神安建材有限公司","闽侯县"]
[164,{"$f":"VLOOKUP(C167,第一页!A:B,2,FALSE)","v":"MA33T63L0"},"福建省鑫隆利新材料有限公司","闽侯县"]
[165,{"$f":"VLOOKUP(C168,第一页!A:B,2,FALSE)","v":"770652128"},"福建省兴春包装印刷有限公司","闽侯县"]
[166,{"$f":"VLOOKUP(C169,第一页!A:B,2,FALSE)","v":"091368627"},"福建顺意科技有限公司","闽侯县"]
[167,{"$f":"VLOOKUP(C170,第一页!A:B,2,FALSE)","v":"694373636"},"福建天威电气有限公司","闽侯县"]
[168,{"$f":"VLOOKUP(C171,第一页!A:B,2,FALSE)","v":"791769632"},"福建田丰机械有限公司","闽侯县"]
[169,{"$f":"VLOOKUP(C172,第一页!A:B,2,FALSE)","v":"315655909"},"福建维萨能源有限公司","闽侯县"]
[170,{"$f":"VLOOKUP(C173,第一页!A:B,2,FALSE)","v":"MA32TB977"},"福建五翔实业股份有限公司","闽侯县"]
[171,{"$f":"VLOOKUP(C174,第一页!A:B,2,FALSE)","v":"MA31DR2U6"},"福建叶家记健康食品科技有限公司","闽侯县"]
[172,{"$f":"VLOOKUP(C175,第一页!A:B,2,FALSE)","v":"MA3479CH4"},"福建优润机电设备有限公司","闽侯县"]
[173,{"$f":"VLOOKUP(C176,第一页!A:B,2,FALSE)","v":"687526286"},"福建震亚实业有限公司","闽侯县"]
[174,{"$f":"VLOOKUP(C177,第一页!A:B,2,FALSE)","v":"59171475X"},"福州邦泰金研金刚石工具制造有限公司","闽侯县"]
[175,{"$f":"VLOOKUP(C178,第一页!A:B,2,FALSE)","v":"674038064"},"福州鼎盛金属制品有限公司","闽侯县"]
[176,{"$f":"VLOOKUP(C179,第一页!A:B,2,FALSE)","v":"696636209"},"福州广发电气设备有限公司","闽侯县"]
[177,{"$f":"VLOOKUP(C180,第一页!A:B,2,FALSE)","v":"310603018"},"福州宏华家居制造有限公司","闽侯县"]
[178,{"$f":"VLOOKUP(C181,第一页!A:B,2,FALSE)","v":"662825028"},"福州慧邦机械设备有限公司","闽侯县"]
[179,{"$f":"VLOOKUP(C182,第一页!A:B,2,FALSE)","v":"784528419"},"福州金钧鑫塑胶制品有限公司","闽侯县"]
[180,{"$f":"VLOOKUP(C183,第一页!A:B,2,FALSE)","v":"694377370"},"福州金钥匙机电设备有限公司","闽侯县"]
[181,{"$f":"VLOOKUP(C184,第一页!A:B,2,FALSE)","v":"315568768"},"福州朗丰工艺品有限公司","闽侯县"]
[182,{"$f":"VLOOKUP(C185,第一页!A:B,2,FALSE)","v":"MA322C331"},"福州六和汽车零部件有限公司","闽侯县"]
[183,{"$f":"VLOOKUP(C186,第一页!A:B,2,FALSE)","v":"315730323"},"福州闽宏图电气设备有限公司","闽侯县"]
[184,{"$f":"VLOOKUP(C187,第一页!A:B,2,FALSE)","v":"075035929"},"福州尼可现代工艺品有限公司","闽侯县"]
[185,{"$f":"VLOOKUP(C188,第一页!A:B,2,FALSE)","v":"MA2YBF248"},"福州三井新能源科技有限公司","闽侯县"]
[186,{"$f":"VLOOKUP(C189,第一页!A:B,2,FALSE)","v":"777534036"},"福州商威纸业有限公司","闽侯县"]
[187,{"$f":"VLOOKUP(C190,第一页!A:B,2,FALSE)","v":"MA35D0QW5"},"福州胜帆建材有限公司","闽侯县"]
[188,{"$f":"VLOOKUP(C191,第一页!A:B,2,FALSE)","v":"MA34A2QE6"},"福州市安迪园工艺品有限公司","闽侯县"]
[189,{"$f":"VLOOKUP(C192,第一页!A:B,2,FALSE)","v":"MA325H753"},"福州市闽侯县康恒再生能源有限公司","闽侯县"]
[190,{"$f":"VLOOKUP(C193,第一页!A:B,2,FALSE)","v":"587502498"},"福州市亚特隆钢化玻璃有限公司","闽侯县"]
[191,{"$f":"VLOOKUP(C194,第一页!A:B,2,FALSE)","v":"MA33ACG8X"},"福州市英特齐制衣有限公司","闽侯县"]
[192,{"$f":"VLOOKUP(C195,第一页!A:B,2,FALSE)","v":"MA347THH0"},"福州市中马电气设备有限公司","闽侯县"]
[193,{"$f":"VLOOKUP(C196,第一页!A:B,2,FALSE)","v":"MA2YJT0P9"},"福州特浦勒新材料科技有限公司","闽侯县"]
[194,{"$f":"VLOOKUP(C197,第一页!A:B,2,FALSE)","v":"717330963"},"福州同泰电子有限公司","闽侯县"]
[195,{"$f":"VLOOKUP(C198,第一页!A:B,2,FALSE)","v":"MA31KNX99"},"福州万佳兴工艺品有限公司","闽侯县"]
[196,{"$f":"VLOOKUP(C199,第一页!A:B,2,FALSE)","v":"563379907"},"福州旺祺家居用品制造有限公司","闽侯县"]
[197,{"$f":"VLOOKUP(C200,第一页!A:B,2,FALSE)","v":"MA3418NR0"},"福州兴利亚机械制造有限公司","闽侯县"]
[198,{"$f":"VLOOKUP(C201,第一页!A:B,2,FALSE)","v":"786924706"},"福州亿丰米业有限公司","闽侯县"]
[199,{"$f":"VLOOKUP(C202,第一页!A:B,2,FALSE)","v":"572976105"},"福州永兴达工贸有限公司","闽侯县"]
[200,{"$f":"VLOOKUP(C203,第一页!A:B,2,FALSE)","v":"570983408"},"福州源美家居有限公司","闽侯县"]
[201,{"$f":"VLOOKUP(C204,第一页!A:B,2,FALSE)","v":"062251518"},"福州源申精密工业有限公司","闽侯县"]
[202,{"$f":"VLOOKUP(C205,第一页!A:B,2,FALSE)","v":"75497037X"},"福州泽霖食品有限公司","闽侯县"]
[203,{"$f":"VLOOKUP(C206,第一页!A:B,2,FALSE)","v":"746379627"},"福州长江镇宝电器有限公司","闽侯县"]
[204,{"$f":"VLOOKUP(C207,第一页!A:B,2,FALSE)","v":"315343649"},"福州臻宝金属有限公司","闽侯县"]
[205,{"$f":"VLOOKUP(C208,第一页!A:B,2,FALSE)","v":"MA33QGC23"},"福州众显电子有限公司","闽侯县"]
[206,{"$f":"VLOOKUP(C209,第一页!A:B,2,FALSE)","v":"09904802X"},"福州紫凤光电科技有限公司","闽侯县"]
[207,{"$f":"VLOOKUP(C210,第一页!A:B,2,FALSE)","v":"MA34JNR63"},"闽侯瑞豪工艺品有限公司","闽侯县"]
[208,{"$f":"VLOOKUP(C211,第一页!A:B,2,FALSE)","v":"766183277"},"闽侯县金品工艺有限公司","闽侯县"]
[209,{"$f":"VLOOKUP(C212,第一页!A:B,2,FALSE)","v":"696619388"},"闽侯亿华家居制品有限公司","闽侯县"]
[210,{"$f":"VLOOKUP(C213,第一页!A:B,2,FALSE)","v":"587515299"},"斯坦途（福建）防火材料有限公司","闽侯县"]
[211,{"$f":"VLOOKUP(C214,第一页!A:B,2,FALSE)","v":"MA320HJYX"},"福建海鳞源食品开发有限公司","连江县"]
[212,{"$f":"VLOOKUP(C215,第一页!A:B,2,FALSE)","v":"MA33QR8G2"},"福建慧翰智能制造有限公司","连江县"]
[213,{"$f":"VLOOKUP(C216,第一页!A:B,2,FALSE)","v":"MA33B88G9"},"福建明武玻璃有限公司","连江县"]
[214,{"$f":"VLOOKUP(C217,第一页!A:B,2,FALSE)","v":"399361472"},"福建省中马人防设备有限公司","连江县"]
[215,{"$f":"VLOOKUP(C218,第一页!A:B,2,FALSE)","v":"MA340G4T2"},"福建万栋电缆有限公司","连江县"]
[216,{"$f":"VLOOKUP(C219,第一页!A:B,2,FALSE)","v":"MA31DJT27"},"福州海大饲料有限公司","连江县"]
[217,{"$f":"VLOOKUP(C220,第一页!A:B,2,FALSE)","v":"MA2Y8KPD5"},"福州闽工建材有限公司","连江县"]
[218,{"$f":"VLOOKUP(C221,第一页!A:B,2,FALSE)","v":"662809896"},"福州圣龙铸造材料有限公司","连江县"]
[219,{"$f":"VLOOKUP(C222,第一页!A:B,2,FALSE)","v":"MA32BT9J6"},"连江县正源新材料有限公司","连江县"]
[220,{"$f":"VLOOKUP(C223,第一页!A:B,2,FALSE)","v":"MA8RJ4LH3"},"众邦电缆发展（福建）有限公司","连江县"]
[221,{"$f":"VLOOKUP(C224,第一页!A:B,2,FALSE)","v":"MA336AMF8"},"福建安启源新型建材有限公司","罗源县"]
[222,{"$f":"VLOOKUP(C225,第一页!A:B,2,FALSE)","v":"MA2XPYAJ9"},"福建百泓达消防科技有限公司","罗源县"]
[223,{"$f":"VLOOKUP(C226,第一页!A:B,2,FALSE)","v":"MA33NDK2X"},"福建飞起新型管业科技有限公司","罗源县"]
[224,{"$f":"VLOOKUP(C227,第一页!A:B,2,FALSE)","v":"MA2YK1G3X"},"福建联塑新材料科技有限公司","罗源县"]
[225,{"$f":"VLOOKUP(C228,第一页!A:B,2,FALSE)","v":"MA2YF8QJ6"},"福建罗源县天源新能源科技有限公司","罗源县"]
[226,{"$f":"VLOOKUP(C229,第一页!A:B,2,FALSE)","v":"MA33A3NJX"},"福建省易玻科技发展有限公司","罗源县"]
[227,{"$f":"VLOOKUP(C230,第一页!A:B,2,FALSE)","v":"MA2YPQ4T1"},"福建兴腾科技有限公司","罗源县"]
[228,{"$f":"VLOOKUP(C231,第一页!A:B,2,FALSE)","v":"MA32BQ0K9"},"福建正诚盛再生物资回收有限公司","罗源县"]
[229,{"$f":"VLOOKUP(C232,第一页!A:B,2,FALSE)","v":"MA34EUEC1"},"福州豪森时代实业有限公司","罗源县"]
[230,{"$f":"VLOOKUP(C233,第一页!A:B,2,FALSE)","v":"MA34NLJR0"},"福州华工智造机械有限公司","罗源县"]
[231,{"$f":"VLOOKUP(C234,第一页!A:B,2,FALSE)","v":"MA8RCAN80"},"福州聚和鑫不锈钢有限公司","罗源县"]
[232,{"$f":"VLOOKUP(C235,第一页!A:B,2,FALSE)","v":"MA33H7G09"},"福州荣欣包装有限公司","罗源县"]
[233,{"$f":"VLOOKUP(C236,第一页!A:B,2,FALSE)","v":"MA33EDNJ9"},"福州云起金属有限公司","罗源县"]
[234,{"$f":"VLOOKUP(C237,第一页!A:B,2,FALSE)","v":"MA3325GD8"},"罗源昆仑能源有限公司","罗源县"]
[235,{"$f":"VLOOKUP(C238,第一页!A:B,2,FALSE)","v":"MA31Q9GD8"},"罗源县长盛新能源科技有限公司","罗源县"]
[236,{"$f":"VLOOKUP(C239,第一页!A:B,2,FALSE)","v":"MA31JTRAX"},"罗源兆森材生物燃料有限公司","罗源县"]
[237,{"$f":"VLOOKUP(C240,第一页!A:B,2,FALSE)","v":"MA34L0K83"},"福建芬林家居用品有限公司","闽清县"]
[238,{"$f":"VLOOKUP(C241,第一页!A:B,2,FALSE)","v":"MA351MYT6"},"福建豪业启承实业有限公司","闽清县"]
[239,{"$f":"VLOOKUP(C242,第一页!A:B,2,FALSE)","v":"729736020"},"福建省福晶磁性材料有限公司","闽清县"]
[240,{"$f":"VLOOKUP(C243,第一页!A:B,2,FALSE)","v":"705144928"},"福建省闽清兴昌竹木制品有限公司","闽清县"]
[241,{"$f":"VLOOKUP(C244,第一页!A:B,2,FALSE)","v":"577017907"},"福建舜方实业有限公司","闽清县"]
[242,{"$f":"VLOOKUP(C245,第一页!A:B,2,FALSE)","v":"MA8RWG047"},"福建万邦集成房屋有限公司","闽清县"]
[243,{"$f":"VLOOKUP(C246,第一页!A:B,2,FALSE)","v":"MA2YJR0J4"},"福建新合发建材科技有限公司","闽清县"]
[244,{"$f":"VLOOKUP(C247,第一页!A:B,2,FALSE)","v":"093409322"},"福建鑫严创科技有限公司","闽清县"]
[245,{"$f":"VLOOKUP(C248,第一页!A:B,2,FALSE)","v":"MA33G38L3"},"福建信灿机电有限公司","闽清县"]
[246,{"$f":"VLOOKUP(C249,第一页!A:B,2,FALSE)","v":"MA34K9CL8"},"福建珍筑新材料科技有限公司","闽清县"]
[247,{"$f":"VLOOKUP(C250,第一页!A:B,2,FALSE)","v":"MA34QL9TX"},"闽清思路博实业有限公司","闽清县"]
[248,{"$f":"VLOOKUP(C251,第一页!A:B,2,FALSE)","v":"MA347XCR1"},"福州市保罗再生资源开发有限公司","永泰县"]
[249,{"$f":"VLOOKUP(C252,第一页!A:B,2,FALSE)","v":"MA31KNDR9"},"邦特（福州）科技有限公司","高新区"]
[250,{"$f":"VLOOKUP(C253,第一页!A:B,2,FALSE)","v":"MA2YN59T5"},"福建幕村鲜味食品有限公司","高新区"]
[251,{"$f":"VLOOKUP(C254,第一页!A:B,2,FALSE)","v":"MA32EPWD9"},"福建睿丰服装有限公司","高新区"]
[252,{"$f":"VLOOKUP(C255,第一页!A:B,2,FALSE)","v":"MA33D6483"},"福建省海峡星云信息科技有限公司","高新区"]
[253,{"$f":"VLOOKUP(C256,第一页!A:B,2,FALSE)","v":"MA345DTQ6"},"福建通川源新能源科技有限公司","高新区"]
[254,{"$f":"VLOOKUP(C257,第一页!A:B,2,FALSE)","v":"587860260"},"福建星网天合智能科技有限公司","高新区"]
[255,{"$f":"VLOOKUP(C258,第一页!A:B,2,FALSE)","v":"MA2XNK5H1"},"福建宜美智能科技有限公司","高新区"]
[256,{"$f":"VLOOKUP(C259,第一页!A:B,2,FALSE)","v":"753144594"},"福州澳星同方净水业有限公司","高新区"]
[257,{"$f":"VLOOKUP(C260,第一页!A:B,2,FALSE)","v":"MA2YJMHN1"},"福州弘丰光电科技有限公司","高新区"]
[258,{"$f":"VLOOKUP(C261,第一页!A:B,2,FALSE)","v":"777514318"},"福州盈科水处理工程有限公司","高新区"]

{"sheet":"第一页","index":1,"n_rows":2964,"n_cols":6,"rows_kept":2964}
["单位详细名称","组织机构代码","行业代码","行业小类","行业中类","县市区"]
["国网福建省电力有限公司",158142631,4420,"电力供应","电力、热力生产和供应业","鼓楼区"]
["宝钢德盛不锈钢有限公司","782167613",3130,"钢压延加工","黑色金属冶炼和压延加工业","罗源县"]
["福建申远新材料有限公司","062297284",2653,"合成纤维单聚合体制造","化学原料和化学制品制造业","连江县"]
["福建大东海实业集团有限公司","337588532",3120,"炼钢","黑色金属冶炼和压延加工业","长乐区"]
["福建永荣锦江股份有限公司","78691468X",2821,"锦纶纤维制造","化学纤维制造业","长乐区"]
["冠捷电子科技（福建）有限公司","738040607",3912,"计算机零部件制造","计算机、通信和其他电子设备制造业","福清市"]
["福建福清核电有限公司","786948070",4414,"核力发电","电力、热力生产和供应业","福清市"]
["福建罗源闽光钢铁有限责任公司","310715837",3130,"钢压延加工","黑色金属冶炼和压延加工业","罗源县"]
["福建奔驰汽车有限公司","717867832",3611,"汽柴油车整车制造","汽车制造业","闽侯县"]
["福建省力恒锦纶实业有限公司","779625951",2821,"锦纶纤维制造","化学纤维制造业","长乐区"]
["锐捷网络股份有限公司","754961764",3919,"其他计算机制造","计算机、通信和其他电子设备制造业","仓山区"]
["福州京东方光电科技有限公司","337620168",3974,"显示器件制造","计算机、通信和其他电子设备制造业","福清市"]
["福建景丰科技有限公司","572975137",2821,"锦纶纤维制造","化学纤维制造业","长乐区"]
["福建长源纺织有限公司","784518982",1711,"棉纺纱加工","纺织业","长乐区"]
["福建中景石化有限公司","559555779",2651,"初级形态塑料及合成树脂制造","化学原料和化学制品制造业","福清市"]
["中铝瑞闽股份有限公司","611000624",3252,"铝压延加工","有色金属冶炼和压延加工业","马尾区"]
["福州市长乐锦源纺织有限公司","550983507",1711,"棉纺纱加工","纺织业","长乐区"]
["福建申马新材料有限公司","MA31GW0N6",2619,"其他基础化学原料制造","化学原料和化学制品制造业","连江县"]
["福建亿鑫钢铁有限公司","746371334",3120,"炼钢","黑色金属冶炼和压延加工业","罗源县"]
["万华化学（福建）异氰酸酯有限公司","MA2YRCD12",2614,"有机化学原料制造","化学原料和化学制品制造业","福清市"]
["万华化学（福建）有限公司","MA33QYY14",2614,"有机化学原料制造","化学原料和化学制品制造业","福清市"]
["飞毛腿(福建)电子有限公司","611338123",3841,"锂离子电池制造","电气机械和器材制造业","马尾区"]
["福建祥鑫股份有限公司","741685238",3252,"铝压延加工","有色金属冶炼和压延加工业","闽侯县"]
["福建省金纶高纤股份有限公司","754974821",2822,"涤纶纤维制造","化学纤维制造业","长乐区"]
["福州中民新能源有限公司","567346256",4512,"液化石油气生产和供应业","燃气生产和供应业","福清市"]
["福建凯邦锦纶科技有限公司","796093934",2821,"锦纶纤维制造","化学纤维制造业","长乐区"]
["捷星显示科技(福建)有限公司","696641438",3912,"计算机零部件制造","计算机、通信和其他电子设备制造业","福清市"]
["福建华电可门发电有限公司","75314528X",4411,"火力发电","电力、热力生产和供应业","连江县"]
["新大陆数字技术股份有限公司","154586155",3475,"计算器及货币专用设备制造","通用设备制造业","马尾区"]
["福建新华源纺织集团有限公司","553235635",1711,"棉纺纱加工","纺织业","长乐区"]
["福建美得石化有限公司","567342722",2614,"有机化学原料制造","化学原料和化学制品制造业","福清市"]
["福建省中江石化有限公司","561668609",2651,"初级形态塑料及合成树脂制造","化学原料和化学制品制造业","福清市"]
["福建康泰再生资源利用有限公司","MA32AQ2K6",4210,"金属废料和碎屑加工处理","废弃资源综合利用业","长乐区"]
["福建元成豆业有限公司","759388506",1329,"其他饲料加工","农副食品加工业","长乐区"]
["福建省马尾造船股份有限公司","158147344",3731,"金属船舶制造","铁路、船舶、航空航天和其他运输设备制造业","连江县"]
["国能（连江）港电有限公司","593475975",4411,"火力发电","电力、热力生产和供应业","连江县"]
["福建省长乐市山力化纤有限公司","705394353",2822,"涤纶纤维制造","化学纤维制造业","长乐区"]
["福建吴航不锈钢制品有限公司","611315554",3130,"钢压延加工","黑色金属冶炼和压延加工业","长乐区"]
["福州吴航钢铁制品有限公司","75135124X",3130,"钢压延加工","黑色金属冶炼和压延加工业","长乐区"]
["福建省恒申合纤科技有限公司","557557092",2821,"锦纶纤维制造","化学纤维制造业","长乐区"]
["华能国际电力股份有限公司福州电厂","X11041238",4411,"火力发电","电力、热力生产和供应业","长乐区"]
["中国石油天然气股份有限公司天然气销售福建分公司","MA2XX1JM4",4511,"天然气生产和供应业","燃气生产和供应业","仓山区"]
["昇兴集团股份有限公司","611005951",3333,"金属包装容器及材料制造","金属制品业","马尾区"]
["福建天辰耀隆新材料有限公司","589572449",2614,"有机化学原料制造","化学原料和化学制品制造业","福清市"]
["福建华源纺织有限公司","738039956",1711,"棉纺纱加工","纺织业","长乐区"]
["东南（福建）汽车工业股份有限公司","611007201",3611,"汽柴油车整车制造","汽车制造业","闽侯县"]
["福建罗源小蕉轧钢有限公司","MA31RACX4",3130,"钢压延加工","黑色金属冶炼和压延加工业","罗源县"]
["福州市长乐区华亚纺织有限公司","705394310",1711,"棉纺纱加工","纺织业","长乐区"]
["福建友谊胶粘带集团有限公司","611839374",2411,"文具制造","文教、工美、体育和娱乐用品制造业","福清市"]
["福建经纬新纤科技实业有限公司","561676676",2822,"涤纶纤维制造","化学纤维制造业","福清市"]
["福建长德蛋白科技有限公司","08164283X",1329,"其他饲料加工","农副食品加工业","福清市"]
["福建凯航再生资源有限责任公司","MA2Y6TQF1",4210,"金属废料和碎屑加工处理","废弃资源综合利用业","长乐区"]
["国能（福州）热电有限公司","759386148",4412,"热电联产","电力、热力生产和供应业","福清市"]
["福建合盛气体有限公司","075035777",2619,"其他基础化学原料制造","化学原料和化学制品制造业","连江县"]
["福建元恒再生资源有限责任公司","MA31FHYR9",4210,"金属废料和碎屑加工处理","废弃资源综合利用业","长乐区"]
["福建金德尚黄金有限公司","739518051",2438,"珠宝首饰及有关物品制造","文教、工美、体育和娱乐用品制造业","长乐区"]
["福建省万达汽车玻璃工业有限公司","61132408X",3042,"特种玻璃制造","非金属矿物制品业","福清市"]
["福建省长乐市第二棉纺织厂","154874851",1711,"棉纺纱加工","纺织业","长乐区"]
["福建御冠食品有限公司","MA32TJ493",1353,"肉制品及副产品加工","农副食品加工业","福清市"]
["福建正隆纺织有限公司","741687268",1711,"棉纺纱加工","纺织业","长乐区"]
["长乐聚泉食品有限公司","611340426",1362,"鱼糜制品及水产品干腌制加工","农副食品加工业","长乐区"]
["福建东水食品股份有限公司","761759134",1361,"水产品冷冻加工","农副食品加工业","长乐区"]
["福建新创锦纶实业有限公司","MA2YYGWL6",2821,"锦纶纤维制造","化学纤维制造业","长乐区"]
["华能罗源发电有限责任公司","098328345",4411,"火力发电","电力、热力生产和供应业","罗源县"]
["利莱森玛电机科技(福州)有限公司","611332776",3811,"发电机及发电机组制造","电气机械和器材制造业","仓山区"]
["大通（福建）新材料股份有限公司","775367844",3831,"电线电缆制造","电气机械和器材制造业","马尾区"]
["福建金鑫纺织有限公司","154878916",1711,"棉纺纱加工","纺织业","长乐区"]
["福建省恒诚新材料科技有限公司","MA8TG9JF3",2821,"锦纶纤维制造","化学纤维制造业","连江县"]
["福州鑫广泰工贸有限公司","MA3393E87",4210,"金属废料和碎屑加工处理","废弃资源综合利用业","闽侯县"]
["奋安铝业股份有限公司","260170698",3252,"铝压延加工","有色金属冶炼和压延加工业","福清市"]
["福建德胜能源有限公司","66038322X",2521,"炼焦","石油加工、炼焦和核燃料加工业","罗源县"]
["福州华润燃气有限公司","154396888",4511,"天然气生产和供应业","燃气生产和供应业","晋安区"]
["福建经纬集团有限公司","154897885",1711,"棉纺纱加工","纺织业","长乐区"]
["福建永盛金属制品有限公司","628502604",3130,"钢压延加工","黑色金属冶炼和压延加工业","长乐区"]
["福建金风科技有限公司","MA2YKDFD8",3811,"发电机及发电机组制造","电气机械和器材制造业","福清市"]
["福建新大陆支付技术有限公司","597887897",3475,"计算器及货币专用设备制造","通用设备制造业","马尾区"]
["福建博那德科技园开发有限公司","073220127",3311,"金属结构制造","金属制品业","长乐区"]
["福建天马科技集团股份有限公司","782174522",1329,"其他饲料加工","农副食品加工业","福清市"]
["福州集佳油脂有限公司","555084615",1331,"食用植物油加工","农副食品加工业","福清市"]
["福建东南造船有限公司","158145306",3731,"金属船舶制造","铁路、船舶、航空航天和其他运输设备制造业","马尾区"]
["福建省东南电化股份有限公司","705101063",2614,"有机化学原料制造","化学原料和化学制品制造业","福清市"]
["福州高意光学有限公司","738039171",3976,"光电子器件制造","计算机、通信和其他电子设备制造业","晋安区"]
["福建康宏股份有限公司","727899563",1331,"食用植物油加工","农副食品加工业","福清市"]
["福建省福抗药业股份有限公司","739544081",2710,"化学药品原料药制造","医药制造业","福清市"]
["瑞芯微电子股份有限公司","733599532",3973,"集成电路制造","计算机、通信和其他电子设备制造业","鼓楼区"]
["福建星网锐捷通讯股份有限公司","611008511",3911,"计算机整机制造","计算机、通信和其他电子设备制造业","仓山区"]
["福建榕升纸业有限公司","MA328N9P2",2221,"机制纸及纸板制造","造纸和纸制品业","福清市"]
["裕丰源（福建）实业发展有限公司","557561681",1761,"针织或钩针编织物织造","纺织业","长乐区"]
["福州市力源锦纶实业有限公司","746388443",2821,"锦纶纤维制造","化学纤维制造业","长乐区"]
["正太新材料科技有限责任公司","MA32EX2J9",2643,"工业颜料制造","化学原料和化学制品制造业","福清市"]
["中铝瑞闽（福建）新材料有限公司","MA33GWQY3",3252,"铝压延加工","有色金属冶炼和压延加工业","福清市"]
["福建力盛纺织有限公司","759368898",1763,"针织或钩针编织品制造","纺织业","长乐区"]
["福耀玻璃工业集团股份有限公司","611300758",3041,"平板玻璃制造","非金属矿物制品业","福清市"]
["福州市星辉针织有限公司","717351166",1763,"针织或钩针编织品制造","纺织业","长乐区"]
["福建环洋新材料有限公司","MA2XRQ5P5",2661,"化学试剂和助剂制造","化学原料和化学制品制造业","福清市"]
["福建祥鑫新材料科技有限公司","MA3380M09",3240,"有色金属合金制造","有色金属冶炼和压延加工业","闽侯县"]
["福州市长乐区闽发食品水产有限公司","611330463",1361,"水产品冷冻加工","农副食品加工业","长乐区"]
["东方电气风电（福建）有限公司","MA32YNEYX",3811,"发电机及发电机组制造","电气机械和器材制造业","福清市"]
["福州统一企业有限公司","729696401",1433,"方便面制造","食品制造业","马尾区"]
["中建商品混凝土（福建）有限公司","070866723",3021,"水泥制品制造","非金属矿物制品业","马尾区"]
["福建水口发电集团有限公司","724218232",4413,"水力发电","电力、热力生产和供应业","闽清县"]
["福建星云电子股份有限公司","770663716",4011,"工业自动控制系统装置制造","仪器仪表制造业","马尾区"]
["福州市长乐区东港纺织有限公司","78694028X",1763,"针织或钩针编织品制造","纺织业","长乐区"]
["福州高意通讯有限公司","611700460",3976,"光电子器件制造","计算机、通信和其他电子设备制造业","晋安区"]
["福建省长乐市天梭纺织实业有限公司","727917653",1711,"棉纺纱加工","纺织业","长乐区"]
["飞毛腿电池有限公司","782178582",3849,"其他电池制造","电气机械和器材制造业","马尾区"]
["福建恒捷实业有限公司","058442274",2821,"锦纶纤维制造","化学纤维制造业","连江县"]
["福建正鑫纺织有限公司","775397912",1711,"棉纺纱加工","纺织业","长乐区"]
["福建永强力加动力设备有限公司","793784801",3811,"发电机及发电机组制造","电气机械和器材制造业","福清市"]
["福建飞毛腿动力科技有限公司","MA346CL64",3841,"锂离子电池制造","电气机械和器材制造业","马尾区"]
["福州新福兴玻璃科技有限公司","05841023X",3042,"特种玻璃制造","非金属矿物制品业","福清市"]
["丽珠集团福州福兴医药有限公司","611303027",2710,"化学药品原料药制造","医药制造业","福清市"]
["金强（福建）建材科技股份有限公司","563390997",3024,"轻质建筑材料制造","非金属矿物制品业","长乐区"]
["福融新材料股份有限公司","591732122",2921,"塑料薄膜制造","橡胶和塑料制品业","福清市"]
["福建精联科技有限公司","MA2XYFF96",2822,"涤纶纤维制造","化学纤维制造业","长乐区"]
["福州海马饲料有限公司","611440021",1329,"其他饲料加工","农副食品加工业","福清市"]
["福建省福能海峡发电有限公司","MA328GJE7",4415,"风力发电","电力、热力生产和供应业","长乐区"]
["福清华润燃气有限公司","729736725",4511,"天然气生产和供应业","燃气生产和供应业","福清市"]
["中邮科通信技术股份有限公司","158163475",3921,"通信系统设备制造","计算机、通信和其他电子设备制造业","仓山区"]
["福建恒源纺织有限公司","796051558",1711,"棉纺纱加工","纺织业","长乐区"]
["福建顶津食品有限公司","741687970",1529,"茶饮料及其他饮料制造","酒、饮料和精制茶制造业","马尾区"]
["福建港城能源有限公司","MA31D5B40",4420,"电力供应","电力、热力生产和供应业","福清市"]
["易佰特新能源科技有限公司","075035478",3841,"锂离子电池制造","电气机械和器材制造业","福清市"]
["福州天宇电气股份有限公司","798359919",3821,"变压器整流器和电感器制造","电气机械和器材制造业","闽侯县"]
["爱德克斯(福州)汽车零部件有限公司","577026408",3670,"汽车零部件及配件制造","汽车制造业","闽侯县"]
["福建源润建材有限公司","666876877",3021,"水泥制品制造","非金属矿物制品业","马尾区"]
["福州六和机械有限公司","724240245",3670,"汽车零部件及配件制造","汽车制造业","闽侯县"]
["福建升腾资讯有限公司","741684374",3913,"计算机外围设备制造","计算机、通信和其他电子设备制造业","仓山区"]
["福建顺邦防护科技有限公司","793752244",1819,"其他机织服装制造","纺织服装、服饰业","闽侯县"]
["福建华东船厂有限公司","775354920",4342,"船舶修理","金属制品、机械和设备修理业","罗源县"]
["福州丰诚环保科技有限公司","MA330MWY7",4210,"金属废料和碎屑加工处理","废弃资源综合利用业","闽清县"]
["福建省吉福粮油食品有限公司","660399766",1331,"食用植物油加工","农副食品加工业","福清市"]
["福州泰全工业有限公司","757369731",3670,"汽车零部件及配件制造","汽车制造业","闽侯县"]
["福州恒美光电材料有限公司","MA35CEQL8",3824,"电力电子元器件制造","电气机械和器材制造业","长乐区"]
["福州旭福光电科技有限公司","MA3499KD3",3976,"光电子器件制造","计算机、通信和其他电子设备制造业","福清市"]
["福建坤彩材料科技股份有限公司","78216907X",2644,"工艺美术颜料制造","化学原料和化学制品制造业","福清市"]
["福州市长乐区宏顺型材有限公司","726443927",3130,"钢压延加工","黑色金属冶炼和压延加工业","长乐区"]
["福建中日达金属有限公司","611447389",3360,"金属表面处理及热处理加工","金属制品业","马尾区"]
["易佰特(福建)电子有限公司","676534539",3841,"锂离子电池制造","电气机械和器材制造业","福清市"]
["福州弘泰冶金技术开发有限公司","MA348M317",3516,"冶金专用设备制造","专用设备制造业","长乐区"]
["福建时代星云科技有限公司","MA32G5K10",3849,"其他电池制造","电气机械和器材制造业","马尾区"]
["福州科瑞特纸品有限公司","757362484",2319,"包装装潢及其他印刷","印刷和记录媒介复制业","福清市"]
["福建万鸿纺织有限公司","57096037X",2821,"锦纶纤维制造","化学纤维制造业","长乐区"]
["福建溥泉新能源科技有限公司","MA8UQDRP2",2661,"化学试剂和助剂制造","化学原料和化学制品制造业","连江县"]
["福建省长乐市永德纺织有限公司","74909415X",1711,"棉纺纱加工","纺织业","长乐区"]
["福建省百顺纺织实业有限公司","565368101",1711,"棉纺纱加工","纺织业","长乐区"]
["福建兴宇实业有限公司","MA345T651",1329,"其他饲料加工","农副食品加工业","福清市"]
["福建光阳蛋业股份有限公司","154919220",1393,"蛋品加工","农副食品加工业","福清市"]
["福州开发区森森工艺品有限公司","757383728",2439,"其他工艺美术及礼仪用品制造","文教、工美、体育和娱乐用品制造业","马尾区"]
["福建亚通新材料科技股份有限公司","611323810",2922,"塑料板管型材制造","橡胶和塑料制品业","福清市"]
["福建礼恩科技有限公司","MA2XNE7T6",3831,"电线电缆制造","电气机械和器材制造业","闽清县"]
["福建省宏港纺织科技有限公司","563376327",1761,"针织或钩针编织物织造","纺织业","福清市"]
["福建省长乐市泰源纺织实业有限公司","743807227",1711,"棉纺纱加工","纺织业","长乐区"]
["福建金源纺织有限公司","70516016X",1711,"棉纺纱加工","纺织业","长乐区"]
["海欣食品股份有限公司","260191878",1432,"速冻食品制造","食品制造业","仓山区"]
["福建悦得软包装有限公司","687522568",2921,"塑料薄膜制造","橡胶和塑料制品业","罗源县"]
["福建新德食品有限公司","MA2YBE181",1331,"食用植物油加工","农副食品加工业","福清市"]
["福州开发区高龙饲料有限公司","726475662",1329,"其他饲料加工","农副食品加工业","马尾区"]
["福建锦程高科实业有限公司","052325042",2821,"锦纶纤维制造","化学纤维制造业","连江县"]
["福建建华建材有限公司","741685924",3021,"水泥制品制造","非金属矿物制品业","闽侯县"]
["福州德塔电源技术有限公司","315749374",3563,"电子元器件与机电组件设备制造","专用设备制造业","罗源县"]
["福州依强珠宝首饰有限公司","705115078",2438,"珠宝首饰及有关物品制造","文教、工美、体育和娱乐用品制造业","仓山区"]
["福州市帮利茶业有限责任公司","MA32TE2DX",1499,"其他未列明食品制造","食品制造业","仓山区"]
["福建省大地管桩有限公司","753143006",3021,"水泥制品制造","非金属矿物制品业","马尾区"]
["福建福铭食品有限公司","611324506",1361,"水产品冷冻加工","农副食品加工业","福清市"]
["福建三丰鞋业有限公司","611000501",1952,"皮鞋制造","皮革、毛皮、羽毛及其制品和制鞋业","仓山区"]
["福州源鑫瑞泰建材有限公司","779625847",3021,"水泥制品制造","非金属矿物制品业","马尾区"]
["福州许继电气有限公司","MA32TFRU0",3823,"配电开关控制设备制造","电气机械和器材制造业","闽侯县"]
["福州福螺船用螺旋桨制造有限公司","786915367",3734,"船用配套设备制造","铁路、船舶、航空航天和其他运输设备制造业","晋安区"]
["慧翰微电子股份有限公司","676537158",3962,"智能车载设备制造","计算机、通信和其他电子设备制造业","马尾区"]
["福州大福有限公司","611301902",1329,"其他饲料加工","农副食品加工业","马尾区"]
["艾尔姆风能叶片制品（福建）有限公司","MA32908G5",3811,"发电机及发电机组制造","电气机械和器材制造业","福清市"]
["福建省祥鑫五金科技有限公司","699035257",3240,"有色金属合金制造","有色金属冶炼和压延加工业","闽侯县"]
["福建鑫晟铜业有限公司","MA2YLJQB3",3251,"铜压延加工","有色金属冶炼和压延加工业","鼓楼区"]
["福建永动力弹簧科技有限公司","674026493",3483,"弹簧制造","通用设备制造业","福清市"]
["福州海峡发电有限公司","MA2Y5L8W9",4415,"风力发电","电力、热力生产和供应业","长乐区"]
["福建成凌针织有限公司","694351672",1761,"针织或钩针编织物织造","纺织业","长乐区"]
["福州航港铝业有限公司","611321321",3252,"铝压延加工","有色金属冶炼和压延加工业","长乐区"]
["福建艾维尔实业有限公司","399669223",2110,"木质家具制造","家具制造业","长乐区"]
["福建兆元光电有限公司","565398642",3975,"半导体照明器件制造","计算机、通信和其他电子设备制造业","闽侯县"]
["福清海峡发电有限公司","MA349RUU5",4415,"风力发电","电力、热力生产和供应业","福清市"]
["闽清广安天然气有限公司","741692200",4511,"天然气生产和供应业","燃气生产和供应业","闽清县"]
["福建榕圣产业园发展有限公司","MA33TCEM5",3099,"其他非金属矿物制品制造","非金属矿物制品业","闽侯县"]
["福建阿石创新材料股份有限公司","743809636",4040,"光学仪器制造","仪器仪表制造业","长乐区"]
["福建省永泰县金泰纺织有限公司","793790160",1711,"棉纺纱加工","纺织业","永泰县"]
["福建海创光电技术股份有限公司","MA346L2B9",3976,"光电子器件制造","计算机、通信和其他电子设备制造业","闽侯县"]
["福建省永泰县华尔锦纺织有限公司","717384654",1711,"棉纺纱加工","纺织业","永泰县"]
["福清市峰华木业有限公司","550970466",2035,"木制容器制造","木材加工和木、竹、藤、棕、草制品业","福清市"]
["福建元晟汽车配件科技有限公司","MA2XWQBA8",3670,"汽车零部件及配件制造","汽车制造业","闽侯县"]
["福建通宇电缆有限公司","694386381",3831,"电线电缆制造","电气机械和器材制造业","长乐区"]
["福建御味香冷冻食品有限公司","779623059",1353,"肉制品及副产品加工","农副食品加工业","福清市"]
["华电（福建）风电有限公司","052327478",4415,"风力发电","电力、热力生产和供应业","福清市"]
["明达工业（福建）有限公司","611306703",2452,"塑胶玩具制造","文教、工美、体育和娱乐用品制造业","福清市"]
["福州市自来水有限公司","154381467",4610,"自来水生产和供应","水的生产和供应业","鼓楼区"]
["福建新大陆自动识别技术有限公司","705132062",3919,"其他计算机制造","计算机、通信和其他电子设备制造业","马尾区"]
["福建思嘉环保材料科技有限公司","74167546X",2921,"塑料薄膜制造","橡胶和塑料制品业","晋安区"]
["福建祥鑫新能源汽车配件制造有限公司","MA31M9MWX",3670,"汽车零部件及配件制造","汽车制造业","闽侯县"]
["福建台亚汽车工业有限公司","611332514",3670,"汽车零部件及配件制造","汽车制造业","闽侯县"]
["福州迈新生物技术开发有限公司","154621627",2761,"生物药品制造","医药制造业","闽侯县"]
["福清市迪川包装有限公司","731842340",2319,"包装装潢及其他印刷","印刷和记录媒介复制业","福清市"]
["福州拓田生物技术有限公司","MA3531866",1329,"其他饲料加工","农副食品加工业","福清市"]
["福建省福州市同源染织有限公司","743847392",1713,"棉印染精加工","纺织业","长乐区"]
["福建源嘉轻纺有限公司","569291295",1711,"棉纺纱加工","纺织业","长乐区"]
["福建雪人制冷设备有限公司","754982311",3464,"制冷空调设备制造","通用设备制造业","长乐区"]
["福清市方力包装有限公司","738047489",2319,"包装装潢及其他印刷","印刷和记录媒介复制业","福清市"]
["福建东龙针纺有限公司","628518008",1763,"针织或钩针编织品制造","纺织业","长乐区"]
["福建时代包装材料有限公司","749055994",2921,"塑料薄膜制造","橡胶和塑料制品业","罗源县"]
["福州海大饲料有限公司","MA31DJT27",1329,"其他饲料加工","农副食品加工业","连江县"]
["福建中源新能源股份有限公司","79839153X",2511,"原油加工及石油制品制造","石油加工、炼焦和核燃料加工业","福清市"]
["福建福晶科技股份有限公司","158142850",3976,"光电子器件制造","计算机、通信和其他电子设备制造业","鼓楼区"]
["长乐联丰染整有限公司","726475881",1713,"棉印染精加工","纺织业","长乐区"]
["福州福享汽车工业有限公司","611332581",3670,"汽车零部件及配件制造","汽车制造业","闽侯县"]
["福清市恒泰水产食品有限公司","559589178",1361,"水产品冷冻加工","农副食品加工业","福清市"]
["福建宇邦纺织科技有限公司","595990022",1761,"针织或钩针编织物织造","纺织业","福清市"]
["华映科技（集团）股份有限公司","158147221",3974,"显示器件制造","计算机、通信和其他电子设备制造业","马尾区"]
["福清双胞胎饲料有限公司","553228910",1329,"其他饲料加工","农副食品加工业","福清市"]
["福州吉成建材有限公司","793772114",3021,"水泥制品制造","非金属矿物制品业","闽侯县"]
["福州宏达纺织有限公司","154893032",1761,"针织或钩针编织物织造","纺织业","长乐区"]
["福州海王福药制药有限公司","727934373",2720,"化学药品制剂制造","医药制造业","晋安区"]
["福建星网创智科技有限公司","MA8UNN138",3921,"通信系统设备制造","计算机、通信和其他电子设备制造业","闽侯县"]
["福建省六源科技有限公司","070867945",1761,"针织或钩针编织物织造","纺织业","长乐区"]
["福建海富特生物科技股份有限公司","694399609",1363,"鱼油提取及制品制造","农副食品加工业","福清市"]
["福清齐翔食品有限公司","61131640X",1362,"鱼糜制品及水产品干腌制加工","农副食品加工业","福清市"]
["福州住电装有限公司","772920595",3670,"汽车零部件及配件制造","汽车制造业","仓山区"]
["福建航融建材科技有限公司","MA32G38U6",3021,"水泥制品制造","非金属矿物制品业","长乐区"]
["中粮面业（福州）有限公司","MA33GBMD9",1312,"小麦加工","农副食品加工业","长乐区"]
["福州米立科技股份有限公司","399663075",3969,"其他智能消费设备制造","计算机、通信和其他电子设备制造业","马尾区"]
["福建中德能源有限公司","662800082",2651,"初级形态塑料及合成树脂制造","化学原料和化学制品制造业","福清市"]
["福建中海创自动化科技有限公司","050336784",4011,"工业自动控制系统装置制造","仪器仪表制造业","永泰县"]
["福建源光线束电器有限公司","611333568",3670,"汽车零部件及配件制造","汽车制造业","闽侯县"]
["福建福光天瞳光学有限公司","668534352",3473,"照相机及器材制造","通用设备制造业","福清市"]
["必高家具（福建）有限公司","680853364",2110,"木质家具制造","家具制造业","福清市"]
["福州市长乐区福源针织有限公司","154880004",1763,"针织或钩针编织品制造","纺织业","长乐区"]
["福建森达电气股份有限公司","611334640",3823,"配电开关控制设备制造","电气机械和器材制造业","仓山区"]
["福建恒邦远大纸制品有限公司","MA2YBAH82",2231,"纸和纸板容器制造","造纸和纸制品业","福清市"]
["福建兴顺饲料有限公司","X29849120",1329,"其他饲料加工","农副食品加工业","闽侯县"]
["福州聚和鑫不锈钢有限公司","MA8RCAN80",3130,"钢压延加工","黑色金属冶炼和压延加工业","罗源县"]
["福建海峡环保集团股份有限公司","739548277",4620,"污水处理及其再生利用","水的生产和供应业","晋安区"]
["福建骏鹏通信科技有限公司","749066618",3912,"计算机零部件制造","计算机、通信和其他电子设备制造业","长乐区"]
["福建省长乐利德纺织有限公司","791791426",1711,"棉纺纱加工","纺织业","长乐区"]
["福建省冠林科技有限公司","735677469",3969,"其他智能消费设备制造","计算机、通信和其他电子设备制造业","马尾区"]
["忠航（长乐）纺织有限公司","569277004",1711,"棉纺纱加工","纺织业","长乐区"]
["闽侯县倍特家居有限公司","550975099",2432,"金属工艺品制造","文教、工美、体育和娱乐用品制造业","闽侯县"]
["福州市长乐星艺毛纺有限公司","786920131",1711,"棉纺纱加工","纺织业","长乐区"]
["福建高龙生物科技有限公司","770651555",1329,"其他饲料加工","农副食品加工业","连江县"]
["美和（福建）集团有限公司","735696950",2432,"金属工艺品制造","文教、工美、体育和娱乐用品制造业","闽侯县"]
["福建众鑫不锈钢有限公司","MA349HK84",3130,"钢压延加工","黑色金属冶炼和压延加工业","永泰县"]
["福建宇洲纺织有限公司","154893040",1763,"针织或钩针编织品制造","纺织业","长乐区"]
["福建省闽清三得利陶瓷有限公司","705144514",3071,"建筑陶瓷制品制造","非金属矿物制品业","闽清县"]
["福州宝井钢材有限公司","757380914",3670,"汽车零部件及配件制造","汽车制造业","闽侯县"]
["福州福瑞包装有限公司","052338804",2221,"机制纸及纸板制造","造纸和纸制品业","马尾区"]
["福州市供电服务有限公司","052333333",4350,"电气设备修理","金属制品、机械和设备修理业","马尾区"]
["福建天石源科技股份有限公司","749089369",3321,"切削工具制造","金属制品业","闽侯县"]
["协展(福建)机械工业有限公司","611332602",3670,"汽车零部件及配件制造","汽车制造业","闽侯县"]
["福州万升电器有限公司","731858780",3823,"配电开关控制设备制造","电气机械和器材制造业","闽侯县"]
["福建省海峡星云信息科技有限公司","MA33D6483",3911,"计算机整机制造","计算机、通信和其他电子设备制造业","闽侯县"]
["胜田(福清)食品有限公司","611332418",1361,"水产品冷冻加工","农副食品加工业","福清市"]
["福建快科城建增设电梯股份有限公司","315477014",3435,"电梯自动扶梯及升降机制造","通用设备制造业","闽侯县"]
["福建华科光电有限公司","611003753",3976,"光电子器件制造","计算机、通信和其他电子设备制造业","晋安区"]
["福州市长乐区广丰纺织有限公司","628612598",1711,"棉纺纱加工","纺织业","长乐区"]
["绿星（福州）居室用品有限公司","611312767",4119,"其他日用杂品制造","其他制造业","福清市"]
["福建恒杰塑业新材料有限公司","717398271",2922,"塑料板管型材制造","橡胶和塑料制品业","福清市"]
["福建天马饲料有限公司","741695399",1329,"其他饲料加工","农副食品加工业","福清市"]
["国脉科技股份有限公司","158173905",3919,"其他计算机制造","计算机、通信和其他电子设备制造业","马尾区"]
["福建大昌盛饲料有限公司","MA349B8F9",1329,"其他饲料加工","农副食品加工业","福清市"]
["福州华冠针纺织品有限公司","611325189",1713,"棉印染精加工","纺织业","长乐区"]
["福州为天食品有限公司","66507555X",1392,"豆制品制造","农副食品加工业","闽侯县"]
["福建宝丰管桩有限公司","633910530",3021,"水泥制品制造","非金属矿物制品业","闽侯县"]
["福州市长乐区申华针织有限公司","628518622",1763,"针织或钩针编织品制造","纺织业","长乐区"]
["福清丰裕制衣有限公司","MA2YPNEY8",1819,"其他机织服装制造","纺织服装、服饰业","福清市"]
["罗源华润燃气有限公司","574702036",4511,"天然气生产和供应业","燃气生产和供应业","罗源县"]
["福建瑞玻玻璃有限公司","310606489",3042,"特种玻璃制造","非金属矿物制品业","连江县"]
["福建省闽清双兴陶瓷有限公司","738019816",3071,"建筑陶瓷制品制造","非金属矿物制品业","闽清县"]
["福清隆盛制衣有限公司","633909695",1819,"其他机织服装制造","纺织服装、服饰业","福清市"]
["福建景泰包装材料有限公司","793784895",2921,"塑料薄膜制造","橡胶和塑料制品业","罗源县"]
["福州弘博工艺有限公司","784543686",2432,"金属工艺品制造","文教、工美、体育和娱乐用品制造业","闽侯县"]
["福州百事可乐饮料有限公司","61130066X",1521,"碳酸饮料制造","酒、饮料和精制茶制造业","闽侯县"]
["福州云飞家居有限公司","691935015",2439,"其他工艺美术及礼仪用品制造","文教、工美、体育和娱乐用品制造业","闽侯县"]
["福建睿能科技股份有限公司","66509091X",4011,"工业自动控制系统装置制造","仪器仪表制造业","鼓楼区"]
["福建永福绿能科技有限公司","MABRD81X0",3825,"光伏设备及元器件制造","电气机械和器材制造业","闽侯县"]
["福建高壹工机有限公司","611300344",3465,"风动和电动工具制造","通用设备制造业","晋安区"]
["福清市诚烨电子有限公司","561689995",2921,"塑料薄膜制造","橡胶和塑料制品业","福清市"]
["福建麦特新铝业科技有限公司","563395878",3252,"铝压延加工","有色金属冶炼和压延加工业","闽侯县"]
["福清市龙华水产食品有限公司","154904897",1361,"水产品冷冻加工","农副食品加工业","福清市"]
["银捷尼科（福建）科技有限公司","MA8U5R0J5",3475,"计算器及货币专用设备制造","通用设备制造业","鼓楼区"]
["福州大昌盛饲料有限公司","611001870",1329,"其他饲料加工","农副食品加工业","马尾区"]
["福清永秀鞋业有限公司","689392955",1953,"塑料鞋制造","皮革、毛皮、羽毛及其制品和制鞋业","福清市"]
["福建省尚飞制衣有限公司","74636437X",1819,"其他机织服装制造","纺织服装、服饰业","仓山区"]
["福建通安电子有限公司","676504284",3990,"其他电子设备制造","计算机、通信和其他电子设备制造业","闽侯县"]
["福建祥锦实业有限公司","739501612",1761,"针织或钩针编织物织造","纺织业","长乐区"]
["福建科泰德电力设备有限公司","MA2Y2DKPX",3811,"发电机及发电机组制造","电气机械和器材制造业","仓山区"]
["福建空分气体有限公司","796053211",2619,"其他基础化学原料制造","化学原料和化学制品制造业","罗源县"]
["福州市长乐区东城针纺有限公司","784505196",1761,"针织或钩针编织物织造","纺织业","长乐区"]
["福建雪人压缩机有限公司","MA32NBW70",3464,"制冷空调设备制造","通用设备制造业","长乐区"]
["福州吉隆混凝土有限公司","587543759",3021,"水泥制品制造","非金属矿物制品业","闽侯县"]
["福建省闽清新东方陶瓷有限公司","759391932",3071,"建筑陶瓷制品制造","非金属矿物制品业","闽清县"]
["福建鸿生高科环保科技有限公司","MA3455LR1",3021,"水泥制品制造","非金属矿物制品业","福清市"]
["福耀汽车铝件（福建）有限公司","MA32G4JDX",3670,"汽车零部件及配件制造","汽车制造业","福清市"]
["福州市长乐区顺亚针织有限公司","705158350",1761,"针织或钩针编织物织造","纺织业","长乐区"]
["福州三强混凝土有限公司","694378306",3021,"水泥制品制造","非金属矿物制品业","闽侯县"]
["福州旭煌食品有限公司","705139336",1361,"水产品冷冻加工","农副食品加工业","连江县"]
["福清市华盛水产食品有限公司","154921750",1361,"水产品冷冻加工","农副食品加工业","福清市"]
["茶花家居塑料用品（连江）有限公司","565370420",2927,"日用塑料制品制造","橡胶和塑料制品业","连江县"]
["福建魔方电子科技有限公司","315722331",3475,"计算器及货币专用设备制造","通用设备制造业","仓山区"]
["福清海峰食品有限公司","759379247",1362,"鱼糜制品及水产品干腌制加工","农副食品加工业","福清市"]
["福州群尚工艺品有限公司","66506691X",2439,"其他工艺美术及礼仪用品制造","文教、工美、体育和娱乐用品制造业","闽侯县"]
["福耀集团(福建)机械制造有限公司","611324565",3515,"建筑材料生产专用机械制造","专用设备制造业","福清市"]
["福建圣菲尔珠宝首饰有限公司","MA348MLL5",2438,"珠宝首饰及有关物品制造","文教、工美、体育和娱乐用品制造业","仓山区"]
["本田动力（福州）有限公司","MA35CN5N5",3811,"发电机及发电机组制造","电气机械和器材制造业","晋安区"]
["福建福顺半导体制造有限公司","76859765X",3973,"集成电路制造","计算机、通信和其他电子设备制造业","仓山区"]
["福建胜基食品饮料有限公司","79606966X",1523,"果菜汁及果菜汁饮料制造","酒、饮料和精制茶制造业","闽侯县"]
["福州中澳科技有限公司","559593388",3525,"模具制造","专用设备制造业","闽侯县"]
["福州市长乐区龙曦机械加工厂","L00968647",3459,"其他传动部件制造","通用设备制造业","长乐区"]
["福建联迪商用设备有限公司","782189177",3475,"计算器及货币专用设备制造","通用设备制造业","鼓楼区"]
["福建航港针织品有限公司","717390325",1763,"针织或钩针编织品制造","纺织业","长乐区"]
["福建中能电气有限公司","569263817",3823,"配电开关控制设备制造","电气机械和器材制造业","福清市"]
["福州市珊瑚饲料有限公司","591741811",1329,"其他饲料加工","农副食品加工业","连江县"]
["福州天瑞线锯科技有限公司","315533186",4190,"其他未列明制造业","其他制造业","闽侯县"]
["福建省福州恒新竹业有限公司","MA8UKK4K1",2041,"竹制品制造","木材加工和木、竹、藤、棕、草制品业","闽清县"]
["福州市长乐区恒利达针织有限公司","628701099",1763,"针织或钩针编织品制造","纺织业","长乐区"]
["长乐永丰羽绒制品有限公司","154872530",1941,"羽毛绒加工","皮革、毛皮、羽毛及其制品和制鞋业","长乐区"]
["福清轩朗光电科技有限公司","MA2XQAT12",3976,"光电子器件制造","计算机、通信和其他电子设备制造业","福清市"]
["福州欣博工艺品有限公司","754998532",2439,"其他工艺美术及礼仪用品制造","文教、工美、体育和娱乐用品制造业","闽侯县"]
["中福大明集团有限公司","678487844",3825,"光伏设备及元器件制造","电气机械和器材制造业","鼓楼区"]
["福州和特新能源有限公司","070883603",4412,"热电联产","电力、热力生产和供应业","福清市"]
["长乐鑫日机械有限公司","662820083",3130,"钢压延加工","黑色金属冶炼和压延加工业","长乐区"]
["福建东亚环保科技股份有限公司","154670357",3462,"风机风扇制造","通用设备制造业","闽侯县"]
["闽侯县宜欣日用品有限责任公司","739539450",2431,"雕塑工艺品制造","文教、工美、体育和娱乐用品制造业","闽侯县"]
["长乐金牛金属制品有限公司","791757914",3311,"金属结构制造","金属制品业","长乐区"]
["福建福特科光电股份有限公司","739539549",3976,"光电子器件制造","计算机、通信和其他电子设备制造业","闽侯县"]
["福州聚春园食品股份有限公司","674028835",1432,"速冻食品制造","食品制造业","连江县"]
["福州市长乐区佳荣实业有限公司","782176069",1763,"针织或钩针编织品制造","纺织业","长乐区"]
["闽侯县富邦工艺品有限公司","595966292",2432,"金属工艺品制造","文教、工美、体育和娱乐用品制造业","闽侯县"]
["福建永丰针纺有限公司","154877622",1763,"针织或钩针编织品制造","纺织业","长乐区"]
["福建融海水产有限公司","MA8UKWH97",1361,"水产品冷冻加工","农副食品加工业","福清市"]
["福州斯马特家居饰品有限公司","660358630",2439,"其他工艺美术及礼仪用品制造","文教、工美、体育和娱乐用品制造业","闽侯县"]
["奥力根工具（福州）有限公司","757390581",3323,"农用及园林用金属工具制造","金属制品业","仓山区"]
["福建腾博新材料科技有限公司","766180578",3670,"汽车零部件及配件制造","汽车制造业","仓山区"]
["大莲电瓷（福建）有限公司","062298631",3073,"特种陶瓷制品制造","非金属矿物制品业","闽清县"]
["闽侯县宏业工艺品厂","79377470X",2439,"其他工艺美术及礼仪用品制造","文教、工美、体育和娱乐用品制造业","闽侯县"]
["福州富鸿齐电子有限公司","738039243",3452,"滑动轴承制造","通用设备制造业","福清市"]
["中闽（福清）风电有限公司","671920932",4415,"风力发电","电力、热力生产和供应业","福清市"]
["全兴汽车配件(福州)有限公司","611343985",3670,"汽车零部件及配件制造","汽车制造业","闽侯县"]
["福建瑞昌新能源科技开发有限公司","056101273",3392,"有色金属铸造","金属制品业","福清市"]
["福州通威威廉饲料有限责任公司","050310146",1329,"其他饲料加工","农副食品加工业","福清市"]
["福州开发区高龙实业有限公司","MA345YMA8",1363,"鱼油提取及制品制造","农副食品加工业","马尾区"]
["福州丹诺西诚电子科技有限公司","793773811",3670,"汽车零部件及配件制造","汽车制造业","鼓楼区"]
["福建省轻工机械设备有限公司","727906284",3541,"制浆和造纸专用设备制造","专用设备制造业","闽侯县"]
["福州宏昌混凝土有限公司","MA2Y36M8X",3021,"水泥制品制造","非金属矿物制品业","马尾区"]
["福建新星航针织有限公司","577003134",1763,"针织或钩针编织品制造","纺织业","长乐区"]
["福建盛利达陶瓷有限公司","699002930",3071,"建筑陶瓷制品制造","非金属矿物制品业","闽清县"]
["福州联泓交通器材有限公司","611332522",3670,"汽车零部件及配件制造","汽车制造业","闽侯县"]
["福州昌世工艺品有限公司","751390652",2432,"金属工艺品制造","文教、工美、体育和娱乐用品制造业","闽侯县"]
["长乐双源针织有限公司","789040957",1763,"针织或钩针编织品制造","纺织业","长乐区"]
["麦克赛尔数字映像(中国)有限公司","72793981X",4040,"光学仪器制造","仪器仪表制造业","晋安区"]
["福建省力拓锦纶有限公司","743810020",2821,"锦纶纤维制造","化学纤维制造业","长乐区"]
["福建省福清市金波金属制品有限公司","567339785",3311,"金属结构制造","金属制品业","福清市"]
["福建省嘉记食品有限公司","772930881",1331,"食用植物油加工","农副食品加工业","闽侯县"]
["福州炼石水泥有限公司","685091143",3011,"水泥制造","非金属矿物制品业","闽侯县"]
["福州常春腾家居制造有限公司","550966790",2439,"其他工艺美术及礼仪用品制造","文教、工美、体育和娱乐用品制造业","闽侯县"]
["福建唐源合纤科技有限公司","561650986",2821,"锦纶纤维制造","化学纤维制造业","长乐区"]
["捷登达（福建）光电有限公司","731883599",3976,"光电子器件制造","计算机、通信和其他电子设备制造业","闽侯县"]
["福建源博建材有限公司","555093976",3021,"水泥制品制造","非金属矿物制品业","连江县"]
["福建金磊纺织有限公司","753141609",1711,"棉纺纱加工","纺织业","长乐区"]
["福建鸿生材料科技股份有限公司","57099457X",3021,"水泥制品制造","非金属矿物制品业","福清市"]
["福州利福高新材料有限公司","761776129",2921,"塑料薄膜制造","橡胶和塑料制品业","闽侯县"]
["福建省闽清欧美陶瓷有限公司","743821643",3071,"建筑陶瓷制品制造","非金属矿物制品业","闽清县"]
["安德佳（福建）铝饰科技有限公司","399666241",3670,"汽车零部件及配件制造","汽车制造业","福清市"]
["福建辉阳电缆科技有限公司","705115772",3831,"电线电缆制造","电气机械和器材制造业","闽侯县"]
["福建新佳乐花边实业有限公司","759358956",1763,"针织或钩针编织品制造","纺织业","长乐区"]
["福清市贸旺水产发展有限公司","717391619",1361,"水产品冷冻加工","农副食品加工业","福清市"]
["福州金牛水泥有限公司","796056826",3011,"水泥制造","非金属矿物制品业","闽侯县"]
["永丰余纸业（福州）有限公司","757386195",2231,"纸和纸板容器制造","造纸和纸制品业","马尾区"]
["福州瑞华印制线路板有限公司","611318771",3982,"电子电路制造","计算机、通信和其他电子设备制造业","闽侯县"]
["北京同仁堂健康药业(福州)有限公司","757378902",2730,"中药饮片加工","医药制造业","仓山区"]
["福建省立华智纺科技有限公司","MA31QQ209",1761,"针织或钩针编织物织造","纺织业","长乐区"]
["福建友和胶粘科技实业有限公司","054348838",2411,"文具制造","文教、工美、体育和娱乐用品制造业","福清市"]
["福清天祥电子配件有限公司","766172658",3831,"电线电缆制造","电气机械和器材制造业","福清市"]
["闽侯县业新家居制造有限公司","676545801",2439,"其他工艺美术及礼仪用品制造","文教、工美、体育和娱乐用品制造业","闽侯县"]
["福州翔隆纺织有限公司","741651249",1711,"棉纺纱加工","纺织业","长乐区"]
["福州源丰海洋科技有限公司","MA335DMP2",1361,"水产品冷冻加工","农副食品加工业","连江县"]
["福建永泰闽投抽水蓄能有限公司","315799419",4413,"水力发电","电力、热力生产和供应业","永泰县"]
["福人木业（福州）有限公司","58110232X",2023,"刨花板制造","木材加工和木、竹、藤、棕、草制品业","马尾区"]
["福州钛发科技有限公司","M0001TQG1",2619,"其他基础化学原料制造","化学原料和化学制品制造业","长乐区"]
["福清市福盛达塑胶制品有限公司","726462511",1953,"塑料鞋制造","皮革、毛皮、羽毛及其制品和制鞋业","福清市"]
["福州恒丰米业有限公司","764070463",1311,"稻谷加工","农副食品加工业","闽侯县"]
["福州名成食品工业有限公司","746366033",1361,"水产品冷冻加工","农副食品加工业","马尾区"]
["福建雪人股份有限公司","705110322",3464,"制冷空调设备制造","通用设备制造业","长乐区"]
["福州和盛食品有限公司","779606224",1351,"牲畜屠宰","农副食品加工业","马尾区"]
["福清正伟塑胶制品有限公司","757392114",2929,"塑料零件及其他塑料制品制造","橡胶和塑料制品业","福清市"]
["福州福光橡塑有限公司","61133494X",3670,"汽车零部件及配件制造","汽车制造业","闽侯县"]
["士兴(福建)钢结构有限公司","611343117",3311,"金属结构制造","金属制品业","福清市"]
["腾景科技股份有限公司","079781574",3976,"光电子器件制造","计算机、通信和其他电子设备制造业","马尾区"]
["福建德纳齿轮有限公司","154909364",3670,"汽车零部件及配件制造","汽车制造业","福清市"]
["华电新能源集团股份有限公司","694368538",4415,"风力发电","电力、热力生产和供应业","福清市"]
["丰生(福州)制动器有限公司","766168472",3670,"汽车零部件及配件制造","汽车制造业","闽侯县"]
["福州市长乐区宏大针织有限公司","796070687",1763,"针织或钩针编织品制造","纺织业","长乐区"]
["渤海石油装备福建钢管有限公司","050300626",3130,"钢压延加工","黑色金属冶炼和压延加工业","连江县"]
["福建实达电脑设备有限公司","61144679X",3913,"计算机外围设备制造","计算机、通信和其他电子设备制造业","马尾区"]
["福建省福州市路威针织有限公司","717345356",1763,"针织或钩针编织品制造","纺织业","长乐区"]
["福建同利建材科技有限公司","793755701",3024,"轻质建筑材料制造","非金属矿物制品业","闽侯县"]
["福建国通信息科技有限公司","72420894X",3921,"通信系统设备制造","计算机、通信和其他电子设备制造业","鼓楼区"]
["福州惠源食品有限公司","X29848654",1353,"肉制品及副产品加工","农副食品加工业","闽侯县"]
["福建世高智能科技有限公司","587545797",3599,"其他专用设备制造","专用设备制造业","福清市"]
["福清市金林福利纸品厂","15491960X",2221,"机制纸及纸板制造","造纸和纸制品业","福清市"]
["福建宏宇电子科技有限公司","696603511",3982,"电子电路制造","计算机、通信和其他电子设备制造业","福清市"]
["福建福耀汽车饰件有限公司","M0000HA35",3670,"汽车零部件及配件制造","汽车制造业","福清市"]
["福建海西新药创制股份有限公司","593452167",2720,"化学药品制剂制造","医药制造业","仓山区"]
["福州金雅工艺品有限公司","705253278",2439,"其他工艺美术及礼仪用品制造","文教、工美、体育和娱乐用品制造业","马尾区"]
["福州盛联兴陶瓷有限公司","MA8RH5600",3071,"建筑陶瓷制品制造","非金属矿物制品业","闽清县"]
["福建省长乐市永大纺织有限公司","674004817",2821,"锦纶纤维制造","化学纤维制造业","长乐区"]
["福州小糸大亿车灯有限公司","611332653",3670,"汽车零部件及配件制造","汽车制造业","闽侯县"]
["连江华润燃气有限公司","577048113",4511,"天然气生产和供应业","燃气生产和供应业","连江县"]
["福建棱舒石油化工设备有限公司","775368804",3130,"钢压延加工","黑色金属冶炼和压延加工业","福清市"]
["福建万嘉宝线缆有限公司","081621166",3831,"电线电缆制造","电气机械和器材制造业","连江县"]
["中广核（福建）风力发电有限公司","569280801",4415,"风力发电","电力、热力生产和供应业","平潭县"]
["东北理光(福州)印刷设备有限公司","731854990",3474,"复印和胶印设备制造","通用设备制造业","马尾区"]
["福州德为实业有限公司","058437133",2822,"涤纶纤维制造","化学纤维制造业","长乐区"]
["福建盛信电子有限公司","705154042",3979,"其他电子器件制造","计算机、通信和其他电子设备制造业","福清市"]
["德通（连江）金属容器有限公司","567309375",3333,"金属包装容器及材料制造","金属制品业","连江县"]
["福建省三丰纺织器材有限公司","731868655",2239,"其他纸制品制造","造纸和纸制品业","长乐区"]
["福建新福兴玻璃智能科技有限公司","MA33XR8E4",3042,"特种玻璃制造","非金属矿物制品业","福清市"]
["福州市榕臻钢化玻璃有限公司","557594467",3049,"其他玻璃制造","非金属矿物制品业","闽侯县"]
["福建省闽侯县南南工艺品有限公司","662840914",2432,"金属工艺品制造","文教、工美、体育和娱乐用品制造业","闽侯县"]
["福清明发混凝土有限公司","775356969",3021,"水泥制品制造","非金属矿物制品业","福清市"]
["福建海电运维科技股份有限公司","MA2XYE5X6",4350,"电气设备修理","金属制品、机械和设备修理业","马尾区"]
["福清茂利电子有限公司","757385731",3451,"滚动轴承制造","通用设备制造业","福清市"]
["福州福耀模具科技有限公司","070858475",3525,"模具制造","专用设备制造业","闽侯县"]
["侨源气体（福州）有限公司","572974513",2619,"其他基础化学原料制造","化学原料和化学制品制造业","罗源县"]
["福建富兰光学股份有限公司","764055933",2929,"塑料零件及其他塑料制品制造","橡胶和塑料制品业","仓山区"]
["福建合盈机械有限公司","581145151",3429,"其他金属加工机械制造","通用设备制造业","闽侯县"]
["闽侯县盛华工艺制品有限公司","729733196",2439,"其他工艺美术及礼仪用品制造","文教、工美、体育和娱乐用品制造业","闽侯县"]
["福州美涓家居制造有限公司","782181888",2432,"金属工艺品制造","文教、工美、体育和娱乐用品制造业","闽侯县"]
["福州仁顺陶瓷有限公司","MA31JGBN9",3071,"建筑陶瓷制品制造","非金属矿物制品业","闽清县"]
["福州和冠实业有限公司","76855342X",1953,"塑料鞋制造","皮革、毛皮、羽毛及其制品和制鞋业","闽清县"]
["福清市明信海产品有限公司","315713785",1369,"其他水产品加工","农副食品加工业","福清市"]
["福清鑫港水产食品有限公司","678458947",1361,"水产品冷冻加工","农副食品加工业","福清市"]
["中国水电四局（福清）装备工程有限公司","MA32M3336",3311,"金属结构制造","金属制品业","福清市"]
["福建省闽清双棱竹业有限公司","553206930",2041,"竹制品制造","木材加工和木、竹、藤、棕、草制品业","闽清县"]
["弘源电子科技(福建)有限公司","676508496",3399,"其他未列明金属制品制造","金属制品业","福清市"]
["福建联塑新材料科技有限公司","MA2YK1G3X",2922,"塑料板管型材制造","橡胶和塑料制品业","罗源县"]
["闽侯南港鞋业有限公司","633909521",1952,"皮鞋制造","皮革、毛皮、羽毛及其制品和制鞋业","闽侯县"]
["瑞闽通达建设科技（福建）有限公司","MA32QK8L3",3022,"砼结构构件制造","非金属矿物制品业","闽清县"]
["福建辅布司纺织有限公司","MA320Y7L3",1711,"棉纺纱加工","纺织业","马尾区"]
["福建闽威科技股份有限公司","611327766",3982,"电子电路制造","计算机、通信和其他电子设备制造业","长乐区"]
["福州永源工艺有限公司","676518520",2435,"天然植物纤维编织工艺品制造","文教、工美、体育和娱乐用品制造业","闽侯县"]
["福建省天和纺织实业有限公司","555071128",1711,"棉纺纱加工","纺织业","长乐区"]
["福清市兆华水产食品有限公司","689359506",1361,"水产品冷冻加工","农副食品加工业","福清市"]
["福建网能科技开发有限责任公司","739511706",4012,"电工仪器仪表制造","仪器仪表制造业","鼓楼区"]
["福建省闽清金城陶瓷有限公司","753143604",3071,"建筑陶瓷制品制造","非金属矿物制品业","闽清县"]
["福建力业针织有限公司","662845897",1761,"针织或钩针编织物织造","纺织业","长乐区"]
["福建省闽侯县建腾工艺品有限公司","611831444",2432,"金属工艺品制造","文教、工美、体育和娱乐用品制造业","闽侯县"]
["福建润闽能源有限公司","611323124",4512,"液化石油气生产和供应业","燃气生产和供应业","长乐区"]
["福建永福绿能设备有限公司","MABRXF2F8",3825,"光伏设备及元器件制造","电气机械和器材制造业","闽侯县"]
["福建省华达智纺集团有限公司","717360847",1711,"棉纺纱加工","纺织业","闽侯县"]
["闽侯闽兴编织品有限公司","611303422",2432,"金属工艺品制造","文教、工美、体育和娱乐用品制造业","闽侯县"]
["福建省金华龙饲料有限公司","583139716",1329,"其他饲料加工","农副食品加工业","闽清县"]
["福建福顺微电子有限公司","611007922",3973,"集成电路制造","计算机、通信和其他电子设备制造业","仓山区"]
["福建和盛塑业有限公司","738025052",2922,"塑料板管型材制造","橡胶和塑料制品业","长乐区"]
["福建省长乐市路北羽绒水洗厂","15489078X",1941,"羽毛绒加工","皮革、毛皮、羽毛及其制品和制鞋业","长乐区"]
["福州市长乐区东风轴承有限公司","154894828",3451,"滚动轴承制造","通用设备制造业","长乐区"]
["福建省福清友发实业有限公司","779645290",2411,"文具制造","文教、工美、体育和娱乐用品制造业","福清市"]
["福州星昇实业有限公司","764092339",1953,"塑料鞋制造","皮革、毛皮、羽毛及其制品和制鞋业","闽侯县"]
["闽侯华润燃气有限公司","570984830",4511,"天然气生产和供应业","燃气生产和供应业","闽侯县"]
["福建省闽清腾龙陶瓷有限公司","62869727X",3071,"建筑陶瓷制品制造","非金属矿物制品业","闽清县"]
["福建新大陆通信科技股份有限公司","733602906",3953,"影视录放设备制造","计算机、通信和其他电子设备制造业","马尾区"]
["福建旭晖铝业有限公司","761768436",3252,"铝压延加工","有色金属冶炼和压延加工业","福清市"]
["福州闽乾工艺品有限公司","791753788",2432,"金属工艺品制造","文教、工美、体育和娱乐用品制造业","闽侯县"]
["福建星网视易信息系统有限公司","764051609",3953,"影视录放设备制造","计算机、通信和其他电子设备制造业","仓山区"]
["天一同益电气股份有限公司","260179422",3824,"电力电子元器件制造","电气机械和器材制造业","晋安区"]
["祥兴（福建）箱包集团有限公司","611313655",1922,"皮箱包袋制造","皮革、毛皮、羽毛及其制品和制鞋业","福清市"]
["福州金锻工业有限公司","733602332",3670,"汽车零部件及配件制造","汽车制造业","闽侯县"]
["福州市世邦高分子材料有限公司","MA33P0F74",2922,"塑料板管型材制造","橡胶和塑料制品业","福清市"]
["福建省闽清瑞美陶瓷有限公司","761754923",3071,"建筑陶瓷制品制造","非金属矿物制品业","闽清县"]
["福建省力得自动化设备有限公司","158154499",4012,"电工仪器仪表制造","仪器仪表制造业","闽侯县"]
["福建金闽再造烟叶发展有限公司","74637771X",1690,"其他烟草制品制造","烟草制品业","罗源县"]
["福建东恒新能源集团有限公司","098447715",4190,"其他未列明制造业","其他制造业","罗源县"]
["福州天福塑革有限公司","154651121",1953,"塑料鞋制造","皮革、毛皮、羽毛及其制品和制鞋业","仓山区"]
["长乐鑫盛达针织有限公司","685060355",1763,"针织或钩针编织品制造","纺织业","长乐区"]
["爹地宝贝股份有限公司","611342851",2239,"其他纸制品制造","造纸和纸制品业","福清市"]
["福建万丰鞋业有限公司","611302163",1951,"纺织面料鞋制造","皮革、毛皮、羽毛及其制品和制鞋业","闽侯县"]
["福建力兴机电设备器材有限公司","761799865",3561,"电工机械专用设备制造","专用设备制造业","长乐区"]
["福清市景士兰涂料有限公司","753142345",2641,"涂料制造","化学原料和化学制品制造业","福清市"]
["福建达城电瓷有限公司","MA2Y8KMD6",3073,"特种陶瓷制品制造","非金属矿物制品业","闽清县"]
["福州东进世美肯科技有限公司","MA3487YK9",2661,"化学试剂和助剂制造","化学原料和化学制品制造业","福清市"]
["福州澳诚实业有限公司","611317330",3049,"其他玻璃制造","非金属矿物制品业","闽侯县"]
["福建高龙海洋生物工程有限公司","671946673",1363,"鱼油提取及制品制造","农副食品加工业","连江县"]
["福州温富塑胶有限公司","741690598",2926,"塑料包装箱及容器制造","橡胶和塑料制品业","长乐区"]
["中琉科技有限公司","579264952",2661,"化学试剂和助剂制造","化学原料和化学制品制造业","闽侯县"]
["闽清聚福工艺品有限公司","633904675",2432,"金属工艺品制造","文教、工美、体育和娱乐用品制造业","闽清县"]
["福建品胜混凝土有限公司","559552578",3021,"水泥制品制造","非金属矿物制品业","闽清县"]
["福州三顺石料有限公司","087440622",1012,"建筑装饰用石开采","非金属矿采选业","闽侯县"]
["福建大力新型建材科技有限公司","579292697",3039,"其他建筑材料制造","非金属矿物制品业","长乐区"]
["福建鑫桦钢管有限公司","MA31RB6N7",3130,"钢压延加工","黑色金属冶炼和压延加工业","长乐区"]
["福建省闽清县豪客来陶瓷有限公司","685065324",3071,"建筑陶瓷制品制造","非金属矿物制品业","闽清县"]
["福建广昌和木业有限公司","MA2YHWRR4",2110,"木质家具制造","家具制造业","闽清县"]
["福州亿力电器设备有限公司","726466184",3823,"配电开关控制设备制造","电气机械和器材制造业","长乐区"]
["闽清嘉兴陶瓷有限公司","749068912",3071,"建筑陶瓷制品制造","非金属矿物制品业","闽清县"]
["福建省捷敏针纺有限公司","705159951",1763,"针织或钩针编织品制造","纺织业","长乐区"]
["福州实发矿业有限公司","MA3495J93",3032,"建筑用石加工","非金属矿物制品业","闽侯县"]
["福州荻原泰山友模具冲压有限公司","671939094",3670,"汽车零部件及配件制造","汽车制造业","闽侯县"]
["福建省长乐金沙港纺织有限公司","717362068",1711,"棉纺纱加工","纺织业","长乐区"]
["福建省闽清博达陶瓷有限公司","MA34YDHA7",3071,"建筑陶瓷制品制造","非金属矿物制品业","闽清县"]
["福州新时代针织有限公司","561682857",1763,"针织或钩针编织品制造","纺织业","长乐区"]
["福建源光电装有限公司","611317912",3670,"汽车零部件及配件制造","汽车制造业","仓山区"]
["福建闽凯建材有限公司","585331402",3021,"水泥制品制造","非金属矿物制品业","长乐区"]
["福建恒益纺织有限公司","633907139",1712,"棉织造加工","纺织业","长乐区"]
["特耐王包装(福州)有限公司","782178398",2319,"包装装潢及其他印刷","印刷和记录媒介复制业","福清市"]
["福州宏玮工业有限公司","764086633",3670,"汽车零部件及配件制造","汽车制造业","闽侯县"]
["福建龙净新陆科技发展有限公司","72420691X",3591,"环境保护专用设备制造","专用设备制造业","马尾区"]
["福建贤辰实业有限公司","MA31G1Y42",3333,"金属包装容器及材料制造","金属制品业","闽侯县"]
["福建德胜新建材有限公司","399579017",3071,"建筑陶瓷制品制造","非金属矿物制品业","罗源县"]
["福清星泽砼业科技有限公司","MA32FQ8E2",3021,"水泥制品制造","非金属矿物制品业","福清市"]
["福清洪良染织科技有限公司","611316274",1713,"棉印染精加工","纺织业","福清市"]
["福州正源铝业有限公司","793794735",3252,"铝压延加工","有色金属冶炼和压延加工业","马尾区"]
["福州鼎盛纸箱彩印包装有限公司","574739920",2231,"纸和纸板容器制造","造纸和纸制品业","闽侯县"]
["福建华威钜全精工科技有限公司","633906996",3670,"汽车零部件及配件制造","汽车制造业","闽侯县"]
["光隆精密工业（福州）有限公司","757366768",3670,"汽车零部件及配件制造","汽车制造业","长乐区"]
["福建金华鼎科技有限公司","MA31E6BB6",3022,"砼结构构件制造","非金属矿物制品业","闽清县"]
["福建省闽清声华电器有限公司","753105579",3073,"特种陶瓷制品制造","非金属矿物制品业","闽清县"]
["福州美可食品有限公司","26017068X",1411,"糕点面包制造","食品制造业","晋安区"]
["福州市富恒新材料有限公司","786907578",3240,"有色金属合金制造","有色金属冶炼和压延加工业","闽侯县"]
["福州市长乐区鸿盛针织有限公司","777535901",1761,"针织或钩针编织物织造","纺织业","长乐区"]
["福建聚辉纸业有限公司","077425111",2223,"加工纸制造","造纸和纸制品业","福清市"]
["闽清县华义电瓷电器有限公司","739533497",3073,"特种陶瓷制品制造","非金属矿物制品业","闽清县"]
["百鲜食品（福建）有限公司","777510675",1361,"水产品冷冻加工","农副食品加工业","马尾区"]
["福建源畅食品有限公司","MABQGJ1B6",1361,"水产品冷冻加工","农副食品加工业","福清市"]
["福建省丽之颖针织有限公司","79605744X",1763,"针织或钩针编织品制造","纺织业","长乐区"]
["福州富菱电器有限公司","61133419X",3073,"特种陶瓷制品制造","非金属矿物制品业","闽清县"]
["福建省永泰县美尔奇科技纺织有限公司","782150088",1711,"棉纺纱加工","纺织业","永泰县"]
["福建省闽清欧雅陶瓷有限公司","084346008",3071,"建筑陶瓷制品制造","非金属矿物制品业","闽清县"]
["福建新华联合印务集团有限公司","MA33EA9KX",2311,"书报刊印刷","印刷和记录媒介复制业","晋安区"]
["福州长乐华润燃气有限公司","565376603",4511,"天然气生产和供应业","燃气生产和供应业","长乐区"]
["福建东威食品有限公司","743839667",1361,"水产品冷冻加工","农副食品加工业","福清市"]
["福建仙芝楼生物科技有限公司","727915981",2761,"生物药品制造","医药制造业","闽侯县"]
["福建路路嘉实业发展有限公司","MA31KHWE7",2651,"初级形态塑料及合成树脂制造","化学原料和化学制品制造业","闽清县"]
["福州富昌维控电子科技有限公司","683094017",3913,"计算机外围设备制造","计算机、通信和其他电子设备制造业","鼓楼区"]
["福州鼎盛金属制品有限公司","674038064",3311,"金属结构制造","金属制品业","闽侯县"]
["福建冠良汽车配件工业有限公司","611311211",3670,"汽车零部件及配件制造","汽车制造业","福清市"]
["福清市友谊包装材料有限公司","574721974",2921,"塑料薄膜制造","橡胶和塑料制品业","福清市"]
["福建延年药业有限公司","731853322",2720,"化学药品制剂制造","医药制造业","闽清县"]
["福州齐家家居饰品有限公司","MA345TPYX",2432,"金属工艺品制造","文教、工美、体育和娱乐用品制造业","闽侯县"]
["福建创识科技股份有限公司","628594836",3475,"计算器及货币专用设备制造","通用设备制造业","马尾区"]
["福州开发区东盛水产有限公司","76857946X",1361,"水产品冷冻加工","农副食品加工业","马尾区"]
["福清市华睿电子配件有限公司","565374595",2929,"塑料零件及其他塑料制品制造","橡胶和塑料制品业","福清市"]
["美福林家居（福州）有限公司","MA338TLH0",2110,"木质家具制造","家具制造业","福清市"]
["闽侯县鸿祥工艺品有限公司","759357048",2432,"金属工艺品制造","文教、工美、体育和娱乐用品制造业","闽侯县"]
["福州万德电气有限公司","726449130",3812,"电动机制造","电气机械和器材制造业","马尾区"]
["福州日兴水产食品有限公司","743842700",1361,"水产品冷冻加工","农副食品加工业","连江县"]
["福州福华纺织印染有限公司","611306789",1713,"棉印染精加工","纺织业","晋安区"]
["福建水投集团福清水务有限公司","567337579",4610,"自来水生产和供应","水的生产和供应业","福清市"]
["福州闽泉工艺品有限公司","633907059",2439,"其他工艺美术及礼仪用品制造","文教、工美、体育和娱乐用品制造业","闽侯县"]
["福建亿达食品有限公司","557595128",1369,"其他水产品加工","农副食品加工业","连江县"]
["福建成龙林产工业有限公司","611333162",2110,"木质家具制造","家具制造业","福清市"]
["正高（福州）纸品有限公司","770676349",2319,"包装装潢及其他印刷","印刷和记录媒介复制业","福清市"]
["福建省闽清云福陶瓷有限公司","MA347FEK8",3071,"建筑陶瓷制品制造","非金属矿物制品业","闽清县"]
["福建施可瑞医疗科技股份有限公司","754978742",3589,"其他医疗设备及器械制造","专用设备制造业","鼓楼区"]
["福建耀美斯坦利机电科技有限公司","MA347D6H7",3811,"发电机及发电机组制造","电气机械和器材制造业","仓山区"]
["福州佳源编织有限公司","759389760",2432,"金属工艺品制造","文教、工美、体育和娱乐用品制造业","闽侯县"]
["福建展正钢结构建筑有限公司","MA33A8WK9",3311,"金属结构制造","金属制品业","闽清县"]
["福建福人家居科技有限公司","MA349WM7X",2029,"其他人造板制造","木材加工和木、竹、藤、棕、草制品业","马尾区"]
["福建省裕源再生资源利用有限公司","MA2XR81R7",4210,"金属废料和碎屑加工处理","废弃资源综合利用业","闽侯县"]
["福建省嘉鑫科技实业有限公司","MA32CA9G5",2929,"塑料零件及其他塑料制品制造","橡胶和塑料制品业","福清市"]
["福清市洪裕塑胶有限公司","154916441",2923,"塑料丝绳及编织品制造","橡胶和塑料制品业","福清市"]
["福建星网天合智能科技有限公司","587860260",3859,"其他家用电力器具制造","电气机械和器材制造业","闽侯县"]
["福建春伦集团有限公司","260572873",1530,"精制茶加工","酒、饮料和精制茶制造业","仓山区"]
["福建兴航重工有限公司","746353443",3391,"黑色金属铸造","金属制品业","长乐区"]
["福建鸿生建材发展有限公司","052323186",3021,"水泥制品制造","非金属矿物制品业","福清市"]
["福州百宜工艺品有限公司","671905142",2432,"金属工艺品制造","文教、工美、体育和娱乐用品制造业","闽侯县"]
["罗源昆仑能源有限公司","MA3325GD8",4511,"天然气生产和供应业","燃气生产和供应业","罗源县"]
["闽清宇发电瓷电器有限公司","729736995",3073,"特种陶瓷制品制造","非金属矿物制品业","闽清县"]
["福建长庚医疗生物科技有限公司","570975803",3581,"医疗诊断监护及治疗设备制造","专用设备制造业","闽侯县"]
["福州荣清橡胶有限公司","61133021X",2913,"橡胶零件制造","橡胶和塑料制品业","闽清县"]
["福建吉艾普光影科技有限公司","MA348Q852",3872,"照明灯具制造","电气机械和器材制造业","仓山区"]
["福建省麒麟山茶业发展有限公司","759375254",1530,"精制茶加工","酒、饮料和精制茶制造业","闽清县"]
["麦格纳(福州)汽车座椅有限公司","784539871",3670,"汽车零部件及配件制造","汽车制造业","闽侯县"]
["福建鑫丰联实业有限公司","MAC0976M5",2921,"塑料薄膜制造","橡胶和塑料制品业","长乐区"]
["福清市创新精密电子有限公司","676540007",3912,"计算机零部件制造","计算机、通信和其他电子设备制造业","福清市"]
["福州益兴人防工程设备有限公司","75935690X",3353,"安全消防用金属制品制造","金属制品业","闽侯县"]
["福建海文铭海洋科技发展有限公司","MA34A8NRX",1369,"其他水产品加工","农副食品加工业","马尾区"]
["华润混凝土(福清)有限公司","689392226",3021,"水泥制品制造","非金属矿物制品业","福清市"]
["福州鸿桥工艺品有限公司","777549780",2439,"其他工艺美术及礼仪用品制造","文教、工美、体育和娱乐用品制造业","闽侯县"]
["福建达道食品有限公司","577000451",1353,"肉制品及副产品加工","农副食品加工业","连江县"]
["福建省添利织物有限公司","628519545",1763,"针织或钩针编织品制造","纺织业","长乐区"]
["福建祥龙塑胶有限公司","705154296",2922,"塑料板管型材制造","橡胶和塑料制品业","福清市"]
["远顺（福建）木制品有限公司","699036655",2011,"锯材加工","木材加工和木、竹、藤、棕、草制品业","福清市"]
["福建省闽清金明珠陶瓷有限公司","569274954",3071,"建筑陶瓷制品制造","非金属矿物制品业","闽清县"]
["航天凯威斯电气（福州）有限公司","064134956",3811,"发电机及发电机组制造","电气机械和器材制造业","连江县"]
["福建鑫吉祥建材有限公司","MA2Y6UYX2",3252,"铝压延加工","有色金属冶炼和压延加工业","闽清县"]
["福清福捷塑胶有限公司","611338633",2929,"塑料零件及其他塑料制品制造","橡胶和塑料制品业","福清市"]
["福清市龙源水产食品有限公司","337616396",1361,"水产品冷冻加工","农副食品加工业","福清市"]
["福州仕诚电器有限公司","611344515",3872,"照明灯具制造","电气机械和器材制造业","闽侯县"]
["福州市长乐区太平洋食品有限公司","798375986",1369,"其他水产品加工","农副食品加工业","长乐区"]
["福清市鑫福盛家俱有限公司","31061709X",2110,"木质家具制造","家具制造业","福清市"]
["福州市长乐区祥泰实业有限公司","154873592",1713,"棉印染精加工","纺织业","长乐区"]
["福建省新宏港纺织科技有限公司","064101556",1752,"化纤织物染整精加工","纺织业","福清市"]
["福建坤兴海洋股份有限公司","772909556",1361,"水产品冷冻加工","农副食品加工业","马尾区"]
["福州鑫健工艺品有限公司","770698820",2432,"金属工艺品制造","文教、工美、体育和娱乐用品制造业","闽侯县"]
["福州海汇生物科技实业有限公司","79609024X",1495,"食品及饲料添加剂制造","食品制造业","连江县"]
["福建省闽清聚隆路桥设备有限公司","689399487",3311,"金属结构制造","金属制品业","闽清县"]
["福建浩通管业科技有限公司","064122912",2922,"塑料板管型材制造","橡胶和塑料制品业","闽清县"]
["长乐航建混凝土有限公司","315325563",3022,"砼结构构件制造","非金属矿物制品业","长乐区"]
["福建乐泽科技有限公司","MA31WLMC3",4220,"非金属废料和碎屑加工处理","废弃资源综合利用业","福清市"]
["福州硕泰金属回收有限公司","74167298X",4210,"金属废料和碎屑加工处理","废弃资源综合利用业","闽侯县"]
["长乐新博雅针织有限公司","574728658",1761,"针织或钩针编织物织造","纺织业","长乐区"]
["福州市长乐区古源茶叶有限公司","782182733",1530,"精制茶加工","酒、饮料和精制茶制造业","长乐区"]
["青岛啤酒（福州）有限公司","611317146",1513,"啤酒制造","酒、饮料和精制茶制造业","连江县"]
["福州弘申电器有限公司","789029395",3073,"特种陶瓷制品制造","非金属矿物制品业","闽清县"]
["福州新信制动系统有限公司","761794394",3670,"汽车零部件及配件制造","汽车制造业","福清市"]
["福州太古可口可乐饮料有限公司","MA344NAN2",1521,"碳酸饮料制造","酒、饮料和精制茶制造业","闽侯县"]
["福州福万塑胶制品有限公司","741686978",2452,"塑胶玩具制造","文教、工美、体育和娱乐用品制造业","罗源县"]
["本特勒汽车系统(福州)有限公司","678480319",3670,"汽车零部件及配件制造","汽车制造业","闽侯县"]
["福建荣利鞋业有限公司","399577644",1954,"橡胶鞋制造","皮革、毛皮、羽毛及其制品和制鞋业","闽侯县"]
["闽清宇星电器有限公司","611343387",3073,"特种陶瓷制品制造","非金属矿物制品业","闽清县"]
["福州开发区润能天然气有限公司","MA32TF3B2",4511,"天然气生产和供应业","燃气生产和供应业","马尾区"]
["福州森威家居制品有限公司","676534344",2432,"金属工艺品制造","文教、工美、体育和娱乐用品制造业","闽侯县"]
["福建宜美智能科技有限公司","MA2XNK5H1",4030,"钟表与计时仪器制造","仪器仪表制造业","闽侯县"]
["福州春晖制衣有限公司","61133726X",1819,"其他机织服装制造","纺织服装、服饰业","仓山区"]
["龙源雄亚(福清)风力发电有限公司","674007591",4415,"风力发电","电力、热力生产和供应业","福清市"]
["福建蓝帆食品包装有限公司","772927279",2239,"其他纸制品制造","造纸和纸制品业","闽侯县"]
["福建久策气体股份有限公司","559551030",4190,"其他未列明制造业","其他制造业","闽侯县"]
["福建新鑫钢结构工程有限公司","727900931",3311,"金属结构制造","金属制品业","马尾区"]
["福清诺沃家具有限公司","MA344MFY1",2190,"其他家具制造","家具制造业","福清市"]
["福清市大业管桩有限公司","154919247",3021,"水泥制品制造","非金属矿物制品业","福清市"]
["福建华冠光电有限公司","777549916",3974,"显示器件制造","计算机、通信和其他电子设备制造业","福清市"]
["福建浩蓝光电有限公司","738049951",3976,"光电子器件制造","计算机、通信和其他电子设备制造业","闽侯县"]
["福州福田工艺品有限公司","611334667",2110,"木质家具制造","家具制造业","仓山区"]
["福州福光电子有限公司","705131860",4011,"工业自动控制系统装置制造","仪器仪表制造业","马尾区"]
["福建新泰丰实业有限公司","399365043",1361,"水产品冷冻加工","农副食品加工业","马尾区"]
["福州市长乐区金潭针纺有限公司","MA31XC8D3",1763,"针织或钩针编织品制造","纺织业","长乐区"]
["福建融瀚建材有限公司","MA2XNDDN2",3021,"水泥制品制造","非金属矿物制品业","福清市"]
["福建中网电气有限公司","315537080",3563,"电子元器件与机电组件设备制造","专用设备制造业","罗源县"]
["福清金奥电子有限公司","MA32AH726",3525,"模具制造","专用设备制造业","福清市"]
["福建省福清市福盛旺塑胶制品有限公司","57927988X",1953,"塑料鞋制造","皮革、毛皮、羽毛及其制品和制鞋业","福清市"]
["福建融创不锈钢制品有限公司","MA8TAUYN9",3130,"钢压延加工","黑色金属冶炼和压延加工业","闽侯县"]
["福建恒动能源科技有限公司","MA31Y1941",3841,"锂离子电池制造","电气机械和器材制造业","罗源县"]
["福清泳茂五金制品有限公司","MA349FC45",3393,"锻件及粉末冶金制品制造","金属制品业","福清市"]
["福州开发区正点食品有限公司","784507351",1353,"肉制品及副产品加工","农副食品加工业","马尾区"]
["福建省三源针织有限公司","726431395",1763,"针织或钩针编织品制造","纺织业","长乐区"]
["闽侯县福澳工艺品有限公司","733636436",2439,"其他工艺美术及礼仪用品制造","文教、工美、体育和娱乐用品制造业","闽侯县"]
["福州鹰翔工艺品有限公司","660358278",2439,"其他工艺美术及礼仪用品制造","文教、工美、体育和娱乐用品制造业","闽侯县"]
["福清星海鞋业有限公司","764099493",1953,"塑料鞋制造","皮革、毛皮、羽毛及其制品和制鞋业","福清市"]
["连江信洋水产有限公司","611832228",1361,"水产品冷冻加工","农副食品加工业","连江县"]
["闽侯县财超工艺制品有限公司","743847966",2431,"雕塑工艺品制造","文教、工美、体育和娱乐用品制造业","闽侯县"]
["福建东钢钢铁有限公司","611341402",3311,"金属结构制造","金属制品业","福清市"]
["福建汇强体育用品有限公司","MA32N92D3",1951,"纺织面料鞋制造","皮革、毛皮、羽毛及其制品和制鞋业","连江县"]
["福州拓优陶瓷技术有限公司","315416369",3089,"耐火陶瓷制品及其他耐火材料制造","非金属矿物制品业","闽清县"]
["巨纸包装（福清）有限公司","MA8RDA1M0",2221,"机制纸及纸板制造","造纸和纸制品业","福清市"]
["中建科技（福州）有限公司","315343825",3022,"砼结构构件制造","非金属矿物制品业","闽清县"]
["福建蓝克诺科技有限公司","691909853",2511,"原油加工及石油制品制造","石油加工、炼焦和核燃料加工业","长乐区"]
["福建洁电电气有限公司","MABWD5EJ5",3823,"配电开关控制设备制造","电气机械和器材制造业","福清市"]
["福州康明凯工艺品有限公司","757375509",2439,"其他工艺美术及礼仪用品制造","文教、工美、体育和娱乐用品制造业","闽侯县"]
["福州闽飞工艺品有限公司","559588052",2439,"其他工艺美术及礼仪用品制造","文教、工美、体育和娱乐用品制造业","闽侯县"]
["福建鸭嫂食品有限公司","611844819",1393,"蛋品加工","农副食品加工业","福清市"]
["福建德佳胶粘科技有限公司","691918303",2411,"文具制造","文教、工美、体育和娱乐用品制造业","福清市"]
["颖明(福州)标准件企业有限公司","611332629",3670,"汽车零部件及配件制造","汽车制造业","闽侯县"]
["福建晨鸿泰实业有限公司","669289096",1761,"针织或钩针编织物织造","纺织业","闽侯县"]
["福州傲农生物科技有限公司","052320102",1329,"其他饲料加工","农副食品加工业","连江县"]
["福建省闽清双棱纸业有限公司","550982045",2221,"机制纸及纸板制造","造纸和纸制品业","闽清县"]
["闽侯县为盛工艺制品有限公司","768557260",2439,"其他工艺美术及礼仪用品制造","文教、工美、体育和娱乐用品制造业","闽侯县"]
["福建振凯实业有限公司","399210252",1361,"水产品冷冻加工","农副食品加工业","马尾区"]
["福州敏威塑料制品有限公司","611816914",2929,"塑料零件及其他塑料制品制造","橡胶和塑料制品业","福清市"]
["福建融耀建材有限公司","099414157",3021,"水泥制品制造","非金属矿物制品业","福清市"]
["福建左海科技有限公司","MA2YG8L04",3022,"砼结构构件制造","非金属矿物制品业","连江县"]
["福建省恒兴纸业有限公司","561658136",2221,"机制纸及纸板制造","造纸和纸制品业","闽清县"]
["福清市永裕来齿轮有限公司","154925268",3453,"齿轮及齿轮减变速箱制造","通用设备制造业","福清市"]
["福州百利宝实业集团有限公司","733594942",2438,"珠宝首饰及有关物品制造","文教、工美、体育和娱乐用品制造业","闽侯县"]
["福州晟鑫机械有限公司","705107537",3811,"发电机及发电机组制造","电气机械和器材制造业","晋安区"]
["福建德运科技有限公司","743833871",1762,"针织或钩针编织物印染精加工","纺织业","长乐区"]
["福建恒一家饰有限公司","782161342",2432,"金属工艺品制造","文教、工美、体育和娱乐用品制造业","福清市"]
["福建研晖光电有限公司","MA32C3TJ8",3824,"电力电子元器件制造","电气机械和器材制造业","福清市"]
["福建省中凯信集团有限公司","064119887",1811,"运动机织服装制造","纺织服装、服饰业","闽侯县"]
["福州航盛饲料有限公司","628533953",1329,"其他饲料加工","农副食品加工业","长乐区"]
["福清市晨晖五金制品有限公司","611845715",3312,"金属门窗制造","金属制品业","福清市"]
["福州市长乐区科达纺织有限公司","779607606",1711,"棉纺纱加工","纺织业","长乐区"]
["福建汉森新材料技术有限公司","798368217",2641,"涂料制造","化学原料和化学制品制造业","福清市"]
["福建龙翔水产食品有限公司","749060961",1361,"水产品冷冻加工","农副食品加工业","福清市"]
["福州泽和生物科技有限公司","MA346QKH6",1372,"食用菌加工","农副食品加工业","闽侯县"]
["福建源石建材有限公司","066551198",3039,"其他建筑材料制造","非金属矿物制品业","永泰县"]
["福建昌航针纺有限公司","796098284",1763,"针织或钩针编织品制造","纺织业","长乐区"]
["福建福强精密印制线路板有限公司","611007930",3982,"电子电路制造","计算机、通信和其他电子设备制造业","福清市"]
["罗源星鑫与涵金属制品有限公司","062250494",3360,"金属表面处理及热处理加工","金属制品业","罗源县"]
["福建省榕都钢结构工程有限公司","764071757",3311,"金属结构制造","金属制品业","闽侯县"]
["福州市长乐区天美针织有限公司","74167925X",1763,"针织或钩针编织品制造","纺织业","长乐区"]
["福州金钥匙机电设备有限公司","694377370",3811,"发电机及发电机组制造","电气机械和器材制造业","闽侯县"]
["伟聚隆特种纤维科技（福建）有限公司","569264983",1761,"针织或钩针编织物织造","纺织业","福清市"]
["福州市宏业化工有限公司","MA2YA61C7",2614,"有机化学原料制造","化学原料和化学制品制造业","福清市"]
["福建永福汇能科技有限公司","MA8TLMWJ1",3499,"其他未列明通用设备制造业","通用设备制造业","闽侯县"]
["众邦电缆发展（福建）有限公司","MA8RJ4LH3",3831,"电线电缆制造","电气机械和器材制造业","连江县"]
["福州聚丰汽车零部件有限公司","796053326",3670,"汽车零部件及配件制造","汽车制造业","马尾区"]
["福建常春专用车制造有限公司","154894000",3660,"汽车车身挂车制造","汽车制造业","长乐区"]
["福州森联家居用品有限公司","694362216",2439,"其他工艺美术及礼仪用品制造","文教、工美、体育和娱乐用品制造业","闽侯县"]
["飞毛腿能源科技有限公司","MA8TALEJ4",3841,"锂离子电池制造","电气机械和器材制造业","闽侯县"]
["福州百洋海味食品有限公司","611334149",1362,"鱼糜制品及水产品干腌制加工","农副食品加工业","连江县"]
["福州博海生物技术有限公司","73950512X",1329,"其他饲料加工","农副食品加工业","连江县"]
["福州天虹服装有限公司","793756093",1819,"其他机织服装制造","纺织服装、服饰业","晋安区"]
["福州佰特利实业有限公司","76177203X",2924,"泡沫塑料制造","橡胶和塑料制品业","晋安区"]
["福建省闽侯县博达工艺品有限公司","796091664",2439,"其他工艺美术及礼仪用品制造","文教、工美、体育和娱乐用品制造业","闽侯县"]
["福清华信食品有限公司","735659551",1362,"鱼糜制品及水产品干腌制加工","农副食品加工业","福清市"]
["福建省海欣药业股份有限公司","570963853",1495,"食品及饲料添加剂制造","食品制造业","福清市"]
["福建省闽清鑫城瓷业有限公司","726457915",3073,"特种陶瓷制品制造","非金属矿物制品业","闽清县"]
["福建新乌龙饮料有限公司","611449210",1529,"茶饮料及其他饮料制造","酒、饮料和精制茶制造业","马尾区"]
["福清优利新材料有限公司","MA32TJH37",2929,"塑料零件及其他塑料制品制造","橡胶和塑料制品业","福清市"]
["福州云阳电气有限公司","691906038",3823,"配电开关控制设备制造","电气机械和器材制造业","闽侯县"]
["闽侯恒信混凝土有限公司","671923068",3021,"水泥制品制造","非金属矿物制品业","闽侯县"]
["福建光华天成饲料科技有限公司","569278138",1329,"其他饲料加工","农副食品加工业","闽侯县"]
["福州福光百特自动化设备有限公司","705130972",4011,"工业自动控制系统装置制造","仪器仪表制造业","仓山区"]
["福建恩迈特新材料有限公司","315727896",2921,"塑料薄膜制造","橡胶和塑料制品业","晋安区"]
["福州新创化纤有限公司","MA32EYWE1",2821,"锦纶纤维制造","化学纤维制造业","长乐区"]
["福清鑫铭电子科技有限公司","754965407",3976,"光电子器件制造","计算机、通信和其他电子设备制造业","福清市"]
["福州豪仕达厨具制造有限公司","567348657",2110,"木质家具制造","家具制造业","罗源县"]
["中国福万( 福建 )玩具有限公司","611300432",2452,"塑胶玩具制造","文教、工美、体育和娱乐用品制造业","晋安区"]
["福州市巨洋金属制品有限公司","789002942",3525,"模具制造","专用设备制造业","闽侯县"]
["安科讯（福建）科技有限公司","MA32TFBM3",3921,"通信系统设备制造","计算机、通信和其他电子设备制造业","鼓楼区"]
["福建省长乐市冠顺针纺有限公司","786939844",1763,"针织或钩针编织品制造","纺织业","长乐区"]
["福州希达木业有限公司","754950264",2439,"其他工艺美术及礼仪用品制造","文教、工美、体育和娱乐用品制造业","福清市"]
["福建龙朋环保材料有限公司","782179833",2641,"涂料制造","化学原料和化学制品制造业","闽侯县"]
["福建天安建筑钢铁制品有限公司","784515976",3311,"金属结构制造","金属制品业","福清市"]
["闽侯县隆森工艺制品有限公司","69193096X",2439,"其他工艺美术及礼仪用品制造","文教、工美、体育和娱乐用品制造业","闽侯县"]
["新东网科技有限公司","731877519",3990,"其他电子设备制造","计算机、通信和其他电子设备制造业","鼓楼区"]
["福州市长乐区远航供水有限责任公司","MA2XN0BB6",4610,"自来水生产和供应","水的生产和供应业","长乐区"]
["福建省福州外贸食品冷冻厂有限公司","154414257",1432,"速冻食品制造","食品制造业","闽侯县"]
["福州市闽清力鑫电器有限公司","MA2YPQ0GX",3073,"特种陶瓷制品制造","非金属矿物制品业","闽清县"]
["福建磊丰橱柜股份有限公司","M0000EF63",2110,"木质家具制造","家具制造业","马尾区"]
["福建省凯利针纺有限公司","738029299",1763,"针织或钩针编织品制造","纺织业","长乐区"]
["福建省福州市鹰鸿针织有限公司","154897084",1763,"针织或钩针编织品制造","纺织业","长乐区"]
["福州闽锐机电有限公司","MA2Y59BQ6",3459,"其他传动部件制造","通用设备制造业","福清市"]
["福州嘉顺服装有限公司","796072586",1819,"其他机织服装制造","纺织服装、服饰业","闽侯县"]
["闽清虹瑞工艺品有限公司","662839059",2432,"金属工艺品制造","文教、工美、体育和娱乐用品制造业","闽清县"]
["福州市长乐区翔达木制品有限公司","MA3466WGX",2019,"其他木材加工","木材加工和木、竹、藤、棕、草制品业","长乐区"]
["福建恒申电子材料科技有限公司","MA353DRM0",2614,"有机化学原料制造","化学原料和化学制品制造业","连江县"]
["福州绿帆包装材料有限公司","779634065",2929,"塑料零件及其他塑料制品制造","橡胶和塑料制品业","马尾区"]
["福州台泥水泥有限公司","738016527",3011,"水泥制造","非金属矿物制品业","长乐区"]
["福州后海光电科技有限公司","MA31MYGE2",3473,"照相机及器材制造","通用设备制造业","福清市"]
["福州钧玮金属有限公司","741675937",3670,"汽车零部件及配件制造","汽车制造业","闽侯县"]
["福建省闽清蓝天陶瓷有限公司","705144194",3071,"建筑陶瓷制品制造","非金属矿物制品业","闽清县"]
["福建万邦集成房屋有限公司","MA8RWG047",3311,"金属结构制造","金属制品业","闽清县"]
["福州飞煌建材有限公司","MA31J7TK4",3021,"水泥制品制造","非金属矿物制品业","罗源县"]
["福州闽宏工艺品有限公司","MA32TGJT4",2439,"其他工艺美术及礼仪用品制造","文教、工美、体育和娱乐用品制造业","闽侯县"]
["中铝南铝（福建）铝结构技术开发有限公司","MA2XRRBJ7",3399,"其他未列明金属制品制造","金属制品业","闽侯县"]
["茶花现代家居用品股份有限公司","260174533",2927,"日用塑料制品制造","橡胶和塑料制品业","晋安区"]
["福州瑞闽铝材彩涂有限公司","731875951",3360,"金属表面处理及热处理加工","金属制品业","马尾区"]
["福建省长乐市天阳织造有限公司","MA2XN0BE0",1761,"针织或钩针编织物织造","纺织业","长乐区"]
["福清市宏华塑胶有限公司","MA2YEF367",2929,"塑料零件及其他塑料制品制造","橡胶和塑料制品业","福清市"]
["福建同乐食品开发有限公司","761781585",1399,"其他未列明农副食品加工","农副食品加工业","闽侯县"]
["福建省新塑管业有限公司","58313726X",2922,"塑料板管型材制造","橡胶和塑料制品业","长乐区"]
["福建鑫和联众实业有限公司","581123788",3463,"气体液体分离及纯净设备制造","通用设备制造业","长乐区"]
["福建省闽清欧尚陶瓷有限公司","683087407",3071,"建筑陶瓷制品制造","非金属矿物制品业","闽清县"]
["福建捷宇电脑科技有限公司","555068316",3913,"计算机外围设备制造","计算机、通信和其他电子设备制造业","仓山区"]
["富延升电子（福建）有限公司","MA2YLWK00",3989,"其他电子元件制造","计算机、通信和其他电子设备制造业","闽侯县"]
["威尔（福建）生物有限公司","67650222X",2661,"化学试剂和助剂制造","化学原料和化学制品制造业","连江县"]
["中节能（福州）环保能源有限公司","MA31TDNX3",4417,"生物质能发电","电力、热力生产和供应业","长乐区"]
["福建富元高分子材料科技有限公司","MA8UW5AT8",2929,"塑料零件及其他塑料制品制造","橡胶和塑料制品业","福清市"]
["闽侯县鸿荣生实业有限公司","MA321T551",3021,"水泥制品制造","非金属矿物制品业","闽侯县"]
["福建航洋针织有限公司","154863917",1712,"棉织造加工","纺织业","长乐区"]
["福建田丰机械有限公司","791769632",3484,"机械零部件加工","通用设备制造业","闽侯县"]
["闽清恒峰家居制造有限公司","MA32TGP13",2432,"金属工艺品制造","文教、工美、体育和娱乐用品制造业","闽清县"]
["福建省永泰叁连服饰有限公司","MA8UHH0P2",1811,"运动机织服装制造","纺织服装、服饰业","永泰县"]
["好事达（福建）股份有限公司","72972680X",2110,"木质家具制造","家具制造业","仓山区"]
["福建洁利来智能厨卫股份有限公司","665072172",3979,"其他电子器件制造","计算机、通信和其他电子设备制造业","晋安区"]
["见大（福州）食品有限公司","611310059",1362,"鱼糜制品及水产品干腌制加工","农副食品加工业","马尾区"]
["福建国庄混凝土有限公司","768570780",3021,"水泥制品制造","非金属矿物制品业","仓山区"]
["福州万佳服装有限公司","154658323",1819,"其他机织服装制造","纺织服装、服饰业","晋安区"]
["福建熹茗茶业科技有限公司","MA34BPE11",1530,"精制茶加工","酒、饮料和精制茶制造业","长乐区"]
["福建天马福荣食品科技有限公司","MA328HTF1",1361,"水产品冷冻加工","农副食品加工业","福清市"]
["福建省瀚海船业有限公司","154709303",4342,"船舶修理","金属制品、机械和设备修理业","连江县"]
["福建省福清华龙饲料有限公司","154905507",1329,"其他饲料加工","农副食品加工业","福清市"]
["福州福强精密有限公司","77750286X",2913,"橡胶零件制造","橡胶和塑料制品业","闽侯县"]
["罗源诗兰姆汽车零部件有限公司","MA8TDBQ55",3670,"汽车零部件及配件制造","汽车制造业","罗源县"]
["福建邦尼炫纺织科技有限公司","MA31UG1L9",1761,"针织或钩针编织物织造","纺织业","长乐区"]
["福建联合动力机电科技有限公司","796080105",3811,"发电机及发电机组制造","电气机械和器材制造业","闽侯县"]
["新福兴玻璃工业集团有限公司","705157534",3042,"特种玻璃制造","非金属矿物制品业","福清市"]
["福州凯比耐家具制造有限公司","798352784",2110,"木质家具制造","家具制造业","福清市"]
["福建东碧汽车零件有限公司","611332573",3670,"汽车零部件及配件制造","汽车制造业","闽侯县"]
["福建航兴新型建筑材料有限公司","593483553",3031,"粘土砖瓦及建筑砌块制造","非金属矿物制品业","闽清县"]
["福建蓝建集团有限公司","158141428",3982,"电子电路制造","计算机、通信和其他电子设备制造业","闽侯县"]
["福建日日红电线电缆有限公司","MA32THBF1",3831,"电线电缆制造","电气机械和器材制造业","连江县"]
["福清市友成机械设备有限公司","315373792",3484,"机械零部件加工","通用设备制造业","福清市"]
["福州富鑫工艺品有限公司","782174282",2432,"金属工艺品制造","文教、工美、体育和娱乐用品制造业","闽清县"]
["福州宜美电子有限公司","743845266",4030,"钟表与计时仪器制造","仪器仪表制造业","仓山区"]
["福建鲁班兴装饰家具有限公司","766156842",2190,"其他家具制造","家具制造业","晋安区"]
["福州市长乐区永鑫羽绒制品有限公司","337516600",1941,"羽毛绒加工","皮革、毛皮、羽毛及其制品和制鞋业","长乐区"]
["福建省福州市华伟针织有限公司","628611704",1761,"针织或钩针编织物织造","纺织业","长乐区"]
["福清市松益织带有限公司","729739408",1782,"绳索缆制造","纺织业","福清市"]
["福建永荣不锈钢制品有限公司","666865772",3130,"钢压延加工","黑色金属冶炼和压延加工业","罗源县"]
["福州城投混凝土有限公司","315550568",3021,"水泥制品制造","非金属矿物制品业","马尾区"]
["福州贝利家具有限公司","691939817",2439,"其他工艺美术及礼仪用品制造","文教、工美、体育和娱乐用品制造业","闽侯县"]
["福州融裕行纺织织造有限公司","759364918",1819,"其他机织服装制造","纺织服装、服饰业","仓山区"]
["连江县三强建材有限公司","070875101",3021,"水泥制品制造","非金属矿物制品业","连江县"]
["福州市长乐区友发纺织有限公司","685090482",2822,"涤纶纤维制造","化学纤维制造业","长乐区"]
["安尼康（福建）环保设备有限公司","565353540",3591,"环境保护专用设备制造","专用设备制造业","福清市"]
["福建遵通再生资源有限公司","MA33C8ER2",4220,"非金属废料和碎屑加工处理","废弃资源综合利用业","福清市"]
["福州聚之鑫金属制品有限公司","MA3252250",3351,"建筑家具用金属配件制造","金属制品业","闽侯县"]
["福建省苍乐电子企业有限公司","611321647",3871,"电光源制造","电气机械和器材制造业","仓山区"]
["福建宝利特科技股份有限公司","61132715X",2925,"塑料人造革合成革制造","橡胶和塑料制品业","福清市"]
["永泰县祥晖制衣有限公司","MA2XT17Y4",1819,"其他机织服装制造","纺织服装、服饰业","永泰县"]
["福建富的乐运动用品有限公司","61133232X",1952,"皮鞋制造","皮革、毛皮、羽毛及其制品和制鞋业","晋安区"]
["福建文畅食品有限公司","MA31HHFK1",1432,"速冻食品制造","食品制造业","马尾区"]
["福清建融水泥有限公司","611326181",3011,"水泥制造","非金属矿物制品业","福清市"]
["福建力宏染整有限公司","782153692",1762,"针织或钩针编织物印染精加工","纺织业","长乐区"]
["福清茂山塑料制品有限公司","611304804",1819,"其他机织服装制造","纺织服装、服饰业","福清市"]
["福建钰融科技有限公司","660390702",3985,"电子专用材料制造","计算机、通信和其他电子设备制造业","福清市"]
["福建东禾晟实业有限公司","MA8RDHB03",1752,"化纤织物染整精加工","纺织业","连江县"]
["福建同鑫针织有限公司","791779662",1763,"针织或钩针编织品制造","纺织业","长乐区"]
["福州市长乐区文港包装有限公司","628518374",2231,"纸和纸板容器制造","造纸和纸制品业","长乐区"]
["福建天桑针纺有限公司","791785106",1751,"化纤织造加工","纺织业","长乐区"]
["福建艾维尔股份有限公司","595972166",2110,"木质家具制造","家具制造业","闽侯县"]
["福州青源供水有限公司","75312717X",4610,"自来水生产和供应","水的生产和供应业","闽侯县"]
["福建省泰源船业有限公司","574725094",3731,"金属船舶制造","铁路、船舶、航空航天和其他运输设备制造业","连江县"]
["福建省同茂新能源科技有限公司","MA326F200",4220,"非金属废料和碎屑加工处理","废弃资源综合利用业","罗源县"]
["福建省闽清佰艺陶瓷有限公司","MA3230BR1",3071,"建筑陶瓷制品制造","非金属矿物制品业","闽清县"]
["福建豪源食品有限公司","399210113",1361,"水产品冷冻加工","农副食品加工业","马尾区"]
["福州山本须川冲压件制作有限公司","775363800",3670,"汽车零部件及配件制造","汽车制造业","福清市"]
["福州市倍思家居用品有限公司","694369741",2434,"花画工艺品制造","文教、工美、体育和娱乐用品制造业","闽侯县"]
["福建省闽侯盛柏深工艺品有限公司","705135319",2432,"金属工艺品制造","文教、工美、体育和娱乐用品制造业","闽侯县"]
["福建省辰丰生物科技有限公司","MA8UYP379",1361,"水产品冷冻加工","农副食品加工业","连江县"]
["福建汇农食品开发有限责任公司","687510321",1523,"果菜汁及果菜汁饮料制造","酒、饮料和精制茶制造业","闽清县"]
["福建省信骉金属制品有限公司","MA33UEXA9",3130,"钢压延加工","黑色金属冶炼和压延加工业","长乐区"]
["爱沃特玛铪橡胶制品(福建)有限公司","611312775",2913,"橡胶零件制造","橡胶和塑料制品业","福清市"]
["福州新裕电装有限公司","61133267X",3670,"汽车零部件及配件制造","汽车制造业","闽侯县"]
["福州优予食品科技有限公司","MA2YM7CX7",1399,"其他未列明农副食品加工","农副食品加工业","闽侯县"]
["福建天成保德环保科技有限公司","060357036",3572,"机械化农业及园艺机具制造","专用设备制造业","仓山区"]
["福建和晔电气有限公司","066571551",2922,"塑料板管型材制造","橡胶和塑料制品业","长乐区"]
["福建长福织染科技有限公司","569261432",1752,"化纤织物染整精加工","纺织业","福清市"]
["福州金蔷薇工艺品有限公司","731854229",2439,"其他工艺美术及礼仪用品制造","文教、工美、体育和娱乐用品制造业","闽侯县"]
["福建榕达纸业有限公司","MA2YMG371",2231,"纸和纸板容器制造","造纸和纸制品业","闽侯县"]
["福建星网物联信息系统有限公司","581280097",3953,"影视录放设备制造","计算机、通信和其他电子设备制造业","闽侯县"]
["永泰县宏源砂石加工有限公司","MA32TGR75",3099,"其他非金属矿物制品制造","非金属矿物制品业","永泰县"]
["福州素天下食品有限公司","72970669X",1399,"其他未列明农副食品加工","农副食品加工业","仓山区"]
["长乐市佳联纺织印染有限公司","784534157",1713,"棉印染精加工","纺织业","长乐区"]
["福清市玉树家具有限公司","611843015",2130,"金属家具制造","家具制造业","福清市"]
["福清百益鞋业有限公司","MA31XFNQ3",1953,"塑料鞋制造","皮革、毛皮、羽毛及其制品和制鞋业","福清市"]
["福建和顺德混凝土有限公司","060365896",3021,"水泥制品制造","非金属矿物制品业","闽侯县"]
["福建省亚新纺织有限公司","561661562",1711,"棉纺纱加工","纺织业","长乐区"]
["福州闽海药业有限公司","705386513",2740,"中成药生产","医药制造业","福清市"]
["福建龙和食品实业有限公司","61100000X",1371,"蔬菜加工","农副食品加工业","连江县"]
["福建省闽清县诺利兴陶瓷有限公司","757393053",3071,"建筑陶瓷制品制造","非金属矿物制品业","闽清县"]
["福建正味生物科技有限公司","69435307X",1495,"食品及饲料添加剂制造","食品制造业","马尾区"]
["福建康鸿生物科技有限公司","MA2YCP4C9",2710,"化学药品原料药制造","医药制造业","福清市"]
["闽侯县鸿基工艺品有限公司","746388814",2432,"金属工艺品制造","文教、工美、体育和娱乐用品制造业","闽侯县"]
["永泰县筑诚机制砂有限公司","550958774",3099,"其他非金属矿物制品制造","非金属矿物制品业","永泰县"]
["福州海王金象中药制药有限公司","727935229",2740,"中成药生产","医药制造业","晋安区"]
["福建省闽侯县华源工艺品有限公司","705134340",2439,"其他工艺美术及礼仪用品制造","文教、工美、体育和娱乐用品制造业","闽侯县"]
["福建腾宇电气有限公司","MA2Y1EQQ3",3823,"配电开关控制设备制造","电气机械和器材制造业","闽侯县"]
["福州优利克五金工具有限公司","766168843",2927,"日用塑料制品制造","橡胶和塑料制品业","马尾区"]
["长乐佳纶纺织实业有限公司","753102706",1711,"棉纺纱加工","纺织业","长乐区"]
["福州市长乐区安泰针纺织有限公司","154879513",1763,"针织或钩针编织品制造","纺织业","长乐区"]
["福建鑫欣华针纺有限公司","574735049",1761,"针织或钩针编织物织造","纺织业","长乐区"]
["福建省鑫隆利新材料有限公司","MA33T63L0",1953,"塑料鞋制造","皮革、毛皮、羽毛及其制品和制鞋业","闽侯县"]
["福建海鳞源食品开发有限公司","MA320HJYX",1361,"水产品冷冻加工","农副食品加工业","连江县"]
["福清市星辉食品有限公司","MA31UTRAX",1353,"肉制品及副产品加工","农副食品加工业","福清市"]
["福清市天鹏精密电子有限公司","315737541",2929,"塑料零件及其他塑料制品制造","橡胶和塑料制品业","福清市"]
["福建森源电力设备有限公司","757369627",3823,"配电开关控制设备制造","电气机械和器材制造业","仓山区"]
["福建祥云光电科技有限公司","68308592X",3563,"电子元器件与机电组件设备制造","专用设备制造业","晋安区"]
["福建省闽宏建材实业有限公司","798353787",3021,"水泥制品制造","非金属矿物制品业","闽侯县"]
["永万（福州）新型建材有限公司","565368689",3021,"水泥制品制造","非金属矿物制品业","罗源县"]
["福建冠百嘉金属制品有限公司","MA33R76Q2",3130,"钢压延加工","黑色金属冶炼和压延加工业","马尾区"]
["瀚蓝（福清）固废处理有限公司","691938662",4417,"生物质能发电","电力、热力生产和供应业","福清市"]
["闽侯县自来水有限公司","154668345",4610,"自来水生产和供应","水的生产和供应业","闽侯县"]
["福建广正集团有限公司","766176536",3829,"其他输配电及控制设备制造","电气机械和器材制造业","闽侯县"]
["福州萱裕金属配套有限公司","611332557",3670,"汽车零部件及配件制造","汽车制造业","闽侯县"]
["福建阿普莱斯烧烤炉有限公司","MA34970T1",2130,"金属家具制造","家具制造业","闽侯县"]
["福建海睿达科技有限公司","585331576",4011,"工业自动控制系统装置制造","仪器仪表制造业","闽侯县"]
["福州跃晟实业有限公司","MA32CKTT6",1959,"其他制鞋业","皮革、毛皮、羽毛及其制品和制鞋业","连江县"]
["福州市长乐区宣源纺织有限公司","MA34ACKHX",1711,"棉纺纱加工","纺织业","长乐区"]
["福建华兴永盛实业有限公司","MA33Q231X",1763,"针织或钩针编织品制造","纺织业","长乐区"]
["福建海旺食品有限公司","MA2XQE9X8",1432,"速冻食品制造","食品制造业","福清市"]
["福建日新塑料制品有限公司","611332733",2929,"塑料零件及其他塑料制品制造","橡胶和塑料制品业","福清市"]
["福建大铁蛋五金科技有限公司","MA34A11MX",3399,"其他未列明金属制品制造","金属制品业","闽侯县"]
["中网电力科技有限公司","075015688",3823,"配电开关控制设备制造","电气机械和器材制造业","闽侯县"]
["福建省金盾消防科技有限公司","660362998",3353,"安全消防用金属制品制造","金属制品业","连江县"]
["福州正恒建筑新材料有限公司","MA32WFL62",3021,"水泥制品制造","非金属矿物制品业","长乐区"]
["福清市正祥纸品有限公司","154909778",2319,"包装装潢及其他印刷","印刷和记录媒介复制业","福清市"]
["福州大兴油墨有限公司","79176126X",2642,"油墨及类似产品制造","化学原料和化学制品制造业","闽侯县"]
["好事达（福州）家具有限公司","583122981",2110,"木质家具制造","家具制造业","连江县"]
["福建闽科饲料有限公司","260198420",1329,"其他饲料加工","农副食品加工业","仓山区"]
["福建省金福制牌有限公司","683087861",3394,"交通及公共管理用金属标牌制造","金属制品业","仓山区"]
["福州宇昌实业有限公司","724240499",1495,"食品及饲料添加剂制造","食品制造业","马尾区"]
["福建宝泰日用化工有限公司","741659195",2681,"肥皂及洗涤剂制造","化学原料和化学制品制造业","长乐区"]
["福州友星生物科技有限公司","689362748",2929,"塑料零件及其他塑料制品制造","橡胶和塑料制品业","长乐区"]
["福建省闽清新丰陶瓷有限公司","705144370",3071,"建筑陶瓷制品制造","非金属矿物制品业","闽清县"]
["长乐巨中辉纸业有限公司","759399387",2221,"机制纸及纸板制造","造纸和纸制品业","长乐区"]
["福建欣昊光电科技有限公司","310615174",3989,"其他电子元件制造","计算机、通信和其他电子设备制造业","福清市"]
["福清市巨利塑胶制品有限公司","574738071",2929,"塑料零件及其他塑料制品制造","橡胶和塑料制品业","福清市"]
["福清市伊鑫机械有限公司","735688846",3393,"锻件及粉末冶金制品制造","金属制品业","福清市"]
["福清弘晟食品有限公司","611303289",1362,"鱼糜制品及水产品干腌制加工","农副食品加工业","福清市"]
["福建青口科技有限公司","674014425",3393,"锻件及粉末冶金制品制造","金属制品业","闽侯县"]
["福建嘉纳塑胶有限公司","660395730",2925,"塑料人造革合成革制造","橡胶和塑料制品业","罗源县"]
["福州超宏自动化设备有限公司","689376162",4011,"工业自动控制系统装置制造","仪器仪表制造业","马尾区"]
["福州展辰新材料有限公司","669283233",2641,"涂料制造","化学原料和化学制品制造业","福清市"]
["福州新福兴玻璃有限公司","260180239",3042,"特种玻璃制造","非金属矿物制品业","马尾区"]
["福建万顺运动科技有限公司","MA32BYYU9",2929,"塑料零件及其他塑料制品制造","橡胶和塑料制品业","长乐区"]
["福建省华欣针纺有限公司","757357060",1763,"针织或钩针编织品制造","纺织业","长乐区"]
["泓兴精密电子（福清）有限公司","579288591",2929,"塑料零件及其他塑料制品制造","橡胶和塑料制品业","福清市"]
["福清市鸿祥棉制品有限公司","753107718",2780,"卫生材料及医药用品制造药用辅料及包装材料","医药制造业","福清市"]
["福建沪闽环保科技有限公司","MA32AFC73",4210,"金属废料和碎屑加工处理","废弃资源综合利用业","罗源县"]
["福州新华丰贺氏食品有限公司","559593097",1411,"糕点面包制造","食品制造业","晋安区"]
["福清市润锦体育用品有限公司","MA33PHR42",2927,"日用塑料制品制造","橡胶和塑料制品业","福清市"]
["福建省奋强建材有限公司","MA32J43M8",3021,"水泥制品制造","非金属矿物制品业","福清市"]
["福清市融马砂轮有限公司","154905021",3099,"其他非金属矿物制品制造","非金属矿物制品业","福清市"]
["福建鑫丰船业有限公司","764068080",4342,"船舶修理","金属制品、机械和设备修理业","连江县"]
["福建省闽清富顺陶瓷有限公司","754969950",3071,"建筑陶瓷制品制造","非金属矿物制品业","闽清县"]
["闽清航华木业有限公司","749085595",2021,"胶合板制造","木材加工和木、竹、藤、棕、草制品业","闽清县"]
["福建闽高电力股份有限公司","665094929",3899,"其他未列明电气机械及器材制造","电气机械和器材制造业","鼓楼区"]
["大永精机（福州）有限公司","751388739",3670,"汽车零部件及配件制造","汽车制造业","仓山区"]
["福州远嘉矿业有限公司","729699629",1099,"其他未列明非金属矿采选","非金属矿采选业","晋安区"]
["长乐鑫荣纺织有限公司","746375343",1761,"针织或钩针编织物织造","纺织业","长乐区"]
["福清协耀机械有限公司","315589753",3484,"机械零部件加工","通用设备制造业","福清市"]
["福建省云鲲塑业有限公司","MA33UX4A6",2926,"塑料包装箱及容器制造","橡胶和塑料制品业","福清市"]
["福清市华成鞋业有限公司","678477910",1953,"塑料鞋制造","皮革、毛皮、羽毛及其制品和制鞋业","福清市"]
["福建福藤新型环保建材有限公司","MA33MNNF7",3099,"其他非金属矿物制品制造","非金属矿物制品业","福清市"]
["福建省闽亚建材实业有限公司","095519154",3021,"水泥制品制造","非金属矿物制品业","闽侯县"]
["福建晟哲自动化科技有限公司","081632535",3569,"其他电子专用设备制造","专用设备制造业","闽侯县"]
["福州樟港硅业有限公司","61130146X",3140,"铁合金冶炼","黑色金属冶炼和压延加工业","永泰县"]
["福州市长乐区华大纺织有限公司","665099068",1763,"针织或钩针编织品制造","纺织业","长乐区"]
["福建百思买工艺品有限公司","MA344E6T1",2439,"其他工艺美术及礼仪用品制造","文教、工美、体育和娱乐用品制造业","闽侯县"]
["福建兴腾科技有限公司","MA2YPQ4T1",3429,"其他金属加工机械制造","通用设备制造业","罗源县"]
["福州嘉威科技有限公司","674013430",2651,"初级形态塑料及合成树脂制造","化学原料和化学制品制造业","闽清县"]
["澳蓝(福建)实业有限公司","782197361",3464,"制冷空调设备制造","通用设备制造业","仓山区"]
["福建豪丰纺织有限公司","557557842",1761,"针织或钩针编织物织造","纺织业","长乐区"]
["福建佳鑫金属科技有限公司","MA345HWY1",3670,"汽车零部件及配件制造","汽车制造业","长乐区"]
["福建东方小飞光电科技有限公司","MA2YHA6T7",2929,"塑料零件及其他塑料制品制造","橡胶和塑料制品业","福清市"]
["福建星智达电子有限公司","MA34ULCC1",3969,"其他智能消费设备制造","计算机、通信和其他电子设备制造业","福清市"]
["福州福裕橡塑工业有限公司","611332493",3670,"汽车零部件及配件制造","汽车制造业","闽侯县"]
["福州三立电子有限公司","66284232X",4030,"钟表与计时仪器制造","仪器仪表制造业","闽侯县"]
["福建福荣针织有限公司","154865066",1761,"针织或钩针编织物织造","纺织业","长乐区"]
["福清市胜德塑胶制品有限公司","154921187",2924,"泡沫塑料制造","橡胶和塑料制品业","福清市"]
["毅飞泵业(福州)有限公司","766162222",3441,"泵及真空设备制造","通用设备制造业","闽侯县"]
["福州古俊食品有限公司","MA3495AP7",1353,"肉制品及副产品加工","农副食品加工业","闽侯县"]
["大唐（福州）新能源有限公司","058409941",4415,"风力发电","电力、热力生产和供应业","闽侯县"]
["福州泰宇混凝土有限公司","660384812",3021,"水泥制品制造","非金属矿物制品业","闽侯县"]
["福建源素建材有限公司","674003080",3021,"水泥制品制造","非金属矿物制品业","闽侯县"]
["福州市连江海峡水业有限公司","15470721X",4610,"自来水生产和供应","水的生产和供应业","连江县"]
["福建锦成制衣有限公司","733590300",1819,"其他机织服装制造","纺织服装、服饰业","仓山区"]
["福建佳亿化纤有限公司","705160370",2821,"锦纶纤维制造","化学纤维制造业","长乐区"]
["福建地盐针织有限公司","705110277",1763,"针织或钩针编织品制造","纺织业","长乐区"]
["福建南少林药业有限公司","705154309",2720,"化学药品制剂制造","医药制造业","福清市"]
["福清市汇华塑胶制品有限公司","683068687",1953,"塑料鞋制造","皮革、毛皮、羽毛及其制品和制鞋业","福清市"]
["福建省聚元食品股份有限公司","559573571",1353,"肉制品及副产品加工","农副食品加工业","闽侯县"]
["福建省金莱恩钢结构有限公司","MA32N5NC8",3311,"金属结构制造","金属制品业","闽侯县"]
["福州井原六和机械有限公司","770654537",3670,"汽车零部件及配件制造","汽车制造业","闽侯县"]
["福州泰全电机有限公司","611332645",3670,"汽车零部件及配件制造","汽车制造业","闽侯县"]
["福州鸿丰工艺品有限公司","MA2Y75RU0",2439,"其他工艺美术及礼仪用品制造","文教、工美、体育和娱乐用品制造业","闽侯县"]
["福清兴高达五金有限公司","MA3280278",3393,"锻件及粉末冶金制品制造","金属制品业","福清市"]
["福州长庚医疗器械有限公司","757360008",3584,"医疗外科及兽医用器械制造","专用设备制造业","闽侯县"]
["福州三吉混凝土有限公司","611332442",3021,"水泥制品制造","非金属矿物制品业","闽侯县"]
["福州耀艺工艺品有限公司","579298239",2432,"金属工艺品制造","文教、工美、体育和娱乐用品制造业","闽侯县"]
["福州普利斯制衣有限公司","786929005",1819,"其他机织服装制造","纺织服装、服饰业","闽侯县"]
["福州福延塑胶有限公司","591701692",2929,"塑料零件及其他塑料制品制造","橡胶和塑料制品业","连江县"]
["福建省骄阳新能源科技有限公司","MA31KE14X",4220,"非金属废料和碎屑加工处理","废弃资源综合利用业","罗源县"]
["福建润鑫建材有限公司","583102489",3021,"水泥制品制造","非金属矿物制品业","长乐区"]
["福州市长乐区力峰包装制品有限公司","674046064",3541,"制浆和造纸专用设备制造","专用设备制造业","长乐区"]
["福清南宝树脂有限公司","611322957",2669,"其他专用化学产品制造","化学原料和化学制品制造业","福清市"]
["元洪面粉食品(福建)有限公司","611312273",1312,"小麦加工","农副食品加工业","福清市"]
["福建慧捷通科技有限公司","MA32WPWK4",3913,"计算机外围设备制造","计算机、通信和其他电子设备制造业","闽侯县"]
["福州真兰水表有限公司","611335141",4016,"供应用仪器仪表制造","仪器仪表制造业","闽侯县"]
["连江申达建筑新材料有限公司","099754485",3021,"水泥制品制造","非金属矿物制品业","连江县"]
["福州格利沃防护用品有限公司","633905096",1789,"其他产业用纺织制成品制造","纺织业","马尾区"]
["福州市长乐区富平印染有限公司","705159054",1713,"棉印染精加工","纺织业","长乐区"]
["福清市新大泽螺旋藻有限公司","15491987X",1492,"保健食品制造","食品制造业","福清市"]
["中粮制桶（福建）有限公司","MA3563NA6",3333,"金属包装容器及材料制造","金属制品业","福清市"]
["福州六和汽车零部件有限公司","MA322C331",3670,"汽车零部件及配件制造","汽车制造业","闽侯县"]
["福建画王烫印机有限公司","MA32TBH19",3399,"其他未列明金属制品制造","金属制品业","闽侯县"]
["福州金利时工艺品有限公司","743808369",2439,"其他工艺美术及礼仪用品制造","文教、工美、体育和娱乐用品制造业","闽侯县"]
["福建龙资混凝土有限公司","052302481",3021,"水泥制品制造","非金属矿物制品业","连江县"]
["福建省闽清茶口粉干有限公司","154817558",1431,"米面制品制造","食品制造业","闽清县"]
["福州昌立工艺品实业有限公司","779601634",2432,"金属工艺品制造","文教、工美、体育和娱乐用品制造业","闽清县"]
["福建省闽清新长江金属制造有限公司","671929814",3489,"其他通用零部件制造","通用设备制造业","闽清县"]
["平潭海峡发电有限公司","MA33HFHU2",4415,"风力发电","电力、热力生产和供应业","平潭县"]
["福州普贝斯智能科技有限公司","MA32TF089",4021,"环境监测专用仪器仪表制造","仪器仪表制造业","仓山区"]
["福建省大力润滑科技有限公司","75937450X",2511,"原油加工及石油制品制造","石油加工、炼焦和核燃料加工业","闽侯县"]
["闽清麦王电瓷电器有限公司","611700348",3073,"特种陶瓷制品制造","非金属矿物制品业","闽清县"]
["福州慧美贸易有限公司","717385358",1819,"其他机织服装制造","纺织服装、服饰业","鼓楼区"]
["福建新农大正生物工程有限公司","731842260",2632,"生物化学农药及微生物农药制造","化学原料和化学制品制造业","鼓楼区"]
["福建俪菲奥特家居有限公司","MA33CKN28",2110,"木质家具制造","家具制造业","马尾区"]
["福清富群电子五金有限公司","786910494",3240,"有色金属合金制造","有色金属冶炼和压延加工业","福清市"]
["德尔塔（福建）儿童用品有限公司","666884287",2110,"木质家具制造","家具制造业","福清市"]
["福建骏胜家居用品有限公司","MA346HQL2",2439,"其他工艺美术及礼仪用品制造","文教、工美、体育和娱乐用品制造业","闽侯县"]
["智恒科技股份有限公司","751391129",4016,"供应用仪器仪表制造","仪器仪表制造业","闽侯县"]
["福建省连江县飞鹭鞋业有限公司","754989142",1953,"塑料鞋制造","皮革、毛皮、羽毛及其制品和制鞋业","连江县"]
["福建省冠通塑料科技有限公司","154703008",2661,"化学试剂和助剂制造","化学原料和化学制品制造业","连江县"]
["闽清新百兴工艺有限公司","595994461",2432,"金属工艺品制造","文教、工美、体育和娱乐用品制造业","闽清县"]
["龙源平潭风力发电有限公司","775356184",4415,"风力发电","电力、热力生产和供应业","平潭县"]
["福建闽裕服饰有限公司","056129401",1830,"服饰制造","纺织服装、服饰业","鼓楼区"]
["福建坤兴绿色食品有限公司","096227364",1362,"鱼糜制品及水产品干腌制加工","农副食品加工业","马尾区"]
["福州市长乐圣光针织有限公司","705158123",1751,"化纤织造加工","纺织业","长乐区"]
["福建馥华食品有限公司","798383601",1432,"速冻食品制造","食品制造业","福清市"]
["福建兴丰华生物科技有限公司","633908828",1329,"其他饲料加工","农副食品加工业","福清市"]
["福建东诚食品有限公司","572967583",1372,"食用菌加工","农副食品加工业","福清市"]
["福建福清万年青水泥有限公司","782169790",3011,"水泥制造","非金属矿物制品业","福清市"]
["福清市嘉益五金制品有限公司","766159410",2110,"木质家具制造","家具制造业","福清市"]
["福州和特供热有限公司","678452318",4430,"热力生产和供应","电力、热力生产和供应业","福清市"]
["福建震亚实业有限公司","687526286",2239,"其他纸制品制造","造纸和纸制品业","闽侯县"]
["福建惠亿美环保材料科技有限公司","555094987",2921,"塑料薄膜制造","橡胶和塑料制品业","闽侯县"]
["福州利利再生物资回收有限公司","MA31UE3R5",3099,"其他非金属矿物制品制造","非金属矿物制品业","罗源县"]
["福州澳胜家居制造有限公司","611337171",2110,"木质家具制造","家具制造业","鼓楼区"]
["福建欧中电子有限公司","749067792",3981,"电阻电容电感元件制造","计算机、通信和其他电子设备制造业","仓山区"]
["福建中量智汇科技有限公司","MA2YJ4YL4",3823,"配电开关控制设备制造","电气机械和器材制造业","马尾区"]
["长乐华盛铸造机械有限公司","154876910",3453,"齿轮及齿轮减变速箱制造","通用设备制造业","长乐区"]
["福清景翔电子配件有限公司","611310307",3981,"电阻电容电感元件制造","计算机、通信和其他电子设备制造业","福清市"]
["福清市南鑫牲畜屠宰厂（普通合伙）","746363924",1351,"牲畜屠宰","农副食品加工业","福清市"]
["福州市辰亿五金制品有限公司","095300734",3482,"紧固件制造","通用设备制造业","闽侯县"]
["贝奇（福建）食品有限公司","796056631",1523,"果菜汁及果菜汁饮料制造","酒、饮料和精制茶制造业","闽侯县"]
["福州明芳汽车部件工业有限公司","61133259X",3670,"汽车零部件及配件制造","汽车制造业","闽侯县"]
["福建宏飞混凝土有限公司","67192014X",3021,"水泥制品制造","非金属矿物制品业","闽侯县"]
["福建连江县丰源实业有限公司","079757072",3021,"水泥制品制造","非金属矿物制品业","连江县"]
["福建新翔龙鞋业有限公司","633905184",1952,"皮鞋制造","皮革、毛皮、羽毛及其制品和制鞋业","仓山区"]
["福建新位激光科技有限公司","MA3291A26",3424,"金属切割及焊接设备制造","通用设备制造业","马尾区"]
["福建冠宇钢管制造有限公司","MA2YP56K3",3391,"黑色金属铸造","金属制品业","长乐区"]
["福建省长乐市民生针织有限公司","628611376",1763,"针织或钩针编织品制造","纺织业","长乐区"]
["福清茂鸿塑胶有限公司","MA31TWT46",2929,"塑料零件及其他塑料制品制造","橡胶和塑料制品业","福清市"]
["福建正泽电气有限公司","MA3470T33",3823,"配电开关控制设备制造","电气机械和器材制造业","闽侯县"]
["福建建泰建筑科技有限责任公司","MA344HDJ2",3022,"砼结构构件制造","非金属矿物制品业","连江县"]
["福州荣欣包装有限公司","MA33H7G09",2929,"塑料零件及其他塑料制品制造","橡胶和塑料制品业","罗源县"]
["福建和盛崇业电瓷有限公司","738039489",3073,"特种陶瓷制品制造","非金属矿物制品业","闽清县"]
["福州新密机电有限公司","633902880",3670,"汽车零部件及配件制造","汽车制造业","长乐区"]
["福建富得巴机电实业有限公司","569293784",3670,"汽车零部件及配件制造","汽车制造业","连江县"]
["福州奥飞建材科技有限公司","696618182",3039,"其他建筑材料制造","非金属矿物制品业","鼓楼区"]
["兆丰华生物科技（福州）有限公司","749092314",2750,"兽用药品制造","医药制造业","晋安区"]
["福建省博特生物科技有限公司","749050237",2770,"卫生材料及医药用品制造药用辅料及包装材料","医药制造业","晋安区"]
["福建欣美针纺有限公司","751368957",1761,"针织或钩针编织物织造","纺织业","长乐区"]
["福建润强包装材料有限公司","MA2YQX505",2924,"泡沫塑料制造","橡胶和塑料制品业","福清市"]
["福州广泰机械设备有限公司","260172909",3467,"包装专用设备制造","通用设备制造业","闽侯县"]
["福州唯美纸业有限公司","57474296X",2239,"其他纸制品制造","造纸和纸制品业","闽侯县"]
["福建祥鑫轻合金制造有限公司","315658413",3240,"有色金属合金制造","有色金属冶炼和压延加工业","闽侯县"]
["福州诺贝尔福基机电有限公司","633910311",3670,"汽车零部件及配件制造","汽车制造业","闽侯县"]
["福建省都利米业股份有限公司","738016260",1311,"稻谷加工","农副食品加工业","闽侯县"]
["福建然一木业有限公司","070861818",2110,"木质家具制造","家具制造业","闽侯县"]
["福州海天蓝水产有限公司","MA34A83M1",1362,"鱼糜制品及水产品干腌制加工","农副食品加工业","连江县"]
["福建纳仕达电子股份有限公司","766188684",3969,"其他智能消费设备制造","计算机、通信和其他电子设备制造业","平潭县"]
["福建平潭大唐海上风电有限责任公司","MA31DPTC5",4415,"风力发电","电力、热力生产和供应业","平潭县"]
["福建花巷营养科技股份有限公司","315766684",1353,"肉制品及副产品加工","农副食品加工业","鼓楼区"]
["福州欣联达电子科技有限公司","768576445",3670,"汽车零部件及配件制造","汽车制造业","鼓楼区"]
["福建豪峰金属制品有限公司","557565797",2439,"其他工艺美术及礼仪用品制造","文教、工美、体育和娱乐用品制造业","闽侯县"]
["福州福善风动设备有限公司","611317728",3465,"风动和电动工具制造","通用设备制造业","连江县"]
["福建省鼎冠服装有限公司","595995392",1811,"运动机织服装制造","纺织服装、服饰业","闽清县"]
["福州市长乐区伟达针织有限公司","793793871",1763,"针织或钩针编织品制造","纺织业","长乐区"]
["福建省创达印刷包装有限公司","087444359",2319,"包装装潢及其他印刷","印刷和记录媒介复制业","福清市"]
["福思特阀门集团有限公司","741681413",3443,"阀门和旋塞制造","通用设备制造业","闽侯县"]
["福建兴澳诚实业有限公司","MA32L17Y4",3042,"特种玻璃制造","非金属矿物制品业","闽侯县"]
["福州大匠环保建筑材料有限公司","731882713",2641,"涂料制造","化学原料和化学制品制造业","闽侯县"]
["福建坤华智能装备有限公司","567348622",4011,"工业自动控制系统装置制造","仪器仪表制造业","闽侯县"]
["福建友通实业有限公司","735658532",3969,"其他智能消费设备制造","计算机、通信和其他电子设备制造业","马尾区"]
["福州迦南地装饰材料有限公司","770668306",2641,"涂料制造","化学原料和化学制品制造业","马尾区"]
["福建纺冠针织有限公司","78904638X",1761,"针织或钩针编织物织造","纺织业","长乐区"]
["福清市冠成塑胶模具厂","662833634",3525,"模具制造","专用设备制造业","福清市"]
["福州承昌机械有限公司","727933450",3670,"汽车零部件及配件制造","汽车制造业","闽侯县"]
["福州宏旭科技有限公司","79377948X",3052,"光学玻璃制造","非金属矿物制品业","仓山区"]
["福建圣力智能工业科技股份有限公司","260177064",3516,"冶金专用设备制造","专用设备制造业","仓山区"]
["福州意创鞋业有限公司","764055271",1953,"塑料鞋制造","皮革、毛皮、羽毛及其制品和制鞋业","仓山区"]
["福州品昊包装制品有限公司","MA31D8JB7",2239,"其他纸制品制造","造纸和纸制品业","长乐区"]
["福建永裕针纺有限公司","585326347",1761,"针织或钩针编织物织造","纺织业","长乐区"]
["福清昭和精密电子有限公司","633909492",3474,"复印和胶印设备制造","通用设备制造业","福清市"]
["福清市聚兴包装制品有限公司","611843349",2924,"泡沫塑料制造","橡胶和塑料制品业","福清市"]
["福清莱摩登塑胶鞋业有限公司","633911007",1953,"塑料鞋制造","皮革、毛皮、羽毛及其制品和制鞋业","福清市"]
["福建省中隆米业有限公司","315730489",1311,"稻谷加工","农副食品加工业","长乐区"]
["福建高升针纺织有限公司","569272617",1763,"针织或钩针编织品制造","纺织业","长乐区"]
["福州宏兰德新能源科技有限公司","MA34FDTE2",2019,"其他木材加工","木材加工和木、竹、藤、棕、草制品业","福清市"]
["福建蒲峰鞋业有限公司","555086696",1953,"塑料鞋制造","皮革、毛皮、羽毛及其制品和制鞋业","福清市"]
["鲁嘉涂料（福建）有限公司","671929435",2641,"涂料制造","化学原料和化学制品制造业","闽侯县"]
["福州津闽福祥食品有限公司","315327454",1499,"其他未列明食品制造","食品制造业","闽侯县"]
["中闽（连江）风电有限公司","559590718",4415,"风力发电","电力、热力生产和供应业","连江县"]
["福建帝境杭萧钢构有限公司","MA2YY88H9",3311,"金属结构制造","金属制品业","闽清县"]
["福建亿泰康电子有限公司","MA2Y5RNGX",3856,"家用美容保健护理电器具制造","电气机械和器材制造业","仓山区"]
["福建国光新业科技股份有限公司","MA32CY539",3981,"电阻电容电感元件制造","计算机、通信和其他电子设备制造业","马尾区"]
["福州市长乐区福华印染有限公司","154881066",1713,"棉印染精加工","纺织业","长乐区"]
["长乐市亚邦纺织化纤有限公司","565393534",2821,"锦纶纤维制造","化学纤维制造业","长乐区"]
["福建名味食品有限公司","757374776",1432,"速冻食品制造","食品制造业","福清市"]
["福清市融晟五金科技有限公司","098278106",3392,"有色金属铸造","金属制品业","福清市"]
["福清佳宁化妆品有限公司","743833003",2682,"化妆品制造","化学原料和化学制品制造业","福清市"]
["福建国盛钢结构有限公司","770651328",3311,"金属结构制造","金属制品业","福清市"]
["连江县利泰工艺品有限公司","666855910",2435,"天然植物纤维编织工艺品制造","文教、工美、体育和娱乐用品制造业","连江县"]
["连江旭隆食品有限公司","611320257",1362,"鱼糜制品及水产品干腌制加工","农副食品加工业","连江县"]
["福州汇邦制衣有限公司","75737993X",1819,"其他机织服装制造","纺织服装、服饰业","鼓楼区"]
["福建奥瑞斯机器人工程技术有限公司","315720731",3491,"工业机器人制造","通用设备制造业","仓山区"]
["福建高农饲料有限公司","662812585",1329,"其他饲料加工","农副食品加工业","马尾区"]
["福建源盛达科技有限公司","077400491",2821,"锦纶纤维制造","化学纤维制造业","长乐区"]
["福建明旺食品有限公司","662826047",1361,"水产品冷冻加工","农副食品加工业","福清市"]
["福建亿源机械制造有限公司","MA2Y0BXNX",4190,"其他未列明制造业","其他制造业","闽侯县"]
["福州沣祥野营用品有限公司","731857390",1771,"床上用品制造","纺织业","闽侯县"]
["福建中盟环保有限公司","MA34AJQAX",3591,"环境保护专用设备制造","专用设备制造业","鼓楼区"]
["福州锐迪优通讯科技有限公司","MA1NW5MX8",3921,"通信系统设备制造","计算机、通信和其他电子设备制造业","仓山区"]
["大地建材科技（福州）有限公司","MABTW2UH3",3021,"水泥制品制造","非金属矿物制品业","马尾区"]
["福清同良织造有限公司","611332987",1751,"化纤织造加工","纺织业","福清市"]
["福建省宏源环境资源有限公司","789042071",4210,"金属废料和碎屑加工处理","废弃资源综合利用业","福清市"]
["福清市龙固铝业有限公司","751352971",3312,"金属门窗制造","金属制品业","福清市"]
["福建省闽清中成陶瓷有限公司","MA31XF8K9",3071,"建筑陶瓷制品制造","非金属矿物制品业","闽清县"]
["福州斯耐特液压有限公司","674005369",3431,"轻小型起重设备制造","通用设备制造业","马尾区"]
["福州达华家具制造有限公司","77537581X",2110,"木质家具制造","家具制造业","长乐区"]
["福州市长乐区鑫添榕针织有限公司","MA3233LB2",1761,"针织或钩针编织物织造","纺织业","长乐区"]
["福建顺景机械工业有限公司","315494498",3351,"建筑家具用金属配件制造","金属制品业","福清市"]
["福清市温福食品有限公司","685096331",1373,"水果和坚果加工","农副食品加工业","福清市"]
["福建省福清市福盛德塑胶制品有限公司","337667249",1954,"橡胶鞋制造","皮革、毛皮、羽毛及其制品和制鞋业","福清市"]
["福建金龙腾动力机械有限公司","557560953",3811,"发电机及发电机组制造","电气机械和器材制造业","闽侯县"]
["福建豪业启承实业有限公司","MA351MYT6",3071,"建筑陶瓷制品制造","非金属矿物制品业","闽清县"]
["福州晨征光电有限公司","579280063",3052,"光学玻璃制造","非金属矿物制品业","仓山区"]
["福建上润精密仪器有限公司","746350429",4011,"工业自动控制系统装置制造","仪器仪表制造业","马尾区"]
["福建屹鑫钢业有限公司","MA31TNNQ3",3311,"金属结构制造","金属制品业","长乐区"]
["福建省福隆针织有限公司","611309090",1761,"针织或钩针编织物织造","纺织业","福清市"]
["福州市耀鑫机械科技有限公司","75135044X",3130,"钢压延加工","黑色金属冶炼和压延加工业","福清市"]
["福州宇隆光电科技有限公司","MA2XTG336",3989,"其他电子元件制造","计算机、通信和其他电子设备制造业","福清市"]
["久策气体（福清）有限公司","587501743",2619,"其他基础化学原料制造","化学原料和化学制品制造业","福清市"]
["福建乾达重工集团有限责任公司","665073642",3499,"其他未列明通用设备制造业","通用设备制造业","闽侯县"]
["福州安德鲁森大卫食品有限公司","315564329",1411,"糕点面包制造","食品制造业","闽侯县"]
["福州茂兴傢俬有限公司","73188556X",2110,"木质家具制造","家具制造业","闽侯县"]
["福建浩达智能科技股份有限公司","779628634",4011,"工业自动控制系统装置制造","仪器仪表制造业","闽侯县"]
["福建源鑫建材有限公司","757390282",3011,"水泥制造","非金属矿物制品业","罗源县"]
["福州鑫洋机械制造有限公司","665064930",3391,"黑色金属铸造","金属制品业","闽清县"]
["福州华虹智能科技股份有限公司","741681456",4025,"地质勘探和地震专用仪器制造","仪器仪表制造业","鼓楼区"]
["欧浦登(福建)光学有限公司","611007615",3974,"显示器件制造","计算机、通信和其他电子设备制造业","仓山区"]
["福州环宇工艺品有限公司","595980617",2432,"金属工艺品制造","文教、工美、体育和娱乐用品制造业","闽侯县"]
["福建省供销云厨餐饮管理有限公司","MA33XFTB0",1439,"其他方便食品制造","食品制造业","闽侯县"]
["福州花圣工艺品有限公司","633904683",2434,"花画工艺品制造","文教、工美、体育和娱乐用品制造业","连江县"]
["闽清金德福食品有限公司","726461228",1391,"淀粉及淀粉制品制造","农副食品加工业","闽清县"]
["福州鑫图光电有限公司","572975292",4028,"电子测量仪器制造","仪器仪表制造业","仓山区"]
["福州市金远方饲料有限公司","MA33G0GB4",1329,"其他饲料加工","农副食品加工业","马尾区"]
["长乐陆丰鞋业有限公司","761754894",1952,"皮鞋制造","皮革、毛皮、羽毛及其制品和制鞋业","长乐区"]
["福建国晟钢管制品有限公司","MA32JGUD9",3311,"金属结构制造","金属制品业","长乐区"]
["福建艾唯特智能装备有限公司","MA8TA0YE3",3514,"建筑工程用机械制造","专用设备制造业","长乐区"]
["福州航辉米业有限公司","735672879",1311,"稻谷加工","农副食品加工业","长乐区"]
["福州市长乐区新美纶针织有限公司","796054556",1763,"针织或钩针编织品制造","纺织业","长乐区"]
["福清威佳电子科技有限公司","786920713",3976,"光电子器件制造","计算机、通信和其他电子设备制造业","福清市"]
["福建华颖箱包材料有限公司","770690511",4119,"其他日用杂品制造","其他制造业","福清市"]
["福建顶香油脂食品有限公司","746381938",1331,"食用植物油加工","农副食品加工业","福清市"]
["福清市弘旭塑料制品有限公司","MA2XN69R0",4220,"非金属废料和碎屑加工处理","废弃资源综合利用业","福清市"]
["福建味民食品开发有限公司","574724315",1373,"水果和坚果加工","农副食品加工业","闽侯县"]
["福州汉强电子有限公司","72647108X",4030,"钟表与计时仪器制造","仪器仪表制造业","闽侯县"]
["福州运泉织带有限公司","315331365",1783,"纺织带和帘子布制造","纺织业","连江县"]
["福建航塑新材料科技有限公司","MA2XTU4G7",2921,"塑料薄膜制造","橡胶和塑料制品业","罗源县"]
["福州卓能科技有限公司","MA2YN3C87",4430,"热力生产和供应","电力、热力生产和供应业","长乐区"]
["福州市长乐区荣贵针纺有限公司","662806708",1761,"针织或钩针编织物织造","纺织业","长乐区"]
["福清明源竹木制品有限公司","739521437",2041,"竹制品制造","木材加工和木、竹、藤、棕、草制品业","福清市"]
["福州文丰木业有限公司","MA2YMAD95",2110,"木质家具制造","家具制造业","福清市"]
["福州赛瑞特新材料技术开发有限公司","660386105",3073,"特种陶瓷制品制造","非金属矿物制品业","鼓楼区"]
["福州金泉冶金机械设备有限公司","717373517",3516,"冶金专用设备制造","专用设备制造业","晋安区"]
["台榕（福建）水产有限公司","050334957",1361,"水产品冷冻加工","农副食品加工业","马尾区"]
["福建朝华食品有限公司","MA33J7R34",1361,"水产品冷冻加工","农副食品加工业","福清市"]
["奥斯玛特智能装备（福建）有限公司","MA8T1AWX4",3491,"工业机器人制造","通用设备制造业","福清市"]
["福州福信昌橡塑有限公司","585303815",3670,"汽车零部件及配件制造","汽车制造业","闽侯县"]
["福建深纳生物工程有限公司","746390455",1495,"食品及饲料添加剂制造","食品制造业","永泰县"]
["福建省长乐市富达纸品有限公司","705158385",2223,"加工纸制造","造纸和纸制品业","长乐区"]
["福建联丰纺织有限公司","MA2XN99K1",1712,"棉织造加工","纺织业","长乐区"]
["福州联华林德气体有限公司","MA345G7B1",3985,"电子专用材料制造","计算机、通信和其他电子设备制造业","福清市"]
["福州帝都橡胶有限公司","754978099",3670,"汽车零部件及配件制造","汽车制造业","闽侯县"]
["福州闽健米业有限公司","591725483",1311,"稻谷加工","农副食品加工业","闽侯县"]
["福建省达沃宇建材有限公司","572997109",2641,"涂料制造","化学原料和化学制品制造业","闽侯县"]
["老棉农医疗用品（福州）有限公司","MA33LQ06X",2770,"卫生材料及医药用品制造药用辅料及包装材料","医药制造业","闽侯县"]
["庄臣酿酒（福建）有限公司","587534289",1515,"葡萄酒制造","酒、饮料和精制茶制造业","连江县"]
["福建润普新材料科技有限公司","MA8U5BFG2",2922,"塑料板管型材制造","橡胶和塑料制品业","罗源县"]
["福州炫木服装有限公司","583103633",1819,"其他机织服装制造","纺织服装、服饰业","仓山区"]
["福建捷高纺织有限公司","064128521",1761,"针织或钩针编织物织造","纺织业","长乐区"]
["福州创先工程材料有限公司","724245919",2662,"专项化学用品制造","化学原料和化学制品制造业","罗源县"]
["福州市谋盛再生资源有限公司","569258022",3099,"其他非金属矿物制品制造","非金属矿物制品业","罗源县"]
["福建源鑫混凝土有限公司","569289494",3021,"水泥制品制造","非金属矿物制品业","罗源县"]
["福州市恒爵服装有限公司","581109222",1811,"运动机织服装制造","纺织服装、服饰业","永泰县"]
["明鸿（福州）金属工业有限公司","779611648",3752,"摩托车零部件及配件制造","铁路、船舶、航空航天和其他运输设备制造业","马尾区"]
["福州开发区君得利胶囊有限公司","73187860X",2780,"卫生材料及医药用品制造药用辅料及包装材料","医药制造业","马尾区"]
["福建优你康光学有限公司","MA33B1NA6",3587,"眼镜制造","专用设备制造业","马尾区"]
["福建顺安博实业有限公司","MA34MTUA8",1751,"化纤织造加工","纺织业","长乐区"]
["福建省华众现代家具有限公司","310644194",2110,"木质家具制造","家具制造业","福清市"]
["福清三照电子有限公司","633907235",3982,"电子电路制造","计算机、通信和其他电子设备制造业","福清市"]
["福清市海美生物科技有限公司","660350532",1329,"其他饲料加工","农副食品加工业","福清市"]
["福建鑫源肥业有限公司","MA32C9303",2621,"氮肥制造","化学原料和化学制品制造业","福清市"]
["福建惠林机械有限公司","798364726",3572,"机械化农业及园艺机具制造","专用设备制造业","闽侯县"]
["福州坚利工艺品有限公司","733627791",2439,"其他工艺美术及礼仪用品制造","文教、工美、体育和娱乐用品制造业","闽侯县"]
["福建水投集团罗源水务有限公司","68308971X",4610,"自来水生产和供应","水的生产和供应业","罗源县"]
["福建省远大混凝土有限公司","557572014",3021,"水泥制品制造","非金属矿物制品业","平潭县"]
["中闽（平潭）新能源有限公司","MA2XX8R39",4415,"风力发电","电力、热力生产和供应业","平潭县"]
["嘉园环保有限公司","260570587",3591,"环境保护专用设备制造","专用设备制造业","鼓楼区"]
["福州新安德鲁森食品有限公司","717331093",1411,"糕点面包制造","食品制造业","晋安区"]
["福建新福达汽车工业有限公司","733591653",3611,"汽柴油车整车制造","汽车制造业","晋安区"]
["福州博林家居有限公司","337661541",2110,"木质家具制造","家具制造业","长乐区"]
["福建鑫家荣木业有限公司","674010918",2110,"木质家具制造","家具制造业","长乐区"]
["福州市长乐区四海达针纺有限公司","068766096",1761,"针织或钩针编织物织造","纺织业","长乐区"]
["福清市伟达塑料制品有限公司","782162177",2924,"泡沫塑料制造","橡胶和塑料制品业","福清市"]
["福州晶元光电科技有限公司","683073208",4040,"光学仪器制造","仪器仪表制造业","闽侯县"]
["佳宁化妆品(福州)有限公司","611305313",2682,"化妆品制造","化学原料和化学制品制造业","仓山区"]
["福州长榕弹簧有限公司","633910549",3483,"弹簧制造","通用设备制造业","晋安区"]
["福州市长乐区领航纺织有限公司","097162558",2821,"锦纶纤维制造","化学纤维制造业","长乐区"]
["福建融林塑胶五金实业有限公司","611301267",3382,"金属制餐具和器皿制造","金属制品业","福清市"]
["福州方圆电机有限公司","717311172",3414,"水轮机及辅机制造","通用设备制造业","闽侯县"]
["福州万豪机电制造有限公司","683052546",3812,"电动机制造","电气机械和器材制造业","闽侯县"]
["福州富全橡胶有限公司","611332506",3670,"汽车零部件及配件制造","汽车制造业","闽侯县"]
["永发纸业（福建）有限公司","705134295",2231,"纸和纸板容器制造","造纸和纸制品业","闽侯县"]
["福建腾龙鞋业有限公司","766194021",1952,"皮鞋制造","皮革、毛皮、羽毛及其制品和制鞋业","仓山区"]
["福州创恒光电有限公司","789003603",3052,"光学玻璃制造","非金属矿物制品业","仓山区"]
["福建源盛纺织服装城有限公司","766173351",1819,"其他机织服装制造","纺织服装、服饰业","仓山区"]
["福州闽台机械有限公司","772907892",3579,"其他农林牧渔业机械制造","专用设备制造业","仓山区"]
["福建海中舟海洋渔业发展有限公司","097634826",1361,"水产品冷冻加工","农副食品加工业","马尾区"]
["嘉捷科技(福清)有限公司","079772766",3974,"显示器件制造","计算机、通信和其他电子设备制造业","福清市"]
["福州市新港城污水处理有限公司","MA8UXF1A8",4620,"污水处理及其再生利用","水的生产和供应业","福清市"]
["福州智琦轻工有限公司","611307175",2929,"塑料零件及其他塑料制品制造","橡胶和塑料制品业","闽侯县"]
["福建省闽侯县青口东台茶业有限公司","154677559",1530,"精制茶加工","酒、饮料和精制茶制造业","闽侯县"]
["农博士（福建）生物技术有限公司","097634084",1495,"食品及饲料添加剂制造","食品制造业","闽清县"]
["福州伟邦服饰有限公司","726465800",1819,"其他机织服装制造","纺织服装、服饰业","仓山区"]
["福建红庙岭海峡环保有限公司","091390373",4620,"污水处理及其再生利用","水的生产和供应业","晋安区"]
["福州辰达五金机械有限公司","754983875",3311,"金属结构制造","金属制品业","晋安区"]
["福州市长乐区顺亨实业有限公司","796074469",3130,"钢压延加工","黑色金属冶炼和压延加工业","长乐区"]
["福清市宏华石业有限公司","MA31UXX74",3099,"其他非金属矿物制品制造","非金属矿物制品业","福清市"]
["福清市宏远包装材料有限公司","315564417",2924,"泡沫塑料制造","橡胶和塑料制品业","福清市"]
["福清市瑞恒电子配件有限公司","MA2XQ0MTX",2929,"塑料零件及其他塑料制品制造","橡胶和塑料制品业","福清市"]
["福州祥禾家居用品有限公司","MA32RCY6X",2110,"木质家具制造","家具制造业","福清市"]
["福清市能力达鞋业有限公司","729690851",1953,"塑料鞋制造","皮革、毛皮、羽毛及其制品和制鞋业","福清市"]
["福州潮福前味食品有限公司","050344231",1419,"饼干及其他焙烤食品制造","食品制造业","闽侯县"]
["福州东阳塑料制品有限公司","611332661",3670,"汽车零部件及配件制造","汽车制造业","闽侯县"]
["福建中科芯源光电科技有限公司","079763747",3871,"电光源制造","电气机械和器材制造业","闽侯县"]
["福州树人活动房有限公司","754971575",3311,"金属结构制造","金属制品业","连江县"]
["福建嘉和玻璃纤维材料有限公司","666858695",3061,"玻璃纤维及制品制造","非金属矿物制品业","罗源县"]
["福建省福蓉源新材料高端制造有限公司","MA8UJTEK4",3969,"其他智能消费设备制造","计算机、通信和其他电子设备制造业","罗源县"]
["福建芬林家居用品有限公司","MA34L0K83",2110,"木质家具制造","家具制造业","闽清县"]
["福州昱新电子有限公司","759357777",4028,"电子测量仪器制造","仪器仪表制造业","仓山区"]
["福州祥盛鞋业有限公司","729734180",1953,"塑料鞋制造","皮革、毛皮、羽毛及其制品和制鞋业","仓山区"]
["长乐永德信电力器材设备有限公司","779623518",3311,"金属结构制造","金属制品业","长乐区"]
["福建省长乐市前厦针织印染有限公司","154897690",1713,"棉印染精加工","纺织业","长乐区"]
["福建美盈森环保科技有限公司","MA32FLXY1",2231,"纸和纸板容器制造","造纸和纸制品业","福清市"]
["福建凯源塑胶有限公司","766174952",1953,"塑料鞋制造","皮革、毛皮、羽毛及其制品和制鞋业","福清市"]
["福建力普达高温材料有限公司","MA321Q6W0",3089,"耐火陶瓷制品及其他耐火材料制造","非金属矿物制品业","福清市"]
["福建融音塑业科技有限公司","782161318",2922,"塑料板管型材制造","橡胶和塑料制品业","福清市"]
["福建福强机械模具有限公司","662823268",3670,"汽车零部件及配件制造","汽车制造业","闽侯县"]
["福州展志创科金属制品有限公司","MA33B11W6",3311,"金属结构制造","金属制品业","闽侯县"]
["福建日电水务科技有限公司","MA8RC2A35",3383,"金属制卫生器具制造","金属制品业","闽侯县"]
["福建珍筑新材料科技有限公司","MA34K9CL8",3311,"金属结构制造","金属制品业","闽清县"]
["中建海峡福建钢结构有限公司","MA8TAW1C4",3311,"金属结构制造","金属制品业","闽清县"]
["福建执达纸业有限公司","56925294X",2239,"其他纸制品制造","造纸和纸制品业","长乐区"]
["福州跃华塑胶模具有限公司","733620549",3525,"模具制造","专用设备制造业","闽侯县"]
["福州榕新香米业有限公司","749067303",1311,"稻谷加工","农副食品加工业","闽侯县"]
["福建帆顺米业有限公司","798394212",1431,"米面制品制造","食品制造业","闽侯县"]
["福建泉源电气设备有限公司","587500898",3823,"配电开关控制设备制造","电气机械和器材制造业","闽侯县"]
["福建亿山能源管理有限公司","MA32ML052",4419,"其他电力生产","电力、热力生产和供应业","闽侯县"]
["福建鑫际达机电制造有限公司","MA336WRH6",3443,"阀门和旋塞制造","通用设备制造业","闽清县"]
["福建省永泰三连制衣有限公司","683057566",1811,"运动机织服装制造","纺织服装、服饰业","永泰县"]
["福建厚德节能科技发展有限公司","073208427",3024,"轻质建筑材料制造","非金属矿物制品业","永泰县"]
["福州合创机电设备有限公司","669253501",3811,"发电机及发电机组制造","电气机械和器材制造业","晋安区"]
["贝乐鲜（福州）食品科技有限公司","MA34D4B83",1361,"水产品冷冻加工","农副食品加工业","马尾区"]
["福州市长乐区华宇针纺有限公司","761767775",1761,"针织或钩针编织物织造","纺织业","长乐区"]
["福建赛瑞特科技有限公司","MA33N90C3",3073,"特种陶瓷制品制造","非金属矿物制品业","福清市"]
["福州英凯特家居工艺品有限公司","MA31E64D8",2432,"金属工艺品制造","文教、工美、体育和娱乐用品制造业","闽侯县"]
["福建鑫峰服装有限公司","587535230",1830,"服饰制造","纺织服装、服饰业","闽侯县"]
["闽侯县三闽木业有限公司","793796191",2021,"胶合板制造","木材加工和木、竹、藤、棕、草制品业","闽侯县"]
["福州市闽侯县康恒再生能源有限公司","MA325H753",4417,"生物质能发电","电力、热力生产和供应业","闽侯县"]
["福州闽联木业有限公司","768567039",2110,"木质家具制造","家具制造业","罗源县"]
["福州嘉坤制衣有限公司","789013422",1829,"其他针织或钩针编织服装制造","纺织服装、服饰业","晋安区"]
["福建省长乐市金贵针纺织有限公司","735658831",1763,"针织或钩针编织品制造","纺织业","长乐区"]
["福州宏森家居有限公司","MA3484A8X",2110,"木质家具制造","家具制造业","长乐区"]
["福州德士达纺织有限公司","671902515",1761,"针织或钩针编织物织造","纺织业","长乐区"]
["长乐新万佳针纺有限公司","569263497",1761,"针织或钩针编织物织造","纺织业","长乐区"]
["福建恒润包装有限公司","337537655",2924,"泡沫塑料制造","橡胶和塑料制品业","福清市"]
["福建联升新型墙材有限公司","753144949",3039,"其他建筑材料制造","非金属矿物制品业","福清市"]
["闽侯县鸿伟工艺品有限公司","553230690",2432,"金属工艺品制造","文教、工美、体育和娱乐用品制造业","闽侯县"]
["福建金榕能源科技开发有限公司","MA348WTM1",4420,"电力供应","电力、热力生产和供应业","连江县"]
["福州上华防火设备有限公司","739543978",3312,"金属门窗制造","金属制品业","晋安区"]
["福州大川纸品有限公司","611309197",2231,"纸和纸板容器制造","造纸和纸制品业","马尾区"]
["福建佰翔天厨食品有限公司","158166860",1419,"饼干及其他焙烤食品制造","食品制造业","长乐区"]
["福建省福州市航锦针织有限公司","628612889",1763,"针织或钩针编织品制造","纺织业","长乐区"]
["福建嘉实纺织有限公司","MA33HJ3L0",1761,"针织或钩针编织物织造","纺织业","长乐区"]
["万事达家居（福州）有限公司","MA2YGYEF3",2110,"木质家具制造","家具制造业","福清市"]
["福清永大塑胶有限公司","611313380",2924,"泡沫塑料制造","橡胶和塑料制品业","福清市"]
["福州康信照明有限公司","058427082",3975,"半导体照明器件制造","计算机、通信和其他电子设备制造业","闽侯县"]
["福建力得电气有限公司","MA2Y6NKF7",3462,"风机风扇制造","通用设备制造业","闽侯县"]
["福州宏基混凝土有限公司","058403224",3021,"水泥制品制造","非金属矿物制品业","闽侯县"]
["福州马尔斯精密工业有限公司","611332565",3670,"汽车零部件及配件制造","汽车制造业","闽侯县"]
["福建天威电气有限公司","694373636",3829,"其他输配电及控制设备制造","电气机械和器材制造业","闽侯县"]
["福建金吕金属制品有限公司","MA2YKCGC3",3351,"建筑家具用金属配件制造","金属制品业","罗源县"]
["福建省创隆电器科技有限公司","095904327",3464,"制冷空调设备制造","通用设备制造业","罗源县"]
["福州康特捷机电有限公司","555089969",3812,"电动机制造","电气机械和器材制造业","永泰县"]
["福建省永泰县东宇制衣有限公司","550952284",1811,"运动机织服装制造","纺织服装、服饰业","永泰县"]
["福州英诺电子科技有限公司","577014271",4012,"电工仪器仪表制造","仪器仪表制造业","仓山区"]
["福州志杰塑胶制品有限公司","611314156",1953,"塑料鞋制造","皮革、毛皮、羽毛及其制品和制鞋业","晋安区"]
["福州宏鑫华鞋业有限公司","310678538",1952,"皮鞋制造","皮革、毛皮、羽毛及其制品和制鞋业","马尾区"]
["福建维锦纺织科技有限公司","315780355",1761,"针织或钩针编织物织造","纺织业","长乐区"]
["福清双叶德达交通器材有限公司","611321428",1929,"其他皮革制品制造","皮革、毛皮、羽毛及其制品和制鞋业","福清市"]
["福州新北生化工业有限公司","61144732X",2761,"生物药品制造","医药制造业","闽侯县"]
["福州新同富木业有限公司","738037627",2034,"木地板制造","木材加工和木、竹、藤、棕、草制品业","闽侯县"]
["福州海恒水务设备有限公司","784522594",3463,"气体液体分离及纯净设备制造","通用设备制造业","闽侯县"]
["福建锦泰生物科技有限公司","MA8UJYQQ3",1530,"精制茶加工","酒、饮料和精制茶制造业","闽侯县"]
["福建和谐钢结构工程有限公司","550975902",3311,"金属结构制造","金属制品业","连江县"]
["福建飞起新型管业科技有限公司","MA33NDK2X",2922,"塑料板管型材制造","橡胶和塑料制品业","罗源县"]
["福州汇昌纺织有限公司","753148253",1781,"非织造布制造","纺织业","罗源县"]
["福州市豪迪生家具有限公司","MA8RQU7H3",2110,"木质家具制造","家具制造业","闽清县"]
["宗仁科技（平潭）股份有限公司","329522090",3973,"集成电路制造","计算机、通信和其他电子设备制造业","平潭县"]
["福州祥泰电子有限公司","74382481X",3670,"汽车零部件及配件制造","汽车制造业","鼓楼区"]
["福州康厦工具制造有限公司","61133486X",3670,"汽车零部件及配件制造","汽车制造业","长乐区"]
["福州森瑞家居用品有限公司","766158688",2110,"木质家具制造","家具制造业","长乐区"]
["福清市群力光电科技有限公司","054348387",3989,"其他电子元件制造","计算机、通信和其他电子设备制造业","福清市"]
["福清市新福美饲料有限公司","563391076",1329,"其他饲料加工","农副食品加工业","福清市"]
["福州市闽宙家居饰品有限公司","729694588",2431,"雕塑工艺品制造","文教、工美、体育和娱乐用品制造业","闽侯县"]
["福州源申精密工业有限公司","062251518",3670,"汽车零部件及配件制造","汽车制造业","闽侯县"]
["福建优润机电设备有限公司","MA3479CH4",3811,"发电机及发电机组制造","电气机械和器材制造业","闽侯县"]
["福建省闽清友邦包装有限公司","796084114",2231,"纸和纸板容器制造","造纸和纸制品业","闽清县"]
["福州市邦洛服装有限公司","07321603X",1821,"运动休闲针织服装制造","纺织服装、服饰业","永泰县"]
["福州巨业食品有限公司","67651698X",1399,"其他未列明农副食品加工","农副食品加工业","仓山区"]
["福建科彤光电技术有限公司","67654872X",3976,"光电子器件制造","计算机、通信和其他电子设备制造业","晋安区"]
["福州市长乐区兴荣针织有限公司","MA348LJ16",1761,"针织或钩针编织物织造","纺织业","长乐区"]
["福建省长乐市岱西提花针织品公司","154897471",1761,"针织或钩针编织物织造","纺织业","长乐区"]
["福清中良兴业鞋材有限公司","731871272",1953,"塑料鞋制造","皮革、毛皮、羽毛及其制品和制鞋业","福清市"]
["鸿盛家具（福建）有限公司","154915668",2110,"木质家具制造","家具制造业","福清市"]
["福建融航纤维科技有限公司","MA31NX9F9",2826,"氨纶纤维制造","化学纤维制造业","福清市"]
["鼎鼎（福州）食品有限公司","789041757",1353,"肉制品及副产品加工","农副食品加工业","闽侯县"]
["福建省闽侯县永隆茶叶有限公司","611831380",1530,"精制茶加工","酒、饮料和精制茶制造业","闽侯县"]
["福州庆合汽车配件有限公司","731856398",3670,"汽车零部件及配件制造","汽车制造业","闽侯县"]
["福建尚诺威集团有限公司","MABR42XK2",2110,"木质家具制造","家具制造业","闽侯县"]
["福建炻艺新材有限公司","MA8UHEXD6",3031,"粘土砖瓦及建筑砌块制造","非金属矿物制品业","罗源县"]
["中核（福建）电能服务有限公司","MA2YG4XW1",4420,"电力供应","电力、热力生产和供应业","鼓楼区"]
["福建中电合创电力科技有限公司","597895387",3823,"配电开关控制设备制造","电气机械和器材制造业","马尾区"]
["福建万磁发电机技术有限公司","MA31N1KGX",3811,"发电机及发电机组制造","电气机械和器材制造业","马尾区"]
["福州开发区华园米业有限公司","746375589",1311,"稻谷加工","农副食品加工业","马尾区"]
["长乐军航混凝土有限公司","563396811",3022,"砼结构构件制造","非金属矿物制品业","长乐区"]
["福建省长乐市纵横针纺有限公司","779644159",1761,"针织或钩针编织物织造","纺织业","长乐区"]
["福建元旺食品有限公司","MA34H2Q69",1331,"食用植物油加工","农副食品加工业","长乐区"]
["福建省台福时代食品有限公司","MA32EXAM4",1523,"果菜汁及果菜汁饮料制造","酒、饮料和精制茶制造业","长乐区"]
["福建小飞科技有限公司","MA2YECL04",3475,"计算器及货币专用设备制造","通用设备制造业","福清市"]
["福清市福星鞋业有限公司","154906921",1954,"橡胶鞋制造","皮革、毛皮、羽毛及其制品和制鞋业","福清市"]
["福建煌上煌食品有限公司","691909167",1353,"肉制品及副产品加工","农副食品加工业","福清市"]
["福建昌琪生物工程有限公司","757365802",1329,"其他饲料加工","农副食品加工业","福清市"]
["福州家汇新实业有限公司","574719321",2432,"金属工艺品制造","文教、工美、体育和娱乐用品制造业","闽侯县"]
["福建汇益家居用品有限公司","M000026F7",2432,"金属工艺品制造","文教、工美、体育和娱乐用品制造业","闽侯县"]
["闽侯县申达工艺品有限责任公司","694371534",2432,"金属工艺品制造","文教、工美、体育和娱乐用品制造业","闽侯县"]
["福建建工建材科技开发有限公司","691928632",3039,"其他建筑材料制造","非金属矿物制品业","闽侯县"]
["福建永德吉灯业股份有限公司","687549496",3975,"半导体照明器件制造","计算机、通信和其他电子设备制造业","闽侯县"]
["正道汽车配件(福州)有限公司","611332637",3670,"汽车零部件及配件制造","汽车制造业","闽侯县"]
["福建省任重道远实业有限公司","MABYBTJ67",2110,"木质家具制造","家具制造业","闽侯县"]
["福州康旺食品有限公司","757370580",1499,"其他未列明食品制造","食品制造业","闽侯县"]
["福州业通家居制造有限公司","743845274",2433,"漆器工艺品制造","文教、工美、体育和娱乐用品制造业","仓山区"]
["雷耀电子(福州)有限公司","611310446",1953,"塑料鞋制造","皮革、毛皮、羽毛及其制品和制鞋业","晋安区"]
["中科城投（福建）发展有限公司","MA8UNEYY7",3031,"粘土砖瓦及建筑砌块制造","非金属矿物制品业","晋安区"]
["福建省邮电印务有限公司","154411849",2319,"包装装潢及其他印刷","印刷和记录媒介复制业","晋安区"]
["福州保税区龙马饲料有限公司","753130707",1329,"其他饲料加工","农副食品加工业","马尾区"]
["福建鑫美臣食品有限公司","315548847",1411,"糕点面包制造","食品制造业","马尾区"]
["科立视材料科技有限公司","579279417",3974,"显示器件制造","计算机、通信和其他电子设备制造业","马尾区"]
["福州渔家傲水产品有限公司","31076206X",1361,"水产品冷冻加工","农副食品加工业","马尾区"]
["福建鑫富针纺有限公司","793753220",1763,"针织或钩针编织品制造","纺织业","长乐区"]
["舞后新世纪轻纺(福建)有限公司","662843787",1821,"运动休闲针织服装制造","纺织服装、服饰业","长乐区"]
["福州日升家居有限公司","MA34FX1K8",2110,"木质家具制造","家具制造业","长乐区"]
["福建省贝思瑞婴童用品有限公司","MA32TJ2K0",2456,"儿童乘骑玩耍的童车类产品制造","文教、工美、体育和娱乐用品制造业","福清市"]
["福清嘉鑫鞋业有限公司","MA3417DH2",1953,"塑料鞋制造","皮革、毛皮、羽毛及其制品和制鞋业","福清市"]
["福清利亚塑胶有限公司","611325111",2929,"塑料零件及其他塑料制品制造","橡胶和塑料制品业","福清市"]
["福州贸兴包装有限公司","772924828",2231,"纸和纸板容器制造","造纸和纸制品业","闽侯县"]
["福建叶家记健康食品科技有限公司","MA31DR2U6",1353,"肉制品及副产品加工","农副食品加工业","闽侯县"]
["福建华泰电力实业有限公司","61180143X",3811,"发电机及发电机组制造","电气机械和器材制造业","闽侯县"]
["闽侯嘉盈金属制品有限公司","611325779",3391,"黑色金属铸造","金属制品业","闽侯县"]
["福州亿得隆电气技术有限公司","058429969",4012,"电工仪器仪表制造","仪器仪表制造业","鼓楼区"]
["鸿博股份有限公司","705101637",2319,"包装装潢及其他印刷","印刷和记录媒介复制业","仓山区"]
["福建天成时代新能源科技有限公司","MA33DYB17",3849,"其他电池制造","电气机械和器材制造业","仓山区"]
["保罗清洁能源(福州）有限公司","062278577",4417,"生物质能发电","电力、热力生产和供应业","晋安区"]
["华周（福建）机械有限公司","611330770",3599,"其他专用设备制造","专用设备制造业","长乐区"]
["福州新发隆针织印染有限公司","743810362",1713,"棉印染精加工","纺织业","长乐区"]
["福建省万盛电气设备有限公司","579269382",3823,"配电开关控制设备制造","电气机械和器材制造业","福清市"]
["福清市成凯金属制品有限公司","768578491",3311,"金属结构制造","金属制品业","福清市"]
["福建云尚食品有限公司","MAC81NX71",1361,"水产品冷冻加工","农副食品加工业","福清市"]
["福建丰泽农牧饲料有限公司","158177981",1329,"其他饲料加工","农副食品加工业","福清市"]
["福建省通产光电科技有限公司","666886944",3976,"光电子器件制造","计算机、通信和其他电子设备制造业","闽侯县"]
["福建金诺建材集团有限公司","662800613",3252,"铝压延加工","有色金属冶炼和压延加工业","闽侯县"]
["福州中端电器有限公司","611332688",3670,"汽车零部件及配件制造","汽车制造业","闽侯县"]
["福建明博商业设施有限公司","784539003",2110,"木质家具制造","家具制造业","闽侯县"]
["福建新成中正电气科技有限公司","MA2XUB346",3824,"电力电子元器件制造","电气机械和器材制造业","闽侯县"]
["福建省海源智能装备有限公司","MA2XT7X91",3515,"建筑材料生产专用机械制造","专用设备制造业","闽侯县"]
["福州天虹舞蹈鞋有限公司","611304652",1951,"纺织面料鞋制造","皮革、毛皮、羽毛及其制品和制鞋业","连江县"]
["福州新兴家居用品有限公司","784509170",2435,"天然植物纤维编织工艺品制造","文教、工美、体育和娱乐用品制造业","连江县"]
["福建新正阳饲料科技有限公司","669278098",1495,"食品及饲料添加剂制造","食品制造业","连江县"]
["福州天楹环保能源有限公司","56536942X",4417,"生物质能发电","电力、热力生产和供应业","连江县"]
["福建华电电力工程有限公司","705102146",4330,"专用设备修理","金属制品、机械和设备修理业","鼓楼区"]
["福州兴茂制衣有限公司","761768778",2927,"日用塑料制品制造","橡胶和塑料制品业","晋安区"]
["福州新德通金属容器有限公司","793760324",3333,"金属包装容器及材料制造","金属制品业","马尾区"]
["福州市长乐区福泰印染有限公司","15489190X",1713,"棉印染精加工","纺织业","长乐区"]
["福建省皇益针织有限公司","589587093",1761,"针织或钩针编织物织造","纺织业","长乐区"]
["福建创嘉纺织有限公司","559577580",1761,"针织或钩针编织物织造","纺织业","长乐区"]
["福建乾丰纺织科技有限公司","731869607",1713,"棉印染精加工","纺织业","福清市"]
["福建省福清市万马包装有限公司","705365640",2319,"包装装潢及其他印刷","印刷和记录媒介复制业","福清市"]
["福建希尔盾人防工程有限公司","315799080",3595,"社会公共安全设备及器材制造","专用设备制造业","福清市"]
["福建福盛和塑胶制品有限公司","MA8TDBX33",1953,"塑料鞋制造","皮革、毛皮、羽毛及其制品和制鞋业","福清市"]
["闽侯县隆基汽车配件有限公司","777549019",3670,"汽车零部件及配件制造","汽车制造业","闽侯县"]
["福建富臣家居用品实业有限公司","793771277",2439,"其他工艺美术及礼仪用品制造","文教、工美、体育和娱乐用品制造业","闽侯县"]
["福州华盈工艺品有限公司","563356895",1922,"皮箱包袋制造","皮革、毛皮、羽毛及其制品和制鞋业","闽清县"]
["福建省永泰县顺达食品有限公司","154859678",1422,"蜜饯制作","食品制造业","永泰县"]
["福建平潭瑞谦智能科技有限公司","MA2YN6LE1",3969,"其他智能消费设备制造","计算机、通信和其他电子设备制造业","平潭县"]
["福州任晶鞋业有限公司","MA34BT46X",1953,"塑料鞋制造","皮革、毛皮、羽毛及其制品和制鞋业","仓山区"]
["福建东泉农付产品综合开发有限公司","611004406",1372,"食用菌加工","农副食品加工业","晋安区"]
["福州宏东食品有限公司","793761570",1361,"水产品冷冻加工","农副食品加工业","马尾区"]
["福建省安野牛业食品有限公司","075038003",1353,"肉制品及副产品加工","农副食品加工业","马尾区"]
["福建华拓五金有限公司","154891643",3352,"建筑装饰及水暖管道零件制造","金属制品业","长乐区"]
["福建永邦针织有限公司","079759051",1761,"针织或钩针编织物织造","纺织业","长乐区"]
["福建晟扬管道科技有限公司","662805828",2922,"塑料板管型材制造","橡胶和塑料制品业","福清市"]
["福清龙威水产食品有限公司","611309867",1361,"水产品冷冻加工","农副食品加工业","福清市"]
["福州谱睿包装材料有限公司","MA2Y9CMY1",2924,"泡沫塑料制造","橡胶和塑料制品业","福清市"]
["福州福变电气有限公司","696622691",3821,"变压器整流器和电感器制造","电气机械和器材制造业","闽侯县"]
["福建顺意科技有限公司","091368627",3399,"其他未列明金属制品制造","金属制品业","闽侯县"]
["福州市中马电气设备有限公司","MA347THH0",3899,"其他未列明电气机械及器材制造","电气机械和器材制造业","闽侯县"]
["邦特（福州）科技有限公司","MA31KNDR9",2929,"塑料零件及其他塑料制品制造","橡胶和塑料制品业","闽侯县"]
["巨泽（福建）医疗器械有限公司","MA3397BX3",3584,"医疗外科及兽医用器械制造","专用设备制造业","闽侯县"]
["福州唐荣文具有限公司","662804294",2411,"文具制造","文教、工美、体育和娱乐用品制造业","闽侯县"]
["福州英迪特智能科技有限公司","315419690",4011,"工业自动控制系统装置制造","仪器仪表制造业","连江县"]
["福州奇新食品有限公司","766175752",1432,"速冻食品制造","食品制造业","连江县"]
["福建兆兴户外用品有限公司","062278841",2927,"日用塑料制品制造","橡胶和塑料制品业","闽清县"]
["福建省闽清县溪西陶瓷有限公司","15479232X",3071,"建筑陶瓷制品制造","非金属矿物制品业","闽清县"]
["福建特力林实业有限公司","75495103X",1921,"皮革服装制造","皮革、毛皮、羽毛及其制品和制鞋业","仓山区"]
["福建榕北海峡环保有限公司","555053990",4620,"污水处理及其再生利用","水的生产和供应业","晋安区"]
["福州市长乐区星光傢俬厂","X11271105",2110,"木质家具制造","家具制造业","长乐区"]
["福建元隆针纺有限公司","786927616",1763,"针织或钩针编织品制造","纺织业","长乐区"]
["福建合申新材料有限公司","MA34TPQF0",2821,"锦纶纤维制造","化学纤维制造业","长乐区"]
["福建信达针织有限公司","628701419",1763,"针织或钩针编织品制造","纺织业","长乐区"]
["福州金良针织有限公司","674043242",1763,"针织或钩针编织品制造","纺织业","长乐区"]
["福建森得瑞家居用品有限公司","MA34EFGA7",2110,"木质家具制造","家具制造业","福清市"]
["福建凯利龙塑胶制品有限公司","062258285",2919,"其他橡胶制品制造","橡胶和塑料制品业","福清市"]
["福建每食造物食品有限公司","MA325NM8X",1353,"肉制品及副产品加工","农副食品加工业","闽侯县"]
["福州兴利亚机械制造有限公司","MA3418NR0",3670,"汽车零部件及配件制造","汽车制造业","闽侯县"]
["福建戴斯光电有限公司","MA35E01Q2",3052,"光学玻璃制造","非金属矿物制品业","闽侯县"]
["福建正友电气设备有限公司","58313937X",3831,"电线电缆制造","电气机械和器材制造业","连江县"]
["中科瑞能电气股份有限公司","MA31L8PD5",3563,"电子元器件与机电组件设备制造","专用设备制造业","罗源县"]
["平潭星泽砼业科技有限公司","593450399",3021,"水泥制品制造","非金属矿物制品业","平潭县"]
["福州威泰思光电科技有限公司","MA2XN8YE9",3052,"光学玻璃制造","非金属矿物制品业","仓山区"]
["福州荣林机械有限公司","741666379",3453,"齿轮及齿轮减变速箱制造","通用设备制造业","晋安区"]
["福建省中瑞极智科技有限公司","M00009EQ7",3331,"集装箱制造","金属制品业","长乐区"]
["福建宏协承汽车部件有限公司","791764030",3670,"汽车零部件及配件制造","汽车制造业","福清市"]
["福清华泰鞋业有限公司","727917071",1953,"塑料鞋制造","皮革、毛皮、羽毛及其制品和制鞋业","福清市"]
["福清六和鞋业有限公司","791753825",1953,"塑料鞋制造","皮革、毛皮、羽毛及其制品和制鞋业","福清市"]
["福州国隆石制品有限公司","611317816",3032,"建筑用石加工","非金属矿物制品业","闽侯县"]
["福州立洲弹簧有限公司","611336320",3482,"紧固件制造","通用设备制造业","闽侯县"]
["久鑫（福建）幕墙制造有限公司","593489824",3359,"其他建筑安全用金属制品制造","金属制品业","闽侯县"]
["福州闽宏图电气设备有限公司","315730323",3829,"其他输配电及控制设备制造","电气机械和器材制造业","闽侯县"]
["福州海宏动力机械有限公司","782159197",3412,"内燃机及配件制造","通用设备制造业","连江县"]
["福州中纺实业有限公司","761768452",1712,"棉织造加工","纺织业","永泰县"]
["福州市保罗再生资源开发有限公司","MA347XCR1",4417,"生物质能发电","电力、热力生产和供应业","永泰县"]
["福建航升塑料包装材料有限公司","154411857",2927,"日用塑料制品制造","橡胶和塑料制品业","仓山区"]
["福建满堂香茶业股份有限公司","727895810",1530,"精制茶加工","酒、饮料和精制茶制造业","晋安区"]
["福州雅安居建筑节能材料有限公司","570973015",2641,"涂料制造","化学原料和化学制品制造业","晋安区"]
["明一国际营养品集团有限公司","782196975",1491,"营养食品制造","食品制造业","长乐区"]
["福州市长乐区金丰印染有限公司","15487320X",1713,"棉印染精加工","纺织业","长乐区"]
["福州市长乐区鑫川针织有限公司","079784505",1761,"针织或钩针编织物织造","纺织业","长乐区"]
["福清明芳精密钢模有限公司","741652989",2929,"塑料零件及其他塑料制品制造","橡胶和塑料制品业","福清市"]
["福清冠华鞋业有限公司","61130744X",1953,"塑料鞋制造","皮革、毛皮、羽毛及其制品和制鞋业","福清市"]
["福州唐朝彩印股份有限公司","76178011X",2319,"包装装潢及其他印刷","印刷和记录媒介复制业","福清市"]
["福清福星塑胶制品有限公司","727902523",1953,"塑料鞋制造","皮革、毛皮、羽毛及其制品和制鞋业","福清市"]
["福州泽霖食品有限公司","75497037X",1369,"其他水产品加工","农副食品加工业","闽侯县"]
["福州源意工艺品有限公司","577043670",2432,"金属工艺品制造","文教、工美、体育和娱乐用品制造业","闽侯县"]
["中建长通（福州）商品混凝土有限公司","66509411X",3021,"水泥制品制造","非金属矿物制品业","闽侯县"]
["福州亿格户外用品有限公司","796089783",1922,"皮箱包袋制造","皮革、毛皮、羽毛及其制品和制鞋业","闽侯县"]
["福州胜帆建材有限公司","MA35D0QW5",3021,"水泥制品制造","非金属矿物制品业","闽侯县"]
["福州诺澜食品有限公司","MA34A2N96",1432,"速冻食品制造","食品制造业","闽侯县"]
["福州诺达建材有限公司","611818450",3021,"水泥制品制造","非金属矿物制品业","闽侯县"]
["福州恒源水产饲料有限公司","699018262",1329,"其他饲料加工","农副食品加工业","连江县"]
["福建美滋味食品有限公司","559556181",1353,"肉制品及副产品加工","农副食品加工业","连江县"]
["福州民天食品工业园有限公司","572985175",1462,"酱油食醋及类似制品制造","食品制造业","闽清县"]
["福州榕东安机械工程有限公司","798365243",4330,"专用设备修理","金属制品、机械和设备修理业","鼓楼区"]
["闽榕茶业有限公司","154648918",1530,"精制茶加工","酒、饮料和精制茶制造业","仓山区"]
["福州嘉佳食品有限公司","733613410",1372,"食用菌加工","农副食品加工业","仓山区"]
["福州华凤纺织有限公司","746385138",2822,"涤纶纤维制造","化学纤维制造业","长乐区"]
["福州恒友水务有限公司","570952724",4620,"污水处理及其再生利用","水的生产和供应业","长乐区"]
["福清市宏路明辉牲畜定点屠宰场（普通合伙）","091384504",1351,"牲畜屠宰","农副食品加工业","福清市"]
["福建鑫兴食品有限公司","MA32LTM59",1331,"食用植物油加工","农副食品加工业","福清市"]
["福建源恒汽配有限公司","676506116",3670,"汽车零部件及配件制造","汽车制造业","闽侯县"]
["福州瑞诚鞋材模具有限公司","741689220",3525,"模具制造","专用设备制造业","闽侯县"]
["福州众显电子有限公司","MA33QGC23",4050,"衡器制造","仪器仪表制造业","闽侯县"]
["福建鑫图光电有限公司","MABT9LEC7",4028,"电子测量仪器制造","仪器仪表制造业","鼓楼区"]
["福州鸿基自动化设备有限公司","746375976",4011,"工业自动控制系统装置制造","仪器仪表制造业","仓山区"]
["福州菱成电装有限公司","678480423",3831,"电线电缆制造","电气机械和器材制造业","仓山区"]
["福州阿尔赛斯流体设备科技有限公司","680897578",3463,"气体液体分离及纯净设备制造","通用设备制造业","仓山区"]
["福州汇点服饰有限公司","567336904",1830,"服饰制造","纺织服装、服饰业","仓山区"]
["福建三艺门业有限公司","751350538",3312,"金属门窗制造","金属制品业","仓山区"]
["福州福井食品有限公司","766168675",1372,"食用菌加工","农副食品加工业","仓山区"]
["斯美伦(福州)防水服装有限公司","633903242",1921,"皮革服装制造","皮革、毛皮、羽毛及其制品和制鞋业","仓山区"]
["福州康大鞋帽有限公司","738042688",1953,"塑料鞋制造","皮革、毛皮、羽毛及其制品和制鞋业","晋安区"]
["福州杰生广印工艺品有限责任公司","585300710",1762,"针织或钩针编织物印染精加工","纺织业","马尾区"]
["福州科杰智能科技有限公司","611342683",4050,"衡器制造","仪器仪表制造业","马尾区"]
["福州恒光光电有限公司","674000277",3985,"电子专用材料制造","计算机、通信和其他电子设备制造业","马尾区"]
["福州市长乐区三和制衣有限公司","628519705",1819,"其他机织服装制造","纺织服装、服饰业","长乐区"]
["福建省顺诚针织有限公司","595984626",1763,"针织或钩针编织品制造","纺织业","长乐区"]
["福建亿光源光电科技有限公司","MA2Y9LWD8",3976,"光电子器件制造","计算机、通信和其他电子设备制造业","福清市"]
["福清市富韵家居有限公司","MA2YBTMT8",2110,"木质家具制造","家具制造业","福清市"]
["福建贺知仕集团有限公司","MABY6X895",3312,"金属门窗制造","金属制品业","闽侯县"]
["闽侯县兴诚工艺品有限公司","772918882",2434,"花画工艺品制造","文教、工美、体育和娱乐用品制造业","闽侯县"]
["闽侯县博来工艺品有限公司","786911067",2439,"其他工艺美术及礼仪用品制造","文教、工美、体育和娱乐用品制造业","闽侯县"]
["福建星联汽车配件开发有限公司","611001408",3670,"汽车零部件及配件制造","汽车制造业","闽侯县"]
["福建天一同益电气有限公司","MA323J9W1",3823,"配电开关控制设备制造","电气机械和器材制造业","闽侯县"]
["福州正泰轻工制品有限公司","76409940X",2770,"卫生材料及医药用品制造药用辅料及包装材料","医药制造业","闽侯县"]
["福建省连江县兴源水产有限公司","68088286X",1469,"其他调味品发酵制品制造","食品制造业","连江县"]
["福建欣弘机电设备有限公司","583111174",3542,"印刷专用设备制造","专用设备制造业","闽清县"]
["福建省闽清亚美陶瓷有限公司","MA332R0F2",3071,"建筑陶瓷制品制造","非金属矿物制品业","闽清县"]
["福建舜方实业有限公司","577017907",1019,"粘土及其他土砂石开采","非金属矿采选业","闽清县"]
["福建省永泰县三丰农产品精制厂","766154943",1422,"蜜饯制作","食品制造业","永泰县"]
["福建省蓝湖食品有限公司","766171620",1453,"蔬菜水果罐头制造","食品制造业","仓山区"]
["福州建电成套设备有限公司","585318830",3823,"配电开关控制设备制造","电气机械和器材制造业","仓山区"]
["福建吉阳家具制造有限公司","705381042",2110,"木质家具制造","家具制造业","晋安区"]
["优而耐（福州）动力制造有限公司","062292037",3811,"发电机及发电机组制造","电气机械和器材制造业","晋安区"]
["福州三龙喷码科技有限公司","717331157",3569,"其他电子专用设备制造","专用设备制造业","晋安区"]
["福建朝日环保科技开发有限公司","738041650",3591,"环境保护专用设备制造","专用设备制造业","马尾区"]
["福建福州闽大机械制造有限公司","753129984",3130,"钢压延加工","黑色金属冶炼和压延加工业","长乐区"]
["福州市长乐区福达纺织有限公司","687512255",1789,"其他产业用纺织制成品制造","纺织业","长乐区"]
["福州市长乐区金河针织有限公司","705160063",1763,"针织或钩针编织品制造","纺织业","长乐区"]
["福清朝霞鞋业有限公司","766169811",1953,"塑料鞋制造","皮革、毛皮、羽毛及其制品和制鞋业","福清市"]
["福建和东新型建材有限公司","MA348D4HX",3029,"其他水泥类似制品制造","非金属矿物制品业","闽侯县"]
["中汇米业（闽侯）有限公司","597866981",1311,"稻谷加工","农副食品加工业","闽侯县"]
["福州恒忠砂石有限公司","754964084",3032,"建筑用石加工","非金属矿物制品业","闽侯县"]
["福建省永泰县安利席业有限公司","154858747",2049,"草及其他制品制造","木材加工和木、竹、藤、棕、草制品业","永泰县"]
["福州铭林钢塔钢构制造有限公司","154622910",3311,"金属结构制造","金属制品业","仓山区"]
["福州海霖动力有限公司","579266114",3811,"发电机及发电机组制造","电气机械和器材制造业","仓山区"]
["福建海恒生物科技有限公司","MA33RXXU8",1361,"水产品冷冻加工","农副食品加工业","马尾区"]
["福州华拓铜业有限公司","779603269",3352,"建筑装饰及水暖管道零件制造","金属制品业","长乐区"]
["福州精艺恒盛新材料科技有限公司","MA3365976",2924,"泡沫塑料制造","橡胶和塑料制品业","长乐区"]
["福建捷纶纺织有限公司","MA2Y8RD44",1761,"针织或钩针编织物织造","纺织业","长乐区"]
["福建八方新型建材有限公司","070850385",3031,"粘土砖瓦及建筑砌块制造","非金属矿物制品业","长乐区"]
["福建兴隆针纺有限公司","154896858",1763,"针织或钩针编织品制造","纺织业","长乐区"]
["福州市晟浩纺织科技有限公司","MA32GE018",1761,"针织或钩针编织物织造","纺织业","长乐区"]
["福建省鑫港纺织机械有限公司","768572698",3551,"纺织专用设备制造","专用设备制造业","长乐区"]
["福清市伟鑫机车配件有限公司","56734615X",1761,"针织或钩针编织物织造","纺织业","福清市"]
["福建优立盛油脂有限公司","789047809",2511,"原油加工及石油制品制造","石油加工、炼焦和核燃料加工业","福清市"]
["福州睿丰家居用品有限公司","691940025",2432,"金属工艺品制造","文教、工美、体育和娱乐用品制造业","闽侯县"]
["福建尚余食品有限公司","MA8T5RCL7",1499,"其他未列明食品制造","食品制造业","闽侯县"]
["福建省榕源电气设备有限公司","751398312",3823,"配电开关控制设备制造","电气机械和器材制造业","闽侯县"]
["福州颉丰建材有限公司","MA31J7K2X",3021,"水泥制品制造","非金属矿物制品业","闽侯县"]
["福州华宏塑胶制品有限公司","MA345EWF8",1953,"塑料鞋制造","皮革、毛皮、羽毛及其制品和制鞋业","闽侯县"]
["常裕(福州)汽车内装工业有限公司","611332696",3670,"汽车零部件及配件制造","汽车制造业","闽侯县"]
["福州荣昌编织品有限公司","66685909X",2435,"天然植物纤维编织工艺品制造","文教、工美、体育和娱乐用品制造业","闽侯县"]
["福建吉百年食品有限公司","660355712",1439,"其他方便食品制造","食品制造业","连江县"]
["恒鸿达科技有限公司","699037834",3479,"其他文化办公用机械制造","通用设备制造业","鼓楼区"]
["福建省鑫旭日电气设备有限公司","567304566",3899,"其他未列明电气机械及器材制造","电气机械和器材制造业","鼓楼区"]
["福建国柱混凝土有限公司","733614966",3021,"水泥制品制造","非金属矿物制品业","仓山区"]
["福建麝珠明股份有限公司","727924415",2740,"中成药生产","医药制造业","仓山区"]
["福建捷福集团有限公司","61100924X",2927,"日用塑料制品制造","橡胶和塑料制品业","仓山区"]
["福州通安电子有限公司","731875361",3871,"电光源制造","电气机械和器材制造业","晋安区"]
["福州广博机电有限公司","660364205",3551,"纺织专用设备制造","专用设备制造业","晋安区"]
["福建先德能源科技有限公司","MA2YEBDJ6",3823,"配电开关控制设备制造","电气机械和器材制造业","晋安区"]
["福州大禹电子科技有限公司","569256764",3983,"敏感元件及传感器制造","计算机、通信和其他电子设备制造业","晋安区"]
["福州源长胜服饰有限公司","MA34PB619",1830,"服饰制造","纺织服装、服饰业","晋安区"]
["福建慧星实业有限公司","761783900",1763,"针织或钩针编织品制造","纺织业","长乐区"]
["福州市长乐区华诚针纺织品有限公司","738011443",1763,"针织或钩针编织品制造","纺织业","长乐区"]
["长乐亚森家居用品有限公司","073229455",2110,"木质家具制造","家具制造业","长乐区"]
["福建鑫航锦针纺有限公司","660376433",1763,"针织或钩针编织品制造","纺织业","长乐区"]
["福建省天华针织有限公司","717353583",1763,"针织或钩针编织品制造","纺织业","长乐区"]
["福建省融海环境科技有限公司","081603996",4620,"污水处理及其再生利用","水的生产和供应业","福清市"]
["福清启辉轻工制品有限公司","633911445",2319,"包装装潢及其他印刷","印刷和记录媒介复制业","福清市"]
["福州宇仕机动车附件有限公司","770688040",3752,"摩托车零部件及配件制造","铁路、船舶、航空航天和其他运输设备制造业","福清市"]
["福建榕诚食品有限公司","724204957",1461,"味精制造","食品制造业","闽侯县"]
["福州朗丰工艺品有限公司","315568768",2432,"金属工艺品制造","文教、工美、体育和娱乐用品制造业","闽侯县"]
["闽侯县金品工艺有限公司","766183277",2439,"其他工艺美术及礼仪用品制造","文教、工美、体育和娱乐用品制造业","闽侯县"]
["福州特浦勒新材料科技有限公司","MA2YJT0P9",2651,"初级形态塑料及合成树脂制造","化学原料和化学制品制造业","闽侯县"]
["福州泰维克汽车配件有限公司","705135212",3670,"汽车零部件及配件制造","汽车制造业","闽侯县"]
["闽侯县宏盛源工艺品有限公司","754991509",2433,"漆器工艺品制造","文教、工美、体育和娱乐用品制造业","闽侯县"]
["福州明榕工艺品有限公司","660369436",2439,"其他工艺美术及礼仪用品制造","文教、工美、体育和娱乐用品制造业","闽侯县"]
["福州闽侯富盛工艺品有限公司","611335387",2432,"金属工艺品制造","文教、工美、体育和娱乐用品制造业","闽侯县"]
["福建福模精密技术有限公司","858145059",3525,"模具制造","专用设备制造业","连江县"]
["福州市合元昌家具有限公司","MA2YBL2F4",2110,"木质家具制造","家具制造业","罗源县"]
["福州志财玻璃有限公司","665067285",3054,"日用玻璃制品制造","非金属矿物制品业","闽清县"]
["福建省茗泰茶叶有限公司","MA2XYMUP1",1530,"精制茶加工","酒、饮料和精制茶制造业","永泰县"]
["福建省祥亿机械制造有限公司","MA34CGCX1",3517,"隧道施工专用机械制造","专用设备制造业","平潭县"]
["福州登龙鞋业有限公司","57928083X",1953,"塑料鞋制造","皮革、毛皮、羽毛及其制品和制鞋业","仓山区"]
["福建百联实业有限公司","260173733",1373,"水果和坚果加工","农副食品加工业","仓山区"]
["福州基石医药科技有限公司","MA32KKGL1",2720,"化学药品制剂制造","医药制造业","仓山区"]
["福建优迪电力技术有限公司","671940087",3823,"配电开关控制设备制造","电气机械和器材制造业","仓山区"]
["福州市长乐区聚隆化纤有限公司","770651918",2822,"涤纶纤维制造","化学纤维制造业","长乐区"]
["福州杉合家居用品有限公司","691916375",2110,"木质家具制造","家具制造业","长乐区"]
["福州市长乐区华良染整有限公司","154891897",1713,"棉印染精加工","纺织业","长乐区"]
["福州丰亚针纺织有限公司","77290195X",1763,"针织或钩针编织品制造","纺织业","长乐区"]
["福州新富创智能科技有限公司","MA344DYT7",3546,"玻璃陶瓷和搪瓷制品生产专用设备制造","专用设备制造业","福清市"]
["福建鸿太沥青混凝土有限公司","MA8T1CT19",3099,"其他非金属矿物制品制造","非金属矿物制品业","福清市"]
["福清联辉鞋业有限公司","MA32DH175",1953,"塑料鞋制造","皮革、毛皮、羽毛及其制品和制鞋业","福清市"]
["福建立恒源机械制造有限公司","MA331BCD3",3516,"冶金专用设备制造","专用设备制造业","闽侯县"]
["丸五富井（福州）工业有限公司","766186179",3670,"汽车零部件及配件制造","汽车制造业","闽侯县"]
["福建巨昂电子科技有限公司","680856725",3985,"电子专用材料制造","计算机、通信和其他电子设备制造业","闽侯县"]
["闽侯县龙飞工贸有限公司","154698042",1712,"棉织造加工","纺织业","闽侯县"]
["福建万润新能源科技有限公司","060352323",3670,"汽车零部件及配件制造","汽车制造业","闽侯县"]
["福建罗源县天源新能源科技有限公司","MA2YF8QJ6",2542,"生物质致密成型燃料加工","石油加工、炼焦和核燃料加工业","罗源县"]
["福建省国资康复医疗科技股份有限公司","158144370",3586,"康复辅具制造","专用设备制造业","鼓楼区"]
["福州康福特机械设备有限公司","583143133",3484,"机械零部件加工","通用设备制造业","仓山区"]
["福州素华食品有限公司","05432625X",1399,"其他未列明农副食品加工","农副食品加工业","仓山区"]
["福州金泰纺织有限公司","764053671",1751,"化纤织造加工","纺织业","马尾区"]
["福建嘉丰针纺有限公司","796080527",1761,"针织或钩针编织物织造","纺织业","长乐区"]
["福州市长乐区新港印染有限公司","154891918",1713,"棉印染精加工","纺织业","长乐区"]
["福建蒂摩斯光电科技有限公司","MA2YC5414",3976,"光电子器件制造","计算机、通信和其他电子设备制造业","福清市"]
["福清步凡鞋业有限公司","056119019",1953,"塑料鞋制造","皮革、毛皮、羽毛及其制品和制鞋业","福清市"]
["福州蕲鑫包装材料有限公司","MA8TDNLW7",2110,"木质家具制造","家具制造业","闽侯县"]
["福州泽辰家具有限公司","MA2XWRLC0",2110,"木质家具制造","家具制造业","闽侯县"]
["闽侯亿华家居制品有限公司","696619388",2432,"金属工艺品制造","文教、工美、体育和娱乐用品制造业","闽侯县"]
["福州长江镇宝电器有限公司","746379627",3899,"其他未列明电气机械及器材制造","电气机械和器材制造业","闽侯县"]
["福建丰进食品有限公司","MA34RRLP5",1353,"肉制品及副产品加工","农副食品加工业","闽侯县"]
["福州三井新能源科技有限公司","MA2YBF248",3670,"汽车零部件及配件制造","汽车制造业","闽侯县"]
["福州和胜汽车配件有限公司","611332485",3670,"汽车零部件及配件制造","汽车制造业","闽侯县"]
["福建三盛实业有限公司","79606165X",2929,"塑料零件及其他塑料制品制造","橡胶和塑料制品业","闽侯县"]
["福州尼可现代工艺品有限公司","075035929",2439,"其他工艺美术及礼仪用品制造","文教、工美、体育和娱乐用品制造业","闽侯县"]
["福州恒信恒新型环保材料有限公司","MA2Y16BM3",3039,"其他建筑材料制造","非金属矿物制品业","闽侯县"]
["福州海量管道器材有限公司","770678627",3352,"建筑装饰及水暖管道零件制造","金属制品业","闽侯县"]
["福建学申投资有限公司","777532604",4620,"污水处理及其再生利用","水的生产和供应业","连江县"]
["福建省闽清通用包装有限公司","761774414",2231,"纸和纸板容器制造","造纸和纸制品业","闽清县"]
["永泰大樟溪界竹口水电有限公司","746365751",4413,"水力发电","电力、热力生产和供应业","永泰县"]
["福建水投集团平潭水务有限公司","05611519X",4610,"自来水生产和供应","水的生产和供应业","平潭县"]
["福州奥特帕斯工业有限公司","717331122",3670,"汽车零部件及配件制造","汽车制造业","仓山区"]
["福州亿维格电子有限公司","310790722",4030,"钟表与计时仪器制造","仪器仪表制造业","仓山区"]
["福建省九州远盛建材有限公司","MA33HDEK6",3022,"砼结构构件制造","非金属矿物制品业","马尾区"]
["福州新亨通玻璃有限公司","611440400",3042,"特种玻璃制造","非金属矿物制品业","马尾区"]
["福州胜科水务有限公司","757359701",4610,"自来水生产和供应","水的生产和供应业","马尾区"]
["福州凯捷食品发展有限公司","611308581",1530,"精制茶加工","酒、饮料和精制茶制造业","长乐区"]
["骏洋（福建）旅游用品有限公司","633907016",1922,"皮箱包袋制造","皮革、毛皮、羽毛及其制品和制鞋业","福清市"]
["福清市兴顺隆金属制品有限公司","MA345M2D2",3042,"特种玻璃制造","非金属矿物制品业","福清市"]
["福清陆港电子有限公司","329564792",3831,"电线电缆制造","电气机械和器材制造业","福清市"]
["闽侯县雅熙工艺品有限公司","660374737",2432,"金属工艺品制造","文教、工美、体育和娱乐用品制造业","闽侯县"]
["福建华耀工程玻璃有限公司","095305543",3054,"日用玻璃制品制造","非金属矿物制品业","闽侯县"]
["闽侯县宏胜金属涂装有限公司","733624240",3670,"汽车零部件及配件制造","汽车制造业","闽侯县"]
["福建鑫禹电子有限公司","662801448",3824,"电力电子元器件制造","电气机械和器材制造业","闽侯县"]
["福建鸿元混凝土有限公司","07322876X",3021,"水泥制品制造","非金属矿物制品业","连江县"]
["福州海林食品有限公司","724247455",1362,"鱼糜制品及水产品干腌制加工","农副食品加工业","罗源县"]
["福州杉一电器有限公司","751390206",3073,"特种陶瓷制品制造","非金属矿物制品业","闽清县"]
["三峡新能源闽清发电有限公司","MA349M056",4415,"风力发电","电力、热力生产和供应业","闽清县"]
["平潭中发商品混凝土有限公司","555089029",3021,"水泥制品制造","非金属矿物制品业","平潭县"]
["福州兴教印刷有限公司","70521376X",2311,"书报刊印刷","印刷和记录媒介复制业","仓山区"]
["福州市名睿体育用品有限公司","MA3515F95",1951,"纺织面料鞋制造","皮革、毛皮、羽毛及其制品和制鞋业","马尾区"]
["福州华源混凝土有限责任公司","782166725",3021,"水泥制品制造","非金属矿物制品业","马尾区"]
["福州锭宏运动器材有限公司","054334823",2444,"运动防护用具制造","文教、工美、体育和娱乐用品制造业","马尾区"]
["福州维尔德医疗科技有限公司","753143401",3586,"康复辅具制造","专用设备制造业","马尾区"]
["福州新衡机械有限公司","M0000WWG2",3484,"机械零部件加工","通用设备制造业","长乐区"]
["福建久日机电有限公司","574735639",3429,"其他金属加工机械制造","通用设备制造业","长乐区"]
["福州市长乐区铁牛纺织有限公司","577009448",1761,"针织或钩针编织物织造","纺织业","长乐区"]
["福州里仁电子机械有限公司","MA334GT13",3474,"复印和胶印设备制造","通用设备制造业","长乐区"]
["福州市长乐区美雅针织有限公司","743811613",1761,"针织或钩针编织物织造","纺织业","长乐区"]
["福州市恒信诚纸业有限公司","MA2YR9T67",2221,"机制纸及纸板制造","造纸和纸制品业","长乐区"]
["福建尚明德新能源有限公司","MA32FAJ63",3252,"铝压延加工","有色金属冶炼和压延加工业","福清市"]
["福州量通低碳技术开发有限公司","MA32TJ2L9",2619,"其他基础化学原料制造","化学原料和化学制品制造业","福清市"]
["福建西亘电子有限公司","674012067",4030,"钟表与计时仪器制造","仪器仪表制造业","闽侯县"]
["福州大海实业有限公司","337619060",1959,"其他制鞋业","皮革、毛皮、羽毛及其制品和制鞋业","闽侯县"]
["福州福顺包装材料有限公司","MA3413BXX",2110,"木质家具制造","家具制造业","闽侯县"]
["福州源美家居有限公司","570983408",2439,"其他工艺美术及礼仪用品制造","文教、工美、体育和娱乐用品制造业","闽侯县"]
["福建长洋沥青工程有限公司","335746349",3099,"其他非金属矿物制品制造","非金属矿物制品业","闽侯县"]
["福州闽侯县纺织实业有限公司","154670883",1711,"棉纺纱加工","纺织业","闽侯县"]
["福州三力厨房设备有限公司","784520716",3389,"其他金属制日用品制造","金属制品业","闽侯县"]
["福州澳星同方净水业有限公司","753144594",4620,"污水处理及其再生利用","水的生产和供应业","闽侯县"]
["福州长帆机械有限公司","753123347",3391,"黑色金属铸造","金属制品业","连江县"]
["福州鑫家鸿玻璃科技有限公司","MA31MT6W2",3042,"特种玻璃制造","非金属矿物制品业","罗源县"]
["福建水口集源电力工程有限公司","705146106",4350,"电气设备修理","金属制品、机械和设备修理业","闽清县"]
["平潭华润燃气有限公司","054316254",4511,"天然气生产和供应业","燃气生产和供应业","平潭县"]
["福建丰意电气设备有限公司","56926748X",3829,"其他输配电及控制设备制造","电气机械和器材制造业","鼓楼区"]
["福建诚控电气有限公司","MA32TECT4",3823,"配电开关控制设备制造","电气机械和器材制造业","仓山区"]
["福建吉事达新能源科技有限公司","MA3463R92",3821,"变压器整流器和电感器制造","电气机械和器材制造业","仓山区"]
["福州益通服饰有限公司","MA32TB7D3",1819,"其他机织服装制造","纺织服装、服饰业","晋安区"]
["福州红庙岭垃圾焚烧发电有限公司","768575696",4417,"生物质能发电","电力、热力生产和供应业","晋安区"]
["福州长闽纺织有限公司","MA8TAF4Q1",1711,"棉纺纱加工","纺织业","马尾区"]
["福建嘉禾源水产品有限责任公司","058417650",1361,"水产品冷冻加工","农副食品加工业","长乐区"]
["福州长鑫电动工具有限公司","260572996",3465,"风动和电动工具制造","通用设备制造业","长乐区"]
["福建华建建工机械有限公司","087439998",3429,"其他金属加工机械制造","通用设备制造业","长乐区"]
["福州玛克伯爵装饰材料有限公司","MA2YABY7X",3089,"耐火陶瓷制品及其他耐火材料制造","非金属矿物制品业","长乐区"]
["海航航空技术（福州）有限责任公司","MA2YANXC7",4343,"航空航天器修理","金属制品、机械和设备修理业","长乐区"]
["福州市长乐区侨隆福利包装彩印有限公司","154867280",2231,"纸和纸板容器制造","造纸和纸制品业","长乐区"]
["福清友联五金制品有限公司","557577982",3393,"锻件及粉末冶金制品制造","金属制品业","福清市"]
["福建瑞虹贾卡实业有限公司","MA2Y19L21",1829,"其他针织或钩针编织服装制造","纺织服装、服饰业","福清市"]
["福清亿明电子科技有限公司","MA32QPR57",2927,"日用塑料制品制造","橡胶和塑料制品业","福清市"]
["福州潮辉纸业有限公司","55506119X",2231,"纸和纸板容器制造","造纸和纸制品业","闽侯县"]
["福建龙生机械有限公司","662820630",3670,"汽车零部件及配件制造","汽车制造业","闽侯县"]
["福州宏德金属制品有限公司","587520506",3333,"金属包装容器及材料制造","金属制品业","闽侯县"]
["福建第元环保建材科技有限公司","MA32TFMC1",2641,"涂料制造","化学原料和化学制品制造业","闽侯县"]
["福州立兴机械制造有限公司","611831954",3391,"黑色金属铸造","金属制品业","连江县"]
["福建恒忠砂石有限公司","MA2Y2BNA0",3032,"建筑用石加工","非金属矿物制品业","罗源县"]
["福建源鑫环保科技有限公司","583133277",4220,"非金属废料和碎屑加工处理","废弃资源综合利用业","罗源县"]
["福州三源峰矿业有限公司","MACEHN808",3099,"其他非金属矿物制品制造","非金属矿物制品业","闽清县"]
["福州欧龙光学科技有限公司","MA34AMXB0",3042,"特种玻璃制造","非金属矿物制品业","仓山区"]
["福建泉牌阀门科技股份有限公司","696621031",3443,"阀门和旋塞制造","通用设备制造业","晋安区"]
["福州仁量生物制品有限公司","611306586",1492,"保健食品制造","食品制造业","马尾区"]
["福州丰雨针织有限公司","MA2XU6NX7",1763,"针织或钩针编织品制造","纺织业","长乐区"]
["福建碧全科技有限公司","574719022",2110,"木质家具制造","家具制造业","长乐区"]
["福州市长乐区华鹤印染有限公司","154896575",1713,"棉印染精加工","纺织业","长乐区"]
["福清金洋五金有限公司","310633129",3360,"金属表面处理及热处理加工","金属制品业","福清市"]
["筑波电子（福建）有限公司","MA31FF188",3912,"计算机零部件制造","计算机、通信和其他电子设备制造业","福清市"]
["福建科富电子科技有限公司","MA351T36X",2319,"包装装潢及其他印刷","印刷和记录媒介复制业","福清市"]
["福清睿辉食品有限公司","MA346YPG1",1419,"饼干及其他焙烤食品制造","食品制造业","福清市"]
["福州龙威园林机械有限公司","310724151",3572,"机械化农业及园艺机具制造","专用设备制造业","福清市"]
["福清市福得食品有限公司","786906065",1361,"水产品冷冻加工","农副食品加工业","福清市"]
["福州厚丰塑胶材料有限公司","MA32HQFR4",2924,"泡沫塑料制造","橡胶和塑料制品业","福清市"]
["福清市圣达塑胶制品有限公司","662845520",1951,"纺织面料鞋制造","皮革、毛皮、羽毛及其制品和制鞋业","福清市"]
["福建恒丰宝佳生物科技有限公司","MA32MQYX1",1329,"其他饲料加工","农副食品加工业","福清市"]
["福建思嘉新材料科技有限公司","MA35EKD94",2651,"初级形态塑料及合成树脂制造","化学原料和化学制品制造业","福清市"]
["福建省耀达肥料科技有限公司","78452790X",2621,"氮肥制造","化学原料和化学制品制造业","福清市"]
["福州忠陞塑胶有限公司","MA331E6FX",2919,"其他橡胶制品制造","橡胶和塑料制品业","福清市"]
["福州清山压铸有限公司","705193551",3240,"有色金属合金制造","有色金属冶炼和压延加工业","福清市"]
["福州帝豪服饰有限公司","052341499",1830,"服饰制造","纺织服装、服饰业","闽侯县"]
["福州富诚胶粘制品有限公司","786923316",4190,"其他未列明制造业","其他制造业","闽侯县"]
["福州弘丰光电科技有限公司","MA2YJMHN1",3976,"光电子器件制造","计算机、通信和其他电子设备制造业","闽侯县"]
["福州盈科水处理工程有限公司","777514318",2666,"环境污染处理专用药剂材料制造","化学原料和化学制品制造业","闽侯县"]
["福建宜联管业有限公司","095516519",2922,"塑料板管型材制造","橡胶和塑料制品业","连江县"]
["福建福立方实业有限公司","MA322UF7X",2110,"木质家具制造","家具制造业","连江县"]
["福建慧翰智能制造有限公司","MA33QR8G2",3973,"集成电路制造","计算机、通信和其他电子设备制造业","连江县"]
["闽清宏电电瓷电器有限公司","611309138",3073,"特种陶瓷制品制造","非金属矿物制品业","闽清县"]
["平潭县凯隆塑料制品有限公司","739545869",2926,"塑料包装箱及容器制造","橡胶和塑料制品业","平潭县"]
["福州弘耀光电技术有限公司","MA3481CRX",3976,"光电子器件制造","计算机、通信和其他电子设备制造业","仓山区"]
["福州乐天玩具有限公司","595985506",2459,"其他玩具制造","文教、工美、体育和娱乐用品制造业","仓山区"]
["福建通用同溢电气有限公司","611312644",3823,"配电开关控制设备制造","电气机械和器材制造业","晋安区"]
["福州东泽医疗器械有限公司","77069618X",3585,"机械治疗及病房护理设备制造","专用设备制造业","马尾区"]
["福建省和信钢木家具有限公司","154586112",2130,"金属家具制造","家具制造业","马尾区"]
["福州市长乐吉源新材料有限公司","MA2XX5P97",1761,"针织或钩针编织物织造","纺织业","长乐区"]
["长乐联达化纤有限公司","56535704X",1761,"针织或钩针编织物织造","纺织业","长乐区"]
["福州旭源针纺有限公司","MA31YUAJX",1761,"针织或钩针编织物织造","纺织业","长乐区"]
["福州柏瑞安电子技术有限公司","MA2XQ1FJ6",3982,"电子电路制造","计算机、通信和其他电子设备制造业","福清市"]
["福建宏兴智慧标化建筑有限公司","MA33WPB91",3130,"钢压延加工","黑色金属冶炼和压延加工业","福清市"]
["福清德茂无纺科技有限公司","MA3201GM9",1781,"非织造布制造","纺织业","福清市"]
["福清金博新能源科技有限公司","MA2XNAPN0",2542,"生物质致密成型燃料加工","石油加工、炼焦和核燃料加工业","福清市"]
["福清市鑫福融家居用品有限公司","MA8RDX883",2110,"木质家具制造","家具制造业","福清市"]
["福建省鑫德福农产品有限公司","315501395",1353,"肉制品及副产品加工","农副食品加工业","福清市"]
["福清市达嘉利塑胶工业有限公司","MA34A6PF9",2929,"塑料零件及其他塑料制品制造","橡胶和塑料制品业","福清市"]
["福建盈茂服装实业有限公司","67401509X",1811,"运动机织服装制造","纺织服装、服饰业","闽侯县"]
["福建一品居食品有限公司","662808308",1411,"糕点面包制造","食品制造业","闽侯县"]
["福建喜元食品有限公司","MA326EDG9",1421,"糖果巧克力制造","食品制造业","闽侯县"]
["闽侯县东升包装材料有限公司","717354762",2231,"纸和纸板容器制造","造纸和纸制品业","闽侯县"]
["蝶恋花（福州）食品有限公司","077410016",1419,"饼干及其他焙烤食品制造","食品制造业","闽侯县"]
["福州正阳饲料有限公司","705118666",1495,"食品及饲料添加剂制造","食品制造业","连江县"]
["罗源县长盛新能源科技有限公司","MA31Q9GD8",2542,"生物质致密成型燃料加工","石油加工、炼焦和核燃料加工业","罗源县"]
["福建信灿机电有限公司","MA33G38L3",3812,"电动机制造","电气机械和器材制造业","闽清县"]
["福建省闽清万盛电瓷电器有限公司","665096254",3073,"特种陶瓷制品制造","非金属矿物制品业","闽清县"]
["福建省海峡信息技术有限公司","705349472",3915,"信息安全设备制造","计算机、通信和其他电子设备制造业","鼓楼区"]
["福州快科电梯工业有限公司","746395803",3435,"电梯自动扶梯及升降机制造","通用设备制造业","仓山区"]
["福州恒海电子有限公司","561671576",2929,"塑料零件及其他塑料制品制造","橡胶和塑料制品业","仓山区"]
["福建省远乐电气科技有限公司","591739156",3823,"配电开关控制设备制造","电气机械和器材制造业","仓山区"]
["福州博峰智能电器有限公司","759354760",4012,"电工仪器仪表制造","仪器仪表制造业","仓山区"]
["福州青大纸业有限公司","611318747",2231,"纸和纸板容器制造","造纸和纸制品业","仓山区"]
["福州锐洁源电子科技有限公司","77962545X",3976,"光电子器件制造","计算机、通信和其他电子设备制造业","仓山区"]
["福州格尔兴服装有限公司","550995874",1811,"运动机织服装制造","纺织服装、服饰业","晋安区"]
["福州明扬交通器材有限公司","611316661",3670,"汽车零部件及配件制造","汽车制造业","长乐区"]
["福建友谊食品有限公司","691922599",1411,"糕点面包制造","食品制造业","长乐区"]
["福建省永建通科技有限公司","MA35EJGE1",2922,"塑料板管型材制造","橡胶和塑料制品业","长乐区"]
["福州海帆金属制品有限公司","MA33KWG97",3311,"金属结构制造","金属制品业","长乐区"]
["福建韵辉纸业有限公司","559592895",2231,"纸和纸板容器制造","造纸和纸制品业","长乐区"]
["福建鸿源针织有限公司","70516008X",1763,"针织或钩针编织品制造","纺织业","长乐区"]
["福州市长乐区利顺针纺织有限公司","75497790X",1763,"针织或钩针编织品制造","纺织业","长乐区"]
["福建百兆新材料科技有限公司","MA345JWJ4",3034,"隔热和隔音材料制造","非金属矿物制品业","长乐区"]
["福清市协裕印刷制品有限公司","71739414X",2319,"包装装潢及其他印刷","印刷和记录媒介复制业","福清市"]
["福州宗发工艺品有限公司","768593376",2434,"花画工艺品制造","文教、工美、体育和娱乐用品制造业","闽侯县"]
["福州广发电气设备有限公司","696636209",3829,"其他输配电及控制设备制造","电气机械和器材制造业","闽侯县"]
["福建佳来户外服装有限公司","MA34AM131",1830,"服饰制造","纺织服装、服饰业","闽侯县"]
["福州彩兰电线电缆有限公司","154666286",3831,"电线电缆制造","电气机械和器材制造业","闽侯县"]
["福建富鑫达模具科技有限公司","MA31TYJ64",4190,"其他未列明制造业","其他制造业","闽侯县"]
["福州宝恒家具有限公司","705134842",2110,"木质家具制造","家具制造业","闽侯县"]
["福州昇立莱旅游制品有限公司","611344224",1784,"篷帆布制造","纺织业","闽侯县"]
["福建省鑫发精密机械有限公司","724205925",3399,"其他未列明金属制品制造","金属制品业","闽侯县"]
["福建歌航电子信息科技有限公司","784526691",3953,"影视录放设备制造","计算机、通信和其他电子设备制造业","闽侯县"]
["连江县山仔水电发展有限公司","154715615",4413,"水力发电","电力、热力生产和供应业","连江县"]
["福州闽工建材有限公司","MA2Y8KPD5",3021,"水泥制品制造","非金属矿物制品业","连江县"]
["福建利安气体有限公司","574737255",2619,"其他基础化学原料制造","化学原料和化学制品制造业","连江县"]
["福建世星节能科技发展有限公司","MA32G9P05",3031,"粘土砖瓦及建筑砌块制造","非金属矿物制品业","连江县"]
["福州力达威机电设备有限公司","064132328",3569,"其他电子专用设备制造","专用设备制造业","鼓楼区"]
["福建晶辉环境科技有限公司","310703174",3464,"制冷空调设备制造","通用设备制造业","仓山区"]
["福州承成食品有限公司","724239965",1399,"其他未列明农副食品加工","农副食品加工业","仓山区"]
["福州大同实业有限公司","660397859",2929,"塑料零件及其他塑料制品制造","橡胶和塑料制品业","马尾区"]
["福建华意建材有限公司","761779661",3039,"其他建筑材料制造","非金属矿物制品业","长乐区"]
["福建西牛牛家居有限公司","MA8RJ6GQ0",2110,"木质家具制造","家具制造业","长乐区"]
["福建省长乐市新兴石制品有限公司","154897420",3032,"建筑用石加工","非金属矿物制品业","长乐区"]
["福清市永裕来机床有限公司","MA33F7A18",3421,"金属切削机床制造","通用设备制造业","福清市"]
["福清市日盛饲料有限公司","727914890",1329,"其他饲料加工","农副食品加工业","福清市"]
["福州三金机动车配件有限公司","772901271",3752,"摩托车零部件及配件制造","铁路、船舶、航空航天和其他运输设备制造业","福清市"]
["福建合胜食品工业有限公司","MA31GXW12",1353,"肉制品及副产品加工","农副食品加工业","福清市"]
["福建新展自动化科技有限公司","MA33KGQB3",3425,"机床功能部件及附件制造","通用设备制造业","福清市"]
["福建国泰人防设备有限公司","M0000GXF7",3595,"社会公共安全设备及器材制造","专用设备制造业","福清市"]
["福州同馨缘彩印包装有限公司","782159787",2319,"包装装潢及其他印刷","印刷和记录媒介复制业","福清市"]
["福州聚山橡塑有限公司","761790377",3670,"汽车零部件及配件制造","汽车制造业","闽侯县"]
["福建绿草食品有限公司","081612008",1314,"杂粮加工","农副食品加工业","闽侯县"]
["福州天凯生物科技有限责任公司","57928905X",1329,"其他饲料加工","农副食品加工业","闽侯县"]
["福州百特环保设备有限公司","674040463",3591,"环境保护专用设备制造","专用设备制造业","闽侯县"]
["福州万佳兴工艺品有限公司","MA31KNX99",2439,"其他工艺美术及礼仪用品制造","文教、工美、体育和娱乐用品制造业","闽侯县"]
["福建优恩立光电科技有限公司","MA8TXK7B7",3976,"光电子器件制造","计算机、通信和其他电子设备制造业","闽侯县"]
["福建铭博电气设备有限公司","315769754",3823,"配电开关控制设备制造","电气机械和器材制造业","闽侯县"]
["伟兴有限公司","705271409",3822,"电容器及其配套设备制造","电气机械和器材制造业","闽侯县"]
["锐达互动科技股份有限公司","789036405",3472,"幻灯及投影设备制造","通用设备制造业","闽侯县"]
["福建万业电气科技有限公司","597890498",3823,"配电开关控制设备制造","电气机械和器材制造业","闽侯县"]
["福建榕丰塑胶有限公司","597879133",2929,"塑料零件及其他塑料制品制造","橡胶和塑料制品业","连江县"]
["连江县正源新材料有限公司","MA32BT9J6",3031,"粘土砖瓦及建筑砌块制造","非金属矿物制品业","连江县"]
["福州佳禾米业有限公司","077441330",1311,"稻谷加工","农副食品加工业","闽清县"]
["福州东方雨虹砂粉科技有限公司","MA8UR7YNX",2641,"涂料制造","化学原料和化学制品制造业","闽清县"]
["永泰县青云食品有限公司","MA335K859",1351,"牲畜屠宰","农副食品加工业","永泰县"]
["福建明辉机电有限公司","260185478",3811,"发电机及发电机组制造","电气机械和器材制造业","鼓楼区"]
["福州鑫恒智海鲜池设备有限公司","559566013",3054,"日用玻璃制品制造","非金属矿物制品业","仓山区"]
["福州山辉食品有限公司","757359111",1372,"食用菌加工","农副食品加工业","仓山区"]
["福建省建鑫晟智能科技有限公司","MA32BYTF4",3919,"其他计算机制造","计算机、通信和其他电子设备制造业","晋安区"]
["福州佳顺塑料包装有限公司","786931519",2923,"塑料丝绳及编织品制造","橡胶和塑料制品业","马尾区"]
["福州保税区方略纸品有限公司","717324838",2319,"包装装潢及其他印刷","印刷和记录媒介复制业","马尾区"]
["长乐长丰汽配有限公司","768551184",3670,"汽车零部件及配件制造","汽车制造业","长乐区"]
["福州市熙乐新材料有限公司","MA2YY9ET8",2929,"塑料零件及其他塑料制品制造","橡胶和塑料制品业","长乐区"]
["福建聚创纺织有限公司","MA8RHT2N9",1761,"针织或钩针编织物织造","纺织业","长乐区"]
["福州市源顺发针纺有限公司","MA33HPDJ4",1763,"针织或钩针编织品制造","纺织业","长乐区"]
["福建亿灿针纺有限公司","MA34ENUA8",1763,"针织或钩针编织品制造","纺织业","长乐区"]
["福清市名仁塑料有限公司","MA347NAR1",2921,"塑料薄膜制造","橡胶和塑料制品业","福清市"]
["福清励安家具有限公司","574719401",2110,"木质家具制造","家具制造业","福清市"]
["福建省天成生化科技有限公司","MA346EGT6",1391,"淀粉及淀粉制品制造","农副食品加工业","福清市"]
["福州金凯祥工艺品有限公司","MA32R3E84",2439,"其他工艺美术及礼仪用品制造","文教、工美、体育和娱乐用品制造业","闽侯县"]
["福建福锦记食品有限公司","05233829X",1411,"糕点面包制造","食品制造业","闽侯县"]
["福州华鑫模具有限公司","553230578",3670,"汽车零部件及配件制造","汽车制造业","闽侯县"]
["福州联丰制衣有限公司","MA34WUCC7",1830,"服饰制造","纺织服装、服饰业","闽侯县"]
["福州四兴机械有限公司","75136127X",3311,"金属结构制造","金属制品业","闽侯县"]
["福州桐口白鹤粉干有限公司","611333760",1499,"其他未列明食品制造","食品制造业","闽侯县"]
["福建腾力电力发展有限公司","MA346BPU3",3823,"配电开关控制设备制造","电气机械和器材制造业","闽侯县"]
["福建睿丰服装有限公司","MA32EPWD9",1830,"服饰制造","纺织服装、服饰业","闽侯县"]
["福建易安特新型建材有限公司","079754429",2659,"其他合成材料制造","化学原料和化学制品制造业","闽侯县"]
["福建广裕德制衣有限公司","561680333",1921,"皮革服装制造","皮革、毛皮、羽毛及其制品和制鞋业","闽侯县"]
["福建南粤厨具股份有限公司","705358256",3381,"金属制厨房用器具制造","金属制品业","闽侯县"]
["福建省易玻科技发展有限公司","MA33A3NJX",3051,"技术玻璃制品制造","非金属矿物制品业","罗源县"]
["福州昌博集装箱制造有限公司","MA33F2HB0",3331,"集装箱制造","金属制品业","罗源县"]
["福州中昇竹业有限公司","MA31YHGP1",2021,"胶合板制造","木材加工和木、竹、藤、棕、草制品业","闽清县"]
["福建新合发建材科技有限公司","MA2YJR0J4",3033,"防水建筑材料制造","非金属矿物制品业","闽清县"]
["福州捷瑞达服装有限公司","MA8RK6APX",1811,"运动机织服装制造","纺织服装、服饰业","永泰县"]
["福州久源保安器材有限公司","717367475",3312,"金属门窗制造","金属制品业","仓山区"]
["福州特布服饰有限公司","699024937",1819,"其他机织服装制造","纺织服装、服饰业","仓山区"]
["福建省神蜂科技开发有限公司","158174801",1491,"营养食品制造","食品制造业","仓山区"]
["福州明广鞋材有限公司","727918795",1953,"塑料鞋制造","皮革、毛皮、羽毛及其制品和制鞋业","晋安区"]
["华润电力（福建）销售有限公司","MA2XTMD79",4420,"电力供应","电力、热力生产和供应业","晋安区"]
["福建省新闽科生物科技开发有限公司","717388006",1329,"其他饲料加工","农副食品加工业","晋安区"]
["福建佳客来食品股份有限公司","572988974",1351,"牲畜屠宰","农副食品加工业","马尾区"]
["福建锦林纺织有限公司","751378418",1761,"针织或钩针编织物织造","纺织业","长乐区"]
["长乐铁牛金属制品有限公司","757379761",3399,"其他未列明金属制品制造","金属制品业","长乐区"]
["福州市长乐区盛邦纸制品有限公司","577027136",2223,"加工纸制造","造纸和纸制品业","长乐区"]
["长乐广达针织有限公司","MA345NYX2",1761,"针织或钩针编织物织造","纺织业","长乐区"]
["福建省源超针纺织品有限公司","589572772",1761,"针织或钩针编织物织造","纺织业","长乐区"]
["福清成鸿电子部品有限公司","611313700",3984,"电声器件及零件制造","计算机、通信和其他电子设备制造业","福清市"]
["福清市兴鸿鑫家具有限公司","MA31F7L24",2110,"木质家具制造","家具制造业","福清市"]
["福建海恒食品有限公司","MA34BAEE7",1361,"水产品冷冻加工","农副食品加工业","福清市"]
["福建永动工具有限公司","565375096",3321,"切削工具制造","金属制品业","福清市"]
["福清益洋化工有限公司","772904835",1953,"塑料鞋制造","皮革、毛皮、羽毛及其制品和制鞋业","福清市"]
["福州糕小生食品有限公司","MA35C8N43",1411,"糕点面包制造","食品制造业","闽侯县"]
["福州鹤延塑胶制造有限公司","MA2XNQMN5",2452,"塑胶玩具制造","文教、工美、体育和娱乐用品制造业","闽侯县"]
["福州福包彩盒有限公司","772902629",2231,"纸和纸板容器制造","造纸和纸制品业","闽侯县"]
["福州市英特齐制衣有限公司","MA33ACG8X",1811,"运动机织服装制造","纺织服装、服饰业","闽侯县"]
["福州永宏沥青混凝土有限公司","MA8RP4PH1",3099,"其他非金属矿物制品制造","非金属矿物制品业","闽侯县"]
["福州旺祺家居用品制造有限公司","563379907",2434,"花画工艺品制造","文教、工美、体育和娱乐用品制造业","闽侯县"]
["福州莹拓精密冶金工业有限公司","611327811",3443,"阀门和旋塞制造","通用设备制造业","连江县"]
["福建九龙山米业有限责任公司","068759777",1311,"稻谷加工","农副食品加工业","连江县"]
["罗源海聚环保科技有限公司","MA34NQHY9",3021,"水泥制品制造","非金属矿物制品业","罗源县"]
["华润风电（闽清）有限公司","MA34ACU8X",4415,"风力发电","电力、热力生产和供应业","闽清县"]
["福州旭晟鞋业有限公司","09506660X",1953,"塑料鞋制造","皮革、毛皮、羽毛及其制品和制鞋业","仓山区"]
["福州闽波光电技术有限公司","689398345",3052,"光学玻璃制造","非金属矿物制品业","仓山区"]
["福建友鸿实业有限公司","MA2YN5QP0",3823,"配电开关控制设备制造","电气机械和器材制造业","仓山区"]
["福州铭宇服饰有限公司","MA8RC9QH0",1819,"其他机织服装制造","纺织服装、服饰业","马尾区"]
["福建省长乐市凯翔针纺有限公司","798363635",1763,"针织或钩针编织品制造","纺织业","长乐区"]
["福州宜鑫家居有限公司","MA2YAK8F4",2110,"木质家具制造","家具制造业","长乐区"]
["福州市长乐区荣轩针纺有限公司","068763178",1761,"针织或钩针编织物织造","纺织业","长乐区"]
["福清市金林纸品有限公司","741665325",2221,"机制纸及纸板制造","造纸和纸制品业","福清市"]
["伟懋（福清）机电有限公司","793768000",3484,"机械零部件加工","通用设备制造业","福清市"]
["福州市新隆欣居室用品有限公司","MA32TJ2R8",2013,"单板加工","木材加工和木、竹、藤、棕、草制品业","福清市"]
["汉纱合纺（福州）新材料科技有限公司","056111543",2921,"塑料薄膜制造","橡胶和塑料制品业","福清市"]
["福清创辉鞋业有限公司","MA3334G55",1953,"塑料鞋制造","皮革、毛皮、羽毛及其制品和制鞋业","福清市"]
["福建依路顺家居有限公司","MA2YB9H55",2110,"木质家具制造","家具制造业","福清市"]
["福州鼎力机械有限公司","260173995",3484,"机械零部件加工","通用设备制造业","福清市"]
["福建省闽侯县志远工贸发展有限公司","310758343",1361,"水产品冷冻加工","农副食品加工业","闽侯县"]
["福建通川源新能源科技有限公司","MA345DTQ6",3823,"配电开关控制设备制造","电气机械和器材制造业","闽侯县"]
["福州誉美日用品有限公司","779606160",2929,"塑料零件及其他塑料制品制造","橡胶和塑料制品业","闽侯县"]
["福州金杰乐阳光建材有限公司","MA31D4208",3312,"金属门窗制造","金属制品业","闽侯县"]
["福建超日电线电缆有限公司","660357953",3831,"电线电缆制造","电气机械和器材制造业","连江县"]
["连江县锦程新型材料有限公司","MA2YMNXT1",3130,"钢压延加工","黑色金属冶炼和压延加工业","连江县"]
["福建榕工环保机械股份有限公司","MA2XQ2WW3",3962,"智能车载设备制造","计算机、通信和其他电子设备制造业","罗源县"]
["闽清恒金陶瓷有限公司","557565594",3071,"建筑陶瓷制品制造","非金属矿物制品业","闽清县"]
["福建省永泰县长泰织造有限公司","738026282",1711,"棉纺纱加工","纺织业","永泰县"]
["洛基山(福州)药业有限公司","611323490",2730,"中药饮片加工","医药制造业","永泰县"]
["中闽（平潭）风电有限公司","68307338X",4415,"风力发电","电力、热力生产和供应业","平潭县"]
["福建润峡新能源有限公司","MA32MQX80",4415,"风力发电","电力、热力生产和供应业","平潭县"]
["福建华电能源销售有限公司","MA31JJFR5",4420,"电力供应","电力、热力生产和供应业","鼓楼区"]
["福建辉日照明电器有限公司","729734922",3872,"照明灯具制造","电气机械和器材制造业","鼓楼区"]
["福建浩氧环保有限公司","MA32JJ4M5",3591,"环境保护专用设备制造","专用设备制造业","鼓楼区"]
["福州福民茶叶有限公司","746358666",1530,"精制茶加工","酒、饮料和精制茶制造业","仓山区"]
["福州腾榕祥汽车零部件有限公司","091380327",3670,"汽车零部件及配件制造","汽车制造业","仓山区"]
["福建新代实业有限公司","61130445X",2411,"文具制造","文教、工美、体育和娱乐用品制造业","仓山区"]
["福建德通金属容器股份有限公司","260176221",3333,"金属包装容器及材料制造","金属制品业","晋安区"]
["福建臻鸿电子科技有限公司","066568459",3952,"音响设备制造","计算机、通信和其他电子设备制造业","马尾区"]
["福建高氏化织实业有限公司","796076878",1763,"针织或钩针编织品制造","纺织业","长乐区"]
["福州汇龙机械模具有限责任公司","050339192",3525,"模具制造","专用设备制造业","长乐区"]
["福州森辰鑫木业有限公司","779630910",2110,"木质家具制造","家具制造业","长乐区"]
["福建真原花边有限公司","786902654",1763,"针织或钩针编织品制造","纺织业","长乐区"]
["福建新华威化纤染织有限公司","678473610",2822,"涤纶纤维制造","化学纤维制造业","长乐区"]
["福建润升针织有限公司","MA33JBDG2",1761,"针织或钩针编织物织造","纺织业","长乐区"]
["福州盛丰新材料科技有限公司","MA334M9D0",2926,"塑料包装箱及容器制造","橡胶和塑料制品业","福清市"]
["福建得发电子有限公司","MA34815E9",3393,"锻件及粉末冶金制品制造","金属制品业","福清市"]
["福州丰豪塑胶有限公司","MA31L76B5",2919,"其他橡胶制品制造","橡胶和塑料制品业","福清市"]
["福清市峰星针织有限公司","MA2Y153MX",1761,"针织或钩针编织物织造","纺织业","福清市"]
["福清湘盛铸造材料有限公司","310750632",3099,"其他非金属矿物制品制造","非金属矿物制品业","福清市"]
["福州海隆塑料包装制品有限公司","MA3334ND5",2924,"泡沫塑料制造","橡胶和塑料制品业","福清市"]
["闽侯县润辉家居饰品有限公司","557561200",2431,"雕塑工艺品制造","文教、工美、体育和娱乐用品制造业","闽侯县"]
["福州华成模塑有限公司","759375959",3670,"汽车零部件及配件制造","汽车制造业","闽侯县"]
["福建百福立食品有限公司","MA347W685",1392,"豆制品制造","农副食品加工业","闽侯县"]
["福州宏科建材有限公司","058445942",2661,"化学试剂和助剂制造","化学原料和化学制品制造业","闽侯县"]
["华润水泥（连江）有限公司","660367959",3011,"水泥制造","非金属矿物制品业","连江县"]
["福建超马电气设备有限公司","MA35AL922",3829,"其他输配电及控制设备制造","电气机械和器材制造业","连江县"]
["罗源兆森材生物燃料有限公司","MA31JTRAX",4220,"非金属废料和碎屑加工处理","废弃资源综合利用业","罗源县"]
["福州多盟电控设备有限公司","581137274",4011,"工业自动控制系统装置制造","仪器仪表制造业","罗源县"]
["闽清县恒宇电瓷电器有限公司","739537041",3073,"特种陶瓷制品制造","非金属矿物制品业","闽清县"]
["福建骏泓服饰有限公司","315720643",1811,"运动机织服装制造","纺织服装、服饰业","仓山区"]
["福州金誉食品有限公司","052324672",1411,"糕点面包制造","食品制造业","晋安区"]
["福建澳泰自动化设备有限公司","665061019",4090,"其他仪器仪表制造业","仪器仪表制造业","马尾区"]
["福建宝诚精密机械有限公司","MA8TTLUH3",3311,"金属结构制造","金属制品业","马尾区"]
["福建豪滋味食品有限公司","MA33QRU60",1351,"牲畜屠宰","农副食品加工业","马尾区"]
["福州森宇家具有限公司","310776891",2110,"木质家具制造","家具制造业","长乐区"]
["福州市长乐区金凤针织有限公司","628612985",1761,"针织或钩针编织物织造","纺织业","长乐区"]
["福建九运针织有限公司","MA32N6YU8",1761,"针织或钩针编织物织造","纺织业","长乐区"]
["福建锦杰针织有限公司","054324529",1761,"针织或钩针编织物织造","纺织业","长乐区"]
["福建天宝塑胶有限公司","154915772",2922,"塑料板管型材制造","橡胶和塑料制品业","福清市"]
["福建世高汽车配件有限公司","MAC0MJ975",2929,"塑料零件及其他塑料制品制造","橡胶和塑料制品业","福清市"]
["福清市骏腾包装有限公司","553239097",2319,"包装装潢及其他印刷","印刷和记录媒介复制业","福清市"]
["福州珠光机车部件有限公司","782171639",3752,"摩托车零部件及配件制造","铁路、船舶、航空航天和其他运输设备制造业","福清市"]
["福建融泉净水剂有限公司","705399138",2666,"环境污染处理专用药剂材料制造","化学原料和化学制品制造业","福清市"]
["福州格莱特新材料科技有限公司","MA350Q980",2929,"塑料零件及其他塑料制品制造","橡胶和塑料制品业","福清市"]
["福清大宇浩家居制品有限公司","MA2XR78AX",2110,"木质家具制造","家具制造业","福清市"]
["福清东秋塑料制品有限公司","MA32PPRM0",2929,"塑料零件及其他塑料制品制造","橡胶和塑料制品业","福清市"]
["福建冠丰饲料有限公司","705100319",1329,"其他饲料加工","农副食品加工业","福清市"]
["福州永兴达工贸有限公司","572976105",2439,"其他工艺美术及礼仪用品制造","文教、工美、体育和娱乐用品制造业","闽侯县"]
["福州煋炜达家居饰品有限公司","MA32TGGWX",2432,"金属工艺品制造","文教、工美、体育和娱乐用品制造业","闽侯县"]
["福州邦泰金研金刚石工具制造有限公司","59171475X",3329,"其他金属工具制造","金属制品业","闽侯县"]
["福建省闽侯福泉搪瓷有限公司","154662832",3379,"搪瓷日用品及其他搪瓷制品制造","金属制品业","闽侯县"]
["福建闽通万海渔业有限公司","MA32K0D14",1361,"水产品冷冻加工","农副食品加工业","连江县"]
["福州圣龙铸造材料有限公司","662809896",3391,"黑色金属铸造","金属制品业","连江县"]
["福建省连江县宏裕水产有限公司","741657907",1361,"水产品冷冻加工","农副食品加工业","连江县"]
["福建安启源新型建材有限公司","MA336AMF8",3021,"水泥制品制造","非金属矿物制品业","罗源县"]
["福建水投集团闽清水务有限公司","060389249",4610,"自来水生产和供应","水的生产和供应业","闽清县"]
["福州舒沃鞋业有限公司","310769093",1953,"塑料鞋制造","皮革、毛皮、羽毛及其制品和制鞋业","仓山区"]
["福州鹰高电子有限公司","731874297",4030,"钟表与计时仪器制造","仪器仪表制造业","仓山区"]
["福州茶色服饰有限公司","687531544",1819,"其他机织服装制造","纺织服装、服饰业","仓山区"]
["福建联合动力设备制造有限公司","749080356",3811,"发电机及发电机组制造","电气机械和器材制造业","仓山区"]
["福州德安彩色印刷有限公司","764056506",2311,"书报刊印刷","印刷和记录媒介复制业","仓山区"]
["福州达真印务有限公司","784540119",2311,"书报刊印刷","印刷和记录媒介复制业","仓山区"]
["福州市长乐区祥霞建材有限公司","665098946",3021,"水泥制品制造","非金属矿物制品业","长乐区"]
["福州市长乐鲜花针织有限公司","154876291",1761,"针织或钩针编织物织造","纺织业","长乐区"]
["福州闽起起重机械有限公司","761776911",3432,"生产专用起重机制造","通用设备制造业","长乐区"]
["福州市长乐区山城针纺有限公司","789033175",1761,"针织或钩针编织物织造","纺织业","长乐区"]
["福建锐翰光电科技有限公司","MA2XQ7E19",3973,"集成电路制造","计算机、通信和其他电子设备制造业","福清市"]
["福建科亿电力有限公司","570991491",3823,"配电开关控制设备制造","电气机械和器材制造业","福清市"]
["闽都家具制造（福建）有限公司","MA31HED15",2110,"木质家具制造","家具制造业","福清市"]
["福建宝利特新材料科技有限公司","754994267",2651,"初级形态塑料及合成树脂制造","化学原料和化学制品制造业","福清市"]
["福州宏华家居制造有限公司","310603018",2439,"其他工艺美术及礼仪用品制造","文教、工美、体育和娱乐用品制造业","闽侯县"]
["闽侯县博亚工艺品有限公司","MA3458N1X",2439,"其他工艺美术及礼仪用品制造","文教、工美、体育和娱乐用品制造业","闽侯县"]
["福州科艾迪智能家居有限公司","MA2XND8U8",3329,"其他金属工具制造","金属制品业","闽侯县"]
["福州九成工业有限公司","315666827",4011,"工业自动控制系统装置制造","仪器仪表制造业","闽侯县"]
["新力包装（福州）有限公司","691907823",2439,"其他工艺美术及礼仪用品制造","文教、工美、体育和娱乐用品制造业","闽侯县"]
["福州锐新金属有限公司","68309587X",3670,"汽车零部件及配件制造","汽车制造业","闽侯县"]
["福州紫凤光电科技有限公司","09904802X",3976,"光电子器件制造","计算机、通信和其他电子设备制造业","闽侯县"]
["闽侯县达克工艺品有限公司","784522068",2432,"金属工艺品制造","文教、工美、体育和娱乐用品制造业","闽侯县"]
["福建迈可博电子科技集团股份有限公司","796067330",3971,"电子真空器件制造","计算机、通信和其他电子设备制造业","闽侯县"]
["福建明武玻璃有限公司","MA33B88G9",3041,"平板玻璃制造","非金属矿物制品业","连江县"]
["福建创磊建材有限公司","MA33H76F8",3099,"其他非金属矿物制品制造","非金属矿物制品业","罗源县"]
["福州厚龙家具实业有限公司","764068830",2110,"木质家具制造","家具制造业","闽清县"]
["福建大成环保有限公司","759370410",4620,"污水处理及其再生利用","水的生产和供应业","平潭县"]
["福建水投集团平潭环保有限公司","310740821",4620,"污水处理及其再生利用","水的生产和供应业","平潭县"]
["福建金木年华家具有限公司","569295739",2110,"木质家具制造","家具制造业","鼓楼区"]
["福建福启网络科技有限公司","MA2YEPJR8",3921,"通信系统设备制造","计算机、通信和其他电子设备制造业","鼓楼区"]
["福州瑞益电机有限公司","727898608",3813,"微特电机及组件制造","电气机械和器材制造业","仓山区"]
["福建榕东海峡环保有限公司","09340875X",4620,"污水处理及其再生利用","水的生产和供应业","马尾区"]
["福州市长乐银利机械有限公司","749051440",3459,"其他传动部件制造","通用设备制造业","长乐区"]
["福建柯宝建材科技有限公司","MA2XN0970",3033,"防水建筑材料制造","非金属矿物制品业","长乐区"]
["福州星奥运动器材有限公司","791752216",2443,"健身器材制造","文教、工美、体育和娱乐用品制造业","长乐区"]
["福建华茂织染有限公司","154891598",1713,"棉印染精加工","纺织业","长乐区"]
["福建伊纺达工纺新材料科技有限公司","MA32YD910",1761,"针织或钩针编织物织造","纺织业","长乐区"]
["福清森达电气有限公司","MAC36JYU8",3823,"配电开关控制设备制造","电气机械和器材制造业","福清市"]
["福清信德鞋业有限公司","MA34DRWUX",1953,"塑料鞋制造","皮革、毛皮、羽毛及其制品和制鞋业","福清市"]
["福建融航气体有限公司","MA34518H6",2619,"其他基础化学原料制造","化学原料和化学制品制造业","福清市"]
["福州恒吉鞋业有限公司","683096469",1953,"塑料鞋制造","皮革、毛皮、羽毛及其制品和制鞋业","福清市"]
["福建省创翔鞋业有限公司","070886230",1953,"塑料鞋制造","皮革、毛皮、羽毛及其制品和制鞋业","福清市"]
["福建龙旺食品饮料有限公司","611839227",1493,"冷冻饮品及食用冰制造","食品制造业","福清市"]
["福州汇邦家居用品有限公司","MA8RCUDB6",2439,"其他工艺美术及礼仪用品制造","文教、工美、体育和娱乐用品制造业","闽侯县"]
["福州宏彦食品有限公司","MA2YLR966",1392,"豆制品制造","农副食品加工业","闽侯县"]
["福州明建鞋业有限公司","666854248",1953,"塑料鞋制造","皮革、毛皮、羽毛及其制品和制鞋业","闽侯县"]
["福建通隆食品有限公司","337550972",1432,"速冻食品制造","食品制造业","闽侯县"]
["福建天汇食品有限公司","MA31TXUM2",1499,"其他未列明食品制造","食品制造业","闽侯县"]
["福州金钧鑫塑胶制品有限公司","784528419",3670,"汽车零部件及配件制造","汽车制造业","闽侯县"]
["福州市荣盛荣自动化设备有限公司","770689510",3525,"模具制造","专用设备制造业","闽侯县"]
["福州宝林橡塑有限公司","741659486",3670,"汽车零部件及配件制造","汽车制造业","闽侯县"]
["福建省闽侯民间工艺品有限公司","717328548",2432,"金属工艺品制造","文教、工美、体育和娱乐用品制造业","闽侯县"]
["福州市众心联光电科技有限公司","MA32TEFE0",3976,"光电子器件制造","计算机、通信和其他电子设备制造业","闽侯县"]
["福建瑞云食品有限公司","699019150",1432,"速冻食品制造","食品制造业","连江县"]
["福建申发水务有限公司","070892235",4620,"污水处理及其再生利用","水的生产和供应业","连江县"]
["福州闽源鞋业有限公司","789033247",1953,"塑料鞋制造","皮革、毛皮、羽毛及其制品和制鞋业","罗源县"]
["福州普洛机械制造有限公司","770660814",3479,"其他文化办公用机械制造","通用设备制造业","闽清县"]
["福建威朗生物科技有限公司","MA2XQA122",3544,"制药专用设备制造","专用设备制造业","闽清县"]
["永泰县恒川制衣厂（普通合伙）","793762514",1819,"其他机织服装制造","纺织服装、服饰业","永泰县"]
["福州金飞鱼柴油机有限公司","260203621",3412,"内燃机及配件制造","通用设备制造业","仓山区"]
["福州亿星化工有限公司","310674190",2662,"专项化学用品制造","化学原料和化学制品制造业","仓山区"]
["福州新光塑胶模具有限公司","705112360",2929,"塑料零件及其他塑料制品制造","橡胶和塑料制品业","仓山区"]
["福建永益针纺有限公司","757357079",1763,"针织或钩针编织品制造","纺织业","长乐区"]
["福州恒力纺织科技有限公司","782180500",1761,"针织或钩针编织物织造","纺织业","长乐区"]
["福建省晶荣包装制品有限公司","33747931X",2929,"塑料零件及其他塑料制品制造","橡胶和塑料制品业","福清市"]
["福建盛煌生物医药科技有限公司","669269757",2720,"化学药品制剂制造","医药制造业","福清市"]
["福清市吉乐玩具塑鞋有限公司","154911309",1953,"塑料鞋制造","皮革、毛皮、羽毛及其制品和制鞋业","福清市"]
["福建省兴春包装印刷有限公司","770652128",2319,"包装装潢及其他印刷","印刷和记录媒介复制业","闽侯县"]
["福州塑联永拓新材料科技有限公司","MA335AG01",2921,"塑料薄膜制造","橡胶和塑料制品业","闽侯县"]
["福州协源金属表面处理有限公司","741686951",3360,"金属表面处理及热处理加工","金属制品业","闽侯县"]
["福州德阳电线电缆有限公司","79178252X",3831,"电线电缆制造","电气机械和器材制造业","闽侯县"]
["福州迈吉家居有限公司","315676320",2439,"其他工艺美术及礼仪用品制造","文教、工美、体育和娱乐用品制造业","闽侯县"]
["福建维萨能源有限公司","315655909",3811,"发电机及发电机组制造","电气机械和器材制造业","闽侯县"]
["福建华震家具制造有限公司","563383199",2110,"木质家具制造","家具制造业","闽侯县"]
["福建幕村鲜味食品有限公司","MA2YN59T5",1353,"肉制品及副产品加工","农副食品加工业","闽侯县"]
["福建金柜家居股份有限公司","782185387",2110,"木质家具制造","家具制造业","闽侯县"]
["福建洁达富家居有限公司","678493216",2431,"雕塑工艺品制造","文教、工美、体育和娱乐用品制造业","连江县"]
["罗源生春源茶业有限责任公司","58958225X",1530,"精制茶加工","酒、饮料和精制茶制造业","罗源县"]
["福建正诚盛再生物资回收有限公司","MA32BQ0K9",4220,"非金属废料和碎屑加工处理","废弃资源综合利用业","罗源县"]
["福建闽清山兴农工贸有限公司","731856320",2110,"木质家具制造","家具制造业","闽清县"]
["福建省卢峰茶业有限公司","793751866",1530,"精制茶加工","酒、饮料和精制茶制造业","永泰县"]
["福建美克莱铝业有限公司","MA3545PR2",3352,"建筑装饰及水暖管道零件制造","金属制品业","仓山区"]
["福州瑞福达玻璃有限公司","665070097",3059,"其他玻璃制品制造","非金属矿物制品业","仓山区"]
["福州佳盛食品有限公司","MA3486KJ9",1524,"含乳饮料和植物蛋白饮料制造","酒、饮料和精制茶制造业","仓山区"]
["福州隆源鞋业有限公司","766194195",1953,"塑料鞋制造","皮革、毛皮、羽毛及其制品和制鞋业","仓山区"]
["福州伊凯尔纺织有限公司","784512310",1829,"其他针织或钩针编织服装制造","纺织服装、服饰业","晋安区"]
["福建长隆纺织有限公司","705131799",1711,"棉纺纱加工","纺织业","马尾区"]
["福州福祥包装有限公司","MA2YCQQG4",2221,"机制纸及纸板制造","造纸和纸制品业","马尾区"]
["福州新三捷光电技术有限公司","310753294",4040,"光学仪器制造","仪器仪表制造业","马尾区"]
["福建美特好智能科技有限公司","691923831",2922,"塑料板管型材制造","橡胶和塑料制品业","马尾区"]
["福建康辉纺织科技有限公司","MA31LTXQX",1761,"针织或钩针编织物织造","纺织业","长乐区"]
["福州振协管道有限公司","662843701",3352,"建筑装饰及水暖管道零件制造","金属制品业","长乐区"]
["福建兴达塑纸包装彩印有限公司","628517937",2231,"纸和纸板容器制造","造纸和纸制品业","长乐区"]
["长乐江南经编有限公司","749067119",1761,"针织或钩针编织物织造","纺织业","长乐区"]
["福建省长乐市伊纺达针纺有限公司","073200548",1761,"针织或钩针编织物织造","纺织业","长乐区"]
["福清市新融能门窗科技有限公司","MA346KYN8",3312,"金属门窗制造","金属制品业","福清市"]
["福州汇腾塑胶有限公司","761770472",2927,"日用塑料制品制造","橡胶和塑料制品业","福清市"]
["福州永动电镀有限公司","793752455",3360,"金属表面处理及热处理加工","金属制品业","福清市"]
["福清市泓旺水产有限公司","MA31MQGX6",1361,"水产品冷冻加工","农副食品加工业","福清市"]
["福州市安迪园工艺品有限公司","MA34A2QE6",2432,"金属工艺品制造","文教、工美、体育和娱乐用品制造业","闽侯县"]
["福建巨厨食品有限公司","MA33H8E76",1432,"速冻食品制造","食品制造业","闽侯县"]
["福建珍源康制药有限公司","MA348RRPX",2730,"中药饮片加工","医药制造业","闽侯县"]
["闽侯瑞豪工艺品有限公司","MA34JNR63",2432,"金属工艺品制造","文教、工美、体育和娱乐用品制造业","闽侯县"]
["闽侯县钛阳塑胶模具有限公司","789010141",3670,"汽车零部件及配件制造","汽车制造业","闽侯县"]
["福州市逸丰鞋业有限公司","MA32H65L7",1952,"皮鞋制造","皮革、毛皮、羽毛及其制品和制鞋业","闽侯县"]
["福州德合节能科技有限公司","MA33P0C40",3034,"隔热和隔音材料制造","非金属矿物制品业","闽侯县"]
["福州倚捷服饰有限公司","MA3282PTX",1830,"服饰制造","纺织服装、服饰业","闽侯县"]
["闽侯县骏明纺织有限公司","749099022",1712,"棉织造加工","纺织业","闽侯县"]
["福建万栋电缆有限公司","MA340G4T2",3831,"电线电缆制造","电气机械和器材制造业","连江县"]
["福建大江线缆科技有限公司","MA331KNNX",3831,"电线电缆制造","电气机械和器材制造业","连江县"]
["连江瑞邦金属制品有限公司","611331255",3391,"黑色金属铸造","金属制品业","连江县"]
["福建润泽新能源科技发展有限公司","MA8UBMHL9",2662,"专项化学用品制造","化学原料和化学制品制造业","连江县"]
["福建锦源纺织科技有限公司","MA2Y86LA7",1752,"化纤织物染整精加工","纺织业","罗源县"]
["福建金嘉建材有限公司","MABUPQ466",3099,"其他非金属矿物制品制造","非金属矿物制品业","罗源县"]
["苏冶机械设备（罗源）有限公司","064127799",3484,"机械零部件加工","通用设备制造业","罗源县"]
["福建澳蓝空调科技有限公司","MA345LFT3",3464,"制冷空调设备制造","通用设备制造业","罗源县"]
["福州市益通陶瓷科技有限公司","MA31E2D08",3072,"卫生陶瓷制品制造","非金属矿物制品业","闽清县"]
["福建利尼尔智能科技有限公司","MA2YPW03X",3425,"机床功能部件及附件制造","通用设备制造业","永泰县"]
["福建省永泰县加蜜佳食品有限公司","705376462",1422,"蜜饯制作","食品制造业","永泰县"]
["福建中弘环境科技有限公司","MA2YLJPH6",3591,"环境保护专用设备制造","专用设备制造业","鼓楼区"]
["福州华彩印务有限公司","154437846",2311,"书报刊印刷","印刷和记录媒介复制业","晋安区"]
["福建胜诚发水产有限公司","070851492",1361,"水产品冷冻加工","农副食品加工业","马尾区"]
["福州华晨纸品包装有限公司","310623123",2319,"包装装潢及其他印刷","印刷和记录媒介复制业","马尾区"]
["福州市绅林木业有限公司","MA32DWFLX",2110,"木质家具制造","家具制造业","长乐区"]
["马丁传动件（福州）有限公司","611302921",3453,"齿轮及齿轮减变速箱制造","通用设备制造业","长乐区"]
["福州市厚东针织染整有限公司","154877075",1713,"棉印染精加工","纺织业","长乐区"]
["福州明升针纺织品有限公司","577022108",1763,"针织或钩针编织品制造","纺织业","长乐区"]
["融林塑胶(福建)有限公司","61133099X",2922,"塑料板管型材制造","橡胶和塑料制品业","福清市"]
["福建省福创机械设备有限公司","095510117",3484,"机械零部件加工","通用设备制造业","福清市"]
["福建冠华精密模具有限公司","74909626X",3525,"模具制造","专用设备制造业","福清市"]
["福州浩宇家居工艺品有限公司","753130854",2110,"木质家具制造","家具制造业","福清市"]
["新高（福建）日用品有限公司","665062513",2681,"肥皂及洗涤剂制造","化学原料和化学制品制造业","福清市"]
["福州淳之味食品有限公司","MA320RKT2",1462,"酱油食醋及类似制品制造","食品制造业","闽侯县"]
["福州铁汉电气科技有限公司","075013914",3399,"其他未列明金属制品制造","金属制品业","闽侯县"]
["协展水岛（福建）机械工业有限公司","579260425",3670,"汽车零部件及配件制造","汽车制造业","闽侯县"]
["福州臻宝金属有限公司","315343649",3670,"汽车零部件及配件制造","汽车制造业","闽侯县"]
["福州昌宇五金锁具制品有限公司","660360765",3351,"建筑家具用金属配件制造","金属制品业","闽侯县"]
["福州乐尔佳包装有限公司","593499619",2921,"塑料薄膜制造","橡胶和塑料制品业","闽侯县"]
["福州续泰家居有限公司","MA34CCUH4",2190,"其他家具制造","家具制造业","连江县"]
["罗源汇发废旧物资回收利用有限公司","MA31UYB85",4210,"金属废料和碎屑加工处理","废弃资源综合利用业","罗源县"]
["福州华工智造机械有限公司","MA34NLJR0",3563,"电子元器件与机电组件设备制造","专用设备制造业","罗源县"]
["福州市鑫翔龙电瓷有限公司","315635473",3073,"特种陶瓷制品制造","非金属矿物制品业","闽清县"]
["福建晨明集团有限公司","662822986",2923,"塑料丝绳及编织品制造","橡胶和塑料制品业","永泰县"]
["中建（福建）沥青工程有限公司","589590049",3039,"其他建筑材料制造","非金属矿物制品业","永泰县"]
["福州富亨机电设备有限公司","784501822",3399,"其他未列明金属制品制造","金属制品业","仓山区"]
["福州高特光电科技有限公司","569257249",3052,"光学玻璃制造","非金属矿物制品业","仓山区"]
["福州翔宏鞋业有限公司","050312520",1954,"橡胶鞋制造","皮革、毛皮、羽毛及其制品和制鞋业","仓山区"]
["福州跃盛制衣有限公司","696601049",2915,"日用及医用橡胶制品制造","橡胶和塑料制品业","晋安区"]
["福州雄胜彩印有限公司","793796757",2311,"书报刊印刷","印刷和记录媒介复制业","晋安区"]
["福州云蕊日用品有限公司","705116986",1779,"其他家用纺织制成品制造","纺织业","晋安区"]
["福州中核三重阀门制造有限公司","583109197",3443,"阀门和旋塞制造","通用设备制造业","晋安区"]
["福建恒发海洋生物科技有限公司","717311201",1361,"水产品冷冻加工","农副食品加工业","马尾区"]
["福州开发区联盛运动器材有限公司","735654814",2444,"运动防护用具制造","文教、工美、体育和娱乐用品制造业","马尾区"]
["福州紫江包装有限公司","731859169",2926,"塑料包装箱及容器制造","橡胶和塑料制品业","马尾区"]
["福州市长乐区西洋机械铸造有限公司","154890018",3459,"其他传动部件制造","通用设备制造业","长乐区"]
["福州恒易家居有限公司","MAC2J08Q8",2110,"木质家具制造","家具制造业","长乐区"]
["福建省长乐市鸿盛鞋业有限公司","154871204",1953,"塑料鞋制造","皮革、毛皮、羽毛及其制品和制鞋业","长乐区"]
["福州利和针织有限公司","315465582",1761,"针织或钩针编织物织造","纺织业","长乐区"]
["福州翔杰纺织有限公司","315608010",1761,"针织或钩针编织物织造","纺织业","长乐区"]
["福建彩朝针织有限公司","310604918",1761,"针织或钩针编织物织造","纺织业","长乐区"]
["福州天顺针织有限公司","050302883",1761,"针织或钩针编织物织造","纺织业","长乐区"]
["祥运包装（福州）有限公司","MABXMBEA8",2035,"木制容器制造","木材加工和木、竹、藤、棕、草制品业","福清市"]
["福清鑫源铸造材料有限公司","757367947",3525,"模具制造","专用设备制造业","福清市"]
["福州精邦机械有限公司","770688024",3752,"摩托车零部件及配件制造","铁路、船舶、航空航天和其他运输设备制造业","福清市"]
["福建卡乐丽新型建材科技有限公司","MA31K42KX",3039,"其他建筑材料制造","非金属矿物制品业","福清市"]
["福建兆塔科技有限公司","MA34XC156",1411,"糕点面包制造","食品制造业","闽侯县"]
["福建长远通风设备有限公司","784523853",3462,"风机风扇制造","通用设备制造业","闽侯县"]
["福州泉运制版有限公司","789037221",3525,"模具制造","专用设备制造业","闽侯县"]
["福州志泰汽车配件有限公司","315443105",3670,"汽车零部件及配件制造","汽车制造业","闽侯县"]
["福州麦特新高温材料有限公司","743829397",3089,"耐火陶瓷制品及其他耐火材料制造","非金属矿物制品业","闽侯县"]
["福州台扬五金制品有限公司","739548904",3670,"汽车零部件及配件制造","汽车制造业","闽侯县"]
["福州国台橡胶有限公司","633908131",3670,"汽车零部件及配件制造","汽车制造业","闽侯县"]
["福建望盛实业有限公司","611341867",1399,"其他未列明农副食品加工","农副食品加工业","闽侯县"]
["福州维客多家具有限公司","MA345JG90",2439,"其他工艺美术及礼仪用品制造","文教、工美、体育和娱乐用品制造业","闽侯县"]
["福建锦鑫科技有限公司","310691302",2770,"卫生材料及医药用品制造药用辅料及包装材料","医药制造业","闽侯县"]
["福州万祥家居有限公司","MA33WY512",2110,"木质家具制造","家具制造业","闽侯县"]
["福州德星建材有限公司","685074415",2434,"花画工艺品制造","文教、工美、体育和娱乐用品制造业","连江县"]
["福建鑫严创科技有限公司","093409322",3491,"工业机器人制造","通用设备制造业","闽清县"]
["福州莱科光电子制造有限公司","MA8RH4G95",3976,"光电子器件制造","计算机、通信和其他电子设备制造业","鼓楼区"]
["福建晟达通节能科技有限公司","075031055",3352,"建筑装饰及水暖管道零件制造","金属制品业","仓山区"]
["福建勤工机电科技有限公司","660365822",3424,"金属切割及焊接设备制造","通用设备制造业","仓山区"]
["福州祥泰制衣有限公司","MA31NXWU8",1819,"其他机织服装制造","纺织服装、服饰业","仓山区"]
["福州格美服装有限公司","081648326",1819,"其他机织服装制造","纺织服装、服饰业","仓山区"]
["福建宝晟电气科技有限公司","MA347KYC3",3823,"配电开关控制设备制造","电气机械和器材制造业","晋安区"]
["福州三木三森机械有限公司","MA31L53D7",3524,"木竹材加工机械制造","专用设备制造业","长乐区"]
["福州市森鑫木业有限公司","310776779",2110,"木质家具制造","家具制造业","长乐区"]
["福州青云针织有限公司","791770369",1761,"针织或钩针编织物织造","纺织业","长乐区"]
["福建融霞机械有限公司","154908089",3391,"黑色金属铸造","金属制品业","福清市"]
["福州家和兴纺织有限公司","073247880",1712,"棉织造加工","纺织业","福清市"]
["福州七七纸业有限公司","MA2XNE004",2231,"纸和纸板容器制造","造纸和纸制品业","福清市"]
["福建省瑞信服装有限公司","757393862",1819,"其他机织服装制造","纺织服装、服饰业","福清市"]
["福建科瑞药业有限公司","611010144",2710,"化学药品原料药制造","医药制造业","福清市"]
["福州长浪工贸有限公司","MA33LN5W6",2924,"泡沫塑料制造","橡胶和塑料制品业","福清市"]
["福清盛源鞋业有限公司","691937360",1953,"塑料鞋制造","皮革、毛皮、羽毛及其制品和制鞋业","福清市"]
["福建省神安建材有限公司","696609956",3049,"其他玻璃制造","非金属矿物制品业","闽侯县"]
["福建闽信建材实业有限公司","79606368X",3031,"粘土砖瓦及建筑砌块制造","非金属矿物制品业","闽侯县"]
["福州商威纸业有限公司","777534036",2231,"纸和纸板容器制造","造纸和纸制品业","闽侯县"]
["福建鑫成裕机器人科技有限公司","MA2XTH3E9",3491,"工业机器人制造","通用设备制造业","闽侯县"]
["连江县路拓源沥青混凝土有限公司","MA2YF71Q1",3029,"其他水泥类似制品制造","非金属矿物制品业","连江县"]
["福建金大机械制造有限公司","MA330DY74",3391,"黑色金属铸造","金属制品业","连江县"]
["福州市科兴混凝土有限公司","MA31JXYN1",3033,"防水建筑材料制造","非金属矿物制品业","罗源县"]
["福州汉斯曼游艇工业有限公司","MA34GAAF7",3733,"娱乐船和运动船制造","铁路、船舶、航空航天和其他运输设备制造业","罗源县"]
["福建省闽清兴昌竹木制品有限公司","705144928",2021,"胶合板制造","木材加工和木、竹、藤、棕、草制品业","闽清县"]
["沪豪（福州）新型材料有限公司","MA34H7PFX",2922,"塑料板管型材制造","橡胶和塑料制品业","闽清县"]
["福州众合服装有限公司","MA350HRC3",1811,"运动机织服装制造","纺织服装、服饰业","永泰县"]
["永泰县聚源水力发电有限公司","MA2XP4G0X",4413,"水力发电","电力、热力生产和供应业","永泰县"]
["中闻集团福州印务有限公司",154414062,2311,"书报刊印刷","印刷和记录媒介复制业","鼓楼区"]
["福建通力达实业有限公司","587529631",3439,"其他物料搬运设备制造","通用设备制造业","鼓楼区"]
["福州百晶光电有限公司","569288694",3052,"光学玻璃制造","非金属矿物制品业","仓山区"]
["福州长辉轻钢结构建筑有限公司","154387658",3130,"钢压延加工","黑色金属冶炼和压延加工业","仓山区"]
["福建晶谱瑞照明科技有限公司","095519613",3871,"电光源制造","电气机械和器材制造业","仓山区"]
["福建玉玲通线缆有限公司","MA33WXG1X",3831,"电线电缆制造","电气机械和器材制造业","仓山区"]
["福建憨球食品有限公司","MA33Q7RWX",1419,"饼干及其他焙烤食品制造","食品制造业","仓山区"]
["福建省金盾彩色印刷有限公司","757354601",2311,"书报刊印刷","印刷和记录媒介复制业","仓山区"]
["福州闽一鞋业有限公司","71731703X",1953,"塑料鞋制造","皮革、毛皮、羽毛及其制品和制鞋业","仓山区"]
["福建楠源家居有限公司","MA34L8UP8",2110,"木质家具制造","家具制造业","长乐区"]
["福州市长乐区鸿建针纺有限公司","746369840",1763,"针织或钩针编织品制造","纺织业","长乐区"]
["福建省焕彩针织有限公司","096227313",1763,"针织或钩针编织品制造","纺织业","长乐区"]
["福建开物冶金设备有限公司","MA331T4W7",3516,"冶金专用设备制造","专用设备制造业","长乐区"]
["福州美通塑料制品有限公司","MA33H00X8",2927,"日用塑料制品制造","橡胶和塑料制品业","长乐区"]
["福清市澳翔纺织有限公司","741683363",1781,"非织造布制造","纺织业","福清市"]
["福清旭泳塑胶有限公司","691944704",2921,"塑料薄膜制造","橡胶和塑料制品业","福清市"]
["福州富春紫光污水处理有限公司","337475589",4620,"污水处理及其再生利用","水的生产和供应业","福清市"]
["福建省福清市优盛建材有限公司","154922825",3021,"水泥制品制造","非金属矿物制品业","福清市"]
["福清永盛鞋业有限公司","MA31F68P7",1953,"塑料鞋制造","皮革、毛皮、羽毛及其制品和制鞋业","福清市"]
["品胜（福建）食品有限公司","050333110",1431,"米面制品制造","食品制造业","闽侯县"]
["福州创新辉煌鞋业有限公司","MA2Y710TX",1953,"塑料鞋制造","皮革、毛皮、羽毛及其制品和制鞋业","闽侯县"]
["福州欧利得鞋业有限公司","MA32Y87G7",1953,"塑料鞋制造","皮革、毛皮、羽毛及其制品和制鞋业","闽侯县"]
["闽侯县凤凰工艺品有限公司","611830521",2110,"木质家具制造","家具制造业","闽侯县"]
["闽侯联合箱包工贸有限公司","056103957",1922,"皮箱包袋制造","皮革、毛皮、羽毛及其制品和制鞋业","闽侯县"]
["福州永利达照明科技有限公司","589560456",3872,"照明灯具制造","电气机械和器材制造业","闽侯县"]
["福建佰孟医学科技有限公司","MA32HQR77",2720,"化学药品制剂制造","医药制造业","闽侯县"]
["福建爱莱格游艇工业有限公司","665065255",2461,"露天游乐场所游乐设备制造","文教、工美、体育和娱乐用品制造业","连江县"]
["福建天洋食品有限公司","683084310",1361,"水产品冷冻加工","农副食品加工业","连江县"]
["福建绿祥新材料科技有限公司","MA34AMQ9X",3031,"粘土砖瓦及建筑砌块制造","非金属矿物制品业","连江县"]
["福建辰达机电有限公司","MA2YP2249",3484,"机械零部件加工","通用设备制造业","罗源县"]
["福州锐景达光电科技有限公司","064104976",4028,"电子测量仪器制造","仪器仪表制造业","鼓楼区"]
["福州亚湾文具有限公司","746358383",2462,"游艺用品及室内游艺器材制造","文教、工美、体育和娱乐用品制造业","仓山区"]
["福州福日电子有限公司","705115342",4050,"衡器制造","仪器仪表制造业","仓山区"]
["福州薇麦初秋食品有限公司","MA2YPM999",1411,"糕点面包制造","食品制造业","仓山区"]
["福州庆丰鞋业有限公司","733615133",1953,"塑料鞋制造","皮革、毛皮、羽毛及其制品和制鞋业","仓山区"]
["福州星汉模具工业有限公司","694368263",3525,"模具制造","专用设备制造业","晋安区"]
["福建省福州茶厂有限责任公司","154392561",1530,"精制茶加工","酒、饮料和精制茶制造业","晋安区"]
["福州大坤彩色印刷有限公司","260173290",2319,"包装装潢及其他印刷","印刷和记录媒介复制业","晋安区"]
["恒兴（福建）易拉盖工业有限公司","676523768",3333,"金属包装容器及材料制造","金属制品业","马尾区"]
["福建科天自动化设备有限公司","MA32DD6F1",4090,"其他仪器仪表制造业","仪器仪表制造业","马尾区"]
["福州榕鼎冶金环保设备有限公司","768590773",3130,"钢压延加工","黑色金属冶炼和压延加工业","长乐区"]
["福州荣裕实业有限公司","775394455",3561,"电工机械专用设备制造","专用设备制造业","长乐区"]
["长乐旺达针纺有限公司","793772587",1761,"针织或钩针编织物织造","纺织业","长乐区"]
["福州艾可森家居用品有限公司","M0000N7D4",2110,"木质家具制造","家具制造业","长乐区"]
["福建鑫联达智能科技有限公司","574708737",3990,"其他电子设备制造","计算机、通信和其他电子设备制造业","长乐区"]
["福州骏鹏机械制造有限公司","MA3318598",3670,"汽车零部件及配件制造","汽车制造业","长乐区"]
["福建警声吉晟门业股份有限公司","798398838",3312,"金属门窗制造","金属制品业","长乐区"]
["福州市长乐区中奥合成材料有限公司","577013877",2651,"初级形态塑料及合成树脂制造","化学原料和化学制品制造业","长乐区"]
["福州市长乐区望福针纺有限公司","557552208",1763,"针织或钩针编织品制造","纺织业","长乐区"]
["长乐文达纸制品有限公司","74637536X",2221,"机制纸及纸板制造","造纸和纸制品业","长乐区"]
["福州市长乐区鲤峰食品有限公司","X29561485",1373,"水果和坚果加工","农副食品加工业","长乐区"]
["福州市鑫煜针织有限公司","MA8UFHMW9",1761,"针织或钩针编织物织造","纺织业","长乐区"]
["福清宏利发模具有限公司","660361602",3525,"模具制造","专用设备制造业","福清市"]
["福建三邦硅材料有限公司","77291235X",2619,"其他基础化学原料制造","化学原料和化学制品制造业","福清市"]
["福建志坤能源科技开发有限公司","572952752",4620,"污水处理及其再生利用","水的生产和供应业","福清市"]
["方菱桥隧模架（福州）有限公司","674005182",3525,"模具制造","专用设备制造业","福清市"]
["福州康信精密机电有限公司","567302835",3351,"建筑家具用金属配件制造","金属制品业","闽侯县"]
["福州杰科玻璃技术有限公司","786942912",4011,"工业自动控制系统装置制造","仪器仪表制造业","闽侯县"]
["福州格瑞特灌溉设备有限公司","07504821X",3579,"其他农林牧渔业机械制造","专用设备制造业","闽侯县"]
["福州景天服装有限公司","56335905X",1830,"服饰制造","纺织服装、服饰业","闽侯县"]
["福州市亚特隆钢化玻璃有限公司","587502498",3042,"特种玻璃制造","非金属矿物制品业","闽侯县"]
["福州天泰行运动用品有限公司","678496505",1830,"服饰制造","纺织服装、服饰业","闽侯县"]
["福建福日照明有限公司","72972250X",3872,"照明灯具制造","电气机械和器材制造业","闽侯县"]
["福建华夏蓝天科技有限公司","MA2Y7GDR7",3411,"锅炉及辅助设备制造","通用设备制造业","闽侯县"]
["明辰智创商用设备（福建）有限公司","798386597",4190,"其他未列明制造业","其他制造业","闽侯县"]
["福建隆茂发电线电缆有限公司","MA33F6FP3",3251,"铜压延加工","有色金属冶炼和压延加工业","连江县"]
["福建省天源水产集团有限公司","717397105",1362,"鱼糜制品及水产品干腌制加工","农副食品加工业","连江县"]
["福建省光辉东升食品有限公司","081603611",1432,"速冻食品制造","食品制造业","连江县"]
["罗源鑫顺金属制品有限公司","676524752",3360,"金属表面处理及热处理加工","金属制品业","罗源县"]
["福建省闽清云龙兴龙陶瓷有限公司","680857103",3071,"建筑陶瓷制品制造","非金属矿物制品业","闽清县"]
["平潭北厝垃圾焚烧发电有限公司","587510279",4417,"生物质能发电","电力、热力生产和供应业","平潭县"]
["福州欧中电子有限公司","611303887",3981,"电阻电容电感元件制造","计算机、通信和其他电子设备制造业","鼓楼区"]
["福州宝利鞋材有限公司","260573235",1953,"塑料鞋制造","皮革、毛皮、羽毛及其制品和制鞋业","仓山区"]
["福州海霖机电有限公司","705117460",3311,"金属结构制造","金属制品业","仓山区"]
["福州成宇电力设备有限公司","MA32XF179",3823,"配电开关控制设备制造","电气机械和器材制造业","仓山区"]
["福建伟特服装有限公司","696612354",1819,"其他机织服装制造","纺织服装、服饰业","仓山区"]
["福建海峡环保资源开发有限公司","MA2Y4D084",3031,"粘土砖瓦及建筑砌块制造","非金属矿物制品业","晋安区"]
["福州冠泓新材料科技有限公司","077436478",2929,"塑料零件及其他塑料制品制造","橡胶和塑料制品业","马尾区"]
["福水智联技术有限公司","MA2YGLPB5",3919,"其他计算机制造","计算机、通信和其他电子设备制造业","马尾区"]
["福建壹合正泰针织有限公司","784534165",1761,"针织或钩针编织物织造","纺织业","长乐区"]
["福州市长乐区卓创纺织有限公司","MA2XP7XP0",1761,"针织或钩针编织物织造","纺织业","长乐区"]
["福州市长乐区宏丰针织有限公司","749085261",1763,"针织或钩针编织品制造","纺织业","长乐区"]
["福州家艺家居用品有限公司","665067656",2110,"木质家具制造","家具制造业","长乐区"]
["福州轩艺工艺品有限公司","593490809",2110,"木质家具制造","家具制造业","长乐区"]
["福州市长乐区航永纺织有限公司","098328695",1763,"针织或钩针编织品制造","纺织业","长乐区"]
["福州市长乐区裕锦针织有限公司","569272852",1761,"针织或钩针编织物织造","纺织业","长乐区"]
["福州天利和纺织有限公司","MA32TCD32",1761,"针织或钩针编织物织造","纺织业","长乐区"]
["福州市坤杰服饰科技有限公司","696623512",1819,"其他机织服装制造","纺织服装、服饰业","福清市"]
["大富包装（福建）有限公司","611325015",2319,"包装装潢及其他印刷","印刷和记录媒介复制业","福清市"]
["福州德恩机动车配件有限公司","770694651",3752,"摩托车零部件及配件制造","铁路、船舶、航空航天和其他运输设备制造业","福清市"]
["金球电器(福建)有限公司","611317592",2110,"木质家具制造","家具制造业","福清市"]
["福清新美光涂料有限公司","61132141X",2642,"油墨及类似产品制造","化学原料和化学制品制造业","福清市"]
["福清市明融制棉有限公司","705157542",1781,"非织造布制造","纺织业","福清市"]
["福州市福化环保科技有限公司","MA2XU73X2",4220,"非金属废料和碎屑加工处理","废弃资源综合利用业","福清市"]
["福建明水百科机车配件有限公司","784547513",3670,"汽车零部件及配件制造","汽车制造业","福清市"]
["福清市新榕兴农林开发有限公司","565395396",2012,"木片加工","木材加工和木、竹、藤、棕、草制品业","福清市"]
["福建旺龙顺粮油食品有限公司","662839841",1331,"食用植物油加工","农副食品加工业","闽侯县"]
["福建恒嘉环保设备有限公司","79609462X",3591,"环境保护专用设备制造","专用设备制造业","闽侯县"]
["福州锐丽信电子有限公司","MA345TL06",4011,"工业自动控制系统装置制造","仪器仪表制造业","闽侯县"]
["福州德科精密工业有限公司","678470962",3824,"电力电子元器件制造","电气机械和器材制造业","闽侯县"]
["福建恒源电力设备有限公司","58112377X",3823,"配电开关控制设备制造","电气机械和器材制造业","闽侯县"]
["福州富佳机电制造有限公司","611831807",3451,"滚动轴承制造","通用设备制造业","连江县"]
["连江安然燃气有限公司","753133406",4511,"天然气生产和供应业","燃气生产和供应业","连江县"]
["福建省磊鑫环保科技有限公司","337647408",3099,"其他非金属矿物制品制造","非金属矿物制品业","罗源县"]
["福建新科星新型建材有限公司","583138836",3031,"粘土砖瓦及建筑砌块制造","非金属矿物制品业","罗源县"]
["福州华宏消防科技有限公司","MA348L066",3353,"安全消防用金属制品制造","金属制品业","闽清县"]
["福建省闽清县安仁溪水力发电有限公司","154793891",4413,"水力发电","电力、热力生产和供应业","闽清县"]
["福州欣宇凯服饰有限公司","MA31KTA64",1811,"运动机织服装制造","纺织服装、服饰业","永泰县"]
["福建省平潭县看澳船舶修造有限公司","753114774",4342,"船舶修理","金属制品、机械和设备修理业","平潭县"]
["福州图腾易讯信息技术有限公司","59599658X",3913,"计算机外围设备制造","计算机、通信和其他电子设备制造业","鼓楼区"]
["福州晶丰玻璃有限公司","572969503",3059,"其他玻璃制品制造","非金属矿物制品业","仓山区"]
["福州君越鞋业有限公司","786949065",1953,"塑料鞋制造","皮革、毛皮、羽毛及其制品和制鞋业","仓山区"]
["福建一品居生物科技有限公司","MA31G01U2",1411,"糕点面包制造","食品制造业","仓山区"]
["福州和一食品有限公司","757373167",1372,"食用菌加工","农副食品加工业","仓山区"]
["福州立立丰鞋业有限公司","770679515",1953,"塑料鞋制造","皮革、毛皮、羽毛及其制品和制鞋业","仓山区"]
["福州辰星药业有限公司","611445068",2740,"中成药生产","医药制造业","仓山区"]
["福州光普电子有限公司","759395714",4030,"钟表与计时仪器制造","仪器仪表制造业","仓山区"]
["福州康派克光电科技有限公司","779610821",2926,"塑料包装箱及容器制造","橡胶和塑料制品业","仓山区"]
["福州榕棋鞋业有限公司","735684925",1953,"塑料鞋制造","皮革、毛皮、羽毛及其制品和制鞋业","仓山区"]
["万源(福州)药业有限公司","611315167",2720,"化学药品制剂制造","医药制造业","晋安区"]
["福州中福水表有限公司","784533525",4090,"其他仪器仪表制造业","仪器仪表制造业","晋安区"]
["福州任旺达广告印务有限公司","260200965",2311,"书报刊印刷","印刷和记录媒介复制业","晋安区"]
["福州金品建材有限公司","MA2XN9T64",3021,"水泥制品制造","非金属矿物制品业","马尾区"]
["福州华宸光电有限公司","563389558",3976,"光电子器件制造","计算机、通信和其他电子设备制造业","马尾区"]
["福州福联鞋业有限公司","075015725",1954,"橡胶鞋制造","皮革、毛皮、羽毛及其制品和制鞋业","马尾区"]
["福州郑一佳吸塑有限公司","775352423",2926,"塑料包装箱及容器制造","橡胶和塑料制品业","马尾区"]
["福州市长乐区勇杰针织有限公司","791792592",1763,"针织或钩针编织品制造","纺织业","长乐区"]
["福建福创建筑安全技术开发有限公司","753149352",3823,"配电开关控制设备制造","电气机械和器材制造业","长乐区"]
["长乐力申针织有限公司","054306961",1763,"针织或钩针编织品制造","纺织业","长乐区"]
["福建新鑫达针纺有限公司","789030476",1763,"针织或钩针编织品制造","纺织业","长乐区"]
["福建成和光电科技有限公司","MA2YEQ703",4040,"光学仪器制造","仪器仪表制造业","福清市"]
["福建欣星原电子有限公司","587510500",3130,"钢压延加工","黑色金属冶炼和压延加工业","福清市"]
["福建雄旺五金有限公司","753126556",3312,"金属门窗制造","金属制品业","福清市"]
["福建中酿酒业有限公司","MA33W38B9",1514,"黄酒制造","酒、饮料和精制茶制造业","福清市"]
["福建鑫东昇彩印包装有限公司","MA2YR89K1",2319,"包装装潢及其他印刷","印刷和记录媒介复制业","福清市"]
["福清杰翔鞋业有限公司","MA342Q1F7",1953,"塑料鞋制造","皮革、毛皮、羽毛及其制品和制鞋业","福清市"]
["福州富日衡之宝电子有限公司","726470802",4050,"衡器制造","仪器仪表制造业","闽侯县"]
["福建恒辉消防科技有限公司","MA2XN0XT3",3353,"安全消防用金属制品制造","金属制品业","闽侯县"]
["福州精诚丰机械设备有限公司","671915949",3499,"其他未列明通用设备制造业","通用设备制造业","闽侯县"]
["合信(福州)汽车工业有限公司","611332709",3670,"汽车零部件及配件制造","汽车制造业","闽侯县"]
["福建中创新型材料科技有限责任公司","335748619",3252,"铝压延加工","有色金属冶炼和压延加工业","闽侯县"]
["福州顺泰制衣有限公司","MA341ENL8",1830,"服饰制造","纺织服装、服饰业","闽侯县"]
["福州亿丰米业有限公司","786924706",1311,"稻谷加工","农副食品加工业","闽侯县"]
["福州慧邦机械设备有限公司","662825028",3572,"机械化农业及园艺机具制造","专用设备制造业","闽侯县"]
["福州亿邦塑胶有限公司","739542764",2927,"日用塑料制品制造","橡胶和塑料制品业","闽侯县"]
["福建震阳电气设备有限公司","694366575",3831,"电线电缆制造","电气机械和器材制造业","连江县"]
["瑞鑫集团（福州）输配电有限公司","581138197",3823,"配电开关控制设备制造","电气机械和器材制造业","连江县"]
["福州百味食品有限公司","26017498X",1461,"味精制造","食品制造业","连江县"]
["福州鑫协宏模具塑胶有限公司","666871638",3484,"机械零部件加工","通用设备制造业","连江县"]
["福建福宗实业集团有限公司","MA2Y3WY52",2929,"塑料零件及其他塑料制品制造","橡胶和塑料制品业","连江县"]
["福建海西宏伟科技有限公司","315655992",3311,"金属结构制造","金属制品业","罗源县"]
["永泰县瑞峰制衣有限公司","MA31YT067",1811,"运动机织服装制造","纺织服装、服饰业","永泰县"]
["福州万隆电子有限公司","61130568X",3312,"金属门窗制造","金属制品业","鼓楼区"]
["福州市福丰鞋楦有限公司","154521239",2929,"塑料零件及其他塑料制品制造","橡胶和塑料制品业","仓山区"]
["福建万福企业集团有限公司","61100959X",2927,"日用塑料制品制造","橡胶和塑料制品业","仓山区"]
["福州福润实业有限公司","761781913",2110,"木质家具制造","家具制造业","仓山区"]
["福州金佳龙塑料制品有限公司","749071804",1953,"塑料鞋制造","皮革、毛皮、羽毛及其制品和制鞋业","仓山区"]
["福建福菱建材科技有限公司","678485945",3031,"粘土砖瓦及建筑砌块制造","非金属矿物制品业","晋安区"]
["福州晋安区海峡饮品厂","733617227",1522,"瓶罐装饮用水制造","酒、饮料和精制茶制造业","晋安区"]
["福州嘉乐木业有限公司","743819447",2110,"木质家具制造","家具制造业","晋安区"]
["福州玉龙建材有限公司","775387458",2641,"涂料制造","化学原料和化学制品制造业","晋安区"]
["福建大同电子科技有限公司","687501767",3259,"其他有色金属压延加工","有色金属冶炼和压延加工业","马尾区"]
["福州三和精密轴有限公司","61144564X",3451,"滚动轴承制造","通用设备制造业","马尾区"]
["福州翔茂织造实业有限公司","154897068",1711,"棉纺纱加工","纺织业","长乐区"]
["福州市长乐区安生机器五金有限公司","611311713",3670,"汽车零部件及配件制造","汽车制造业","长乐区"]
["福建省长乐市宝顺羽绒服装有限公司","154897869",1941,"羽毛绒加工","皮革、毛皮、羽毛及其制品和制鞋业","长乐区"]
["福州市长乐区庆发针织有限公司","570955220",1763,"针织或钩针编织品制造","纺织业","长乐区"]
["福建福慧融家居用品有限公司","MA346XRG1",2110,"木质家具制造","家具制造业","长乐区"]
["福建尚绿宝智能科技有限公司","MA3342M61",3499,"其他未列明通用设备制造业","通用设备制造业","长乐区"]
["福州明凯纺织有限公司","669282070",1761,"针织或钩针编织物织造","纺织业","长乐区"]
["福州皇家地坪有限公司","662831911",3029,"其他水泥类似制品制造","非金属矿物制品业","福清市"]
["福清市瑞强制衣有限公司","MA31DR0R9",1819,"其他机织服装制造","纺织服装、服饰业","福清市"]
["福清市雄龙机械有限公司","739546343",3525,"模具制造","专用设备制造业","福清市"]
["福建汉凯制冷设备有限公司","MA31J97F9",3464,"制冷空调设备制造","通用设备制造业","福清市"]
["福建盛宏科技有限公司","786906073",2645,"染料制造","化学原料和化学制品制造业","福清市"]
["福建中鼎粮油食品有限公司","MA34A5JH4",1331,"食用植物油加工","农副食品加工业","福清市"]
["福清宏益食品有限公司","676543638",1362,"鱼糜制品及水产品干腌制加工","农副食品加工业","福清市"]
["福清市正源塑胶鞋业有限公司","757351785",1953,"塑料鞋制造","皮革、毛皮、羽毛及其制品和制鞋业","福清市"]
["福清市励治饲料有限公司","741674192",1329,"其他饲料加工","农副食品加工业","福清市"]
["福建大晟鞋业有限公司","MA34870W0",1952,"皮鞋制造","皮革、毛皮、羽毛及其制品和制鞋业","闽侯县"]
["福州福启橡塑有限公司","550970140",2919,"其他橡胶制品制造","橡胶和塑料制品业","闽侯县"]
["福州同泰电子有限公司","717330963",3823,"配电开关控制设备制造","电气机械和器材制造业","闽侯县"]
["福建省瑞利恒制衣有限公司","MA32BCBG8",1819,"其他机织服装制造","纺织服装、服饰业","闽侯县"]
["闽侯县榕森人造板有限公司","793796212",2021,"胶合板制造","木材加工和木、竹、藤、棕、草制品业","闽侯县"]
["国投（福建福州）城市资源循环利用有限公司","751374206",4210,"金属废料和碎屑加工处理","废弃资源综合利用业","闽侯县"]
["福州方之圆食品有限公司","052303361",1371,"蔬菜加工","农副食品加工业","闽侯县"]
["福州豪森时代实业有限公司","MA34EUEC1",2110,"木质家具制造","家具制造业","罗源县"]
["福建百泓达消防科技有限公司","MA2XPYAJ9",3312,"金属门窗制造","金属制品业","罗源县"]
["永泰县永正竹制品有限公司","MA2XRY529",2041,"竹制品制造","木材加工和木、竹、藤、棕、草制品业","永泰县"]
["福建省金弘顺农业开发有限责任公司","MA31KF2J1",1371,"蔬菜加工","农副食品加工业","永泰县"]
["福建祝融工程机械有限公司","772937602",3311,"金属结构制造","金属制品业","仓山区"]
["福州仁合创鑫实业有限公司","MA34FX6B6",1773,"窗帘布艺类产品制造","纺织业","仓山区"]
["福州兴春赠品制造有限公司","754953545",1783,"纺织带和帘子布制造","纺织业","仓山区"]
["福州冠洲电子有限公司","611341875",3975,"半导体照明器件制造","计算机、通信和其他电子设备制造业","仓山区"]
["福州泓创通电力设备有限公司","550951521",3823,"配电开关控制设备制造","电气机械和器材制造业","仓山区"]
["福建小春玻璃有限公司","687535799",3049,"其他玻璃制造","非金属矿物制品业","晋安区"]
["福州赛福电子科技有限公司","696619759",3569,"其他电子专用设备制造","专用设备制造业","晋安区"]
["福建海源三维高科技有限公司","070890440",3572,"机械化农业及园艺机具制造","专用设备制造业","晋安区"]
["福州鼎新高压电器有限公司","685073885",3823,"配电开关控制设备制造","电气机械和器材制造业","晋安区"]
["福建闽森家具有限公司","665052497",2110,"木质家具制造","家具制造业","晋安区"]
["福州诚丰制衣有限公司","MA8TJDUB8",1830,"服饰制造","纺织服装、服饰业","晋安区"]
["福州文泰机械铸造有限公司","749054529",3391,"黑色金属铸造","金属制品业","晋安区"]
["福州迷你冷冻食品有限公司","666897547",1362,"鱼糜制品及水产品干腌制加工","农副食品加工业","马尾区"]
["福州盛博电子有限公司","768587929",3940,"雷达及配套设备制造","计算机、通信和其他电子设备制造业","马尾区"]
["福州奥斯登充气玩具有限公司","064105768",2461,"露天游乐场所游乐设备制造","文教、工美、体育和娱乐用品制造业","马尾区"]
["福建汇邦包装有限公司","337472476",2319,"包装装潢及其他印刷","印刷和记录媒介复制业","长乐区"]
["福建红日电缆有限公司","666858089",3831,"电线电缆制造","电气机械和器材制造业","长乐区"]
["泰极纸业（福建）有限公司","593497189",2239,"其他纸制品制造","造纸和纸制品业","长乐区"]
["福州竹智家居用品有限公司","MA2YKMEXX",2110,"木质家具制造","家具制造业","长乐区"]
["福建鑫星针织有限公司","743804907",1763,"针织或钩针编织品制造","纺织业","长乐区"]
["福州福顺针织有限公司","751395381",1751,"化纤织造加工","纺织业","长乐区"]
["福建省楚天守正医药科技有限公司","685088251",2770,"卫生材料及医药用品制造药用辅料及包装材料","医药制造业","福清市"]
["福建省天海东方食品集团有限公司","761753963",1523,"果菜汁及果菜汁饮料制造","酒、饮料和精制茶制造业","福清市"]
["冠鸿光电科技(福建)有限公司","777526212",3989,"其他电子元件制造","计算机、通信和其他电子设备制造业","福清市"]
["福建晶丰玻璃有限公司","091355121",3051,"技术玻璃制品制造","非金属矿物制品业","福清市"]
["福建富昆实业有限公司","MABT3GW23",1761,"针织或钩针编织物织造","纺织业","福清市"]
["福州春祺鞋业有限公司","589567666",1953,"塑料鞋制造","皮革、毛皮、羽毛及其制品和制鞋业","福清市"]
["福清信首塑料制品有限公司","74383417X",2929,"塑料零件及其他塑料制品制造","橡胶和塑料制品业","福清市"]
["百利（福建）建材有限公司","665064201",2922,"塑料板管型材制造","橡胶和塑料制品业","福清市"]
["福清赢禾电子科技有限公司","56927935X",2130,"金属家具制造","家具制造业","福清市"]
["福州鑫中艺纸品印刷包装有限公司","757394750",2319,"包装装潢及其他印刷","印刷和记录媒介复制业","福清市"]
["金谷食品（福州）有限公司","097976121",1411,"糕点面包制造","食品制造业","福清市"]
["福建福老酒业有限公司","671938358",1514,"黄酒制造","酒、饮料和精制茶制造业","闽侯县"]
["福建创合电气股份有限公司","066587609",3823,"配电开关控制设备制造","电气机械和器材制造业","闽侯县"]
["福建奥飞新材料有限公司","MA33W6GAX",2641,"涂料制造","化学原料和化学制品制造业","闽侯县"]
["闽侯县三辉家居饰品有限公司","591739252",2439,"其他工艺美术及礼仪用品制造","文教、工美、体育和娱乐用品制造业","闽侯县"]
["福州金嘉利金属有限公司","77964524X",3351,"建筑家具用金属配件制造","金属制品业","闽侯县"]
["福州堂莹机械有限公司","687505602",3670,"汽车零部件及配件制造","汽车制造业","闽侯县"]
["福州景健工艺品有限公司","761767118",2433,"漆器工艺品制造","文教、工美、体育和娱乐用品制造业","闽侯县"]
["福州新秀工艺品有限公司","559575008",2439,"其他工艺美术及礼仪用品制造","文教、工美、体育和娱乐用品制造业","闽侯县"]
["福建云众动力科技有限公司","MA31K24B3",3841,"锂离子电池制造","电气机械和器材制造业","闽侯县"]
["福州益泰鞋材有限公司","662817036",1953,"塑料鞋制造","皮革、毛皮、羽毛及其制品和制鞋业","闽侯县"]
["福州荣创旅游用品有限公司","068762634",1922,"皮箱包袋制造","皮革、毛皮、羽毛及其制品和制鞋业","仓山区"]
["福州嘉山金属制品有限公司","MA2YA33Q6",3351,"建筑家具用金属配件制造","金属制品业","仓山区"]
["福州福磁电子科技有限公司","589567455",3979,"其他电子器件制造","计算机、通信和其他电子设备制造业","仓山区"]
["福州优恩立光电科技有限公司","315357530",3052,"光学玻璃制造","非金属矿物制品业","仓山区"]
["福建瑞达精工股份有限公司","611320863",4030,"钟表与计时仪器制造","仪器仪表制造业","仓山区"]
["福州楚鸣工艺品有限公司","MA32TE8L3",4030,"钟表与计时仪器制造","仪器仪表制造业","仓山区"]
["福州开泰工贸有限公司","678495473",1372,"食用菌加工","农副食品加工业","仓山区"]
["福州金威航信息科技有限公司","MA32TE2F6",3952,"音响设备制造","计算机、通信和其他电子设备制造业","仓山区"]
["福州东山德明华鞋业有限公司","766174805",1953,"塑料鞋制造","皮革、毛皮、羽毛及其制品和制鞋业","仓山区"]
["福州鑫阳光服装有限公司","MA2Y0NHQ5",1830,"服饰制造","纺织服装、服饰业","晋安区"]
["福州润森电气自动化有限公司","671905214",4028,"电子测量仪器制造","仪器仪表制造业","晋安区"]
["福州和升达表业有限公司","260190875",4030,"钟表与计时仪器制造","仪器仪表制造业","晋安区"]
["福建省恒昌电力科技有限公司","310674924",3821,"变压器整流器和电感器制造","电气机械和器材制造业","晋安区"]
["福建西伯力环保科技有限公司","784545200",3852,"家用空气调节器制造","电气机械和器材制造业","晋安区"]
["福州麦典服装有限公司","MA3320JB7",1830,"服饰制造","纺织服装、服饰业","晋安区"]
["福州鑫闽鑫金属制品有限公司","MA3483N98",3311,"金属结构制造","金属制品业","晋安区"]
["福州一凡科技有限公司","MA33G7C08",2926,"塑料包装箱及容器制造","橡胶和塑料制品业","马尾区"]
["福州凯美翼智能设备制造有限公司","MA2Y4JX80",3812,"电动机制造","电气机械和器材制造业","马尾区"]
["长乐华精密工业有限公司","777532583",3429,"其他金属加工机械制造","通用设备制造业","长乐区"]
["福州力天纺织有限公司","796054214",1763,"针织或钩针编织品制造","纺织业","长乐区"]
["福建美丽丝针纺有限公司","789046400",1763,"针织或钩针编织品制造","纺织业","长乐区"]
["福州市杰成针纺有限公司","589564166",1761,"针织或钩针编织物织造","纺织业","长乐区"]
["福建康威针纺有限公司","315764013",1761,"针织或钩针编织物织造","纺织业","长乐区"]
["福建新之源生物制品有限公司","705270836",1399,"其他未列明农副食品加工","农副食品加工业","长乐区"]
["福州市长乐区德容纺织有限公司","MA33Q7KY1",1761,"针织或钩针编织物织造","纺织业","长乐区"]
["福州茂捷包装材料有限公司","MA2Y8XKK6",2924,"泡沫塑料制造","橡胶和塑料制品业","福清市"]
["福建明辉电力系统有限公司","796078849",3811,"发电机及发电机组制造","电气机械和器材制造业","福清市"]
["中领心泉（福建）空气饮用水科技有限公司","MA349WLB6",3854,"家用厨房电器具制造","电气机械和器材制造业","福清市"]
["福清市盟达塑料包装制品有限公司","154919992",2921,"塑料薄膜制造","橡胶和塑料制品业","福清市"]
["福州永动泰盛热镀锌有限公司","075037369",3360,"金属表面处理及热处理加工","金属制品业","福清市"]
["福建白鸽鞋业有限公司","751370387",1953,"塑料鞋制造","皮革、毛皮、羽毛及其制品和制鞋业","福清市"]
["福州德匠家居用品有限公司","MA32CB8N9",2039,"软木制品及其他木制品制造","木材加工和木、竹、藤、棕、草制品业","闽侯县"]
["闽侯县盛达工艺品有限公司","731884620",2432,"金属工艺品制造","文教、工美、体育和娱乐用品制造业","闽侯县"]
["闽侯县山然工艺品有限公司","555065756",2432,"金属工艺品制造","文教、工美、体育和娱乐用品制造业","闽侯县"]
["福建成达科技有限公司","MA33M0K88",3462,"风机风扇制造","通用设备制造业","闽侯县"]
["闽侯县大目溪水力发电有限公司","757357191",4413,"水力发电","电力、热力生产和供应业","闽侯县"]
["福建球山隆塑业发展有限公司","081601229",2929,"塑料零件及其他塑料制品制造","橡胶和塑料制品业","闽侯县"]
["福州品轮智能科技有限公司","MA31WW566",3459,"其他传动部件制造","通用设备制造业","闽侯县"]
["福州东联实业有限公司","772918524",1954,"橡胶鞋制造","皮革、毛皮、羽毛及其制品和制鞋业","闽侯县"]
["福州翼翔电讯有限公司","754952972",3824,"电力电子元器件制造","电气机械和器材制造业","闽侯县"]
["福州恒昱工艺品有限公司","310723343",2432,"金属工艺品制造","文教、工美、体育和娱乐用品制造业","闽侯县"]
["福建山牛墘电气有限公司","MA2YMB589",3823,"配电开关控制设备制造","电气机械和器材制造业","闽侯县"]
["福建中科光汇激光科技有限公司","056121012",3990,"其他电子设备制造","计算机、通信和其他电子设备制造业","闽侯县"]
["福州市智明科技有限公司","MABYK5RC0",2319,"包装装潢及其他印刷","印刷和记录媒介复制业","连江县"]
["福建耀阳科技有限公司","MA8UQ2HM4",3251,"铜压延加工","有色金属冶炼和压延加工业","连江县"]
["永泰丰（福建）食品有限公司","MA2Y6NY62",1361,"水产品冷冻加工","农副食品加工业","连江县"]
["福建兴达船业有限公司","696612880",4342,"船舶修理","金属制品、机械和设备修理业","连江县"]
["福建奥博兹新材料科技有限公司","MA348RF33",2414,"墨水墨汁制造","文教、工美、体育和娱乐用品制造业","闽清县"]
["福建经纬护栏有限公司","31530632X",3311,"金属结构制造","金属制品业","闽清县"]
["福州荣旺工贸有限公司","798382246",3453,"齿轮及齿轮减变速箱制造","通用设备制造业","鼓楼区"]
["福建鼎旸信息科技股份有限公司","315344780",3921,"通信系统设备制造","计算机、通信和其他电子设备制造业","鼓楼区"]
["福州报业鸿升印刷有限责任公司","310745219",2311,"书报刊印刷","印刷和记录媒介复制业","仓山区"]
["福建美且有实业有限公司","MA2Y0R5D3",1411,"糕点面包制造","食品制造业","仓山区"]
["福州可源电子有限公司","054348651",3813,"微特电机及组件制造","电气机械和器材制造业","仓山区"]
["福建威凌通风设备有限公司","749085659",3462,"风机风扇制造","通用设备制造业","仓山区"]
["福州智元仪器设备有限公司","572971259",4027,"核子及核辐射测量仪器制造","仪器仪表制造业","仓山区"]
["福建洁博利厨卫科技有限公司","775384329",3983,"敏感元件及传感器制造","计算机、通信和其他电子设备制造业","仓山区"]
["福建巨泉集团有限公司","MA34618N0",3441,"泵及真空设备制造","通用设备制造业","晋安区"]
["福州金匙铸造有限公司","611312919",3252,"铝压延加工","有色金属冶炼和压延加工业","晋安区"]
["福州鑫霖电子有限公司","784528400",3979,"其他电子器件制造","计算机、通信和其他电子设备制造业","晋安区"]
["福建天昌发展有限公司","779637418",2311,"书报刊印刷","印刷和记录媒介复制业","晋安区"]
["恩耐斯（福建）科技有限公司","MA32P7U19",3716,"铁路专用设备及器材配件制造","铁路、船舶、航空航天和其他运输设备制造业","晋安区"]
["福州慧丰光电科技有限公司","260191755",3872,"照明灯具制造","电气机械和器材制造业","晋安区"]
["福州万家鸿盛建材有限公司","MA338TCB4",2641,"涂料制造","化学原料和化学制品制造业","晋安区"]
["福州泰京生物科技有限公司","611322164",2663,"林产化学产品制造","化学原料和化学制品制造业","晋安区"]
["福州膳芳食品有限公司","084318517",1432,"速冻食品制造","食品制造业","马尾区"]
["福州捷飞商业设备有限公司","MA2XQJDC5",3475,"计算器及货币专用设备制造","通用设备制造业","马尾区"]
["福州顺达金属工业有限公司","561682304",3252,"铝压延加工","有色金属冶炼和压延加工业","马尾区"]
["福建埃克斯动力设备有限公司","MA8TDGRA6",3811,"发电机及发电机组制造","电气机械和器材制造业","长乐区"]
["长乐市金诚织造有限公司","72645575X",1761,"针织或钩针编织物织造","纺织业","长乐区"]
["福州辰高家居用品有限公司","MA35A2XJ2",2110,"木质家具制造","家具制造业","长乐区"]
["福州鑫泰家居有限公司","33758737X",2110,"木质家具制造","家具制造业","长乐区"]
["福州市影深科技发展有限公司","MA2XNQR41",2924,"泡沫塑料制造","橡胶和塑料制品业","福清市"]
["福州欣富宇服饰有限公司","MA31QNK99",1821,"运动休闲针织服装制造","纺织服装、服饰业","福清市"]
["福清华发包装有限公司","569298390",2319,"包装装潢及其他印刷","印刷和记录媒介复制业","福清市"]
["福清市宏联电子有限公司","MA31DB311",2929,"塑料零件及其他塑料制品制造","橡胶和塑料制品业","福清市"]
["福州捷东家具有限公司","335721846",2110,"木质家具制造","家具制造业","福清市"]
["福清宏森人造板有限公司","666862731",2029,"其他人造板制造","木材加工和木、竹、藤、棕、草制品业","福清市"]
["福清市福一建材有限公司","054311066",4210,"金属废料和碎屑加工处理","废弃资源综合利用业","福清市"]
["福建杰荣不锈钢商用设备有限公司","06226444X",3381,"金属制厨房用器具制造","金属制品业","福清市"]
["福清成丰鞋业有限公司","796084763",1953,"塑料鞋制造","皮革、毛皮、羽毛及其制品和制鞋业","福清市"]
["福州众翔包装材料有限公司","570965007",2319,"包装装潢及其他印刷","印刷和记录媒介复制业","福清市"]
["福建榕灿电气科技有限公司","MA8RKPYC8",3823,"配电开关控制设备制造","电气机械和器材制造业","闽侯县"]
["福州跃翔兄弟鞋业有限公司","MA344253X",1953,"塑料鞋制造","皮革、毛皮、羽毛及其制品和制鞋业","闽侯县"]
["福州巨点鞋业有限公司","M0001A29X",1954,"橡胶鞋制造","皮革、毛皮、羽毛及其制品和制鞋业","闽侯县"]
["福州常兴制冷设备有限公司","735688862",3464,"制冷空调设备制造","通用设备制造业","闽侯县"]
["福州启翔包装制品有限公司","766189804",2927,"日用塑料制品制造","橡胶和塑料制品业","闽侯县"]
["福州鑫裕协新能源有限公司","MA2Y12QP2",2542,"生物质致密成型燃料加工","石油加工、炼焦和核燃料加工业","闽侯县"]
["福建鑫冠和智能科技有限公司","MA344NWY2",3670,"汽车零部件及配件制造","汽车制造业","闽侯县"]
["福州超一工艺品有限公司","784540186",2433,"漆器工艺品制造","文教、工美、体育和娱乐用品制造业","闽侯县"]
["斯坦途（福建）防火材料有限公司","587515299",3089,"耐火陶瓷制品及其他耐火材料制造","非金属矿物制品业","闽侯县"]
["福建锐霸机电有限公司","666853325",3412,"内燃机及配件制造","通用设备制造业","闽侯县"]
["福建恒通塑胶管业科技有限公司","761763854",2922,"塑料板管型材制造","橡胶和塑料制品业","闽侯县"]
["福州光华百特饲料有限公司","717300801",1329,"其他饲料加工","农副食品加工业","闽侯县"]
["福建省中马人防设备有限公司","399361472",3022,"砼结构构件制造","非金属矿物制品业","连江县"]
["福州润弘家居制造有限公司","MA2YYNHM8",2432,"金属工艺品制造","文教、工美、体育和娱乐用品制造业","连江县"]
["罗源山林食品有限公司","611326990",1369,"其他水产品加工","农副食品加工业","罗源县"]
["福州市大松包装有限公司","MA34G4QP4",2239,"其他纸制品制造","造纸和纸制品业","罗源县"]
["福建省罗港实业发展有限公司","MA326CAR4",3021,"水泥制品制造","非金属矿物制品业","罗源县"]
["福州云起金属有限公司","MA33EDNJ9",3484,"机械零部件加工","通用设备制造业","罗源县"]
["福建鼎融新型环保材料有限公司","MA33AYW14",3252,"铝压延加工","有色金属冶炼和压延加工业","罗源县"]
["福州欧尚装饰工程有限公司","MA2YGNY91",3312,"金属门窗制造","金属制品业","闽清县"]
["福建信飞光电有限公司","MA31N95W7",3976,"光电子器件制造","计算机、通信和其他电子设备制造业","永泰县"]
["福州创奇服饰有限公司","784545817",1811,"运动机织服装制造","纺织服装、服饰业","鼓楼区"]
["福州强盛鞋业有限公司","738002627",1953,"塑料鞋制造","皮革、毛皮、羽毛及其制品和制鞋业","仓山区"]
["福建占峰通风设备有限公司","764094529",3462,"风机风扇制造","通用设备制造业","仓山区"]
["福州金湖汽车配件有限公司","754968173",3670,"汽车零部件及配件制造","汽车制造业","仓山区"]
["福建擎名模具制造有限公司","MA331Q132",3525,"模具制造","专用设备制造业","仓山区"]
["福建骏鹏易丰商用设备有限公司","310780524",3969,"其他智能消费设备制造","计算机、通信和其他电子设备制造业","仓山区"]
["福州智博特智能家居有限公司","MA2Y3W54X",3311,"金属结构制造","金属制品业","仓山区"]
["福州金信光电有限公司","550993916",3052,"光学玻璃制造","非金属矿物制品业","仓山区"]
["福州顺盛鞋业有限公司","666891794",1953,"塑料鞋制造","皮革、毛皮、羽毛及其制品和制鞋业","仓山区"]
["福州麟造印刷有限公司","779600295",2311,"书报刊印刷","印刷和记录媒介复制业","晋安区"]
["福建联畅科技有限公司","553248970",3714,"高铁设备配件制造","铁路、船舶、航空航天和其他运输设备制造业","晋安区"]
["福建闽仪自动化设备有限公司","MA2Y0YA24",4011,"工业自动控制系统装置制造","仪器仪表制造业","晋安区"]
["福州立日有食品有限公司","759386092",1353,"肉制品及副产品加工","农副食品加工业","晋安区"]
["福州诚丰塑料制品有限公司","260189671",2927,"日用塑料制品制造","橡胶和塑料制品业","晋安区"]
["福州山本服装有限公司","611305145",1819,"其他机织服装制造","纺织服装、服饰业","晋安区"]
["福建水仙山泉饮用水有限公司","MA2XNR6H7",1522,"瓶罐装饮用水制造","酒、饮料和精制茶制造业","晋安区"]
["科正（福州）机电制造有限公司","782167103",3423,"铸造机械制造","通用设备制造业","晋安区"]
["福州博润化工科技有限公司","691902491",2669,"其他专用化学产品制造","化学原料和化学制品制造业","晋安区"]
["福建创高智联技术股份有限公司","759382024",3969,"其他智能消费设备制造","计算机、通信和其他电子设备制造业","马尾区"]
["福州友宝电子科技有限公司","054328124",3594,"商业饮食服务专用设备制造","专用设备制造业","马尾区"]
["福州需求侧电力科技有限公司","MA348QDC1",3569,"其他电子专用设备制造","专用设备制造业","马尾区"]
["福州市佳宇纺织器材有限公司","749092007",3551,"纺织专用设备制造","专用设备制造业","长乐区"]
["长乐众杰家具有限公司","M000143G7",2110,"木质家具制造","家具制造业","长乐区"]
["长乐市东方钢铁制品有限公司","705159388",3130,"钢压延加工","黑色金属冶炼和压延加工业","长乐区"]
["福建佳鑫针织有限公司","784544312",1712,"棉织造加工","纺织业","长乐区"]
["长乐宏业经编有限公司","743841919",1763,"针织或钩针编织品制造","纺织业","长乐区"]
["福州市旭盛纸业有限公司","054321539",2231,"纸和纸板容器制造","造纸和纸制品业","长乐区"]
["福州市长乐区美源纺织有限公司","779649531",1763,"针织或钩针编织品制造","纺织业","长乐区"]
["福清市昱兴电子配件有限公司","678474250",2913,"橡胶零件制造","橡胶和塑料制品业","福清市"]
["洪璞园（福建）农业科技有限公司","099257227",1373,"水果和坚果加工","农副食品加工业","福清市"]
["万鼎机械实业（福清）有限公司","775396645",3525,"模具制造","专用设备制造业","福清市"]
["福清东晖运动用品有限公司","74169971X",1922,"皮箱包袋制造","皮革、毛皮、羽毛及其制品和制鞋业","福清市"]
["福清卓晟翔鞋业有限公司","782160147",1953,"塑料鞋制造","皮革、毛皮、羽毛及其制品和制鞋业","福清市"]
["福建青祥鞋业有限公司","MA33BLGA6",1953,"塑料鞋制造","皮革、毛皮、羽毛及其制品和制鞋业","福清市"]
["福州市辰翔家居制造有限公司","060377053",2439,"其他工艺美术及礼仪用品制造","文教、工美、体育和娱乐用品制造业","闽侯县"]
["福建五翔实业股份有限公司","MA32TB977",3823,"配电开关控制设备制造","电气机械和器材制造业","闽侯县"]
["福建众安药业有限公司","058400146",2740,"中成药生产","医药制造业","闽侯县"]
["福州鸿业科技有限公司","MA349XE8X",2929,"塑料零件及其他塑料制品制造","橡胶和塑料制品业","闽侯县"]
["元可（福建）食品有限公司","550994644",1392,"豆制品制造","农副食品加工业","闽侯县"]
["福建万施博建材有限公司","793780069",3033,"防水建筑材料制造","非金属矿物制品业","闽侯县"]
["敖顺（福州）实业有限公司","MA334QLE6",2651,"初级形态塑料及合成树脂制造","化学原料和化学制品制造业","闽侯县"]
["福建省瑞亿机械制造有限公司","555079621",3515,"建筑材料生产专用机械制造","专用设备制造业","闽侯县"]
["赛尔康（福建）生物科技有限公司","MA339KXF1",2770,"卫生材料及医药用品制造药用辅料及包装材料","医药制造业","闽侯县"]
["福建蓝美新材料有限公司","337597017",3039,"其他建筑材料制造","非金属矿物制品业","闽侯县"]
["福州恒亮塑胶科技有限公司","597889091",1959,"其他制鞋业","皮革、毛皮、羽毛及其制品和制鞋业","闽侯县"]
["福建省神力重工科技有限公司","731850762",3432,"生产专用起重机制造","通用设备制造业","闽侯县"]
["福建恒达建材有限公司","761763862",3021,"水泥制品制造","非金属矿物制品业","闽侯县"]
["福州国化智能技术有限公司","MA2XN5LH2",3919,"其他计算机制造","计算机、通信和其他电子设备制造业","闽侯县"]
["海环资源科技有限责任公司","MA33RAN73",3039,"其他建筑材料制造","非金属矿物制品业","连江县"]
["福建省旺达渔业发展有限公司","MA2Y3WARX",1361,"水产品冷冻加工","农副食品加工业","连江县"]
["福州长德新型材料有限公司","MA331G063",3031,"粘土砖瓦及建筑砌块制造","非金属矿物制品业","罗源县"]
["福建道远节能环保科技有限公司","666864331",2661,"化学试剂和助剂制造","化学原料和化学制品制造业","罗源县"]
["福州群安消防设备有限公司","595977493",3595,"社会公共安全设备及器材制造","专用设备制造业","闽清县"]
["福州报业印务有限公司","154424631",2311,"书报刊印刷","印刷和记录媒介复制业","仓山区"]
["福建易美特电子科技有限公司","587528399",4030,"钟表与计时仪器制造","仪器仪表制造业","仓山区"]
["福州锦星服装服饰有限公司","751362037",1783,"纺织带和帘子布制造","纺织业","仓山区"]
["福州市长乐区新中亚针纺有限公司","05431681X",1761,"针织或钩针编织物织造","纺织业","长乐区"]
["福建省盛凯恒业发展有限公司","MA32937B6",1761,"针织或钩针编织物织造","纺织业","长乐区"]
["福建伊思特家具科技有限公司","09728968X",2110,"木质家具制造","家具制造业","闽侯县"]
["福州鑫博森家居用品有限公司","MA346EFH1",2110,"木质家具制造","家具制造业","闽清县"]
["福建省集兴电业发展有限公司","753105456",4413,"水力发电","电力、热力生产和供应业","永泰县"]
["福建省平潭雄鹰船厂有限公司","X29755781",4342,"船舶修理","金属制品、机械和设备修理业","平潭县"]
["福建天诚电子科技开发有限公司","158179805",3953,"影视录放设备制造","计算机、通信和其他电子设备制造业","仓山区"]
["福建省先行电力设备有限公司","158175425",3823,"配电开关控制设备制造","电气机械和器材制造业","仓山区"]
["福州卓异电子有限公司","260201968",3953,"影视录放设备制造","计算机、通信和其他电子设备制造业","仓山区"]
["福州阳光百纳工贸有限公司","696606341",1922,"皮箱包袋制造","皮革、毛皮、羽毛及其制品和制鞋业","仓山区"]
["福州科迪电子技术有限公司","260183894",4050,"衡器制造","仪器仪表制造业","仓山区"]
["福建壹刻食品科技有限公司","05430670X",1411,"糕点面包制造","食品制造业","仓山区"]
["福州市长乐区利华塑胶有限公司","746397737",2922,"塑料板管型材制造","橡胶和塑料制品业","长乐区"]
["福州市长乐区顺鑫针织有限公司","741679225",1763,"针织或钩针编织品制造","纺织业","长乐区"]
["福建七星针织有限公司","077434720",1761,"针织或钩针编织物织造","纺织业","长乐区"]
["福州市长乐区日升针织有限公司","705158449",1763,"针织或钩针编织品制造","纺织业","长乐区"]
["福建福盛门业制造有限公司","757380180",3312,"金属门窗制造","金属制品业","福清市"]
["福州安昌汽车部件有限公司","587539119",3670,"汽车零部件及配件制造","汽车制造业","闽侯县"]
["闽侯县华红工艺品有限公司","764053970",2433,"漆器工艺品制造","文教、工美、体育和娱乐用品制造业","闽侯县"]
["福州森科木业有限公司","315600369",2021,"胶合板制造","木材加工和木、竹、藤、棕、草制品业","连江县"]
["博德波特国际酒庄有限公司","MA2Y9CD65",1515,"葡萄酒制造","酒、饮料和精制茶制造业","平潭县"]
["丽声助听器(福州)有限公司","611333998",3586,"康复辅具制造","专用设备制造业","鼓楼区"]
["福建福州威诚工艺品有限公司","611009098",2041,"竹制品制造","木材加工和木、竹、藤、棕、草制品业","仓山区"]
["福州昌晖自动化系统有限公司","611337294",4011,"工业自动控制系统装置制造","仪器仪表制造业","仓山区"]
["福州先行机柜制造有限公司","726477297",3823,"配电开关控制设备制造","电气机械和器材制造业","仓山区"]
["福州奔翔彩印有限公司","557554414",2311,"书报刊印刷","印刷和记录媒介复制业","晋安区"]
["长乐市富贵花边针织有限公司","717357306",1763,"针织或钩针编织品制造","纺织业","长乐区"]
["福州隆福水产有限公司","154875387",1361,"水产品冷冻加工","农副食品加工业","长乐区"]
["福建正茂塑胶制品有限公司","611336136",2927,"日用塑料制品制造","橡胶和塑料制品业","福清市"]
["福建恒远翔再生资源开发利用有限公司","574743364",2662,"专项化学用品制造","化学原料和化学制品制造业","福清市"]
["福清宝信电子科技有限公司","MA34742U3",2661,"化学试剂和助剂制造","化学原料和化学制品制造业","福清市"]
["福州闽侯兰顿塑胶有限公司","611324143",2927,"日用塑料制品制造","橡胶和塑料制品业","闽侯县"]
["福建省东德木业有限公司","793793409",2021,"胶合板制造","木材加工和木、竹、藤、棕、草制品业","闽侯县"]
["福州智宇工艺品有限公司","569260843",2110,"木质家具制造","家具制造业","闽侯县"]
["福建省闽侯县峰峰豆制品有限公司","759375123",1392,"豆制品制造","农副食品加工业","闽侯县"]
["福州萍晴日用化妆品有限公司","74169816X",2682,"化妆品制造","化学原料和化学制品制造业","罗源县"]
["福州卓恩服饰有限公司","76179794X",1819,"其他机织服装制造","纺织服装、服饰业","仓山区"]
["中建精彩（福州）印务有限公司","786937101",2311,"书报刊印刷","印刷和记录媒介复制业","仓山区"]
["福州金翔食品机械设备技术有限公司","683057910",3531,"食品酒饮料及茶生产专用设备制造","专用设备制造业","晋安区"]
["福州日光照明电器有限公司","611305233",3871,"电光源制造","电气机械和器材制造业","晋安区"]
["福州海天地食品有限公司","749057842",1351,"牲畜屠宰","农副食品加工业","马尾区"]
["福建梅生医疗科技股份有限公司","260184651",3582,"口腔科用设备及器具制造","专用设备制造业","马尾区"]
["福州翁财记食品有限公司","611446239",1373,"水果和坚果加工","农副食品加工业","马尾区"]
["福州恒华新材料有限公司","759371747",1781,"非织造布制造","纺织业","长乐区"]
["长乐海之蓝针织有限公司","59348621X",1712,"棉织造加工","纺织业","长乐区"]
["长乐恩盛针织有限公司","597888750",1763,"针织或钩针编织品制造","纺织业","长乐区"]
["福州市长乐区亚多帽业有限公司","611333349",2435,"天然植物纤维编织工艺品制造","文教、工美、体育和娱乐用品制造业","长乐区"]
["福州得力通机动车部件有限公司","770688032",3752,"摩托车零部件及配件制造","铁路、船舶、航空航天和其他运输设备制造业","福清市"]
["闽侯县大阳工艺品有限公司","791780516",2431,"雕塑工艺品制造","文教、工美、体育和娱乐用品制造业","闽侯县"]
["福州华萱机械有限公司","726472568",3670,"汽车零部件及配件制造","汽车制造业","闽侯县"]
["福建杜尔阀业科技有限公司","MA2XN9ET7",3443,"阀门和旋塞制造","通用设备制造业","罗源县"]
["罗源创新环保科技有限责任公司","MA2Y3A371",3099,"其他非金属矿物制品制造","非金属矿物制品业","罗源县"]
["福建亿森竹业有限公司","MA2YEER40",2041,"竹制品制造","木材加工和木、竹、藤、棕、草制品业","罗源县"]
["福建合顺微电子有限公司","726436073",3973,"集成电路制造","计算机、通信和其他电子设备制造业","仓山区"]
["福州永南实业有限公司","260573075",1953,"塑料鞋制造","皮革、毛皮、羽毛及其制品和制鞋业","仓山区"]
["福州睿恒机械有限公司","MA32P1GU0",3484,"机械零部件加工","通用设备制造业","仓山区"]
["福州百福机电有限公司","611334237",3973,"集成电路制造","计算机、通信和其他电子设备制造业","仓山区"]
["福州皇杰金属制品有限公司","784548671",3311,"金属结构制造","金属制品业","仓山区"]
["福州市长乐区凤翔纺织有限公司","779601829",1712,"棉织造加工","纺织业","长乐区"]
["福建鑫旺药品包装有限公司","579279599",2929,"塑料零件及其他塑料制品制造","橡胶和塑料制品业","福清市"]
["福清市聚丰饲料有限公司","743845389",1329,"其他饲料加工","农副食品加工业","福清市"]
["福清大豪鞋业有限公司","759396434",1953,"塑料鞋制造","皮革、毛皮、羽毛及其制品和制鞋业","福清市"]
["福州奋翼铝业有限公司","MA8RER268",3252,"铝压延加工","有色金属冶炼和压延加工业","闽侯县"]
["福建明业新能源科技有限公司","674025351",3979,"其他电子器件制造","计算机、通信和其他电子设备制造业","闽侯县"]
["福建茂达建材有限公司","052347700",3021,"水泥制品制造","非金属矿物制品业","连江县"]
["福建昇源达新型建材有限公司","MA3517968",3099,"其他非金属矿物制品制造","非金属矿物制品业","罗源县"]
["宸鸿科技（平潭）有限公司","062263367",3969,"其他智能消费设备制造","计算机、通信和其他电子设备制造业","平潭县"]
["福州诚普光学仪器有限公司","611342552",4040,"光学仪器制造","仪器仪表制造业","鼓楼区"]
["福州鑫越通风设备有限公司","784523044",3462,"风机风扇制造","通用设备制造业","仓山区"]
["福州福水源水务设备有限公司","574721165",3597,"水资源专用机械制造","专用设备制造业","仓山区"]
["福州日宏电子有限公司","770657973",4030,"钟表与计时仪器制造","仪器仪表制造业","仓山区"]
["福州福尔流体设备有限公司","724246065",3332,"金属压力容器制造","金属制品业","仓山区"]
["盛和(福建)机械制造有限公司","777536787",3434,"连续搬运设备制造","通用设备制造业","仓山区"]
["福州和声钢琴股份有限公司","611300766",2422,"西乐器制造","文教、工美、体育和娱乐用品制造业","仓山区"]
["福建亿兆自动化设备有限公司","555098267",4011,"工业自动控制系统装置制造","仪器仪表制造业","仓山区"]
["福建恒达教育装备工程有限公司","741694118",2413,"教学用模型及教具制造","文教、工美、体育和娱乐用品制造业","仓山区"]
["福州盛亿鞋业有限公司","741690651",1953,"塑料鞋制造","皮革、毛皮、羽毛及其制品和制鞋业","仓山区"]
["福州恒鑫实业有限公司","786937996",1763,"针织或钩针编织品制造","纺织业","长乐区"]
["福建富宇经编有限公司","154871888",1763,"针织或钩针编织品制造","纺织业","长乐区"]
["福建东三木针纺有限责任公司","567335119",1761,"针织或钩针编织物织造","纺织业","长乐区"]
["福州市长乐区同德针纺有限公司","15486459X",1763,"针织或钩针编织品制造","纺织业","长乐区"]
["福州市长乐区佳源纸业有限公司","MA3486UR8",2223,"加工纸制造","造纸和纸制品业","长乐区"]
["福建省航力船舶构件有限公司","315361230",3734,"船用配套设备制造","铁路、船舶、航空航天和其他运输设备制造业","长乐区"]
["福清宥达精密工业有限公司","777516225",3525,"模具制造","专用设备制造业","福清市"]
["大可老杨（福建）食品有限公司","MA31RMF57",1419,"饼干及其他焙烤食品制造","食品制造业","福清市"]
["福清市弘康鞋业有限公司","075038396",1953,"塑料鞋制造","皮革、毛皮、羽毛及其制品和制鞋业","福清市"]
["福建丞翔家具有限公司","784509752",2110,"木质家具制造","家具制造业","福清市"]
["福建博斯电机有限公司","577043793",3811,"发电机及发电机组制造","电气机械和器材制造业","闽侯县"]
["福州大世界天然食品有限公司","749097326",1523,"果菜汁及果菜汁饮料制造","酒、饮料和精制茶制造业","闽侯县"]
["福建新景驰锐钢结构有限公司","MA34BA054",3311,"金属结构制造","金属制品业","罗源县"]
["福建安之源消防科技有限公司","MA2XNUFW5",3312,"金属门窗制造","金属制品业","罗源县"]
["福州唯氏机械有限公司","705145058",2662,"专项化学用品制造","化学原料和化学制品制造业","闽清县"]
["福建省永泰县华欣竹木制品有限公司","095900174",2435,"天然植物纤维编织工艺品制造","文教、工美、体育和娱乐用品制造业","永泰县"]
["平潭综合实验区坛南湾水产食品有限公司","572982599",1361,"水产品冷冻加工","农副食品加工业","平潭县"]
["福州隆诚服装有限公司","727917696",1811,"运动机织服装制造","纺织服装、服饰业","仓山区"]
["福州英荷日用化学品有限公司","154428229",2682,"化妆品制造","化学原料和化学制品制造业","仓山区"]
["百纳（福建）电子有限公司","766198698",3823,"配电开关控制设备制造","电气机械和器材制造业","仓山区"]
["福州柏物产食品有限公司","611344996",1372,"食用菌加工","农副食品加工业","仓山区"]
["福建榕晟电气有限公司","MA3232E3X",3823,"配电开关控制设备制造","电气机械和器材制造业","仓山区"]
["福州帆顺鞋业有限公司","MA344HQH9",1953,"塑料鞋制造","皮革、毛皮、羽毛及其制品和制鞋业","仓山区"]
["福州三兴家居用品有限公司","764070834",4090,"其他仪器仪表制造业","仪器仪表制造业","晋安区"]
["福州锦星元印务有限公司","775351738",2311,"书报刊印刷","印刷和记录媒介复制业","晋安区"]
["福州市长乐区昌龙针织有限公司","628517320",1763,"针织或钩针编织品制造","纺织业","长乐区"]
["福清壹物电子材料有限公司","MA2YBYH53",2924,"泡沫塑料制造","橡胶和塑料制品业","福清市"]
["闽侯县皓星家居饰品有限公司","557560187",2110,"木质家具制造","家具制造业","闽侯县"]
["福州市辰飞家居饰品有限公司","555076121",2434,"花画工艺品制造","文教、工美、体育和娱乐用品制造业","闽侯县"]
["福建胜华农业科技发展有限公司","76858076X",1331,"食用植物油加工","农副食品加工业","永泰县"]
["福州永鑫塑料包装用品有限公司","741697933",2921,"塑料薄膜制造","橡胶和塑料制品业","平潭县"]
["福建世通装配式桥梁大构件有限公司","MA324XUJ2",3022,"砼结构构件制造","非金属矿物制品业","鼓楼区"]
["福建渃博特自动化设备有限公司","MA2XTFWDX",4011,"工业自动控制系统装置制造","仪器仪表制造业","仓山区"]
["福州翔鹰日用品有限公司","777509762",2929,"塑料零件及其他塑料制品制造","橡胶和塑料制品业","仓山区"]
["蓝佳堂生物医药（福建）有限公司","070895778",1781,"非织造布制造","纺织业","仓山区"]
["福州市龙腾新型建材有限公司","MA2XX2AG0",3031,"粘土砖瓦及建筑砌块制造","非金属矿物制品业","仓山区"]
["福州鑫腾龙制衣有限公司","MA34D0H3X",1819,"其他机织服装制造","纺织服装、服饰业","晋安区"]
["福州盛伟机械制造有限公司","759351260",3484,"机械零部件加工","通用设备制造业","长乐区"]
["福建省金畅塑胶管业有限公司","777541527",2922,"塑料板管型材制造","橡胶和塑料制品业","福清市"]
["福清市益兴堂卫生制品有限公司","757353449",2770,"卫生材料及医药用品制造药用辅料及包装材料","医药制造业","福清市"]
["福州旗进工艺品有限责任公司","666855048",2432,"金属工艺品制造","文教、工美、体育和娱乐用品制造业","闽侯县"]
["福建省世钻高新建材有限公司","796074418",3031,"粘土砖瓦及建筑砌块制造","非金属矿物制品业","连江县"]
["福州旗开玻璃有限责任公司","MA2YK0BA2",3059,"其他玻璃制品制造","非金属矿物制品业","连江县"]
["福建佳宇建材制品有限公司","678480546",3031,"粘土砖瓦及建筑砌块制造","非金属矿物制品业","连江县"]
["永泰县庆德服饰有限公司","MA321W8U3",1811,"运动机织服装制造","纺织服装、服饰业","永泰县"]
["福州贝石轴承有限公司","633908051",3451,"滚动轴承制造","通用设备制造业","仓山区"]
["福州锦雅服装有限公司","MA33EGFT8",1811,"运动机织服装制造","纺织服装、服饰业","仓山区"]
["福州中天迅通信技术有限公司","MA2XN9203",3983,"敏感元件及传感器制造","计算机、通信和其他电子设备制造业","仓山区"]
["福州奥林包袋有限公司","685076437",1922,"皮箱包袋制造","皮革、毛皮、羽毛及其制品和制鞋业","仓山区"]
["阿帕索（福州）制衣有限公司","678471543",1811,"运动机织服装制造","纺织服装、服饰业","仓山区"]
["福州华博精密模具有限公司","676541392",3525,"模具制造","专用设备制造业","仓山区"]
["福州美佳环保资源开发有限公司","565366341",4220,"非金属废料和碎屑加工处理","废弃资源综合利用业","晋安区"]
["福州恒彩坊纺织有限公司","674013748",1761,"针织或钩针编织物织造","纺织业","长乐区"]
["福州市长乐区晨龙针纺有限公司","743825919",1763,"针织或钩针编织品制造","纺织业","长乐区"]
["福建东盛家具有限公司","MA348QA98",2110,"木质家具制造","家具制造业","长乐区"]
["福州星月家居装饰用品有限公司","782185272",2433,"漆器工艺品制造","文教、工美、体育和娱乐用品制造业","闽侯县"]
["福建春添粮油食品有限公司","MA346CUC0",1331,"食用植物油加工","农副食品加工业","闽侯县"]
["和永建( 连江 )电器有限公司","611304222",3879,"灯用电器附件及其他照明器具制造","电气机械和器材制造业","连江县"]
["福州源丰机械工业有限公司","633908940",3553,"缝制机械制造","专用设备制造业","连江县"]
["福建省罗源县美味食品有限公司","705141583",1353,"肉制品及副产品加工","农副食品加工业","罗源县"]
["罗源县金源竹业有限公司","759370840",2041,"竹制品制造","木材加工和木、竹、藤、棕、草制品业","罗源县"]
["福建省汇森宝整体家居有限公司","MA31EWU91",2110,"木质家具制造","家具制造业","闽清县"]
["闽清思路博实业有限公司","MA34QL9TX",1953,"塑料鞋制造","皮革、毛皮、羽毛及其制品和制鞋业","闽清县"]
["福建路友茶业有限公司","154625484",1530,"精制茶加工","酒、饮料和精制茶制造业","仓山区"]
["福州晨飞鞋业有限公司","680878967",1953,"塑料鞋制造","皮革、毛皮、羽毛及其制品和制鞋业","仓山区"]
["福州龙恒电子有限公司","775371018",4030,"钟表与计时仪器制造","仪器仪表制造业","仓山区"]
["福建嘉鑫博源电子科技有限公司","077449076",3841,"锂离子电池制造","电气机械和器材制造业","仓山区"]
["福州吉昌服装有限公司","MA32TEB43",1819,"其他机织服装制造","纺织服装、服饰业","仓山区"]
["福州山崎钢板有限公司","611445244",3311,"金属结构制造","金属制品业","马尾区"]
["福建长龙针织有限公司","705158756",1763,"针织或钩针编织品制造","纺织业","长乐区"]
["福州烨恒针纺有限公司","MA33R7X28",1761,"针织或钩针编织物织造","纺织业","长乐区"]
["福清市五环车辆部件实业有限公司","766178865",3670,"汽车零部件及配件制造","汽车制造业","福清市"]
["福建中镁材料科技有限公司","MA3270HP5",2023,"刨花板制造","木材加工和木、竹、藤、棕、草制品业","福清市"]
["闽侯县日中天工艺品有限公司","796063647",2439,"其他工艺美术及礼仪用品制造","文教、工美、体育和娱乐用品制造业","闽侯县"]
["福州市闽侯夫达工艺品有限公司","768583151",2431,"雕塑工艺品制造","文教、工美、体育和娱乐用品制造业","闽侯县"]
["闽侯县富宇工艺品有限公司","093407204",2439,"其他工艺美术及礼仪用品制造","文教、工美、体育和娱乐用品制造业","闽侯县"]
["福建省鑫三盛食品有限公司","572990505",1314,"杂粮加工","农副食品加工业","闽侯县"]
["福建省立成体育用品有限公司","MA8TUF5M4",1951,"纺织面料鞋制造","皮革、毛皮、羽毛及其制品和制鞋业","连江县"]
["连江县塘坂水电发展有限公司","735663593",4413,"水力发电","电力、热力生产和供应业","连江县"]
["福州市新聚丰食品发展有限公司","MA2XPA0A6",1361,"水产品冷冻加工","农副食品加工业","罗源县"]
["平潭煜想时代科技有限公司","MA2XPM808",3825,"光伏设备及元器件制造","电气机械和器材制造业","平潭县"]
["平潭华航实业有限公司","MA32THU0X",1019,"粘土及其他土砂石开采","非金属矿采选业","平潭县"]
["福建匀胜服装有限公司","MA34D0DQ2",1789,"其他产业用纺织制成品制造","纺织业","仓山区"]
["福州市长乐区和龙针纺有限公司","779612536",1763,"针织或钩针编织品制造","纺织业","长乐区"]
["福清市新美融鞋业有限公司","MA32N3294",1953,"塑料鞋制造","皮革、毛皮、羽毛及其制品和制鞋业","福清市"]
["福建闽清聚兴工艺品有限公司","MA2XNPDJ2",2432,"金属工艺品制造","文教、工美、体育和娱乐用品制造业","闽清县"]
["福州利辉鞋业有限公司","260203218",1953,"塑料鞋制造","皮革、毛皮、羽毛及其制品和制鞋业","仓山区"]
["福州环亚电子有限公司","628617962",3969,"其他智能消费设备制造","计算机、通信和其他电子设备制造业","仓山区"]
["福建永鑫针织有限公司","782168122",1763,"针织或钩针编织品制造","纺织业","长乐区"]
["福州瑞峰针纺有限公司","746385111",1763,"针织或钩针编织品制造","纺织业","长乐区"]
["福州美杰工艺品有限公司","315622066",2432,"金属工艺品制造","文教、工美、体育和娱乐用品制造业","闽侯县"]
["福州长征木业有限公司","733617155",2438,"珠宝首饰及有关物品制造","文教、工美、体育和娱乐用品制造业","闽侯县"]
["福建海峡服装有限公司","754999770",1811,"运动机织服装制造","纺织服装、服饰业","连江县"]
["福建皇冠纸业有限公司","066560289",2239,"其他纸制品制造","造纸和纸制品业","罗源县"]
["福州市渔盛饲料有限公司","095303871",1329,"其他饲料加工","农副食品加工业","罗源县"]
["永泰嘉锋好家具有限公司","665083859",2110,"木质家具制造","家具制造业","永泰县"]
["华广生物技术（平潭）有限公司","31540902X",3581,"医疗诊断监护及治疗设备制造","专用设备制造业","平潭县"]
["福州宏辉包装有限公司","724216616",2319,"包装装潢及其他印刷","印刷和记录媒介复制业","仓山区"]
["福州新能纺织有限公司","MA2Y4F2W9",1761,"针织或钩针编织物织造","纺织业","长乐区"]
["福建达华智显科技有限公司","MA33QHKK4",3951,"电视机制造","计算机、通信和其他电子设备制造业","长乐区"]
["福州杉达家具有限公司","399577484",2110,"木质家具制造","家具制造业","长乐区"]
["福清市翔宇针织有限公司","784536515",1751,"化纤织造加工","纺织业","福清市"]
["罗源长航纺织烘干定型有限公司","MA2YFHYH5",1712,"棉织造加工","纺织业","罗源县"]
["福建省福晶磁性材料有限公司","729736020",3989,"其他电子元件制造","计算机、通信和其他电子设备制造业","闽清县"]
["福州小神龙表业技术研发有限公司","789021684",4030,"钟表与计时仪器制造","仪器仪表制造业","闽清县"]
["福州金之榕副食品有限公司","61130509X",1372,"食用菌加工","农副食品加工业","仓山区"]
["福州三鑫鞋业有限公司","779609484",1953,"塑料鞋制造","皮革、毛皮、羽毛及其制品和制鞋业","仓山区"]
["福州展旭电子有限公司","784528558",3953,"影视录放设备制造","计算机、通信和其他电子设备制造业","仓山区"]
["福州盛名鞋业有限公司","092697721",1953,"塑料鞋制造","皮革、毛皮、羽毛及其制品和制鞋业","仓山区"]
["福州耐宝新材料有限公司","662834004",1953,"塑料鞋制造","皮革、毛皮、羽毛及其制品和制鞋业","仓山区"]
["福州开发区星鸿仟皮革制品有限公司","M00009BU0",1952,"皮鞋制造","皮革、毛皮、羽毛及其制品和制鞋业","马尾区"]
["福清华顺混合集成电路有限公司","77963708X",3982,"电子电路制造","计算机、通信和其他电子设备制造业","福清市"]
["福建海兴保健食品有限公司","61184355X",1369,"其他水产品加工","农副食品加工业","福清市"]
["福建多润斯建材有限公司","669282003",2641,"涂料制造","化学原料和化学制品制造业","闽侯县"]
["福建三祥建筑新型材料有限公司","660379693",3031,"粘土砖瓦及建筑砌块制造","非金属矿物制品业","闽侯县"]
["福州天鹏饲料有限公司","731856910",1329,"其他饲料加工","农副食品加工业","闽侯县"]
["利达(福州)彩色印刷有限公司","611315319",2319,"包装装潢及其他印刷","印刷和记录媒介复制业","仓山区"]
["福建正盛日用品有限公司","611008255",2130,"金属家具制造","家具制造业","仓山区"]
["福州峻丰鞋业有限公司","557590845",1953,"塑料鞋制造","皮革、毛皮、羽毛及其制品和制鞋业","仓山区"]
["福州迪玫雅生物科技有限公司","MA34628G6",2770,"卫生材料及医药用品制造药用辅料及包装材料","医药制造业","仓山区"]
["福建省普华电力科技有限公司","798357104",4012,"电工仪器仪表制造","仪器仪表制造业","仓山区"]
["福州双盛鞋业有限公司","735656510",1953,"塑料鞋制造","皮革、毛皮、羽毛及其制品和制鞋业","仓山区"]
["福州兴峰机械设备有限公司","315305511",3311,"金属结构制造","金属制品业","马尾区"]
["福建建欣针织有限公司","628611798",1761,"针织或钩针编织物织造","纺织业","长乐区"]
["福清市辉华不锈钢制品有限公司","798387442",3130,"钢压延加工","黑色金属冶炼和压延加工业","福清市"]
["中盐福建盐业有限公司","158168153",1494,"盐加工","食品制造业","闽侯县"]
["福州景志鞋业有限公司","MA2YM7XF3",1954,"橡胶鞋制造","皮革、毛皮、羽毛及其制品和制鞋业","闽侯县"]
["福州康佳利食品有限公司","MA348RP29",1353,"肉制品及副产品加工","农副食品加工业","闽侯县"]
["福州永青户外用品有限公司","MA2YMXL05",1922,"皮箱包袋制造","皮革、毛皮、羽毛及其制品和制鞋业","闽侯县"]
["福州德亿新型建材有限公司","591747877",3031,"粘土砖瓦及建筑砌块制造","非金属矿物制品业","罗源县"]
["福建金鑫源节能建材有限公司","67191214X",4220,"非金属废料和碎屑加工处理","废弃资源综合利用业","罗源县"]
["福建东方电器有限公司","611325592",3823,"配电开关控制设备制造","电气机械和器材制造业","仓山区"]
["福州恒展电子有限公司","743842081",3831,"电线电缆制造","电气机械和器材制造业","晋安区"]
["福州市马尾区道豐包装材料有限公司","052305770",2926,"塑料包装箱及容器制造","橡胶和塑料制品业","马尾区"]
["福建五六能源装备有限公司","589555454",3442,"气体压缩机械制造","通用设备制造业","长乐区"]
["福州市环球不锈钢制品有限公司","07741536X",3130,"钢压延加工","黑色金属冶炼和压延加工业","福清市"]
["福清市南宾树脂有限公司","154909452",2646,"密封用填料及类似品制造","化学原料和化学制品制造业","福清市"]
["福建协心智能科技有限公司","MA338LNM2",2926,"塑料包装箱及容器制造","橡胶和塑料制品业","闽侯县"]
["福州艺群工艺品有限公司","06877589X",2439,"其他工艺美术及礼仪用品制造","文教、工美、体育和娱乐用品制造业","闽侯县"]
["福州吉祥塑胶有限公司","753101324",2411,"文具制造","文教、工美、体育和娱乐用品制造业","仓山区"]
["福州三辉鞋帽有限公司","717380290",1953,"塑料鞋制造","皮革、毛皮、羽毛及其制品和制鞋业","仓山区"]
["福州裕元制衣有限公司","779629389",1819,"其他机织服装制造","纺织服装、服饰业","仓山区"]
["福建俊榕能源有限公司","687519422",2922,"塑料板管型材制造","橡胶和塑料制品业","长乐区"]
["福建省闽侯环宇工艺有限公司","70513536X",2431,"雕塑工艺品制造","文教、工美、体育和娱乐用品制造业","闽侯县"]
["福建利斯阁家居用品有限公司","MA344R634",2439,"其他工艺美术及礼仪用品制造","文教、工美、体育和娱乐用品制造业","闽侯县"]
["福建佰奥源生物科技有限公司","MA34AL50X",1399,"其他未列明农副食品加工","农副食品加工业","闽侯县"]
["福建味中味食品有限公司","154775351",1353,"肉制品及副产品加工","农副食品加工业","罗源县"]
["福建省福芯电子科技有限公司","31073793X",3973,"集成电路制造","计算机、通信和其他电子设备制造业","鼓楼区"]
["春晖科技集团有限公司","MA3459M59",1789,"其他产业用纺织制成品制造","纺织业","仓山区"]
["福州昌盛食品有限公司","743825249",1431,"米面制品制造","食品制造业","仓山区"]
["福州富莱仕影像器材有限公司","772903162",3871,"电光源制造","电气机械和器材制造业","晋安区"]
["福清大朋电子配件有限公司","611318253",3831,"电线电缆制造","电气机械和器材制造业","福清市"]
["福建台捷重工机械有限公司","315645460",3429,"其他金属加工机械制造","通用设备制造业","闽侯县"]
["福州信泰汽车零部件有限公司","759357558",3670,"汽车零部件及配件制造","汽车制造业","闽侯县"]
["福建华秋源实业有限责任公司","MA32KRBC5",2110,"木质家具制造","家具制造业","闽侯县"]
["福州东升茶厂","154645768",1530,"精制茶加工","酒、饮料和精制茶制造业","仓山区"]
["福州金城源包装纸业有限公司","611321233",2239,"其他纸制品制造","造纸和纸制品业","仓山区"]
["福州德隆鞋业有限公司","729710963",1953,"塑料鞋制造","皮革、毛皮、羽毛及其制品和制鞋业","仓山区"]
["福州金福得印制板有限公司","260178040",3982,"电子电路制造","计算机、通信和其他电子设备制造业","晋安区"]
["福州川琪日用品有限公司","775392169",2437,"地毯挂毯制造","文教、工美、体育和娱乐用品制造业","晋安区"]
["福建中研机电科技有限公司","315774940",3812,"电动机制造","电气机械和器材制造业","马尾区"]
["福州中研电机有限公司","MA32F67P1",3812,"电动机制造","电气机械和器材制造业","马尾区"]
["福州立雅家具有限公司","MA348FX19",2110,"木质家具制造","家具制造业","罗源县"]
["福州亮峰钢化玻璃有限公司","066587764",3042,"特种玻璃制造","非金属矿物制品业","罗源县"]
["福建省恒祥渔业有限公司","572981158",1361,"水产品冷冻加工","农副食品加工业","平潭县"]
["福州静远家庭日用品有限公司","74908463X",2927,"日用塑料制品制造","橡胶和塑料制品业","仓山区"]
["福建铭利腾环保科技有限公司","749085827",3514,"建筑工程用机械制造","专用设备制造业","仓山区"]
["福建中澳科技有限公司","751386012",2319,"包装装潢及其他印刷","印刷和记录媒介复制业","仓山区"]
["福州天马制衣有限公司","260572304",1819,"其他机织服装制造","纺织服装、服饰业","仓山区"]
["友谊（福建）涂料有限公司","766162265",2641,"涂料制造","化学原料和化学制品制造业","仓山区"]
["福建天朗商业有限公司","077421006",1411,"糕点面包制造","食品制造业","仓山区"]
["福州兴得鞋业有限公司","260193873",1953,"塑料鞋制造","皮革、毛皮、羽毛及其制品和制鞋业","仓山区"]
["福州荣利鞋业有限公司","741661260",1953,"塑料鞋制造","皮革、毛皮、羽毛及其制品和制鞋业","仓山区"]
["福州市城门榕城茶厂","154625249",1530,"精制茶加工","酒、饮料和精制茶制造业","仓山区"]
["福州下洋阀门总厂","154626639",3443,"阀门和旋塞制造","通用设备制造业","仓山区"]
["福州豪峰食品有限公司","260194323",1422,"蜜饯制作","食品制造业","仓山区"]
["福州翔达实业有限公司","260578482",3872,"照明灯具制造","电气机械和器材制造业","仓山区"]
["福州市永达鞋业有限公司","674036763",1953,"塑料鞋制造","皮革、毛皮、羽毛及其制品和制鞋业","仓山区"]
["福州洪晖米业有限公司","705115596",1311,"稻谷加工","农副食品加工业","仓山区"]
["福建闽瑞茶业有限公司","705119458",1530,"精制茶加工","酒、饮料和精制茶制造业","仓山区"]
["福州良威塑料电子工艺综合厂","72424959X",2929,"塑料零件及其他塑料制品制造","橡胶和塑料制品业","仓山区"]
["福州长盈鞋业有限公司","726469481",1953,"塑料鞋制造","皮革、毛皮、羽毛及其制品和制鞋业","仓山区"]
["福州宏德盛塑胶制品有限公司","727934795",1953,"塑料鞋制造","皮革、毛皮、羽毛及其制品和制鞋业","仓山区"]
["福建精津管道设备有限公司","731876196",3443,"阀门和旋塞制造","通用设备制造业","仓山区"]
["福建盛辉彩钢夹心板有限公司","743820069",3039,"其他建筑材料制造","非金属矿物制品业","仓山区"]
["福州宏东鞋业有限公司","751384383",1953,"塑料鞋制造","皮革、毛皮、羽毛及其制品和制鞋业","仓山区"]
["福州清富华兴塑胶制品有限公司","764082376",1953,"塑料鞋制造","皮革、毛皮、羽毛及其制品和制鞋业","仓山区"]
["福建哈雷节能装饰材料有限公司","768558335",3023,"石棉水泥制品制造","非金属矿物制品业","仓山区"]
["福州富竹鞋业有限公司","770662799",1953,"塑料鞋制造","皮革、毛皮、羽毛及其制品和制鞋业","仓山区"]
["福州永动鑫兴机械五金有限公司","731886546",3322,"手工具制造","金属制品业","仓山区"]
["福州宝诚金属工艺有限公司","050337971",3312,"金属门窗制造","金属制品业","仓山区"]
["福州华鹰重工机械有限公司","779606080",3459,"其他传动部件制造","通用设备制造业","仓山区"]
["福州赛宝塑革有限公司","743801343",1953,"塑料鞋制造","皮革、毛皮、羽毛及其制品和制鞋业","仓山区"]
["福州福隆家具装璜有限公司","611315183",2110,"木质家具制造","家具制造业","仓山区"]
["福州市仓山天天筷厂","628522349",2039,"软木制品及其他木制品制造","木材加工和木、竹、藤、棕、草制品业","仓山区"]
["福州榕立环保科技有限公司","751391479",3811,"发电机及发电机组制造","电气机械和器材制造业","仓山区"]
["福州连山食品有限公司","78219016X",1492,"保健食品制造","食品制造业","仓山区"]
["福建金山生物制药股份有限公司","705101178",2720,"化学药品制剂制造","医药制造业","仓山区"]
["福州群策纸制品有限公司","260176352",2239,"其他纸制品制造","造纸和纸制品业","仓山区"]
["福州叶下塑革有限公司","260581964",1953,"塑料鞋制造","皮革、毛皮、羽毛及其制品和制鞋业","仓山区"]
["福建海特化工建材实业有限公司","26018765X",2641,"涂料制造","化学原料和化学制品制造业","仓山区"]
["福州福营塑胶制品有限公司","611311801",2925,"塑料人造革合成革制造","橡胶和塑料制品业","仓山区"]
["福建奋安工贸有限公司","705209867",3130,"钢压延加工","黑色金属冶炼和压延加工业","仓山区"]
["福州星得盛日用品有限公司","581110485",1773,"窗帘布艺类产品制造","纺织业","仓山区"]
["福建鸿博光电科技有限公司","779614865",3871,"电光源制造","电气机械和器材制造业","仓山区"]
["福州丽锦特服装有限公司","665080084",1819,"其他机织服装制造","纺织服装、服饰业","仓山区"]
["福州光诚光电有限公司","782183488",3042,"特种玻璃制造","非金属矿物制品业","仓山区"]
["福州茂盛投资有限公司","741693166",1819,"其他机织服装制造","纺织服装、服饰业","仓山区"]
["福州颐玖叁叁豆制品有限公司","MA2YR8HRX",1392,"豆制品制造","农副食品加工业","仓山区"]
["福建咸康药业有限公司","550977537",2730,"中药饮片加工","医药制造业","仓山区"]
["福州祥龙鞋业有限公司","611313452",1959,"其他制鞋业","皮革、毛皮、羽毛及其制品和制鞋业","仓山区"]
["福州同泰源服饰有限公司","569257652",1811,"运动机织服装制造","纺织服装、服饰业","仓山区"]
["福建华龙塑胶有限公司","696641710",1953,"塑料鞋制造","皮革、毛皮、羽毛及其制品和制鞋业","仓山区"]
["福州麦柯科技有限公司","76175646X",2919,"其他橡胶制品制造","橡胶和塑料制品业","仓山区"]
["福建金源泉科技发展有限公司","705271097",3463,"气体液体分离及纯净设备制造","通用设备制造业","仓山区"]
["福州安吉多食品有限公司","315640061",1371,"蔬菜加工","农副食品加工业","仓山区"]
["福州鑫环达重工科技有限公司","775395976",3499,"其他未列明通用设备制造业","通用设备制造业","仓山区"]
["福州福赛特光学仪器有限公司","753142556",4040,"光学仪器制造","仪器仪表制造业","仓山区"]
["福州佳新创辉机电有限公司","757350619",3811,"发电机及发电机组制造","电气机械和器材制造业","仓山区"]
["福州宏利兴包装有限公司","749098003",2231,"纸和纸板容器制造","造纸和纸制品业","仓山区"]
["云集（福建）实业有限公司","611006639",3383,"金属制卫生器具制造","金属制品业","仓山区"]
["福州志荣感应设备有限公司","154524261",3983,"敏感元件及传感器制造","计算机、通信和其他电子设备制造业","仓山区"]
["中能电气股份有限公司","743821715",3824,"电力电子元器件制造","电气机械和器材制造业","仓山区"]
["福州百洋电子科技开发有限公司","746366746",4030,"钟表与计时仪器制造","仪器仪表制造业","仓山区"]
["福州森通动力机械有限公司","751368316",3811,"发电机及发电机组制造","电气机械和器材制造业","仓山区"]
["福州霖镁服饰有限公司","751386004",1819,"其他机织服装制造","纺织服装、服饰业","仓山区"]
["福建路雅科技有限公司","733620477",1952,"皮鞋制造","皮革、毛皮、羽毛及其制品和制鞋业","仓山区"]
["福州亿恒户外用品有限公司","761768743",1819,"其他机织服装制造","纺织服装、服饰业","仓山区"]
["福州行仓食品有限公司","786926218",1371,"蔬菜加工","农副食品加工业","仓山区"]
["福州冠达服装有限公司","611344865",1819,"其他机织服装制造","纺织服装、服饰业","仓山区"]
["福州中园塑胶有限公司","724248941",2926,"塑料包装箱及容器制造","橡胶和塑料制品业","仓山区"]
["福州联华制衣有限公司","694361483",1921,"皮革服装制造","皮革、毛皮、羽毛及其制品和制鞋业","仓山区"]
["福州森绿鞋业有限公司","766176640",1953,"塑料鞋制造","皮革、毛皮、羽毛及其制品和制鞋业","晋安区"]
["福州浩川鞋业有限公司","770681244",1952,"皮鞋制造","皮革、毛皮、羽毛及其制品和制鞋业","晋安区"]
["福建新华印刷有限责任公司","158146050",2311,"书报刊印刷","印刷和记录媒介复制业","晋安区"]
["福建省久福实业有限公司","MA32C1GG5",3031,"粘土砖瓦及建筑砌块制造","非金属矿物制品业","晋安区"]
["福州绿联环保科技有限公司","MA31MPBK5",3031,"粘土砖瓦及建筑砌块制造","非金属矿物制品业","晋安区"]
["福州益得伦鞋材有限公司","611331909",1954,"橡胶鞋制造","皮革、毛皮、羽毛及其制品和制鞋业","晋安区"]
["福建华威国际汽车贸易有限公司","61130808X",3670,"汽车零部件及配件制造","汽车制造业","晋安区"]
["英德尔（福建）机械有限公司","671921599",3572,"机械化农业及园艺机具制造","专用设备制造业","晋安区"]
["福州金洋冶金机械设备有限公司","777521331",3422,"金属成形机床制造","通用设备制造业","晋安区"]
["福州尼西亚木业有限公司","727911681",2034,"木地板制造","木材加工和木、竹、藤、棕、草制品业","晋安区"]
["福州兴广恒玻璃有限公司","775393233",3059,"其他玻璃制品制造","非金属矿物制品业","晋安区"]
["福建中源百宏集团有限公司","793759913",1829,"其他针织或钩针编织服装制造","纺织服装、服饰业","晋安区"]
["福建新成博光电科技有限公司","MA31XBNR0",4040,"光学仪器制造","仪器仪表制造业","晋安区"]
["福州跃升鞋业有限公司","746357444",1959,"其他制鞋业","皮革、毛皮、羽毛及其制品和制鞋业","晋安区"]
["福州金缘鞋材有限公司","751381887",1953,"塑料鞋制造","皮革、毛皮、羽毛及其制品和制鞋业","晋安区"]
["福州摩实达电子科技有限公司","766197388",3872,"照明灯具制造","电气机械和器材制造业","晋安区"]
["福州嘉威电子有限公司","260583468",3990,"其他电子设备制造","计算机、通信和其他电子设备制造业","晋安区"]
["福建中鹏环保科技发展有限公司","772948387",3099,"其他非金属矿物制品制造","非金属矿物制品业","晋安区"]
["福州国德光电设备有限公司","705118340",3589,"其他医疗设备及器械制造","专用设备制造业","晋安区"]
["福州永昌盛机械工艺有限公司","611332100",3465,"风动和电动工具制造","通用设备制造业","晋安区"]
["福州吉祥照明有限公司","660397912",3872,"照明灯具制造","电气机械和器材制造业","晋安区"]
["福建马标新型建材有限公司","761774916",2641,"涂料制造","化学原料和化学制品制造业","晋安区"]
["福建博美安医疗科技有限公司","727894957",2915,"日用及医用橡胶制品制造","橡胶和塑料制品业","晋安区"]
["福州伟鑫制衣有限公司","74907508X",1819,"其他机织服装制造","纺织服装、服饰业","晋安区"]
["福州方成制衣有限公司","777509340",1819,"其他机织服装制造","纺织服装、服饰业","晋安区"]
["福州万佳雨具有限公司","611323511",2927,"日用塑料制品制造","橡胶和塑料制品业","晋安区"]
["福州市晋安区西园铝型材厂","25973023X",3359,"其他建筑安全用金属制品制造","金属制品业","晋安区"]
["福州寿岭竹制品有限公司","674026901",2041,"竹制品制造","木材加工和木、竹、藤、棕、草制品业","晋安区"]
["佳旺食品(福建)有限公司","611007164",1419,"饼干及其他焙烤食品制造","食品制造业","晋安区"]
["福州升瑞服饰有限公司","091357370",1819,"其他机织服装制造","纺织服装、服饰业","晋安区"]
["福州林顺木业有限公司","MA2XN14B4",2110,"木质家具制造","家具制造业","晋安区"]
["福州森泰工艺品有限公司","731856507",2110,"木质家具制造","家具制造业","晋安区"]
["福州叶家记食品有限公司","775380424",1353,"肉制品及副产品加工","农副食品加工业","晋安区"]
["福州琴声电子有限公司","260192379",3952,"音响设备制造","计算机、通信和其他电子设备制造业","晋安区"]
["福州安蒲特电气有限公司","062296513",3823,"配电开关控制设备制造","电气机械和器材制造业","晋安区"]
["福州市晋安区江南顺达电线电缆厂","798375935",3831,"电线电缆制造","电气机械和器材制造业","晋安区"]
["福建大昌生物科技实业有限公司","727893882",1329,"其他饲料加工","农副食品加工业","马尾区"]
["福州开发区正泰纺织有限公司","705130155",1711,"棉纺纱加工","纺织业","马尾区"]
["福州开发区天诚钢化玻璃有限公司","754961166",3049,"其他玻璃制造","非金属矿物制品业","马尾区"]
["福州开发区福鑫实业有限公司","770670369",1361,"水产品冷冻加工","农副食品加工业","马尾区"]
["金红叶纸业（福州）有限公司","79175633X",2239,"其他纸制品制造","造纸和纸制品业","马尾区"]
["福州欣瑞意实业有限公司","581148651",1329,"其他饲料加工","农副食品加工业","马尾区"]
["福建炬集网络科技有限公司","MA2XRX4DX",3811,"发电机及发电机组制造","电气机械和器材制造业","马尾区"]
["福建吴航新材料有限责任公司","315459932",3389,"其他金属制日用品制造","金属制品业","长乐区"]
["福建省长乐市三联针纺有限公司","796078494",1763,"针织或钩针编织品制造","纺织业","长乐区"]
["福州市长乐区远大水泥制品有限公司","666852410",3021,"水泥制品制造","非金属矿物制品业","长乐区"]
["福建省福州市立峰纺织有限公司","154897586",1711,"棉纺纱加工","纺织业","长乐区"]
["福州市长乐区鑫城化纤有限公司","751398195",2822,"涤纶纤维制造","化学纤维制造业","长乐区"]
["福州市长乐区中大针织有限公司","793786671",1763,"针织或钩针编织品制造","纺织业","长乐区"]
["福州新宇针织有限公司","775393444",1763,"针织或钩针编织品制造","纺织业","长乐区"]
["福建省众合针织有限公司","699001559",1761,"针织或钩针编织物织造","纺织业","长乐区"]
["福建省鑫隆重型机械有限公司","676536200",3516,"冶金专用设备制造","专用设备制造业","长乐区"]
["福建华扬科技有限公司","310639045",3391,"黑色金属铸造","金属制品业","长乐区"]
["福建捷泰工业科技股份有限公司","73951742X",3465,"风动和电动工具制造","通用设备制造业","长乐区"]
["福建省长乐市永兴羽绒制品有限公司","154894991",1941,"羽毛绒加工","皮革、毛皮、羽毛及其制品和制鞋业","长乐区"]
["福州通尔达电线电缆有限公司","260179596",3831,"电线电缆制造","电气机械和器材制造业","长乐区"]
["福建省福州市金鹤毛绒有限公司","154865103",2437,"地毯挂毯制造","文教、工美、体育和娱乐用品制造业","长乐区"]
["长乐国一茶叶有限公司","154868929",1530,"精制茶加工","酒、饮料和精制茶制造业","长乐区"]
["福州市长乐区庆祥针纺有限公司","565377286",1763,"针织或钩针编织品制造","纺织业","长乐区"]
["福州市长乐区富盛制衣有限公司","611836181",1763,"针织或钩针编织品制造","纺织业","长乐区"]
["福建骏鹏智能制造有限公司","MA31KNA84",3670,"汽车零部件及配件制造","汽车制造业","长乐区"]
["福建绿植源生化科技有限公司","796070150",2682,"化妆品制造","化学原料和化学制品制造业","长乐区"]
["福州市虹太木业有限公司","559559892",2110,"木质家具制造","家具制造业","长乐区"]
["福建省长乐市永冠纺织有限公司","705159046",1761,"针织或钩针编织物织造","纺织业","长乐区"]
["福建力特隆纺织印染有限公司","154891926",1713,"棉印染精加工","纺织业","长乐区"]
["福建省航韩机械科技有限公司","06039251X",3551,"纺织专用设备制造","专用设备制造业","长乐区"]
["长乐隆鑫针织有限公司","746378819",1712,"棉织造加工","纺织业","长乐区"]
["福建源达针织有限公司","768577907",1712,"棉织造加工","纺织业","长乐区"]
["福建省长乐市华阳经编织造厂","15487507X",2822,"涤纶纤维制造","化学纤维制造业","长乐区"]
["福州市长乐区永灿针织有限公司","764054260",1763,"针织或钩针编织品制造","纺织业","长乐区"]
["长乐梦翔针织有限公司","557595881",1763,"针织或钩针编织品制造","纺织业","长乐区"]
["福州陆雄食品有限公司","782159314",1361,"水产品冷冻加工","农副食品加工业","长乐区"]
["长乐光耀针织有限公司","31576139X",1761,"针织或钩针编织物织造","纺织业","长乐区"]
["福清市福星源有机肥生物科技有限公司","798378765",2625,"有机肥料及微生物肥料制造","化学原料和化学制品制造业","福清市"]
["福清优品电子配件有限公司","399849531",2929,"塑料零件及其他塑料制品制造","橡胶和塑料制品业","福清市"]
["福清恒鑫制衣有限公司","741685174",1819,"其他机织服装制造","纺织服装、服饰业","福清市"]
["福建省诺希新材料科技有限公司","585306872",3399,"其他未列明金属制品制造","金属制品业","福清市"]
["福建海壹食品饮料有限公司","611306236",1432,"速冻食品制造","食品制造业","福清市"]
["福清合新塑胶五金制品有限公司","61134489X",2929,"塑料零件及其他塑料制品制造","橡胶和塑料制品业","福清市"]
["福清市祥晟塑胶有限公司","746363932",2921,"塑料薄膜制造","橡胶和塑料制品业","福清市"]
["福建中联兰天投资集团有限公司","749089510",2921,"塑料薄膜制造","橡胶和塑料制品业","福清市"]
["旭成（福建）科技股份有限公司","585343489",2921,"塑料薄膜制造","橡胶和塑料制品业","福清市"]
["鼎凯龙(福建)印刷科技有限公司","786933223",3542,"印刷专用设备制造","专用设备制造业","福清市"]
["福建明辉电力技术有限公司","MA32U71H2",3811,"发电机及发电机组制造","电气机械和器材制造业","福清市"]
["福清市景源矿业有限公司","096412826",1019,"粘土及其他土砂石开采","非金属矿采选业","福清市"]
["福建兴联发针织有限公司","77066257X",2436,"抽纱刺绣工艺品制造","文教、工美、体育和娱乐用品制造业","福清市"]
["福清市康倍多食品有限公司","MA33EGB13",1331,"食用植物油加工","农副食品加工业","福清市"]
["福州智能电力科技有限公司","MA2XNQJD4",3829,"其他输配电及控制设备制造","电气机械和器材制造业","福清市"]
["福清市龙港金属制品有限公司","705154552",3312,"金属门窗制造","金属制品业","福清市"]
["福清市裕兴建材有限公司","779644765",3071,"建筑陶瓷制品制造","非金属矿物制品业","福清市"]
["福清隆裕食品开发有限公司","611329817",1361,"水产品冷冻加工","农副食品加工业","福清市"]
["福建荣鑫纸业有限公司","MA32WR4M8",2239,"其他纸制品制造","造纸和纸制品业","福清市"]
["福清市永春混凝土外加剂有限公司","550979719",2661,"化学试剂和助剂制造","化学原料和化学制品制造业","福清市"]
["福建植护盈润实业有限公司","MA8TGQKB3",2239,"其他纸制品制造","造纸和纸制品业","福清市"]
["福州盛隆气体有限公司","091381194",4190,"其他未列明制造业","其他制造业","福清市"]
["福清市康华塑胶再生有限公司","753132921",2929,"塑料零件及其他塑料制品制造","橡胶和塑料制品业","福清市"]
["福清市昊凡再生资源有限公司","MA32GW8A1",4220,"非金属废料和碎屑加工处理","废弃资源综合利用业","福清市"]
["福建省福化天辰气体有限公司","MA2XYR093",2619,"其他基础化学原料制造","化学原料和化学制品制造业","福清市"]
["福州耀隆化工集团公司","154413991",2612,"无机碱制造","化学原料和化学制品制造业","福清市"]
["福州亿丰纸业有限公司","260194315",2231,"纸和纸板容器制造","造纸和纸制品业","闽侯县"]
["福建雷凯诺石化装备有限公司","674019517",3521,"炼油化工生产专用设备制造","专用设备制造业","闽侯县"]
["福建升达冶金技术开发有限公司","665065917",3499,"其他未列明通用设备制造业","通用设备制造业","闽侯县"]
["福建成达鼓风机有限公司","786916781",3462,"风机风扇制造","通用设备制造业","闽侯县"]
["闽侯县华辰工艺品厂","671919069",2431,"雕塑工艺品制造","文教、工美、体育和娱乐用品制造业","闽侯县"]
["福建省奇东电线电缆有限公司","793798840",3831,"电线电缆制造","电气机械和器材制造业","闽侯县"]
["闽侯县朝鑫工艺制品有限公司","665091824",2439,"其他工艺美术及礼仪用品制造","文教、工美、体育和娱乐用品制造业","闽侯县"]
["闽侯县欧艺工艺品有限公司","081635592",2432,"金属工艺品制造","文教、工美、体育和娱乐用品制造业","闽侯县"]
["福建香思食品有限公司","MA2Y84CX2",1353,"肉制品及副产品加工","农副食品加工业","闽侯县"]
["闽侯县冠茗茶叶有限公司","761796648",1530,"精制茶加工","酒、饮料和精制茶制造业","闽侯县"]
["福建明胜展示制作有限公司","685073906",2110,"木质家具制造","家具制造业","闽侯县"]
["福州统联文具礼品有限公司","611336013",2411,"文具制造","文教、工美、体育和娱乐用品制造业","闽侯县"]
["申舒斯仪表系统(福州)有限公司","665091138",4016,"供应用仪器仪表制造","仪器仪表制造业","闽侯县"]
["福州长胜服饰有限公司","MA346F3F1",1819,"其他机织服装制造","纺织服装、服饰业","闽侯县"]
["福州建迪混凝土有限公司","611309621",3021,"水泥制品制造","非金属矿物制品业","闽侯县"]
["福州信泰塑胶制品有限公司","611315335",2922,"塑料板管型材制造","橡胶和塑料制品业","闽侯县"]
["福州亿利达木业有限公司","68938172X",2034,"木地板制造","木材加工和木、竹、藤、棕、草制品业","闽侯县"]
["东方希望（福州）动物营养食品有限公司","611830986",1329,"其他饲料加工","农副食品加工业","闽侯县"]
["华润混凝土(福州)有限公司","666853405",3021,"水泥制品制造","非金属矿物制品业","闽侯县"]
["福州利胜制衣有限公司","154388765",1779,"其他家用纺织制成品制造","纺织业","闽侯县"]
["福州震港工艺品有限公司","753149563",2431,"雕塑工艺品制造","文教、工美、体育和娱乐用品制造业","闽侯县"]
["福州瓦尔工艺品有限公司","705134332",2432,"金属工艺品制造","文教、工美、体育和娱乐用品制造业","闽侯县"]
["福州源顺石材有限公司","MA346ABU1",1019,"粘土及其他土砂石开采","非金属矿采选业","闽侯县"]
["福州奋达伟业商用设备有限公司","798372769",3382,"金属制餐具和器皿制造","金属制品业","闽侯县"]
["闽侯县明泰家具有限公司","731859919",2110,"木质家具制造","家具制造业","闽侯县"]
["福建诺诚电子科技有限公司","561652594",3989,"其他电子元件制造","计算机、通信和其他电子设备制造业","闽侯县"]
["福建省闽侯县华兴纺织有限公司","798388322",1711,"棉纺纱加工","纺织业","闽侯县"]
["福建创迪科技有限公司","MA2YM7NJ2",3475,"计算器及货币专用设备制造","通用设备制造业","闽侯县"]
["福州菱风服饰有限公司","054302792",1830,"服饰制造","纺织服装、服饰业","闽侯县"]
["新胜（福州）彩印有限公司","665063284",2319,"包装装潢及其他印刷","印刷和记录媒介复制业","闽侯县"]
["福州富拉马斯塑胶有限公司","741690109",2929,"塑料零件及其他塑料制品制造","橡胶和塑料制品业","连江县"]
["福建长茂升铜业有限公司","MA340RX42",3251,"铜压延加工","有色金属冶炼和压延加工业","连江县"]
["福建鑫宝佳生物科技有限公司","337493752",1329,"其他饲料加工","农副食品加工业","连江县"]
["连江县长龙第一茶厂","154712414",1530,"精制茶加工","酒、饮料和精制茶制造业","连江县"]
["罗源县广福行食品有限公司","754955428",1362,"鱼糜制品及水产品干腌制加工","农副食品加工业","罗源县"]
["罗源县中心屠宰场","154746198",1351,"牲畜屠宰","农副食品加工业","罗源县"]
["福建宏伟环保建材有限公司","691942821",3031,"粘土砖瓦及建筑砌块制造","非金属矿物制品业","罗源县"]
["福建华鸿竹木业有限公司","71738024X",2041,"竹制品制造","木材加工和木、竹、藤、棕、草制品业","罗源县"]
["罗源国腾石料有限公司","079763923",4210,"金属废料和碎屑加工处理","废弃资源综合利用业","罗源县"]
["福州宇恒万泉塑料制品有限公司","569268941",2651,"初级形态塑料及合成树脂制造","化学原料和化学制品制造业","闽清县"]
["福州伯瑞电源科技有限公司","MA346C976",2619,"其他基础化学原料制造","化学原料和化学制品制造业","闽清县"]
["福建省精磊矿业科技发展有限公司","079791967",3099,"其他非金属矿物制品制造","非金属矿物制品业","闽清县"]
["百纳(闽清)低压电器有限公司","793792553",3073,"特种陶瓷制品制造","非金属矿物制品业","闽清县"]
["福建省闽清南海陶瓷有限公司","705322819",3071,"建筑陶瓷制品制造","非金属矿物制品业","闽清县"]
["福建省闽清兴亚陶瓷有限公司","563375762",3071,"建筑陶瓷制品制造","非金属矿物制品业","闽清县"]
["福建省闽清富兴陶瓷有限公司","705145891",3071,"建筑陶瓷制品制造","非金属矿物制品业","闽清县"]
["闽清新保隆再生资源有限公司","79176791X",4220,"非金属废料和碎屑加工处理","废弃资源综合利用业","闽清县"]
["福建省闽清港城瓷料有限公司","729690114",3071,"建筑陶瓷制品制造","非金属矿物制品业","闽清县"]
["福建省闽清宝华电瓷电器有限公司","628598845",3073,"特种陶瓷制品制造","非金属矿物制品业","闽清县"]
["福建省闽清恒盛纸箱包装有限公司","05232017X",2231,"纸和纸板容器制造","造纸和纸制品业","闽清县"]
["福建省闽清金诺工贸有限公司","761780793",3099,"其他非金属矿物制品制造","非金属矿物制品业","闽清县"]
["福州西城食品有限公司","705145437",1521,"碳酸饮料制造","酒、饮料和精制茶制造业","闽清县"]
["福州盛鑫再生资源利用有限公司","MA2Y2BTX7",4210,"金属废料和碎屑加工处理","废弃资源综合利用业","闽清县"]
["福建省金盛钢业有限公司","705145322",3130,"钢压延加工","黑色金属冶炼和压延加工业","闽清县"]
["闽清县精磊陶瓷有限公司","096752927",3099,"其他非金属矿物制品制造","非金属矿物制品业","闽清县"]
["福州欣翔工艺品有限公司","741675582",2432,"金属工艺品制造","文教、工美、体育和娱乐用品制造业","永泰县"]
["福州市环天燃料科技有限公司","772926655",2511,"原油加工及石油制品制造","石油加工、炼焦和核燃料加工业","永泰县"]
["凹凸科技（平潭）有限公司","MA3570WU4",3973,"集成电路制造","计算机、通信和其他电子设备制造业","平潭县"]